Workbook

Sheet loginscreen

Sheet Inicio
B4: N° RUC: | D4: J0110000077119
B6: NOMBRE DEL NEGOCIO: | D6: SOCIEDAD CIVIL COMUNIDAD CONNECT
B8: LEMA: | D8: Our Mission CC supports Nicaraguan communities by matching social, economic and Environmental opportunities with local and global resources.
B10: DIRECCIÓN: | D10: Esquina sureste del Parque Central, San Juan del sur, Nicaragua.
B12: CATEGORÍA FISCAL: | D12: Servicios sin alojamiento
B14: TELÉFONO: | D14: 25682731
B16: E-MAIL: | D16: info@comunidadconnect.org
B18: PÁGINA WEB: | D18: www.comunidadconnect.org

Sheet Usuarios
A3: LISTA DE USUARIOS QUE FIGURARÁN EN LOS ESTADOS FINANCIEROS
B6: FUNCIÓN | D6: NOMBRE DE USUARIO
B7: Autorizado por: | D7: Rodrigo Castro Potoy
B8: Revisado por:
B9: Elaborado por: | D9: Anielka Galán
A18: Autorizado por:
A19: Revisado por:
A20: Elaborado por:

Sheet Catalogo
A3: Crear aquí su Plan Contable
B6: COD. CTA. | C6: NOMBRE DE LA CUENTA | D6: TIPO | E6: NATURALEZA | F6: USAR EN
B7: 100000 | C7: ACTIVOS | D7: RUBRO | E7: D | F7: BG
B8: 110000 | C8: ACTIVOS CORRIENTES | D8: CLASE | E8: D | F8: BG
B9: 110100 | C9: CAJA | D9: PRINCIPAL | E9: D | F9: BG
B10: 110101 | C10: CAJA CHICA | D10: DETALLE | E10: D | F10: BG
B11: 110200 | C11: BANCOS | D11: PRINCIPAL | E11: D | F11: BG
B12: 110201 | C12: CTA. CTE. 356894501 C$ | D12: DETALLE | E12: D | F12: BG
B13: 110202 | C13: CTA. CTE. 357144914 U$ | D13: DETALLE | E13: D | F13: BG
B14: 110203 | C14: CTA. CTE. 356894576 U$ | D14: DETALLE | E14: D | F14: BG
B15: 110204 | C15: CTA.CTE. 357605203 EEUU US | D15: DETALLE | E15: D | F15: BG
B16: 110205 | C16: DEPOSITO DE FONDOS NO EJECUTADOS | D16: DETALLE | E16: D | F16: BG
B17: 110206 | C17: DEPOSITO DE RETENCIONES EFECTUADAS | D17: DETALLE | E17: D | F17: BG
B18: 110300 | C18: INVERSIONES EN VALORES | D18: PRINCIPAL | E18: D | F18: BG
B19: 110301 | C19: PAPEL COMERCIAL | D19: DETALLE | E19: D | F19: BG
B20: 110400 | C20: CUENTAS Y DOCUMENTOS POR COBRAR | D20: PRINCIPAL | E20: D | F20: BG
B21: 110401 | C21: CUENTAS POR COBRAR A CLIENTES | D21: DETALLE | E21: D | F21: BG
B22: 110402 | C22: CUENTAS POR COBRAR A EMPLEADOS | D22: DETALLE | E22: D | F22: BG
B23: 110500 | C23: DEUDORES DIVERSOS | D23: PRINCIPAL | E23: D | F23: BG
B24: 110501 | C24: FONDOS POR JUSTIFICAR | D24: DETALLE | E24: D | F24: BG
B25: 110600 | C25: INVENTARIOS | D25: PRINCIPAL | E25: D | F25: BG
B26: 110601 | C26: EQUIPO DEPORTIVO | D26: DETALLE | E26: D | F26: BG
B27: 110602 | C27: MATERIALES DE CONSTRUCCIÓN | D27: DETALLE | E27: D | F27: BG
B28: 110603 | C28: MATERIALES Y SUMINISTROS | D28: DETALLE | E28: D | F28: BG
B29: 110604 | C29: EQUIPO E INSUMOS MÉDICOS | D29: DETALLE | E29: D | F29: BG
B30: 110605 | C30: PAPELERÍA Y ÚTILES DE OFICINA | D30: DETALLE | E30: D | F30: BG
B31: 110606 | C31: PAPELERIA MEMBRETADA | D31: DETALLE | E31: D | F31: BG
B32: 120000 | C32: ACTIVOS NO CORRIENTES | D32: CLASE | E32: D | F32: BG
B33: 120300 | C33: MOBILIARIO | D33: PRINCIPAL | E33: D | F33: BG
B34: 120301 | C34: MUEBLES Y ENSERES | D34: DETALLE | E34: D | F34: BG
B35: 120400 | C35: EQUIPO | D35: PRINCIPAL | E35: D | F35: BG
B36: 120401 | C36: EQUIPO INFORMÁTICO | D36: DETALLE | E36: D | F36: BG
B37: 120402 | C37: EQUIPO MÉDICO | D37: DETALLE | E37: D | F37: BG
B38: 130000 | C38: DEPRECIACIÓN ACUMULADA | D38: CLASE | E38: H | F38: BG
B39: 130100 | C39: DEPREC. ACUM. MOBILIARIO | D39: PRINCIPAL | E39: H | F39: BG
B40: 130101 | C40: DEPREC. ACUM. MUEBLES Y ENSERES | D40: DETALLE | E40: H | F40: BG
B41: 130200 | C41: DEPREC. ACUM. EQUIPO | D41: PRINCIPAL | E41: H | F41: BG
B42: 130201 | C42: DEPREC. ACUM. EQUIP. INFORMÁTICO | D42: DETALLE | E42: H | F42: BG
B43: 130202 | C43: DEPREC. ACUM. EQUIPO MÉDICO | D43: DETALLE | E43: H | F43: BG
B44: 140000 | C44: OTROS ACTIVOS | D44: CLASE | E44: D | F44: BG
B45: 140100 | C45: DEPÓSITOS EN GARANTÍA | D45: PRINCIPAL | E45: D | F45: BG
B46: 140101 | C46: DEPÓSITOS EN GARANTÍA | D46: DETALLE | E46: D | F46: BG
B47: 200000 | C47: PASIVOS | D47: RUBRO | E47: H | F47: BG
B48: 210000 | C48: PASIVOS CORRIENTES | D48: CLASE | E48: H | F48: BG
B49: 210100 | C49: CUENTAS POR PAGAR | D49: PRINCIPAL | E49: H | F49: BG
B50: 210101 | C50: PROVEEDORES LOCALES | D50: DETALLE | E50: H | F50: BG
B51: 210102 | C51: PROVEEDORES EXTRANJEROS | D51: DETALLE | E51: H | F51: BG
B52: 210200 | C52: DOCUMENTOS POR PAGAR | D52: PRINCIPAL | E52: H | F52: BG
B53: 210201 | C53: DOCUMENTOS POR PAGAR | D53: DETALLE | E53: H | F53: BG
B54: 210300 | C54: IMPUESTOS POR PAGAR | D54: PRINCIPAL | E54: H | F54: BG
B55: 210301 | C55: RETENCIÓN 2% BIENES Y SERVICIOS | D55: DETALLE | E55: H | F55: BG
B56: 210302 | C56: RETENC. 10% SERV. TÉCNICOS Y PROFESIONALES | D56: DETALLE | E56: H | F56: BG
B57: 210303 | C57: RETENCIONES EN LA FUENTE | D57: DETALLE | E57: H | F57: BG
B58: 210304 | C58: OTRAS RETENCIONES | D58: DETALLE | E58: H | F58: BG
B59: 210400 | C59: GASTOS ACUMULADOS POR PAGAR | D59: PRINCIPAL | E59: H | F59: BG
B60: 210401 | C60: VACACIONES ACUM. POR PAGAR | D60: DETALLE | E60: H | F60: BG
B61: 210402 | C61: AGUINALDOS POR PAGAR | D61: DETALLE | E61: H | F61: BG
B62: 210403 | C62: INDEMNIZACIONES POR PAGAR | D62: DETALLE | E62: H | F62: BG
B63: 210404 | C63: INSS PATRONAL POR PAGAR | D63: DETALLE | E63: H | F63: BG
B64: 210405 | C64: APORTE INATEC POR PAGAR | D64: DETALLE | E64: H | F64: BG
B65: 210406 | C65: INSS LABORAL POR PAGAR | D65: DETALLE | E65: H | F65: BG
B66: 300000 | C66: CAPITAL | D66: RUBRO | E66: H | F66: BG
B67: 310000 | C67: CAPITAL SOCIAL | D67: CLASE | E67: H | F67: BG
B68: 310100 | C68: APORTE INICIAL | D68: PRINCIPAL | E68: H | F68: BG
B69: 310101 | C69: FONDO EN RESERVA | D69: DETALLE | E69: H | F69: BG
B70: 310102 | C70: FONDO PATRIMONIAL | D70: DETALLE | E70: H | F70: BG
B71: 310200 | C71: RESULTADOS | D71: PRINCIPAL | E71: H | F71: BG
B72: 310201 | C72: RESULTADOS ACUMULADOS | D72: DETALLE | E72: H | F72: BG
B73: 310202 | C73: RESULTADOS DEL EJERCICIO | D73: DETALLE | E73: H | F73: BG
B74: 500000 | C74: INGRESOS | D74: RUBRO | E74: H | F74: ER
B75: 510000 | C75: INGRESOS POR DONACIONES | D75: CLASE | E75: H | F75: ER
B76: 510100 | C76: DONACIONES INTERNACIONALES | D76: PRINCIPAL | E76: H | F76: ER
B77: 510101 | C77: DONACIONES E.U.A. | D77: DETALLE | E77: H | F77: ER
B78: 510200 | C78: DONACIONES NACIONALES | D78: PRINCIPAL | E78: H | F78: ER
B79: 510201 | C79: DONACIONES GUBERNAMENTALES | D79: DETALLE | E79: H | F79: ER
B80: 510202 | C80: DONACIONES INST. PRIVADAS | D80: DETALLE | E80: H | F80: ER
B81: 510300 | C81: DONACIONES GRUPOS VOLUNTARIOS | D81: PRINCIPAL | E81: H | F81: ER
B82: 510301 | C82: DONACIONES DE VOLUNTARIOS | D82: DETALLE | E82: H | F82: ER
B83: 520000 | C83: OTROS INGRESOS | D83: CLASE | E83: H | F83: ER
B84: 520100 | C84: OTROS INGRESOS | D84: PRINCIPAL | E84: H | F84: ER
B85: 520101 | C85: OTROS INGRESOS | D85: DETALLE | E85: H | F85: ER
B86: 600000 | C86: GASTOS OPERATIVOS | D86: RUBRO | E86: D | F86: ER
B87: 610000 | C87: GASTOS ADMINISTRATIVOS OFICINA | D87: CLASE | E87: D | F87: ER
B88: 610100 | C88: GASTOS EN REMUNERACIÓN | D88: PRINCIPAL | E88: D | F88: ER
B89: 610101 | C89: SALARIOS | D89: DETALLE | E89: D | F89: ER
B90: 610102 | C90: VACACIONES | D90: DETALLE | E90: D | F90: ER
B91: 610103 | C91: DÉCIMO TERCER MES | D91: DETALLE | E91: D | F91: ER
B92: 610104 | C92: INDEMNIZACIONES | D92: DETALLE | E92: D | F92: ER
B93: 610105 | C93: INSS PATRONAL | D93: DETALLE | E93: D | F93: ER
B94: 610106 | C94: APORTE INATEC | D94: DETALLE | E94: D | F94: ER
B95: 610108 | C95: OTROS PAGOS | D95: DETALLE | E95: D | F95: ER
B96: 610107 | C96: OTROS BENEFICIOS | D96: DETALLE | E96: D | F96: ER
B97: 610200 | C97: ALQUILERES | D97: PRINCIPAL | E97: D | F97: ER
B98: 610201 | C98: RENTA DE OFICINA ADMINISTRATIVA | D98: DETALLE | E98: D | F98: ER
B99: 610300 | C99: SERVICIOS BÁSICOS | D99: DETALLE | E99: D | F99: ER
B100: 610301 | C100: SERVICIO ENERGÍA ELÉCTRICA | D100: DETALLE | E100: D | F100: ER
B101: 610302 | C101: SERVICIO AGUA POTABLE | D101: DETALLE | E101: D | F101: ER
B102: 610303 | C102: TELEFONÍA FIJA Y CELULAR | D102: DETALLE | E102: D | F102: ER
B103: 610304 | C103: INTERNET FIJO Y MÓVIL | D103: DETALLE | E103: D | F103: ER
B104: 610400 | C104: GASTO EN MATERIALES Y SUMINISTROS | D104: PRINCIPAL | E104: D | F104: ER
B105: 610401 | C105: PAPELERÍA Y ÚTILES DE OFICINA | D105: DETALLE | E105: D | F105: ER
B106: 610402 | C106: PRODUCTOS DE LIMPIEZA | D106: DETALLE | E106: D | F106: ER
B107: 610403 | C107: COMBUSTIBLE | D107: DETALLE | E107: D | F107: ER
B108: 610500 | C108: GASTOS DE MANTENIMIENTO | D108: PRINCIPAL | E108: D | F108: ER
B109: 610501 | C109: MANTENIMIENTO DE EDIFICIOS | D109: DETALLE | E109: D | F109: ER
B110: 610502 | C110: MANTENIMIENTO DE VEHÍCULOS | D110: DETALLE | E110: D | F110: ER
B111: 610600 | C111: GASTOS VARIOS | D111: PRINCIPAL | E111: D | F111: ER
B112: 610601 | C112: VIÁTICOS ALIMENTACIÓN Y TRANSPORTE | D112: DETALLE | E112: D | F112: ER
B113: 610602 | C113: GASTOS DE REPRESENTACIÓN | D113: DETALLE | E113: D | F113: ER
B114: 610603 | C114: GASTOS VARIOS ADMINISTRATIVOS | D114: DETALLE | E114: D | F114: ER
B115: 620000 | C115: DEPRECIACIÓN | D115: CLASE | E115: D | F115: ER
B116: 620100 | C116: DEPRECIACIÓN DE MOBILIARIO | D116: PRINCIPAL | E116: D | F116: ER
B117: 620101 | C117: DEPRECIACIÓN DE MUEBLES Y ENSERES | D117: DETALLE | E117: D | F117: ER
B118: 620200 | C118: DEPRECIACIÓN DE EQUIPO | D118: PRINCIPAL | E118: D | F118: ER
B119: 620201 | C119: DEPRECIACIÓN EQUIPO INFORMÁTICO | D119: DETALLE | E119: D | F119: ER
B120: 630000 | C120: GASTOS DE PROYECTOS | D120: CLASE | E120: D | F120: ER
B121: 630100 | C121: PROYECTO PARQUE DEPORTIVO | D121: PRINCIPAL | E121: D | F121: ER
B122: 630101 | C122: ADMINISTRATIVOS Y GENERALES | D122: DETALLE | E122: D | F122: ER
B123: 630102 | C123: GASTOS VARIOS | D123: DETALLE | E123: D | F123: ER
B124: 630103 | C124: APORTE SOCIAL | D124: DETALLE | E124: D | F124: ER
B125: 630104 | C125: GASTO POR MANTO. DE LOCAL | D125: DETALLE | E125: D | F125: ER
B126: 630105 | C126: VIATICOS DE ALIMENTACIÓN Y TRANSPORTE | D126: DETALLE | E126: D | F126: ER
B127: 630200 | C127: PROYECTO CAMPO VERDE | D127: PRINCIPAL | E127: D | F127: ER
B128: 630201 | C128: ADMINISTRATIVOS Y GENERALES | D128: DETALLE | E128: D | F128: ER
B129: 630202 | C129: GASTOS VARIOS | D129: DETALLE | E129: D | F129: ER
B130: 630203 | C130: APORTE SOCIAL | D130: DETALLE | E130: D | F130: ER
B131: 630204 | C131: SERVICIO DE TRANSPORTE | D131: DETALLE | E131: D | F131: ER
B132: 630205 | C132: SERVICIO DE HOSPEDAJE | D132: DETALLE | E132: D | F132: ER
B133: 630206 | C133: VIATICOS DE ALIMENTANCIÓN Y TRANSPORTE | D133: DETALLE | E133: D | F133: ER
B134: 630207 | C134: INSUMOS Y SUMINISTRO CAMPO VERDE | D134: DETALLE | E134: D | F134: ER
B135: 630208 | C135: COMBUSTIBLE | D135: DETALLE | E135: D | F135: ER
B136: 630209 | C136: OTROS PAGOS | D136: DETALLE | E136: D | F136: ER
B137: 630300 | C137: PROYECTO TURISMO SOSTENIBLE | D137: PRINCIPAL | E137: D | F137: ER
B138: 630301 | C138: ADMINISTRATIVOS Y GENERALES | D138: DETALLE | E138: D | F138: ER
B139: 630302 | C139: GASTOS VARIOS | D139: DETALLE | E139: D | F139: ER
B140: 630303 | C140: SERVICIO DE TRANSPORTE | D140: DETALLE | E140: D | F140: ER
B141: 630304 | C141: SERVICIOS DE HOSPEDAJE | D141: DETALLE | E141: D | F141: ER
B142: 630305 | C142: SERVICIO DE ALIMENTACIÓN | D142: DETALLE | E142: D | F142: ER
B143: 630306 | C143: ACTIVIDADES SOCIALES | D143: DETALLE | E143: D | F143: ER
B144: 630307 | C144: OTROS PAGOS | D144: DETALLE | E144: D | F144: ER
B145: 630308 | C145: APORTE SOCIAL | D145: DETALLE | E145: D | F145: ER
B146: 630400 | C146: PROYECTO NICA AGUA | D146: PRINCIPAL | E146: D | F146: ER
B147: 630401 | C147: ADMINISTRATIVOS Y GENERALES | D147: DETALLE | E147: D | F147: ER
B148: 630402 | C148: VIATICOS | D148: DETALLE | E148: D | F148: ER
B149: 630403 | C149: GASTO DE TRANSPORTE AEREO | D149: DETALLE | E149: D | F149: ER
B150: 630404 | C150: SERVICIO DE TRANSPORTE | D150: DETALLE | E150: D | F150: ER
B151: 630405 | C151: VIATICOS DE ALIMENTACIÓN Y TRANSPORTE | D151: DETALLE | E151: D | F151: ER
B152: 630500 | C152: PROYECTO CLINICA LOS ROBLES | D152: PRINCIPAL | E152: D | F152: ER
B153: 630501 | C153: COMBUSTIBLE | D153: DETALLE | E153: D | F153: ER
B154: 630502 | C154: VIATICOS DE ALIMENTACIÓN | D154: DETALLE | E154: D | F154: ER
B155: 630503 | C155: INSUMOS MÉDICOS | D155: DETALLE | E155: D | F155: ER
B156: 630504 | C156: PAPELERÍA | D156: DETALLE | E156: D | F156: ER
B157: 630505 | C157: EQUIPOS Y MOBILIARIOS | D157: DETALLE | E157: D | F157: ER
B158: 630506 | C158: SUMINISTROS DE LIMPIEZA | D158: DETALLE | E158: D | F158: ER
B159: 700000 | C159: GASTOS FINANCIEROS | D159: RUBRO | E159: D | F159: ER
B160: 710000 | C160: COMISIONES BANCARIAS | D160: CLASE | E160: D | F160: ER
B161: 710100 | C161: CARGOS CUENTAS CORRIENTES | D161: PRINCIPAL | E161: D | F161: ER
B162: 710101 | C162: CTA. CTE. 356894501 C$ | D162: DETALLE | E162: D | F162: ER
B163: 710102 | C163: CTA. CTE. 357144914 U$ | D163: DETALLE | E163: D | F163: ER
B164: 710103 | C164: CTA. TRANSFERENCIAS 357144914 U$ | D164: DETALLE | E164: D | F164: ER

Sheet Principales
A3: Hojas de resumen - Anexos de Estados Financieros
A5: CODIGO | B5: NOMBRE DE LA CUENTA | N5: INSTRUCCIONES
A6: 110000 | B6: ACTIVOS CORRIENTES | N6: Seleccione el código de la cuenta que desea consultar y luego haga clic en: "Ver resumen"
A7: 120000 | B7: ACTIVOS NO CORRIENTES
A8: 130000 | B8: DEPRECIACIÓN ACUMULADA
A9: 140000 | B9: OTROS ACTIVOS
A10: 210000 | B10: PASIVOS CORRIENTES
A11: 310000 | B11: CAPITAL SOCIAL
A12: 510000 | B12: INGRESOS POR DONACIONES
A13: 520000 | B13: OTROS INGRESOS
A14: 610000 | B14: GASTOS ADMINISTRATIVOS OFICINA
A15: 620000 | B15: DEPRECIACIÓN
A16: 630000 | B16: GASTOS DE PROYECTOS
A17: 710000 | B17: COMISIONES BANCARIAS

Sheet Asientos
A4: ASIENTO N° | B4: 166 | E4: Total Débitos: | F4: =ROUND(SUM(E9:E97), 2) -> 19008.56
A6: FECHA: | B6: 2014-07-02 | E6: Total Créditos: | F6: =ROUND(SUM(F9:F97), 2) -> 19008.56
E7: Diferencia | F7: =ABS(total_debitos-total_creditos) -> 0
A8: CÓD. CTA. | B8: DOC # | C8: NOMBRE DE LA CUENTA | D8: CONCEPTO | E8: DEBE | F8: HABER
A9: 630207 | C9: =IF(A9<>"", VLOOKUP(A9, plan_cuentas, 2, FALSE), "") -> INSUMOS Y SUMINISTRO CAMPO VERDE | D9: Compra de stickers para proyecto EGIII | E9: 1562.62
A10: 110201 | B10: CK-375 | C10: CTA. CTE. 356894501 C$ | D10: Compra de stickers para proyecto EGIII | F10: 1531.36
A11: 210301 | C11: RETENCIÓN 2% BIENES Y SERVICIOS | D11: Retención de Servicios Generales | F11: 31.26
A12: 630204 | C12: SERVICIO DE TRANSPORTE | D12: Pago de trasnporte viaje a Gigante - EGIII | E12: 1200
A13: 110201 | B13: CK-375 | C13: CTA. CTE. 356894501 C$ | D13: Pago de trasnporte viaje a Gigante - EGIII | F13: 1176
A14: 210301 | C14: RETENCIÓN 2% BIENES Y SERVICIOS | D14: Retención - Servicio de trasnporte | F14: 24
A15: 630207 | C15: INSUMOS Y SUMINISTRO CAMPO VERDE | D15: Compras varias, materiales de trabajo para los embajadores EGIII | E15: 675
A16: 110201 | B16: CK-375 | C16: CTA. CTE. 356894501 C$ | D16: Compras varias, materiales de trabajo para los embajadores EGIII | F16: 675
A17: 630207 | C17: INSUMOS Y SUMINISTRO CAMPO VERDE | D17: Compras varias, materiales de trabajo para los embajadores EGIII | E17: 528
A18: 110201 | B18: CK-375 | C18: CTA. CTE. 356894501 C$ | D18: Compras varias, materiales de trabajo para los embajadores EGIII | F18: 528
A19: 630205 | C19: SERVICIO DE HOSPEDAJE | D19: Aljamiento de coordinadora en Gigante - YM | E19: 1140
A20: 110201 | B20: CK-375 | C20: CTA. CTE. 356894501 C$ | D20: Aljamiento de coordinadora en Gigante - YM | F20: 1117.2
A21: 210301 | C21: RETENCIÓN 2% BIENES Y SERVICIOS | D21: Retención - Servicio de Hospedaje , se pago a la renta C$ 23 | F21: 22.8
A22: 630207 | C22: INSUMOS Y SUMINISTRO CAMPO VERDE | D22: Compras varias, botiquin medico para los embajadores EGIII | E22: 709.5
A23: 110201 | B23: CK-375 | C23: CTA. CTE. 356894501 C$ | D23: Compras varias, botiquin medico para los embajadores EGIII | F23: 709.5
A24: 630207 | C24: INSUMOS Y SUMINISTRO CAMPO VERDE | D24: Compra de materiales para construcción de acopios EGIII | E24: 1585
A25: 110201 | B25: CK-375 | C25: CTA. CTE. 356894501 C$ | D25: Compra de materiales para construcción de acopios EGIII | F25: 1553.3
A26: 210301 | C26: RETENCIÓN 2% BIENES Y SERVICIOS | D26: Retencion Servico General | F26: 31.7
A27: 630202 | C27: GASTOS VARIOS | D27: Refrigerio para actividades EGIII | E27: 2200
A28: 110201 | B28: CK-375 | C28: CTA. CTE. 356894501 C$ | D28: Refrigerio para actividades EGIII | F28: 2156
A29: 210301 | C29: RETENCIÓN 2% BIENES Y SERVICIOS | D29: Retención - Servicio en General | F29: 44
A30: 630202 | C30: GASTOS VARIOS | D30: Compras varias para actividades en Gigante - EGIII | E30: 400
A31: 110201 | B31: CK-375 | C31: CTA. CTE. 356894501 C$ | D31: Compras varias para actividades en Gigante - EGIII | F31: 400
A32: 630204 | C32: SERVICIO DE TRANSPORTE | D32: Transporte pago de Shofer, viaje a Gigante | E32: 400
A33: 110201 | B33: CK-375 | C33: CTA. CTE. 356894501 C$ | D33: Transporte pago de Shofer, viaje a Gigante | F33: 400
A34: 630206 | C34: VIATICOS DE ALIMENTANCIÓN Y TRANSPORTE | D34: Viaticos de alimentación EGIII | E34: 410
A35: 110201 | B35: CK-375 | C35: CTA. CTE. 356894501 C$ | D35: Viaticos de alimentación EGIII | F35: 410
A36: 630202 | C36: GASTOS VARIOS | D36: Limpieza de acopios en Gigante - EGIII | E36: 500
A37: 110201 | B37: CK-375 | C37: CTA. CTE. 356894501 C$ | D37: Limpieza de acopios en Gigante - EGIII | F37: 500
A38: 630208 | C38: COMBUSTIBLE | D38: combustible viaje a Gigante - EGIII | E38: 850
A39: 110201 | B39: CK-375 | C39: CTA. CTE. 356894501 C$ | D39: combustible viaje a Gigante - EGIII | F39: 850
A40: 630202 | C40: GASTOS VARIOS | D40: Compras varias para actividades en Gigante - EGIII | E40: 365
A41: 110201 | B41: CK-375 | C41: CTA. CTE. 356894501 C$ | D41: Compras varias para actividades en Gigante - EGIII | F41: 365
A42: 630206 | C42: VIATICOS DE ALIMENTANCIÓN Y TRANSPORTE | D42: viaticos de alimentación para coordinadora EGIII | E42: 543
A43: 110201 | B43: CK-375 | C43: CTA. CTE. 356894501 C$ | D43: viaticos de alimentación para coordinadora EGIII | F43: 543
A44: 630202 | C44: GASTOS VARIOS | D44: Compras varias para actividades en Gigante - EGIII | E44: 464
A45: 110201 | B45: CK-375 | C45: CTA. CTE. 356894501 C$ | D45: Compras varias para actividades en Gigante - EGIII | F45: 464
A46: 630202 | C46: GASTOS VARIOS | D46: Refrigerios para actividades en Gigante EGIII | E46: 535
A47: 110201 | B47: CK-375 | C47: CTA. CTE. 356894501 C$ | D47: Refrigerios para actividades en Gigante EGIII | F47: 535
A48: 630207 | C48: INSUMOS Y SUMINISTRO CAMPO VERDE | D48: Compra de sacos quintaleros blancos | E48: 980
A49: 110201 | B49: CK-375 | C49: CTA. CTE. 356894501 C$ | D49: Compra de sacos quintaleros blancos | F49: 980
A50: 630206 | C50: VIATICOS DE ALIMENTANCIÓN Y TRANSPORTE | D50: Viaticos de alimentación de YM. EGIII | E50: 250
A51: 110201 | B51: CK-375 | C51: CTA. CTE. 356894501 C$ | D51: Viaticos de alimentación de YM. EGIII | F51: 250
A52: 630207 | C52: INSUMOS Y SUMINISTRO CAMPO VERDE | D52: Compra de 15 metros de cadenas y candados | E52: 881
A53: 110201 | B53: CK-375 | C53: CTA. CTE. 356894501 C$ | D53: Compra de 15 metros de cadenas y candados | F53: 881
A54: 630202 | C54: GASTOS VARIOS | D54: Recargas telefonicas - EGIII | E54: 659.1
A55: 110201 | B55: CK-375 | C55: CTA. CTE. 356894501 C$ | D55: Recargas telefonicas - EGIII | F55: 659.1
A56: 630208 | C56: COMBUSTIBLE | D56: Comustible - EGIII | E56: 351
A57: 110201 | B57: CK-375 | C57: CTA. CTE. 356894501 C$ | D57: Comustible - EGIII | F57: 351
A58: 110205 | B58: CK-375 | C58: DEPOSITO DE FONDOS NO EJECUTADOS | D58: Depsito de fondos no ejecutados - por el coordinador YM | E58: 1524
A59: 110201 | B59: CK-375 | C59: CTA. CTE. 356894501 C$ | D59: Depsito de fondos no ejecutados - por el coordinador YM | F59: 1524
A60: 110402 | C60: CUENTAS POR COBRAR A EMPLEADOS | D60: Fondos no justificados y no rendidos por coordinadora CV - YM | E60: 296.34
A61: 110201 | B61: CK-375 | C61: CTA. CTE. 356894501 C$ | D61: Fondos no justificados y no rendidos por coordinadora CV - YM | F61: 296.34
C73: =IF(A73<>"", VLOOKUP(A73, plan_cuentas, 2, FALSE), "") -> 
C84: =IF(A84<>"", VLOOKUP(A84, plan_cuentas, 2, FALSE), "") -> 
C102: =IF(A102<>"", VLOOKUP(A102, plan_cuentas, 2, FALSE), "") -> 
C134: =IF(A134<>"", VLOOKUP(A134, plan_cuentas, 2, FALSE), "") -> 
C166: =IF(A166<>"", VLOOKUP(A166, plan_cuentas, 2, FALSE), "") -> 

Sheet Reportes
A3: Seleccione un reporte para visualizar
B6: LISTA DE INFORMES DISPONIBLES | H6: DEFINA POR FAVOR LA FECHA DEL PERÍODO
B7: 4 | C7: Balanza Consolidada. | I7: Desde | K7: Hasta
B8: 4 | C8: Estado de Resultados. | I8: 2014-07-01 | K8: 2014-07-31
B9: 4 | C9: Balance General. | I9: =DATE(YEAR(final_before), MONTH(final_before), 1) -> 2014-06-01 | K9: =fecha_inicial-1 -> 2014-06-30

Sheet Bancos
A1: CODIGO | B1: NOMBRE DE LA CUENTA | C1: NUM CK
A2: 110201 | B2: CTA. CTE. 356894501 C$ | C2: 299
A3: 110202 | B3: CTA. CTE. 357144914 U$ | C3: 37
A4: 110203 | B4: CTA. CTA. 356894576 U$ | C4: 375
A5: 110204 | B5: CTA.CTE. 357605203 EEUU US | C5: 6
A6: 110205 | B6: DEPOSITOS DE FONDOS NO EJECUTADOS | C6: 375

Sheet Registros
B1: Registros de Diario
A2: N° ASIENTO | B2: FECHA | C2: COD_CTA | D2: DOC # | E2: NOMBRE DE LA CUENTA | F2: CONCEPTO | G2: DEBITOS | H2: CREDITOS | I2: PRINCIPAL
A3: 1 | B3: 2014-05-31 | C3: 110201 | E3: =IF(C3<>"", VLOOKUP(C3, plan_cuentas, 2, FALSE), "") -> CTA. CTE. 356894501 C$ | F3: Apertura CTA. CTE GENERAL EN U$. | G3: 44475.94 | I3: 110200
A4: 1 | B4: 2014-05-31 | C4: 110202 | E4: CTA. CTE. 357144914 U$ | F4: Apertura CTA. CTE US ADTVA | G4: 274752.65 | I4: 110200
A5: 1 | B5: 2014-05-31 | C5: 110203 | E5: CTA. CTE. 356894576 U$ | F5: Apertura CTA. CTE. Cordoba General | G5: 606898.82 | I5: 110200
A6: 1 | B6: 2014-05-31 | C6: 110204 | E6: CTA.CTE. 357605203 EEUU US | F6: Apertura CTA. CTA U$ EEUU | G6: 63133.8 | I6: 110200
A7: 1 | B7: 2014-05-31 | C7: 110101 | E7: CAJA CHICA | F7: Apertura Fondos Caja Chica. | G7: 4112 | I7: 110100
A8: 1 | B8: 2014-05-31 | C8: 110603 | E8: MATERIALES Y SUMINISTROS | F8: Apertura de Inventario de Materiales y Sumin. | G8: 70458.84 | I8: 110600
A9: 1 | B9: 2014-05-31 | C9: 110605 | E9: PAPELERÍA Y ÚTILES DE OFICINA | F9: Apertura de Inventario de Papelería y útiles Ofc. | G9: 24681.83 | I9: 110600
A10: 1 | B10: 2014-05-31 | C10: 120401 | E10: EQUIPO INFORMÁTICO | F10: Apertura de Inventario de Equipos Informáticos | G10: 42921.39 | I10: 120400
A11: 1 | B11: 2014-05-31 | C11: 110606 | E11: PAPELERIA MEMBRETADA | F11: Apertura de Inventario de Papelería Membretada | G11: 3390.82 | I11: 110600
A12: 1 | B12: 2014-05-31 | C12: 110604 | E12: EQUIPO E INSUMOS MÉDICOS | F12: Apertura de Inventario de Equipos e Insumos Médicos | G12: 2414.85 | I12: 110600
A13: 1 | B13: 2014-05-31 | C13: 310102 | E13: FONDO PATRIMONIAL | F13: Fondos de Apertura de Operaciones de SCCC | H13: 1137240.94 | I13: 310100
A14: 2 | B14: 2014-06-04 | C14: 110101 | E14: CAJA CHICA | F14: Reembolso a caja chica - Gastos varios de oficina | G14: 2040 | I14: 110100
A15: 2 | B15: 2014-06-04 | C15: 110202 | D15: CK-20 | E15: CTA. CTE. 357144914 U$ | F15: Reembolso a caja chica - Gastos varios de oficina | H15: 2040 | I15: 110200
A16: 3 | B16: 2014-06-11 | C16: 110101 | E16: CAJA CHICA | F16: Reembolso a caja chica - Gastos varios admitivos. | G16: 3131.4 | I16: 110100
A17: 3 | B17: 2014-06-11 | C17: 110202 | D17: CK-22 | E17: CTA. CTE. 357144914 U$ | F17: Reembolso a caja chica - Gastos varios admitivos. | H17: 3131.4 | I17: 110200
A18: 4 | B18: 2014-06-16 | C18: 110101 | E18: CAJA CHICA | F18: Reembolso a caja chica - Gastos varios oficina | G18: 3092.4 | I18: 110100
A19: 4 | B19: 2014-06-16 | C19: 110202 | D19: CK-26 | E19: CTA. CTE. 357144914 U$ | F19: Reembolso a caja chica - Gastos varios oficina | H19: 3092.4 | I19: 110200
A20: 5 | B20: 2014-06-30 | C20: 110101 | E20: CAJA CHICA | F20: Reembolso a caja chica - Gastos varios oficina | G20: 3000 | I20: 110100
A21: 5 | B21: 2014-06-30 | C21: 110202 | D21: CK-29 | E21: CTA. CTE. 357144914 U$ | F21: Reembolso a caja chica - Gastos varios oficina | H21: 3000 | I21: 110200
A22: 6 | B22: 2014-06-26 | C22: 630207 | E22: INSUMOS Y SUMINISTRO CAMPO VERDE | F22: ELABORACIÓN DE MARCOS PARA BASUREROS- EG II | G22: 8680 | I22: 630200
A23: 6 | B23: 2014-06-26 | C23: 110201 | D23: CK-13 | E23: CTA. CTE. 356894501 C$ | F23: PAGO DEL 50% DE ELABORACIÓN DE MARCOS -EG II | H23: 8506.4 | I23: 110200
A24: 6 | B24: 2014-06-26 | C24: 210301 | E24: RETENCIÓN 2% BIENES Y SERVICIOS | F24: RETENCIÓN DEL 2% POR ELAB0RACIÓN DE MARCOS | H24: 173.6 | I24: 210300
A25: 6 | B25: 2014-06-26 | C25: 630206 | E25: VIATICOS DE ALIMENTANCIÓN Y TRANSPORTE | F25: VIATICOS DE ALIMENTACIÓN Y TRANSPORTE | G25: 1000 | I25: 630200
A26: 6 | B26: 2014-06-26 | C26: 110201 | E26: CTA. CTE. 356894501 C$ | F26: PAGO DE VIATICOS DE ALIMENTACIÓN Y TRANSPORTE | H26: 1000 | I26: 110200
A27: 7 | B27: 2014-06-13 | C27: 630102 | E27: GASTOS VARIOS | F27: COMPRA DE TROFEOS PARA ACTIV. DEPORTIVA | G27: 4840 | I27: 630100
A28: 7 | B28: 2014-06-13 | C28: 110201 | D28: CK-257 | E28: CTA. CTE. 356894501 C$ | F28: COMPRA DE TROFEOS PARA ACTIV. DEPORTIVA | H28: 4743.2 | I28: 110200
A29: 7 | B29: 2014-06-13 | C29: 210301 | E29: RETENCIÓN 2% BIENES Y SERVICIOS | F29: RETENCIÓN POR COMPRA DE TROFEOS P/ ACT. DEPORTIVA. | H29: 96.8 | I29: 210300
A30: 7 | B30: 2014-06-13 | C30: 630105 | E30: VIATICOS DE ALIMENTACIÓN Y TRANSPORTE | F30: ASIGNACIÓN DE VIATICOS PARA IR A COMPRAR TROFEOS A MANAGUA. | G30: 260 | I30: 630100
A31: 7 | B31: 2014-06-13 | C31: 110201 | D31: CK-257 | E31: CTA. CTE. 356894501 C$ | F31: PAGO DE VIATICOS A COORDINADOR DE PARQUE DEPORTIVO | H31: 260 | I31: 110200
A32: 8 | B32: 2014-06-13 | C32: 630304 | E32: SERVICIOS DE HOSPEDAJE | F32: HOSPEDAJE GRUPO BDR # 1 - ROSA VILLAGRA - JINOTEGA | G32: 47821.19 | I32: 630300
A33: 8 | B33: 2014-06-13 | C33: 110201 | D33: CK-266 | E33: CTA. CTE. 356894501 C$ | F33: HOSPEDAJE GRUPO BDR # 1 - ROSA VILLAGRA - JINOTEGA | H33: 43039.71 | I33: 110200
A34: 8 | B34: 2014-06-13 | C34: 210302 | E34: RETENC. 10% SERV. TÉCNICOS Y PROFESIONALES | F34: RETENCIÓN A PROVEEDOR NO PRESENTA FACTURA. NI RUC | H34: 4781.48 | I34: 210300
A35: 9 | B35: 2014-06-06 | C35: 630203 | E35: APORTE SOCIAL | F35: BECAS CURSO INGLÉS - COMUNIDAD CARRIZAL | G35: 4850 | I35: 630200
A36: 9 | B36: 2014-06-06 | C36: 110201 | D36: CK-254 | E36: CTA. CTE. 356894501 C$ | F36: BECAS CURSO INGLÉS - COMUNIDAD CARRIZAL | H36: 4850 | I36: 110200
A37: 10 | B37: 2014-06-05 | C37: 630203 | E37: APORTE SOCIAL | F37: BECAS ESTUDIANTES DE SECUNDARIA | G37: 1422.3 | I37: 630200
A38: 10 | B38: 2014-06-05 | C38: 110203 | D38: CK-359 | E38: CTA. CTE. 356894576 U$ | F38: BECAS ESTUDIANTES DE SECUNDARIA | H38: 1422.3 | I38: 110200
A39: 11 | B39: 2014-06-06 | C39: 610201 | E39: RENTA DE OFICINA ADMINISTRATIVA | F39: RENTA DE OFICINAS ADMINISTRATIVAS DE COMUNIDAD CONNET SNJ SUR | G39: 5068.56 | I39: 610200
A40: 11 | B40: 2014-06-06 | C40: 110202 | E40: CTA. CTE. 357144914 U$ | F40: PAGO DE RENTA DE OFICINAS ADTVAS. EN SNJ DEL SUR- | H40: 5068.56 | I40: 110200
A41: 12 | B41: 2014-06-30 | C41: 610602 | E41: GASTOS DE REPRESENTACIÓN | F41: GASTOS DE REPRESENTACIÓN DE DIRECCIÓN EJECUTIVA . | G41: 4596 | I41: 610600
A42: 12 | B42: 2014-06-30 | C42: 110203 | E42: CTA. CTE. 356894576 U$ | F42: DEBITO DE FONDOS PARA USO DE GASTOS DE REPRESENTACIÓN D. E. | H42: 4596 | I42: 110200
A43: 13 | B43: 2014-06-30 | C43: 610602 | E43: GASTOS DE REPRESENTACIÓN | F43: GASTOS DE REPRESENTACIÓN DE DIRECCIÓN EJECUTIVA | G43: 14668.45 | I43: 610600
A44: 13 | B44: 2014-06-30 | C44: 110202 | E44: CTA. CTE. 357144914 U$ | F44: DEBITOS DE FONDOS PARA USO DE GASTOS DE REPRESENTACIÓN D. E. | H44: 14668.45 | I44: 110200
A45: 14 | B45: 2014-06-30 | C45: 610602 | E45: GASTOS DE REPRESENTACIÓN | F45: GASTOS DE REPRESENTACIÓN DE DIRECCIÓN EJECUTIVA. | G45: 4930.58 | I45: 610600
A46: 14 | B46: 2014-06-30 | C46: 110203 | E46: CTA. CTE. 356894576 U$ | F46: DEBITOS DE FONDOS EN USO DE GASTOS POR REPRESENTACIÓN D. E. | H46: 4930.58 | I46: 110200
A47: 15 | B47: 2014-06-26 | C47: 630207 | E47: INSUMOS Y SUMINISTRO CAMPO VERDE | F47: CANCELACIÓN DEL 50% RESTANTE DE ELABORACIÓN DE MARCOS P/BASUREROS | G47: 8680 | I47: 630200
A48: 15 | B48: 2014-06-26 | C48: 110201 | D48: CK-264 | E48: CTA. CTE. 356894501 C$ | F48: PAGO TOTAL DE LA ELABORACIÓN DE MARCOS PARA BASUREROS- EG II | H48: 8506.4 | I48: 110200
A49: 15 | B49: 2014-06-26 | C49: 210301 | E49: RETENCIÓN 2% BIENES Y SERVICIOS | F49: RETENCIÓN DEL SERVICIO DE ELABORACIÓN DE MARCOS P/ BASUREROS - EG II | H49: 173.6 | I49: 210300
A50: 16 | B50: 2014-06-26 | C50: 630206 | E50: VIATICOS DE ALIMENTANCIÓN Y TRANSPORTE | F50: ASIGNACIÓN DE VIATICO DE ALIMENTACIÓN PARA D. EJECUTIVO | G50: 200 | I50: 630200
A51: 16 | B51: 2014-06-26 | C51: 110201 | D51: CK-264 | E51: CTA. CTE. 356894501 C$ | F51: PAGO DE VIATICOS DE ALIMENTACIÓN | H51: 200 | I51: 110200
A52: 16 | B52: 2014-06-26 | C52: 630208 | E52: COMBUSTIBLE | F52: COMPRA DE COMBUSTIBLE PARA REALIZAR SUPERVISIÓN DE INSTALACIÓN DE MARCOS. | G52: 800 | I52: 630200
A53: 16 | B53: 2014-06-26 | C53: 110201 | E53: CTA. CTE. 356894501 C$ | F53: PAGO DE COMBUSTIBLE PARA REALIZAR SUPERVISION DE INSTALACIÓN DE MARCOS. | H53: 800 | I53: 110200
A54: 17 | B54: 2014-06-09 | C54: 110201 | E54: CTA. CTE. 356894501 C$ | F54: TRANSFERENCIA DE FONDOS PARA GASTOS OPERATVIO | G54: 17990 | I54: 110200
A55: 17 | B55: 2014-06-09 | C55: 110203 | E55: CTA. CTE. 356894576 U$ | F55: TRANFERENCIA PARA ALIMENTAR CUENTA BANACARIA DE GASTOS OPERATIVOS | H55: 17990 | I55: 110200
A56: 18 | B56: 2014-06-12 | C56: 110201 | E56: CTA. CTE. 356894501 C$ | F56: TRANSFERENCIA DE FONDOS PARA GASTOS OPERATIVOS. | G56: 20576 | I56: 110200
A57: 18 | B57: 2014-06-12 | C57: 110203 | E57: CTA. CTE. 356894576 U$ | F57: TRANFERENCIA DE FONDOS PARA CUBRIR GASTOS OPERATIVAS. | H57: 20576 | I57: 110200
A58: 19 | B58: 2014-06-10 | C58: 110201 | E58: CTA. CTE. 356894501 C$ | F58: FONDOS POR LIGAS DEPORTIVAS | G58: 550 | I58: 110200
A59: 19 | B59: 2014-06-10 | C59: 520101 | E59: OTROS INGRESOS | F59: FONDOS RECIBIDOS POR LIGAS DEPORTIVAS | H59: 550 | I59: 520100
A60: 20 | B60: 2014-06-12 | C60: 110201 | E60: CTA. CTE. 356894501 C$ | F60: DONACIÓN PARA ACTIVDAD PARQUE DEPORTIVO | G60: 10000 | I60: 110200
A61: 20 | B61: 2014-06-12 | C61: 520101 | E61: OTROS INGRESOS | F61: DONACIÓN POR PARTE DE HOSTAL PACHAMAMA | H61: 10000 | I61: 520100
A62: 21 | B62: 2014-06-30 | C62: 110201 | E62: CTA. CTE. 356894501 C$ | F62: Transferencia para cubrir Gastos Operativos | G62: 51920 | I62: 110200
A63: 21 | B63: 2014-06-30 | C63: 110203 | D63: CK-374 | E63: CTA. CTE. 356894576 U$ | F63: Transferencia entre cuentas para cubrir Gastos Operativos | H63: 51920 | I63: 110200
A64: 22 | B64: 2014-06-30 | C64: 630404 | E64: SERVICIO DE TRANSPORTE | F64: Viaje a MGA - Coordinador RAAS - N.A | G64: 1804.6 | I64: 630400
A65: 22 | B65: 2014-06-30 | C65: 110203 | D65: CK-373 | E65: CTA. CTE. 356894576 U$ | F65: Pago de Servicio de Transporte a MGA. | H65: 1768.51 | I65: 110200
A66: 22 | B66: 2014-06-30 | C66: 210301 | E66: RETENCIÓN 2% BIENES Y SERVICIOS | F66: Retención por Servicio de Transporte a MGA | H66: 36.09 | I66: 210300
A67: 23 | B67: 2014-06-30 | C67: 110201 | E67: =IF(C67<>"", VLOOKUP(C67, plan_cuentas, 2, FALSE), "") -> CTA. CTE. 356894501 C$ | F67: Ingresos por Ligas P.D | G67: 385 | I67: 110200
A68: 23 | B68: 2014-06-30 | C68: 520101 | E68: OTROS INGRESOS | F68: Fondos de Ingresos por Ligas P.D | H68: 385 | I68: 520100
A69: 24 | B69: 2014-06-20 | C69: 630102 | E69: GASTOS VARIOS | F69: Compra de baner de Lona P.D | G69: 1752.36 | I69: 630100
A70: 24 | B70: 2014-06-20 | C70: 110203 | D70: CK-371 | E70: CTA. CTE. 356894576 U$ | F70: Pago de servcio de elaboracion de Baner de Lona para PD | H70: 1717.32 | I70: 110200
A71: 24 | B71: 2014-06-20 | C71: 210301 | E71: RETENCIÓN 2% BIENES Y SERVICIOS | F71: Retención de elaboracion de Baner de Lona para PD | H71: 35.04 | I71: 210300
A72: 25 | B72: 2014-06-19 | C72: 630209 | E72: OTROS PAGOS | F72: Servicio Profesional por clases de Ingles | G72: 1097.8 | I72: 630200
A73: 25 | B73: 2014-06-19 | C73: 110203 | D73: CK-370 | E73: CTA. CTE. 356894576 U$ | F73: Pago por servcio profesional, ´por clases de Ingles | H73: 988.02 | I73: 110200
A74: 25 | B74: 2014-06-19 | C74: 210302 | E74: RETENC. 10% SERV. TÉCNICOS Y PROFESIONALES | F74: Retención del 10% por Servicio Profesional | H74: 109.78 | I74: 210300
A75: 26 | B75: 2014-06-19 | C75: 630307 | E75: OTROS PAGOS | F75: Pago por Servicio Profesional, con Voluntarios | G75: 17678.22 | I75: 630300
A76: 26 | B76: 2014-06-19 | C76: 110203 | D76: CK-370 | E76: CTA. CTE. 356894576 U$ | F76: Pago por Servicio Profesional por atención a VT | H76: 15910.4 | I76: 110200
A77: 26 | B77: 2014-06-19 | C77: 210302 | E77: RETENC. 10% SERV. TÉCNICOS Y PROFESIONALES | F77: Retención del 10% por Servicio Profesional | H77: 1767.82 | I77: 210300
A78: 27 | B78: 2014-06-13 | C78: 610108 | E78: OTROS PAGOS | F78: Servicio Profesional, por Asesorias de Proyectos | G78: 51520 | I78: 610100
A79: 27 | B79: 2014-06-13 | C79: 110203 | D79: CK-368 | E79: CTA. CTE. 356894576 U$ | F79: Pago por Servicio Preofesional,por asesorias de Proyectos | H79: 46368 | I79: 110200
A80: 27 | B80: 2014-06-13 | C80: 210302 | E80: RETENC. 10% SERV. TÉCNICOS Y PROFESIONALES | F80: Retención del 10% , por asesorias de Proyectos | H80: 5152 | I80: 210300
A81: 28 | B81: 2014-06-13 | C81: 630304 | E81: SERVICIOS DE HOSPEDAJE | F81: Servicio de Alojamiento y Alimentación de Voluntarios | G81: 56530.32 | I81: 630300
A82: 28 | B82: 2014-06-13 | C82: 110203 | D82: CK-368 | E82: CTA. CTE. 356894576 U$ | F82: Pago de Servicio de Alojamiento y Alimentación de Voluntarios | H82: 55399.71 | I82: 110200
A83: 28 | B83: 2014-06-13 | C83: 210301 | E83: RETENCIÓN 2% BIENES Y SERVICIOS | F83: Retención del 2% por Servicio de Alojamiento y Alimentación a Voluntarios | H83: 1130.61 | I83: 210300
A84: 29 | B84: 2014-06-12 | C84: 630404 | E84: SERVICIO DE TRANSPORTE | F84: Servicio de Transporte, para coordinador de SJDS AL aeropuerto | G84: 1813 | I84: 630400
A85: 29 | B85: 2014-06-12 | C85: 110203 | D85: CK-366 | E85: CTA. CTE. 356894576 U$ | F85: Pago de Servicio de Transporte, para coordinador de SJDS AL aeropuerto | H85: 1766.74 | I85: 110200
A86: 29 | B86: 2014-06-12 | C86: 210301 | E86: RETENCIÓN 2% BIENES Y SERVICIOS | F86: Retención del 2% Servicio de Transporte | H86: 46.26 | I86: 210300
A87: 30 | B87: 2014-06-20 | C87: 630404 | E87: SERVICIO DE TRANSPORTE | F87: Servicio de Transporte de MGA A SJDS | G87: 1288.5 | I87: 630400
A88: 30 | B88: 2014-06-20 | C88: 110203 | D88: CK-366 | E88: CTA. CTE. 356894576 U$ | F88: Pago de Servicio de Transporte de MGA A SJDS | H88: 1262.73 | I88: 110200
A89: 30 | B89: 2014-06-20 | C89: 210301 | E89: RETENCIÓN 2% BIENES Y SERVICIOS | F89: Retenecion del 2% Servicio de Transporte de MGA A SJDS | H89: 25.77 | I89: 210300
A90: 31 | B90: 2014-06-23 | C90: 630502 | E90: VIATICOS DE ALIMENTACIÓN | F90: Viaticos de coordinadora viaje a la RAAS | G90: 750 | I90: 630500
A91: 31 | B91: 2014-06-23 | C91: 110201 | D91: CK-262 | E91: CTA. CTE. 356894501 C$ | F91: Pago de Viaticos de coordinadora viaje a la RAAS | H91: 750 | I91: 110200
A92: 32 | B92: 2014-06-20 | C92: 610502 | E92: MANTENIMIENTO DE VEHÍCULOS | F92: Reparación de Camioneta JT. | G92: 10000 | I92: 610500
A93: 32 | B93: 2014-06-20 | C93: 110201 | D93: CK-261 | E93: CTA. CTE. 356894501 C$ | F93: Pago por Reparación de Camioneta JT. | H93: 9800 | I93: 110200
A94: 32 | B94: 2014-06-20 | C94: 210301 | E94: RETENCIÓN 2% BIENES Y SERVICIOS | F94: Retención del 2% reparación de camioneta J.T | H94: 200 | I94: 210300
A95: 33 | B95: 2014-06-11 | C95: 110603 | E95: MATERIALES Y SUMINISTROS | F95: Compra de sellos computarizados para uso de coordinadores de proyectos | G95: 2600 | I95: 110600
A96: 33 | B96: 2014-06-11 | C96: 110203 | D96: CK-365 | E96: CTA. CTE. 356894576 U$ | F96: Pago por sellos computarizados para uso de coordinadores de proyectos | H96: 2548 | I96: 110200
A97: 33 | B97: 2014-06-11 | C97: 210301 | E97: RETENCIÓN 2% BIENES Y SERVICIOS | F97: Retención del 2% por compra de sellos computarizados | H97: 52 | I97: 210300
A98: 34 | B98: 2014-06-06 | C98: 610108 | E98: OTROS PAGOS | F98: Elaboración de contratos para proyecto NCHC - Clinica Los Robles | G98: 1284 | I98: 610100
A99: 34 | B99: 2014-06-06 | C99: 110203 | D99: CK-364 | E99: CTA. CTE. 356894576 U$ | F99: Pago por Elaboración de contratos para proyecto NCHC - Clinica Los Robles | H99: 1155.6 | I99: 110200
A100: 34 | B100: 2014-06-06 | C100: 210302 | E100: RETENC. 10% SERV. TÉCNICOS Y PROFESIONALES | F100: Retención del 10% por Servicio Profesional, elaboración de Contratos | H100: 128.4 | I100: 210300
A101: 35 | B101: 2014-06-06 | C101: 630308 | E101: APORTE SOCIAL | F101: mano de obra de consrucción para Asociación Los Quinchos | G101: 5241.03 | I101: 630300
A102: 35 | B102: 2014-06-06 | C102: 110203 | D102: CK-361 | E102: CTA. CTE. 356894576 U$ | F102: Pago de mano de obra de consrucción para Asociación Los Quinchos | H102: 5136.21 | I102: 110200
A103: 35 | B103: 2014-06-06 | C103: 210301 | E103: RETENCIÓN 2% BIENES Y SERVICIOS | F103: Retención por Mano de Obra de Construción | H103: 104.82 | I103: 210300
A104: 36 | B104: 2014-06-05 | C104: 630303 | E104: SERVICIO DE TRANSPORTE | F104: Transporte de Grupo de Voluntarios - Colorado | G104: 33417.31 | I104: 630300
A105: 36 | B105: 2014-06-05 | C105: 110203 | D105: CK-360 | E105: CTA. CTE. 356894576 U$ | F105: Pago de Transporte de Grupo de Voluntarios - Colorado | H105: 32747.88 | I105: 110200
A106: 36 | B106: 2014-06-05 | C106: 210301 | E106: RETENCIÓN 2% BIENES Y SERVICIOS | F106: Retencion del 2%, Servicio de Transporte | H106: 669.43 | I106: 210300
A107: 37 | B107: 2014-06-02 | C107: 630302 | E107: GASTOS VARIOS | F107: Actividades Libres con los Voluntarios, Emory | G107: 8704 | I107: 630300
A108: 37 | B108: 2014-06-02 | C108: 110203 | D108: CK-358 | E108: CTA. CTE. 356894576 U$ | F108: Pago por Actividades Libres con los Voluntarios, Emory | H108: 8529.97 | I108: 110200
A109: 37 | B109: 2014-06-02 | C109: 210301 | E109: RETENCIÓN 2% BIENES Y SERVICIOS | F109: Retención de pago de actividades Libres de Voluntario Emory | H109: 174.03 | I109: 210300
A110: 38 | B110: 2014-06-20 | C110: 610108 | E110: OTROS PAGOS | F110: Asesorias Contables y Administrativas | G110: 15462 | I110: 610100
A111: 38 | B111: 2014-06-20 | C111: 110202 | D111: CK-28 | E111: CTA. CTE. 357144914 U$ | F111: Pago por Asesorias Contables y Administrativas | H111: 13915.8 | I111: 110200
A112: 38 | B112: 2014-06-20 | C112: 210302 | E112: RETENC. 10% SERV. TÉCNICOS Y PROFESIONALES | F112: Retención del 10% por pago de Servicio Profesional de Asesorias | H112: 1546.2 | I112: 210300
A113: 39 | B113: 2014-06-13 | C113: 610108 | E113: OTROS PAGOS | F113: Servicio Profesional, por Asesorias de Proyectos de Febrero a Mayo 2014 | G113: 103040 | I113: 610100
A114: 39 | B114: 2014-06-13 | C114: 110202 | D114: CK-25 | E114: CTA. CTE. 357144914 U$ | F114: Pago por Asesorias de Proyectos de Febrero a Mayo 2014 | H114: 92736 | I114: 110200
A115: 39 | B115: 2014-06-13 | C115: 210302 | E115: RETENC. 10% SERV. TÉCNICOS Y PROFESIONALES | F115: Retención del 10% por servicio profesionasl de asesorias de Proyectos Feb- May | H115: 10304 | I115: 210300
A116: 40 | B116: 2014-06-12 | C116: 120301 | E116: MUEBLES Y ENSERES | F116: Compra de abanico, para oficina de Contabilidad | G116: 1699 | I116: 120300
A117: 40 | B117: 2014-06-12 | C117: 110202 | E117: CTA. CTE. 357144914 U$ | F117: Pago por Compra de abanico, para oficina de Contabilidad | H117: 1699 | I117: 110200
A118: 41 | B118: 2014-06-18 | C118: 630502 | E118: VIATICOS DE ALIMENTACIÓN | F118: Viaticos de Alimentación Dirección Ejecutiva | G118: 97.75 | I118: 630500
A119: 41 | B119: 2014-06-18 | C119: 110201 | E119: CTA. CTE. 356894501 C$ | F119: Pago de viáticos de Alimentación Gestiones Adtvs. De La Clínica | H119: 97.75 | I119: 110200
A120: 42 | B120: 2014-06-19 | C120: 630502 | E120: VIATICOS DE ALIMENTACIÓN | F120: Viáticos de Alimentación de Dirección Ejectuvia | G120: 195 | I120: 630500
A121: 42 | B121: 2014-06-19 | C121: 110201 | E121: CTA. CTE. 356894501 C$ | F121: Retiro de Fondos para viáticos de Alimentación D-Ejectuvia | H121: 195 | I121: 110200
A122: 43 | B122: 2014-06-20 | C122: 630502 | E122: VIATICOS DE ALIMENTACIÓN | F122: Viaticos de Alimentación Dirección Ejecutiva | G122: 80.5 | I122: 630500
A123: 43 | B123: 2014-06-20 | C123: 110201 | E123: CTA. CTE. 356894501 C$ | F123: Retiro de Fondos para Viáticos de Alimentación D.E | H123: 80.5 | I123: 110200
A124: 44 | B124: 2014-06-21 | C124: 630502 | E124: VIATICOS DE ALIMENTACIÓN | F124: Viáticos de Alimentación de Dirección Ejecutiva | G124: 1626.75 | I124: 630500
A125: 44 | B125: 2014-06-21 | C125: 110201 | E125: CTA. CTE. 356894501 C$ | F125: Retiro de Fondos Viáticos de Alimentación de D. E. | H125: 1626.75 | I125: 110200
A126: 45 | B126: 2014-06-05 | C126: 610502 | E126: MANTENIMIENTO DE VEHÍCULOS | F126: Cambio de Aceite de Camioneta de Comunidad Connect | G126: 500 | I126: 610500
A127: 45 | B127: 2014-06-05 | C127: 110201 | E127: CTA. CTE. 356894501 C$ | F127: Pago por compra de Aceite para Camioneta Comunidad Connect | H127: 500 | I127: 110200
A128: 46 | B128: 2014-06-05 | C128: 610601 | E128: VIÁTICOS ALIMENTACIÓN Y TRANSPORTE | F128: Viático de Alimentación Dirección Ejecutiva | G128: 121 | I128: 610600
A129: 46 | B129: 2014-06-05 | C129: 110201 | E129: CTA. CTE. 356894501 C$ | F129: Retiro de Fondos para viáticos de Alimentación D.E. | H129: 121 | I129: 110200
A130: 47 | B130: 2014-06-06 | C130: 630502 | E130: VIATICOS DE ALIMENTACIÓN | F130: Viáticos de Alimentación D.E y Marketing | G130: 178.25 | I130: 630500
A131: 47 | B131: 2014-06-06 | C131: 110201 | E131: =IF(C131<>"", VLOOKUP(C131, plan_cuentas, 2, FALSE), "") -> CTA. CTE. 356894501 C$ | F131: Retiro de Fondos Víaticos de Alimentación D.E y Marketing | H131: 178.25 | I131: 110200
A132: 48 | B132: 2014-06-05 | C132: 630502 | E132: VIATICOS DE ALIMENTACIÓN | F132: Víaticos de Alimentación D.E | G132: 92 | I132: 630500
A133: 48 | B133: 2014-06-05 | C133: 110201 | E133: CTA. CTE. 356894501 C$ | F133: Retiro de Fondos Viáticos de Alimentación D.E | H133: 92 | I133: 110200
A134: 49 | B134: 2014-06-04 | C134: 610602 | E134: GASTOS DE REPRESENTACIÓN | F134: Compras Varias por Dirección Ejecutiva | G134: 293.43 | I134: 610600
A135: 49 | B135: 2014-06-04 | C135: 110201 | E135: CTA. CTE. 356894501 C$ | F135: Retiro de Fondos de Compras Varias por Dirección Ejecutiva | H135: 293.43 | I135: 110200
A136: 50 | B136: 2014-06-05 | C136: 610502 | E136: MANTENIMIENTO DE VEHÍCULOS | F136: Mantenimiento General Preventivo Camioneta de Comunidad Connect | G136: 910 | I136: 610500
A137: 50 | B137: 2014-06-05 | C137: 110201 | E137: CTA. CTE. 356894501 C$ | F137: Retiro de Fondos para Mantenimiento Preventivo de Camioneta | H137: 910 | I137: 110200
A138: 51 | B138: 2014-06-05 | C138: 630501 | E138: COMBUSTIBLE | F138: Compra de combustible para Gestiones de la Clínica | G138: 100 | I138: 630500
A139: 51 | B139: 2014-06-05 | C139: 110201 | E139: CTA. CTE. 356894501 C$ | F139: Retiro de Fondos de Combustible para Gestiones de la Clínica | H139: 100 | I139: 110200
A140: 52 | B140: 2014-06-05 | C140: 630502 | E140: VIATICOS DE ALIMENTACIÓN | F140: Viáticos de Alimentación de Dirección Ejecutiva | G140: 109.25 | I140: 630500
A141: 52 | B141: 2014-06-05 | C141: 110201 | E141: CTA. CTE. 356894501 C$ | F141: Retiro de Fondos viáticos de Alimentación de D.E | H141: 109.25 | I141: 110200
A142: 53 | B142: 2014-06-05 | C142: 610602 | E142: GASTOS DE REPRESENTACIÓN | F142: Gastos de Representación de Dirección Ejecutiva | G142: 184 | I142: 610600
A143: 53 | B143: 2014-06-05 | C143: 110201 | E143: CTA. CTE. 356894501 C$ | F143: Retiro de Fondos por Gastos de Representación | H143: 184 | I143: 110200
A144: 54 | B144: 2014-06-14 | C144: 610403 | E144: COMBUSTIBLE | F144: Combustible Gastos administrativos | G144: 600 | I144: 610400
A145: 54 | B145: 2014-06-14 | C145: 110202 | E145: CTA. CTE. 357144914 U$ | F145: Uso de fondos con Tarjeta Combustible Gastos administrativos | H145: 600 | I145: 110200
A146: 55 | B146: 2014-06-12 | C146: 630502 | E146: VIATICOS DE ALIMENTACIÓN | F146: Viaticos de alimentación - Reunión con efermera Staff | G146: 836.25 | I146: 630500
A147: 55 | B147: 2014-06-12 | C147: 110202 | E147: CTA. CTE. 357144914 U$ | F147: Uso de fondos con TD - Viaticos de alimentación - Reunión con efermera Staff | H147: 836.25 | I147: 110200
A148: 56 | B148: 2014-06-23 | C148: 610107 | E148: OTROS BENEFICIOS | F148: Beneficio de la organización por celebracion al dia del padre a DE | G148: 874 | I148: 610100
A149: 56 | B149: 2014-06-23 | C149: 110202 | E149: CTA. CTE. 357144914 U$ | F149: Uso de fondos TD - Beneficio de la organización por celebracion al dia del padre a DE | H149: 874 | I149: 110200
A150: 57 | B150: 2014-06-03 | C150: 610402 | E150: PRODUCTOS DE LIMPIEZA | F150: Compras varias de Suministros de Limpieza para Oficina SJDS | G150: 1877.2 | I150: 610400
A151: 57 | B151: 2014-06-03 | C151: 110202 | E151: CTA. CTE. 357144914 U$ | F151: Uso de TD - Compras varias de Suministros de Limpieza para Oficina SJDS | H151: 1877.2 | I151: 110200
A152: 58 | B152: 2014-06-12 | C152: 610602 | E152: GASTOS DE REPRESENTACIÓN | F152: Alimentación gestiones administratoivas en Rivas | G152: 375 | I152: 610600
A153: 58 | B153: 2014-06-12 | C153: 110201 | E153: CTA. CTE. 356894501 C$ | F153: Uso de fondos TD - Alimentación gestiones administratoivas en Rivas | H153: 375 | I153: 110200
A154: 59 | B154: 2014-06-06 | C154: 630502 | E154: VIATICOS DE ALIMENTACIÓN | F154: Viaticos de alimentacion D-Ejecutiva. NCHC - Jinotega viaje de Jinotega a SJDS | G154: 172.5 | I154: 630500
A155: 59 | B155: 2014-06-06 | C155: 110201 | E155: CTA. CTE. 356894501 C$ | F155: Uso de fondos TD -Viaticos de alimentacion D-Ejecutiva. NCHC - Jinotega viaje de Jinotega a SJDS | H155: 172.5 | I155: 110200
A156: 60 | B156: 2014-06-03 | C156: 630401 | E156: ADMINISTRATIVOS Y GENERALES | F156: Trasnportes de filtros al Tambo - NA | G156: 800 | I156: 630400
A157: 60 | B157: 2014-06-03 | C157: 110202 | E157: CTA. CTE. 357144914 U$ | F157: Uso de Fondos TD - Trasnportes de filtros al Tambo - NA | H157: 800 | I157: 110200
A158: 61 | B158: 2014-06-17 | C158: 610403 | E158: COMBUSTIBLE | F158: Combustible - Gestiones administrativas en Inss - Rivas | G158: 300 | I158: 610400
A159: 61 | B159: 2014-06-17 | C159: 110202 | E159: CTA. CTE. 357144914 U$ | F159: Uso de Fondos TD - Combustible - Gestiones administrativas en Inss - Rivas | H159: 300 | I159: 110200
A160: 62 | B160: 2014-06-20 | C160: 630501 | E160: COMBUSTIBLE | F160: CoMBUSTIBLE viaje de Jinotega a SJDS - Inscripcin del la Clinica NCHC | G160: 1600 | I160: 630500
A161: 62 | B161: 2014-06-20 | C161: 110201 | E161: CTA. CTE. 356894501 C$ | F161: Uso de fondos TD - CoMBUSTIBLE viaje de Jinotega a SJDS - Inscripcin del la Clinica NCHC | H161: 1600 | I161: 110200
A162: 63 | B162: 2014-06-18 | C162: 630502 | E162: VIATICOS DE ALIMENTACIÓN | F162: Viaticos de alimentación D-ejecutiva - NCHC | G162: 172.5 | I162: 630500
A163: 63 | B163: 2014-06-18 | C163: 110201 | E163: CTA. CTE. 356894501 C$ | F163: Uso de fondos TD - Viaticos de alimentación D-ejecutiva - NCHC | H163: 172.5 | I163: 110200
A164: 64 | B164: 2014-06-17 | C164: 630501 | E164: COMBUSTIBLE | F164: Combustible viaje a Jinotega D- ejecutiva - monitoreo y seguimiento de Clinica NCHC | G164: 500 | I164: 630500
A165: 64 | B165: 2014-06-17 | C165: 110201 | E165: CTA. CTE. 356894501 C$ | F165: Uso de fondos de TD - Combustible viaje a Jinotega D- ejecutiva - monitoreo y seguimiento de Clinica NCHC | H165: 500 | I165: 110200
A166: 65 | B166: 2014-06-20 | C166: 630502 | E166: VIATICOS DE ALIMENTACIÓN | F166: Viaticos de alimentacion D-Ejecutiva - viaje de Jinotega a SJDS - NCHC | G166: 200 | I166: 630500
A167: 65 | B167: 2014-06-20 | C167: 110201 | E167: CTA. CTE. 356894501 C$ | F167: Uso de fondos TD - Viaticos de alimentacion D-Ejecutiva - viaje de Jinotega a SJDS - NCHC | H167: 200 | I167: 110200
A168: 66 | B168: 2014-06-20 | C168: 630502 | E168: VIATICOS DE ALIMENTACIÓN | F168: viaticos de alimentación reunión - D-ejecutiva, CPF,coordinadora N.A. en Jinotega | G168: 264.5 | I168: 630500
A169: 66 | B169: 2014-06-20 | C169: 110201 | E169: CTA. CTE. 356894501 C$ | F169: Uso de fondos TD - viaticos de alimentación reunión - D-ejecutiva, CPF,coordinadora N.A. en Jinotega | H169: 264.5 | I169: 110200
A170: 67 | B170: 2014-06-19 | C170: 630502 | E170: VIATICOS DE ALIMENTACIÓN | F170: Viaticos de alimentacion D-ejecutiva -Marketing. monitoreo Clinica NCHC | G170: 510 | I170: 630500
A171: 67 | B171: 2014-06-19 | C171: 110201 | E171: CTA. CTE. 356894501 C$ | F171: Uso de Fondos TD - Viaticos de alimentacion D-ejecutiva -Marketing. monitoreo Clinica NCHC | H171: 510 | I171: 110200
A172: 68 | B172: 2014-06-27 | C172: 630402 | E172: VIATICOS | F172: Viaticos de alimentacion D-ejecutiva,reunión de proyecto N.A en Guacalito | G172: 172.5 | I172: 630400
A173: 68 | B173: 2014-06-27 | C173: 110202 | E173: CTA. CTE. 357144914 U$ | F173: Retiro de fondos - Viaticos de alimentacion D-ejecutiva,reunión de proyecto N.A en Guacalito | H173: 172.5 | I173: 110200
A174: 69 | B174: 2014-06-27 | C174: 630402 | E174: VIATICOS | F174: Compras varias reunion Guacalito de la Isla - NA | G174: 827.5 | I174: 630400
A175: 69 | B175: 2014-06-27 | C175: 110202 | E175: CTA. CTE. 357144914 U$ | F175: Retiro de Fondos Compras varias reunion Guacalito de la Isla - NA | H175: 827.5 | I175: 110200
A176: 70 | B176: 2014-06-30 | C176: 630401 | E176: ADMINISTRATIVOS Y GENERALES | F176: Viaticos por representacion de Guacalito por el Proyecto N.A | G176: 1000 | I176: 630400
A177: 70 | B177: 2014-06-30 | C177: 110202 | E177: CTA. CTE. 357144914 U$ | F177: Retiro de Fondos Viaticos por representacion de Guacalito por el Proyecto N.A | H177: 1000 | I177: 110200
A178: 71 | B178: 2014-06-17 | C178: 610502 | E178: MANTENIMIENTO DE VEHÍCULOS | F178: Compra de suspensión de camioneta Comunidad Connect | G178: 6348 | I178: 610500
A179: 71 | B179: 2014-06-17 | C179: 110202 | E179: CTA. CTE. 357144914 U$ | F179: Retiro de fondos - Pago por servicio en general -Compra de suspension de Camioneta CC | H179: 6237.6 | I179: 110200
A180: 71 | B180: 2014-06-17 | C180: 210301 | E180: RETENCIÓN 2% BIENES Y SERVICIOS | F180: Retencion del 2% servivio en general - compra de suspension de Camioneta CC | H180: 110.4 | I180: 210300
A181: 72 | B181: 2014-06-17 | C181: 610501 | E181: MANTENIMIENTO DE EDIFICIOS | F181: reparacion de suspensión camioneta SCCC | G181: 2000 | I181: 610500
A182: 72 | B182: 2014-06-17 | C182: 110202 | E182: CTA. CTE. 357144914 U$ | F182: Retiro de fondos - Pago por servicio en General - reparacion de suspensión camioneta SCCC | H182: 1960 | I182: 110200
A183: 72 | B183: 2014-06-17 | C183: 210301 | E183: RETENCIÓN 2% BIENES Y SERVICIOS | F183: Retencion del 2% reparacion de suspension camioneta SCCC | H183: 40 | I183: 210300
A184: 73 | B184: 2014-06-17 | C184: 610601 | E184: VIÁTICOS ALIMENTACIÓN Y TRANSPORTE | F184: Viaticos de alimentacion d-Ejecutiva . Gastos Operativos | G184: 202.4 | I184: 610600
A185: 73 | B185: 2014-06-17 | C185: 110202 | E185: CTA. CTE. 357144914 U$ | F185: Retiro de Fondos Viaticos de alimentacion d-Ejecutiva . Gastos Operativos | H185: 202.4 | I185: 110200
A186: 74 | B186: 2014-06-10 | C186: 630502 | E186: VIATICOS DE ALIMENTACIÓN | F186: Viaticos de alimentación y transporte de Enfermera - NCHC | G186: 500 | I186: 630500
A187: 74 | B187: 2014-06-10 | C187: 110203 | E187: CTA. CTE. 356894576 U$ | F187: Retiro de Fondos - reembolso de Viaticos de alimentación y transporte de Enfermera - NCHC | H187: 500 | I187: 110200
A188: 75 | B188: 2014-06-10 | C188: 630502 | E188: VIATICOS DE ALIMENTACIÓN | F188: Viatico de coordinadora de Proyecto Nica Agua en Jinotega | G188: 500 | I188: 630500
A189: 75 | B189: 2014-06-10 | C189: 110203 | E189: CTA. CTE. 356894576 U$ | F189: Retiro de fondos - Reembolso de Viatico de coordinadora de Proyecto Nica Agua en Jinotega | H189: 500 | I189: 110200
A190: 76 | B190: 2014-06-18 | C190: 120301 | E190: MUEBLES Y ENSERES | F190: Compra de barriles plasticos para oficina SJDS | G190: 700 | I190: 120300
A191: 76 | B191: 2014-06-18 | C191: 110202 | E191: CTA. CTE. 357144914 U$ | F191: Retiro de fondos - compra de barriles plasticos | H191: 700 | I191: 110200
A192: 77 | B192: 2014-06-20 | C192: 120301 | E192: MUEBLES Y ENSERES | F192: Compra de barriles plasticos para oficina SJDS | G192: 700 | I192: 120300
A193: 77 | B193: 2014-06-20 | C193: 110202 | E193: CTA. CTE. 357144914 U$ | F193: Retiro de fondos Compra de barriles plasticos para oficina SJDS | H193: 700 | I193: 110200
A194: 78 | B194: 2014-06-20 | C194: 630502 | E194: VIATICOS DE ALIMENTACIÓN | F194: Viaticos de - Ejecutiva viaje de regreso de Jinotega | G194: 172.5 | I194: 630500
A195: 78 | B195: 2014-06-20 | C195: 110202 | E195: =IF(C195<>"", VLOOKUP(C195, plan_cuentas, 2, FALSE), "") -> CTA. CTE. 357144914 U$ | F195: Retiro de Fondos Viaticos de - Ejecutiva viaje de regreso de Jinotega | H195: 172.5 | I195: 110200
A196: 79 | B196: 2014-06-15 | C196: 610403 | E196: COMBUSTIBLE | F196: Combustible - Gastos administrativos | G196: 500 | I196: 610400
A197: 79 | B197: 2014-06-15 | C197: 110202 | E197: CTA. CTE. 357144914 U$ | F197: Retiro de fondos Combustible - Gastos administrativos | H197: 500 | I197: 110200
A198: 80 | B198: 2014-06-16 | C198: 610502 | E198: MANTENIMIENTO DE VEHÍCULOS | F198: Lavado de motor y carroceria de camioneta SCCC | G198: 200 | I198: 610500
A199: 80 | B199: 2014-06-16 | C199: 110202 | E199: CTA. CTE. 357144914 U$ | F199: Retiro de fondos Lavado de motor y carroceria de camioneta SCCC | H199: 200 | I199: 110200
A200: 81 | B200: 2014-06-17 | C200: 610602 | E200: GASTOS DE REPRESENTACIÓN | F200: Viaticos de D- ejecutiva, Gastos de Operación | G200: 300 | I200: 610600
... 324 more rows

Sheet logins
A1: USUARIO | B1: PASSWORD
A2: ggertrudis | B2: gger01
A3: yesly | B3: 0106_carrusel
A4: agalan | B4: agalan01
A5: dpotoy | B5: dpotoy01

Sheet cd

Sheet D
E1: Proteger
A2: =bussiness_name -> SOCIEDAD CIVIL COMUNIDAD CONNECT
A3: ="RESUMEN CONTABLE DE "&B7 -> RESUMEN CONTABLE DE
A4: ="DEL "&TEXT(fecha_inicial, "DD")&" DE "&UPPER(TEXT(fecha_inicial, "MMMM"))&" DEL " & TEXT(fecha_inicial, "YYYY") & " AL "&TEXT(fecha_final, "DD")&" DE "&UPPER(TEXT(fecha_final, "MMMM"))&" DEL "&TEXT(fecha_final, "YYYY") -> DEL 01 DE JULIO DEL 2014 AL 31 DE JULIO DEL 2014
A5: =address & " *** Tel/Fax: " & tel & " *** " & email -> Esquina sureste del Parque Central, San Juan del sur, Nicaragua. *** Tel/Fax: 25682731 *** info@comunidadconnect.org
B7: =UPPER(IF(ISBLANK(A7),"",IFERROR(VLOOKUP(A7,plan_cuentas,2,FALSE),"Código de cuenta incorrecto"))) ->  | D7: ="MOVIMIENTOS DE "&UPPER(TEXT(fecha_final, "MMMM")) -> MOVIMIENTOS DE JULIO
A8: CODIGO | B8: NOMBRE DE LA CUENTA | C8: SALDO INICIAL | D8: DEBITOS | E8: CREDITOS | F8: SALDO FINAL
B11: =IF(A11<>"", IF(ISERROR(VLOOKUP(A11, plan_cuentas,2, FALSE)), "Código de Cuenta Incorrecto", UPPER(VLOOKUP(A11, plan_cuentas, 2, FALSE))), "") ->  | C11: =SUM(C12:C17) -> 0 | D11: =SUM(D12:D17) -> 0 | E11: =SUM(E12:E17) -> 0 | F11: =C11+D11-E11 -> 0
B12: =IF(A12<>"", IF(ISERROR(VLOOKUP(A12, plan_cuentas,2, FALSE)), "Código de Cuenta Incorrecto", UPPER(VLOOKUP(A12, plan_cuentas, 2, FALSE))), "") ->  | C12: =IF(ISBLANK(A12),0,SUMIFS(Registros!G:G,Registros!B:B,"<"&fecha_inicial,Registros!C:C,"="&A12)-IF(ISBLANK(A12),0,SUMIFS(Registros!H:H,Registros!B:B,"<"&fecha_inicial,Registros!C:C,"="&A12))) -> 0 | D12: =IF(ISBLANK(A12),0,SUMIFS(Registros!G:G,Registros!B:B,">="&fecha_inicial, Registros!B:B, "<="&fecha_final,Registros!C:C,"="&A12)) -> 0 | E12: =IF(ISBLANK(A12),0,SUMIFS(Registros!H:H,Registros!B:B,">="&fecha_inicial, Registros!B:B, "<="&fecha_final,Registros!C:C,"="&A12)) -> 0 | F12: =C12+D12-E12 -> 0
B13: =IF(A13<>0, IF(ISERROR(VLOOKUP(A13, plan_cuentas,2, FALSE)), "Código de Cuenta Incorrecto", UPPER(VLOOKUP(A13, plan_cuentas, 2, FALSE))), "") ->  | C13: =IF(ISBLANK(A13),0,SUMIFS(Registros!G:G,Registros!B:B,"<"&fecha_inicial,Registros!C:C,"="&A13)-IF(ISBLANK(A13),0,SUMIFS(Registros!H:H,Registros!B:B,"<"&fecha_inicial,Registros!C:C,"="&A13))) -> 0 | D13: =IF(ISBLANK(A13),0,SUMIFS(Registros!G:G,Registros!B:B,">="&fecha_inicial, Registros!B:B, "<="&fecha_final,Registros!C:C,"="&A13)) -> 0 | E13: =IF(ISBLANK(A13),0,SUMIFS(Registros!H:H,Registros!B:B,">="&fecha_inicial, Registros!B:B, "<="&fecha_final,Registros!C:C,"="&A13)) -> 0 | F13: =C13+D13-E13 -> 0
C14: =IF(ISBLANK(A14),0,SUMIFS(Registros!G:G,Registros!B:B,"<"&fecha_inicial,Registros!C:C,"="&A14)-IF(ISBLANK(A14),0,SUMIFS(Registros!H:H,Registros!B:B,"<"&fecha_inicial,Registros!C:C,"="&A14))) -> 0 | D14: =IF(ISBLANK(A14),0,SUMIFS(Registros!G:G,Registros!B:B,">="&fecha_inicial, Registros!B:B, "<="&fecha_final,Registros!C:C,"="&A14)) -> 0 | E14: =IF(ISBLANK(A14),0,SUMIFS(Registros!H:H,Registros!B:B,">="&fecha_inicial, Registros!B:B, "<="&fecha_final,Registros!C:C,"="&A14)) -> 0 | F14: 0
C15: =IF(ISBLANK(A15),0,SUMIFS(Registros!G:G,Registros!B:B,"<"&fecha_inicial,Registros!C:C,"="&A15)-IF(ISBLANK(A15),0,SUMIFS(Registros!H:H,Registros!B:B,"<"&fecha_inicial,Registros!C:C,"="&A15))) -> 0 | D15: =IF(ISBLANK(A15),0,SUMIFS(Registros!G:G,Registros!B:B,">="&fecha_inicial, Registros!B:B, "<="&fecha_final,Registros!C:C,"="&A15)) -> 0 | E15: =IF(ISBLANK(A15),0,SUMIFS(Registros!H:H,Registros!B:B,">="&fecha_inicial, Registros!B:B, "<="&fecha_final,Registros!C:C,"="&A15)) -> 0 | F15: 0
C16: =IF(ISBLANK(A16),0,SUMIFS(Registros!G:G,Registros!B:B,"<"&fecha_inicial,Registros!C:C,"="&A16)-IF(ISBLANK(A16),0,SUMIFS(Registros!H:H,Registros!B:B,"<"&fecha_inicial,Registros!C:C,"="&A16))) -> 0 | D16: =IF(ISBLANK(A16),0,SUMIFS(Registros!G:G,Registros!B:B,">="&fecha_inicial, Registros!B:B, "<="&fecha_final,Registros!C:C,"="&A16)) -> 0 | E16: =IF(ISBLANK(A16),0,SUMIFS(Registros!H:H,Registros!B:B,">="&fecha_inicial, Registros!B:B, "<="&fecha_final,Registros!C:C,"="&A16)) -> 0 | F16: 0
C17: =IF(ISBLANK(A17),0,SUMIFS(Registros!G:G,Registros!B:B,"<"&fecha_inicial,Registros!C:C,"="&A17)-IF(ISBLANK(A17),0,SUMIFS(Registros!H:H,Registros!B:B,"<"&fecha_inicial,Registros!C:C,"="&A17))) -> 0 | D17: =IF(ISBLANK(A17),0,SUMIFS(Registros!G:G,Registros!B:B,">="&fecha_inicial, Registros!B:B, "<="&fecha_final,Registros!C:C,"="&A17)) -> 0 | E17: =IF(ISBLANK(A17),0,SUMIFS(Registros!H:H,Registros!B:B,">="&fecha_inicial, Registros!B:B, "<="&fecha_final,Registros!C:C,"="&A17)) -> 0 | F17: 0
B18: =IF(A18<>0, IF(ISERROR(VLOOKUP(A18, plan_cuentas,2, FALSE)), "Código de Cuenta Incorrecto", UPPER(VLOOKUP(A18, plan_cuentas, 2, FALSE))), "") ->  | C18: =SUM(C19:C24) -> 0 | D18: =SUM(D19:D24) -> 0 | E18: =SUM(E19:E24) -> 0 | F18: 0
B19: =IF(A19<>"", IF(ISERROR(VLOOKUP(A19, plan_cuentas,2, FALSE)), "Código de Cuenta Incorrecto", UPPER(VLOOKUP(A19, plan_cuentas, 2, FALSE))), "") ->  | C19: =IF(ISBLANK(A19),0,SUMIFS(Registros!G:G,Registros!B:B,"<"&fecha_inicial,Registros!C:C,"="&A19)-IF(ISBLANK(A19),0,SUMIFS(Registros!H:H,Registros!B:B,"<"&fecha_inicial,Registros!C:C,"="&A19))) -> 0 | D19: =IF(ISBLANK(A19),0,SUMIFS(Registros!G:G,Registros!B:B,">="&fecha_inicial, Registros!B:B, "<="&fecha_final,Registros!C:C,"="&A19)) -> 0 | E19: =IF(ISBLANK(A19),0,SUMIFS(Registros!H:H,Registros!B:B,">="&fecha_inicial, Registros!B:B, "<="&fecha_final,Registros!C:C,"="&A19)) -> 0 | F19: 0
C20: =IF(ISBLANK(A20),0,SUMIFS(Registros!G:G,Registros!B:B,"<"&fecha_inicial,Registros!C:C,"="&A20)-IF(ISBLANK(A20),0,SUMIFS(Registros!H:H,Registros!B:B,"<"&fecha_inicial,Registros!C:C,"="&A20))) -> 0 | D20: =IF(ISBLANK(A20),0,SUMIFS(Registros!G:G,Registros!B:B,">="&fecha_inicial, Registros!B:B, "<="&fecha_final,Registros!C:C,"="&A20)) -> 0 | E20: =IF(ISBLANK(A20),0,SUMIFS(Registros!H:H,Registros!B:B,">="&fecha_inicial, Registros!B:B, "<="&fecha_final,Registros!C:C,"="&A20)) -> 0 | F20: 0
C21: =IF(ISBLANK(A21),0,SUMIFS(Registros!G:G,Registros!B:B,"<"&fecha_inicial,Registros!C:C,"="&A21)-IF(ISBLANK(A21),0,SUMIFS(Registros!H:H,Registros!B:B,"<"&fecha_inicial,Registros!C:C,"="&A21))) -> 0 | D21: =IF(ISBLANK(A21),0,SUMIFS(Registros!G:G,Registros!B:B,">="&fecha_inicial, Registros!B:B, "<="&fecha_final,Registros!C:C,"="&A21)) -> 0 | E21: =IF(ISBLANK(A21),0,SUMIFS(Registros!H:H,Registros!B:B,">="&fecha_inicial, Registros!B:B, "<="&fecha_final,Registros!C:C,"="&A21)) -> 0 | F21: 0
C22: =IF(ISBLANK(A22),0,SUMIFS(Registros!G:G,Registros!B:B,"<"&fecha_inicial,Registros!C:C,"="&A22)-IF(ISBLANK(A22),0,SUMIFS(Registros!H:H,Registros!B:B,"<"&fecha_inicial,Registros!C:C,"="&A22))) -> 0 | D22: =IF(ISBLANK(A22),0,SUMIFS(Registros!G:G,Registros!B:B,">="&fecha_inicial, Registros!B:B, "<="&fecha_final,Registros!C:C,"="&A22)) -> 0 | E22: =IF(ISBLANK(A22),0,SUMIFS(Registros!H:H,Registros!B:B,">="&fecha_inicial, Registros!B:B, "<="&fecha_final,Registros!C:C,"="&A22)) -> 0 | F22: 0
C23: =IF(ISBLANK(A23),0,SUMIFS(Registros!G:G,Registros!B:B,"<"&fecha_inicial,Registros!C:C,"="&A23)-IF(ISBLANK(A23),0,SUMIFS(Registros!H:H,Registros!B:B,"<"&fecha_inicial,Registros!C:C,"="&A23))) -> 0 | D23: =IF(ISBLANK(A23),0,SUMIFS(Registros!G:G,Registros!B:B,">="&fecha_inicial, Registros!B:B, "<="&fecha_final,Registros!C:C,"="&A23)) -> 0 | E23: =IF(ISBLANK(A23),0,SUMIFS(Registros!H:H,Registros!B:B,">="&fecha_inicial, Registros!B:B, "<="&fecha_final,Registros!C:C,"="&A23)) -> 0 | F23: 0
C24: =IF(ISBLANK(A24),0,SUMIFS(Registros!G:G,Registros!B:B,"<"&fecha_inicial,Registros!C:C,"="&A24)-IF(ISBLANK(A24),0,SUMIFS(Registros!H:H,Registros!B:B,"<"&fecha_inicial,Registros!C:C,"="&A24))) -> 0 | D24: =IF(ISBLANK(A24),0,SUMIFS(Registros!G:G,Registros!B:B,">="&fecha_inicial, Registros!B:B, "<="&fecha_final,Registros!C:C,"="&A24)) -> 0 | E24: =IF(ISBLANK(A24),0,SUMIFS(Registros!H:H,Registros!B:B,">="&fecha_inicial, Registros!B:B, "<="&fecha_final,Registros!C:C,"="&A24)) -> 0 | F24: 0
B25: =IF(A25<>0, IF(ISERROR(VLOOKUP(A25, plan_cuentas,2, FALSE)), "Código de Cuenta Incorrecto", UPPER(VLOOKUP(A25, plan_cuentas, 2, FALSE))), "") ->  | C25: =SUM(C26:C31) -> 0 | D25: =SUM(D26:D31) -> 0 | E25: =SUM(E26:E31) -> 0 | F25: 0
B26: =IF(A26<>"", IF(ISERROR(VLOOKUP(A26, plan_cuentas,2, FALSE)), "Código de Cuenta Incorrecto", UPPER(VLOOKUP(A26, plan_cuentas, 2, FALSE))), "") ->  | C26: =IF(ISBLANK(A26),0,SUMIFS(Registros!G:G,Registros!B:B,"<"&fecha_inicial,Registros!C:C,"="&A26)-IF(ISBLANK(A26),0,SUMIFS(Registros!H:H,Registros!B:B,"<"&fecha_inicial,Registros!C:C,"="&A26))) -> 0 | D26: =IF(ISBLANK(A26),0,SUMIFS(Registros!G:G,Registros!B:B,">="&fecha_inicial, Registros!B:B, "<="&fecha_final,Registros!C:C,"="&A26)) -> 0 | E26: =IF(ISBLANK(A26),0,SUMIFS(Registros!H:H,Registros!B:B,">="&fecha_inicial, Registros!B:B, "<="&fecha_final,Registros!C:C,"="&A26)) -> 0 | F26: 0
C27: =IF(ISBLANK(A27),0,SUMIFS(Registros!G:G,Registros!B:B,"<"&fecha_inicial,Registros!C:C,"="&A27)-IF(ISBLANK(A27),0,SUMIFS(Registros!H:H,Registros!B:B,"<"&fecha_inicial,Registros!C:C,"="&A27))) -> 0 | D27: =IF(ISBLANK(A27),0,SUMIFS(Registros!G:G,Registros!B:B,">="&fecha_inicial, Registros!B:B, "<="&fecha_final,Registros!C:C,"="&A27)) -> 0 | E27: =IF(ISBLANK(A27),0,SUMIFS(Registros!H:H,Registros!B:B,">="&fecha_inicial, Registros!B:B, "<="&fecha_final,Registros!C:C,"="&A27)) -> 0 | F27: 0
C28: =IF(ISBLANK(A28),0,SUMIFS(Registros!G:G,Registros!B:B,"<"&fecha_inicial,Registros!C:C,"="&A28)-IF(ISBLANK(A28),0,SUMIFS(Registros!H:H,Registros!B:B,"<"&fecha_inicial,Registros!C:C,"="&A28))) -> 0 | D28: =IF(ISBLANK(A28),0,SUMIFS(Registros!G:G,Registros!B:B,">="&fecha_inicial, Registros!B:B, "<="&fecha_final,Registros!C:C,"="&A28)) -> 0 | E28: =IF(ISBLANK(A28),0,SUMIFS(Registros!H:H,Registros!B:B,">="&fecha_inicial, Registros!B:B, "<="&fecha_final,Registros!C:C,"="&A28)) -> 0 | F28: 0
C29: =IF(ISBLANK(A29),0,SUMIFS(Registros!G:G,Registros!B:B,"<"&fecha_inicial,Registros!C:C,"="&A29)-IF(ISBLANK(A29),0,SUMIFS(Registros!H:H,Registros!B:B,"<"&fecha_inicial,Registros!C:C,"="&A29))) -> 0 | D29: =IF(ISBLANK(A29),0,SUMIFS(Registros!G:G,Registros!B:B,">="&fecha_inicial, Registros!B:B, "<="&fecha_final,Registros!C:C,"="&A29)) -> 0 | E29: =IF(ISBLANK(A29),0,SUMIFS(Registros!H:H,Registros!B:B,">="&fecha_inicial, Registros!B:B, "<="&fecha_final,Registros!C:C,"="&A29)) -> 0 | F29: 0
C30: =IF(ISBLANK(A30),0,SUMIFS(Registros!G:G,Registros!B:B,"<"&fecha_inicial,Registros!C:C,"="&A30)-IF(ISBLANK(A30),0,SUMIFS(Registros!H:H,Registros!B:B,"<"&fecha_inicial,Registros!C:C,"="&A30))) -> 0 | D30: =IF(ISBLANK(A30),0,SUMIFS(Registros!G:G,Registros!B:B,">="&fecha_inicial, Registros!B:B, "<="&fecha_final,Registros!C:C,"="&A30)) -> 0 | E30: =IF(ISBLANK(A30),0,SUMIFS(Registros!H:H,Registros!B:B,">="&fecha_inicial, Registros!B:B, "<="&fecha_final,Registros!C:C,"="&A30)) -> 0 | F30: 0
C31: =IF(ISBLANK(A31),0,SUMIFS(Registros!G:G,Registros!B:B,"<"&fecha_inicial,Registros!C:C,"="&A31)-IF(ISBLANK(A31),0,SUMIFS(Registros!H:H,Registros!B:B,"<"&fecha_inicial,Registros!C:C,"="&A31))) -> 0 | D31: =IF(ISBLANK(A31),0,SUMIFS(Registros!G:G,Registros!B:B,">="&fecha_inicial, Registros!B:B, "<="&fecha_final,Registros!C:C,"="&A31)) -> 0 | E31: =IF(ISBLANK(A31),0,SUMIFS(Registros!H:H,Registros!B:B,">="&fecha_inicial, Registros!B:B, "<="&fecha_final,Registros!C:C,"="&A31)) -> 0 | F31: 0
C32: =SUM(C33:C38) -> 0 | D32: =SUM(D33:D38) -> 0 | E32: =SUM(E33:E38) -> 0 | F32: 0
C33: =IF(ISBLANK(A33),0,SUMIFS(Registros!G:G,Registros!B:B,"<"&fecha_inicial,Registros!C:C,"="&A33)-IF(ISBLANK(A33),0,SUMIFS(Registros!H:H,Registros!B:B,"<"&fecha_inicial,Registros!C:C,"="&A33))) -> 0 | D33: =IF(ISBLANK(A33),0,SUMIFS(Registros!G:G,Registros!B:B,">="&fecha_inicial, Registros!B:B, "<="&fecha_final,Registros!C:C,"="&A33)) -> 0 | E33: =IF(ISBLANK(A33),0,SUMIFS(Registros!H:H,Registros!B:B,">="&fecha_inicial, Registros!B:B, "<="&fecha_final,Registros!C:C,"="&A33)) -> 0 | F33: 0
C34: =IF(ISBLANK(A34),0,SUMIFS(Registros!G:G,Registros!B:B,"<"&fecha_inicial,Registros!C:C,"="&A34)-IF(ISBLANK(A34),0,SUMIFS(Registros!H:H,Registros!B:B,"<"&fecha_inicial,Registros!C:C,"="&A34))) -> 0 | D34: =IF(ISBLANK(A34),0,SUMIFS(Registros!G:G,Registros!B:B,">="&fecha_inicial, Registros!B:B, "<="&fecha_final,Registros!C:C,"="&A34)) -> 0 | E34: =IF(ISBLANK(A34),0,SUMIFS(Registros!H:H,Registros!B:B,">="&fecha_inicial, Registros!B:B, "<="&fecha_final,Registros!C:C,"="&A34)) -> 0 | F34: 0
C35: =IF(ISBLANK(A35),0,SUMIFS(Registros!G:G,Registros!B:B,"<"&fecha_inicial,Registros!C:C,"="&A35)-IF(ISBLANK(A35),0,SUMIFS(Registros!H:H,Registros!B:B,"<"&fecha_inicial,Registros!C:C,"="&A35))) -> 0 | D35: =IF(ISBLANK(A35),0,SUMIFS(Registros!G:G,Registros!B:B,">="&fecha_inicial, Registros!B:B, "<="&fecha_final,Registros!C:C,"="&A35)) -> 0 | E35: =IF(ISBLANK(A35),0,SUMIFS(Registros!H:H,Registros!B:B,">="&fecha_inicial, Registros!B:B, "<="&fecha_final,Registros!C:C,"="&A35)) -> 0 | F35: 0
C36: =IF(ISBLANK(A36),0,SUMIFS(Registros!G:G,Registros!B:B,"<"&fecha_inicial,Registros!C:C,"="&A36)-IF(ISBLANK(A36),0,SUMIFS(Registros!H:H,Registros!B:B,"<"&fecha_inicial,Registros!C:C,"="&A36))) -> 0 | D36: =IF(ISBLANK(A36),0,SUMIFS(Registros!G:G,Registros!B:B,">="&fecha_inicial, Registros!B:B, "<="&fecha_final,Registros!C:C,"="&A36)) -> 0 | E36: =IF(ISBLANK(A36),0,SUMIFS(Registros!H:H,Registros!B:B,">="&fecha_inicial, Registros!B:B, "<="&fecha_final,Registros!C:C,"="&A36)) -> 0 | F36: 0
C37: =IF(ISBLANK(A37),0,SUMIFS(Registros!G:G,Registros!B:B,"<"&fecha_inicial,Registros!C:C,"="&A37)-IF(ISBLANK(A37),0,SUMIFS(Registros!H:H,Registros!B:B,"<"&fecha_inicial,Registros!C:C,"="&A37))) -> 0 | D37: =IF(ISBLANK(A37),0,SUMIFS(Registros!G:G,Registros!B:B,">="&fecha_inicial, Registros!B:B, "<="&fecha_final,Registros!C:C,"="&A37)) -> 0 | E37: =IF(ISBLANK(A37),0,SUMIFS(Registros!H:H,Registros!B:B,">="&fecha_inicial, Registros!B:B, "<="&fecha_final,Registros!C:C,"="&A37)) -> 0 | F37: 0
C38: =IF(ISBLANK(A38),0,SUMIFS(Registros!G:G,Registros!B:B,"<"&fecha_inicial,Registros!C:C,"="&A38)-IF(ISBLANK(A38),0,SUMIFS(Registros!H:H,Registros!B:B,"<"&fecha_inicial,Registros!C:C,"="&A38))) -> 0 | D38: =IF(ISBLANK(A38),0,SUMIFS(Registros!G:G,Registros!B:B,">="&fecha_inicial, Registros!B:B, "<="&fecha_final,Registros!C:C,"="&A38)) -> 0 | E38: =IF(ISBLANK(A38),0,SUMIFS(Registros!H:H,Registros!B:B,">="&fecha_inicial, Registros!B:B, "<="&fecha_final,Registros!C:C,"="&A38)) -> 0 | F38: 0
B39: =IF(A39<>0, IF(ISERROR(VLOOKUP(A39, plan_cuentas,2, FALSE)), "Código de Cuenta Incorrecto", UPPER(VLOOKUP(A39, plan_cuentas, 2, FALSE))), "") ->  | C39: =SUM(C40:C45) -> 0 | D39: =SUM(D40:D45) -> 0 | E39: =SUM(E40:E45) -> 0 | F39: 0
C40: =IF(ISBLANK(A40),0,SUMIFS(Registros!G:G,Registros!B:B,"<"&fecha_inicial,Registros!C:C,"="&A40)-IF(ISBLANK(A40),0,SUMIFS(Registros!H:H,Registros!B:B,"<"&fecha_inicial,Registros!C:C,"="&A40))) -> 0 | D40: =IF(ISBLANK(A40),0,SUMIFS(Registros!G:G,Registros!B:B,">="&fecha_inicial, Registros!B:B, "<="&fecha_final,Registros!C:C,"="&A40)) -> 0 | E40: =IF(ISBLANK(A40),0,SUMIFS(Registros!H:H,Registros!B:B,">="&fecha_inicial, Registros!B:B, "<="&fecha_final,Registros!C:C,"="&A40)) -> 0 | F40: 0
C41: =IF(ISBLANK(A41),0,SUMIFS(Registros!G:G,Registros!B:B,"<"&fecha_inicial,Registros!C:C,"="&A41)-IF(ISBLANK(A41),0,SUMIFS(Registros!H:H,Registros!B:B,"<"&fecha_inicial,Registros!C:C,"="&A41))) -> 0 | D41: =IF(ISBLANK(A41),0,SUMIFS(Registros!G:G,Registros!B:B,">="&fecha_inicial, Registros!B:B, "<="&fecha_final,Registros!C:C,"="&A41)) -> 0 | E41: =IF(ISBLANK(A41),0,SUMIFS(Registros!H:H,Registros!B:B,">="&fecha_inicial, Registros!B:B, "<="&fecha_final,Registros!C:C,"="&A41)) -> 0 | F41: 0
C42: =IF(ISBLANK(A42),0,SUMIFS(Registros!G:G,Registros!B:B,"<"&fecha_inicial,Registros!C:C,"="&A42)-IF(ISBLANK(A42),0,SUMIFS(Registros!H:H,Registros!B:B,"<"&fecha_inicial,Registros!C:C,"="&A42))) -> 0 | D42: =IF(ISBLANK(A42),0,SUMIFS(Registros!G:G,Registros!B:B,">="&fecha_inicial, Registros!B:B, "<="&fecha_final,Registros!C:C,"="&A42)) -> 0 | E42: =IF(ISBLANK(A42),0,SUMIFS(Registros!H:H,Registros!B:B,">="&fecha_inicial, Registros!B:B, "<="&fecha_final,Registros!C:C,"="&A42)) -> 0 | F42: 0
C43: =IF(ISBLANK(A43),0,SUMIFS(Registros!G:G,Registros!B:B,"<"&fecha_inicial,Registros!C:C,"="&A43)-IF(ISBLANK(A43),0,SUMIFS(Registros!H:H,Registros!B:B,"<"&fecha_inicial,Registros!C:C,"="&A43))) -> 0 | D43: =IF(ISBLANK(A43),0,SUMIFS(Registros!G:G,Registros!B:B,">="&fecha_inicial, Registros!B:B, "<="&fecha_final,Registros!C:C,"="&A43)) -> 0 | E43: =IF(ISBLANK(A43),0,SUMIFS(Registros!H:H,Registros!B:B,">="&fecha_inicial, Registros!B:B, "<="&fecha_final,Registros!C:C,"="&A43)) -> 0 | F43: 0
C44: =IF(ISBLANK(A44),0,SUMIFS(Registros!G:G,Registros!B:B,"<"&fecha_inicial,Registros!C:C,"="&A44)-IF(ISBLANK(A44),0,SUMIFS(Registros!H:H,Registros!B:B,"<"&fecha_inicial,Registros!C:C,"="&A44))) -> 0 | D44: =IF(ISBLANK(A44),0,SUMIFS(Registros!G:G,Registros!B:B,">="&fecha_inicial, Registros!B:B, "<="&fecha_final,Registros!C:C,"="&A44)) -> 0 | E44: =IF(ISBLANK(A44),0,SUMIFS(Registros!H:H,Registros!B:B,">="&fecha_inicial, Registros!B:B, "<="&fecha_final,Registros!C:C,"="&A44)) -> 0 | F44: 0
C45: =IF(ISBLANK(A45),0,SUMIFS(Registros!G:G,Registros!B:B,"<"&fecha_inicial,Registros!C:C,"="&A45)-IF(ISBLANK(A45),0,SUMIFS(Registros!H:H,Registros!B:B,"<"&fecha_inicial,Registros!C:C,"="&A45))) -> 0 | D45: =IF(ISBLANK(A45),0,SUMIFS(Registros!G:G,Registros!B:B,">="&fecha_inicial, Registros!B:B, "<="&fecha_final,Registros!C:C,"="&A45)) -> 0 | E45: =IF(ISBLANK(A45),0,SUMIFS(Registros!H:H,Registros!B:B,">="&fecha_inicial, Registros!B:B, "<="&fecha_final,Registros!C:C,"="&A45)) -> 0 | F45: 0
B46: =IF(A46<>0, IF(ISERROR(VLOOKUP(A46, plan_cuentas,2, FALSE)), "Código de Cuenta Incorrecto", UPPER(VLOOKUP(A46, plan_cuentas, 2, FALSE))), "") ->  | C46: =SUM(C47:C52) -> 0 | D46: =SUM(D47:D52) -> 0 | E46: =SUM(E47:E52) -> 0 | F46: 0
B47: =IF(A47<>"", IF(ISERROR(VLOOKUP(A47, plan_cuentas,2, FALSE)), "Código de Cuenta Incorrecto", UPPER(VLOOKUP(A47, plan_cuentas, 2, FALSE))), "") ->  | C47: =IF(ISBLANK(A47),0,SUMIFS(Registros!G:G,Registros!B:B,"<"&fecha_inicial,Registros!C:C,"="&A47)-IF(ISBLANK(A47),0,SUMIFS(Registros!H:H,Registros!B:B,"<"&fecha_inicial,Registros!C:C,"="&A47))) -> 0 | D47: =IF(ISBLANK(A47),0,SUMIFS(Registros!G:G,Registros!B:B,">="&fecha_inicial, Registros!B:B, "<="&fecha_final,Registros!C:C,"="&A47)) -> 0 | E47: =IF(ISBLANK(A47),0,SUMIFS(Registros!H:H,Registros!B:B,">="&fecha_inicial, Registros!B:B, "<="&fecha_final,Registros!C:C,"="&A47)) -> 0 | F47: 0
B48: =IF(A48<>0, IF(ISERROR(VLOOKUP(A48, plan_cuentas,2, FALSE)), "Código de Cuenta Incorrecto", UPPER(VLOOKUP(A48, plan_cuentas, 2, FALSE))), "") ->  | C48: =IF(ISBLANK(A48),0,SUMIFS(Registros!G:G,Registros!B:B,"<"&fecha_inicial,Registros!C:C,"="&A48)-IF(ISBLANK(A48),0,SUMIFS(Registros!H:H,Registros!B:B,"<"&fecha_inicial,Registros!C:C,"="&A48))) -> 0 | D48: =IF(ISBLANK(A48),0,SUMIFS(Registros!G:G,Registros!B:B,">="&fecha_inicial, Registros!B:B, "<="&fecha_final,Registros!C:C,"="&A48)) -> 0 | E48: =IF(ISBLANK(A48),0,SUMIFS(Registros!H:H,Registros!B:B,">="&fecha_inicial, Registros!B:B, "<="&fecha_final,Registros!C:C,"="&A48)) -> 0 | F48: 0
B49: =IF(A49<>0, IF(ISERROR(VLOOKUP(A49, plan_cuentas,2, FALSE)), "Código de Cuenta Incorrecto", UPPER(VLOOKUP(A49, plan_cuentas, 2, FALSE))), "") ->  | C49: =IF(ISBLANK(A49),0,SUMIFS(Registros!G:G,Registros!B:B,"<"&fecha_inicial,Registros!C:C,"="&A49)-IF(ISBLANK(A49),0,SUMIFS(Registros!H:H,Registros!B:B,"<"&fecha_inicial,Registros!C:C,"="&A49))) -> 0 | D49: =IF(ISBLANK(A49),0,SUMIFS(Registros!G:G,Registros!B:B,">="&fecha_inicial, Registros!B:B, "<="&fecha_final,Registros!C:C,"="&A49)) -> 0 | E49: =IF(ISBLANK(A49),0,SUMIFS(Registros!H:H,Registros!B:B,">="&fecha_inicial, Registros!B:B, "<="&fecha_final,Registros!C:C,"="&A49)) -> 0 | F49: 0
B50: =IF(A50<>0, IF(ISERROR(VLOOKUP(A50, plan_cuentas,2, FALSE)), "Código de Cuenta Incorrecto", UPPER(VLOOKUP(A50, plan_cuentas, 2, FALSE))), "") ->  | C50: =IF(ISBLANK(A50),0,SUMIFS(Registros!G:G,Registros!B:B,"<"&fecha_inicial,Registros!C:C,"="&A50)-IF(ISBLANK(A50),0,SUMIFS(Registros!H:H,Registros!B:B,"<"&fecha_inicial,Registros!C:C,"="&A50))) -> 0 | D50: =IF(ISBLANK(A50),0,SUMIFS(Registros!G:G,Registros!B:B,">="&fecha_inicial, Registros!B:B, "<="&fecha_final,Registros!C:C,"="&A50)) -> 0 | E50: =IF(ISBLANK(A50),0,SUMIFS(Registros!H:H,Registros!B:B,">="&fecha_inicial, Registros!B:B, "<="&fecha_final,Registros!C:C,"="&A50)) -> 0 | F50: 0
B51: =IF(A51<>0, IF(ISERROR(VLOOKUP(A51, plan_cuentas,2, FALSE)), "Código de Cuenta Incorrecto", UPPER(VLOOKUP(A51, plan_cuentas, 2, FALSE))), "") ->  | C51: =IF(ISBLANK(A51),0,SUMIFS(Registros!G:G,Registros!B:B,"<"&fecha_inicial,Registros!C:C,"="&A51)-IF(ISBLANK(A51),0,SUMIFS(Registros!H:H,Registros!B:B,"<"&fecha_inicial,Registros!C:C,"="&A51))) -> 0 | D51: =IF(ISBLANK(A51),0,SUMIFS(Registros!G:G,Registros!B:B,">="&fecha_inicial, Registros!B:B, "<="&fecha_final,Registros!C:C,"="&A51)) -> 0 | E51: =IF(ISBLANK(A51),0,SUMIFS(Registros!H:H,Registros!B:B,">="&fecha_inicial, Registros!B:B, "<="&fecha_final,Registros!C:C,"="&A51)) -> 0 | F51: 0
B52: =IF(A52<>0, IF(ISERROR(VLOOKUP(A52, plan_cuentas,2, FALSE)), "Código de Cuenta Incorrecto", UPPER(VLOOKUP(A52, plan_cuentas, 2, FALSE))), "") ->  | C52: =IF(ISBLANK(A52),0,SUMIFS(Registros!G:G,Registros!B:B,"<"&fecha_inicial,Registros!C:C,"="&A52)-IF(ISBLANK(A52),0,SUMIFS(Registros!H:H,Registros!B:B,"<"&fecha_inicial,Registros!C:C,"="&A52))) -> 0 | D52: =IF(ISBLANK(A52),0,SUMIFS(Registros!G:G,Registros!B:B,">="&fecha_inicial, Registros!B:B, "<="&fecha_final,Registros!C:C,"="&A52)) -> 0 | E52: =IF(ISBLANK(A52),0,SUMIFS(Registros!H:H,Registros!B:B,">="&fecha_inicial, Registros!B:B, "<="&fecha_final,Registros!C:C,"="&A52)) -> 0 | F52: 0
C53: =SUM(C54:C59) -> 0 | D53: =SUM(D54:D59) -> 0 | E53: =SUM(E54:E59) -> 0 | F53: 0
C54: =IF(ISBLANK(A54),0,SUMIFS(Registros!G:G,Registros!B:B,"<"&fecha_inicial,Registros!C:C,"="&A54)-IF(ISBLANK(A54),0,SUMIFS(Registros!H:H,Registros!B:B,"<"&fecha_inicial,Registros!C:C,"="&A54))) -> 0 | D54: =IF(ISBLANK(A54),0,SUMIFS(Registros!G:G,Registros!B:B,">="&fecha_inicial, Registros!B:B, "<="&fecha_final,Registros!C:C,"="&A54)) -> 0 | E54: =IF(ISBLANK(A54),0,SUMIFS(Registros!H:H,Registros!B:B,">="&fecha_inicial, Registros!B:B, "<="&fecha_final,Registros!C:C,"="&A54)) -> 0 | F54: 0
C55: =IF(ISBLANK(A55),0,SUMIFS(Registros!G:G,Registros!B:B,"<"&fecha_inicial,Registros!C:C,"="&A55)-IF(ISBLANK(A55),0,SUMIFS(Registros!H:H,Registros!B:B,"<"&fecha_inicial,Registros!C:C,"="&A55))) -> 0 | D55: =IF(ISBLANK(A55),0,SUMIFS(Registros!G:G,Registros!B:B,">="&fecha_inicial, Registros!B:B, "<="&fecha_final,Registros!C:C,"="&A55)) -> 0 | E55: =IF(ISBLANK(A55),0,SUMIFS(Registros!H:H,Registros!B:B,">="&fecha_inicial, Registros!B:B, "<="&fecha_final,Registros!C:C,"="&A55)) -> 0 | F55: 0
C56: =IF(ISBLANK(A56),0,SUMIFS(Registros!G:G,Registros!B:B,"<"&fecha_inicial,Registros!C:C,"="&A56)-IF(ISBLANK(A56),0,SUMIFS(Registros!H:H,Registros!B:B,"<"&fecha_inicial,Registros!C:C,"="&A56))) -> 0 | D56: =IF(ISBLANK(A56),0,SUMIFS(Registros!G:G,Registros!B:B,">="&fecha_inicial, Registros!B:B, "<="&fecha_final,Registros!C:C,"="&A56)) -> 0 | E56: =IF(ISBLANK(A56),0,SUMIFS(Registros!H:H,Registros!B:B,">="&fecha_inicial, Registros!B:B, "<="&fecha_final,Registros!C:C,"="&A56)) -> 0 | F56: 0
C57: =IF(ISBLANK(A57),0,SUMIFS(Registros!G:G,Registros!B:B,"<"&fecha_inicial,Registros!C:C,"="&A57)-IF(ISBLANK(A57),0,SUMIFS(Registros!H:H,Registros!B:B,"<"&fecha_inicial,Registros!C:C,"="&A57))) -> 0 | D57: =IF(ISBLANK(A57),0,SUMIFS(Registros!G:G,Registros!B:B,">="&fecha_inicial, Registros!B:B, "<="&fecha_final,Registros!C:C,"="&A57)) -> 0 | E57: =IF(ISBLANK(A57),0,SUMIFS(Registros!H:H,Registros!B:B,">="&fecha_inicial, Registros!B:B, "<="&fecha_final,Registros!C:C,"="&A57)) -> 0 | F57: 0
B58: =IF(A58<>0, IF(ISERROR(VLOOKUP(A58, plan_cuentas,2, FALSE)), "Código de Cuenta Incorrecto", UPPER(VLOOKUP(A58, plan_cuentas, 2, FALSE))), "") ->  | C58: =IF(ISBLANK(A58),0,SUMIFS(Registros!G:G,Registros!B:B,"<"&fecha_inicial,Registros!C:C,"="&A58)-IF(ISBLANK(A58),0,SUMIFS(Registros!H:H,Registros!B:B,"<"&fecha_inicial,Registros!C:C,"="&A58))) -> 0 | D58: =IF(ISBLANK(A58),0,SUMIFS(Registros!G:G,Registros!B:B,">="&fecha_inicial, Registros!B:B, "<="&fecha_final,Registros!C:C,"="&A58)) -> 0 | E58: =IF(ISBLANK(A58),0,SUMIFS(Registros!H:H,Registros!B:B,">="&fecha_inicial, Registros!B:B, "<="&fecha_final,Registros!C:C,"="&A58)) -> 0 | F58: 0
C59: =IF(ISBLANK(A59),0,SUMIFS(Registros!G:G,Registros!B:B,"<"&fecha_inicial,Registros!C:C,"="&A59)-IF(ISBLANK(A59),0,SUMIFS(Registros!H:H,Registros!B:B,"<"&fecha_inicial,Registros!C:C,"="&A59))) -> 0 | D59: =IF(ISBLANK(A59),0,SUMIFS(Registros!G:G,Registros!B:B,">="&fecha_inicial, Registros!B:B, "<="&fecha_final,Registros!C:C,"="&A59)) -> 0 | E59: =IF(ISBLANK(A59),0,SUMIFS(Registros!H:H,Registros!B:B,">="&fecha_inicial, Registros!B:B, "<="&fecha_final,Registros!C:C,"="&A59)) -> 0 | F59: 0
A60: ="SALDO FINAL DE LA CUENTA AL " &TEXT(fecha_final, "dd")&" DE "&UPPER(TEXT(fecha_final, "MMMM"))&" DEL "& TEXT(fecha_final, "YYYY") -> SALDO FINAL DE LA CUENTA AL 31 DE JULIO DEL 2014 | C60: =C11+C18+C25+C46+C32+C39+C53 -> 0 | D60: =D11+D18+D25+D46+D32+D39+D53 -> 0 | E60: =E11+E18+E25+E46+E32+E39+E53 -> 0 | F60: =C60+D60-E60 -> 0
A65: AUTORIZADO POR: | E65: REVISADO POR:
A66: =VLOOKUP(A65, Usuarios!B7:E9, 3, FALSE) -> Rodrigo Castro Potoy | E66: =VLOOKUP(E65, Usuarios!B7:E9, 3, FALSE) -> 0

Sheet H
E1: Proteger
A2: =bussiness_name -> SOCIEDAD CIVIL COMUNIDAD CONNECT
A3: ="RESUMEN CONTABLE DE "&B7 -> RESUMEN CONTABLE DE
A4: ="DEL "&TEXT(fecha_inicial, "DD")&" DE "&UPPER(TEXT(fecha_inicial, "MMMM"))&" DEL " & TEXT(fecha_inicial, "YYYY") & " AL "&TEXT(fecha_final, "DD")&" DE "&UPPER(TEXT(fecha_final, "MMMM"))&" DEL "&TEXT(fecha_final, "YYYY") -> DEL 01 DE JULIO DEL 2014 AL 31 DE JULIO DEL 2014
A5: =address & " *** Tel/Fax: " & tel & " *** " & email -> Esquina sureste del Parque Central, San Juan del sur, Nicaragua. *** Tel/Fax: 25682731 *** info@comunidadconnect.org
B7: =UPPER(IF(ISBLANK(A7),"",IFERROR(VLOOKUP(A7,plan_cuentas,2,FALSE),"Código de cuenta incorrecto"))) ->  | D7: ="MOVIMIENTOS DE "&UPPER(TEXT(fecha_final, "MMMM")) -> MOVIMIENTOS DE JULIO
A8: CODIGO | B8: NOMBRE DE LA CUENTA | C8: SALDO INICIAL | D8: DEBITOS | E8: CREDITOS | F8: SALDO FINAL
B11: =IF(A11<>"", IF(ISERROR(VLOOKUP(A11, plan_cuentas,2, FALSE)), "Código de Cuenta Incorrecto", UPPER(VLOOKUP(A11, plan_cuentas, 2, FALSE))), "") ->  | C11: =SUM(C12:C17) -> 0 | D11: =SUM(D12:D17) -> 0 | E11: =SUM(E12:E17) -> 0 | F11: =C11+E11-D11 -> 0
B12: =IF(A12<>"", IF(ISERROR(VLOOKUP(A12, plan_cuentas,2, FALSE)), "Código de Cuenta Incorrecto", UPPER(VLOOKUP(A12, plan_cuentas, 2, FALSE))), "") ->  | C12: =IF(ISBLANK(A12),0,SUMIFS(Registros!H:H,Registros!B:B,"<"&fecha_inicial,Registros!C:C,"="&A12)-IF(ISBLANK(A12),0,SUMIFS(Registros!G:G,Registros!B:B,"<"&fecha_inicial,Registros!C:C,"="&A12))) -> 0 | D12: =IF(ISBLANK(A12),0,SUMIFS(Registros!G:G,Registros!B:B,">="&fecha_inicial, Registros!B:B, "<="&fecha_final,Registros!C:C,"="&A12)) -> 0 | E12: =IF(ISBLANK(A12),0,SUMIFS(Registros!H:H,Registros!B:B,">="&fecha_inicial, Registros!B:B, "<="&fecha_final,Registros!C:C,"="&A12)) -> 0 | F12: =C12+E12-D12 -> 0
B13: =IF(A13<>0, IF(ISERROR(VLOOKUP(A13, plan_cuentas,2, FALSE)), "Código de Cuenta Incorrecto", UPPER(VLOOKUP(A13, plan_cuentas, 2, FALSE))), "") ->  | C13: =IF(ISBLANK(A13),0,SUMIFS(Registros!H:H,Registros!B:B,"<"&fecha_inicial,Registros!C:C,"="&A13)-IF(ISBLANK(A13),0,SUMIFS(Registros!G:G,Registros!B:B,"<"&fecha_inicial,Registros!C:C,"="&A13))) -> 0 | D13: =IF(ISBLANK(A13),0,SUMIFS(Registros!G:G,Registros!B:B,">="&fecha_inicial, Registros!B:B, "<="&fecha_final,Registros!C:C,"="&A13)) -> 0 | E13: =IF(ISBLANK(A13),0,SUMIFS(Registros!H:H,Registros!B:B,">="&fecha_inicial, Registros!B:B, "<="&fecha_final,Registros!C:C,"="&A13)) -> 0 | F13: 0
C14: =IF(ISBLANK(A14),0,SUMIFS(Registros!H:H,Registros!B:B,"<"&fecha_inicial,Registros!C:C,"="&A14)-IF(ISBLANK(A14),0,SUMIFS(Registros!G:G,Registros!B:B,"<"&fecha_inicial,Registros!C:C,"="&A14))) -> 0 | D14: =IF(ISBLANK(A14),0,SUMIFS(Registros!G:G,Registros!B:B,">="&fecha_inicial, Registros!B:B, "<="&fecha_final,Registros!C:C,"="&A14)) -> 0 | E14: =IF(ISBLANK(A14),0,SUMIFS(Registros!H:H,Registros!B:B,">="&fecha_inicial, Registros!B:B, "<="&fecha_final,Registros!C:C,"="&A14)) -> 0 | F14: 0
C15: =IF(ISBLANK(A15),0,SUMIFS(Registros!H:H,Registros!B:B,"<"&fecha_inicial,Registros!C:C,"="&A15)-IF(ISBLANK(A15),0,SUMIFS(Registros!G:G,Registros!B:B,"<"&fecha_inicial,Registros!C:C,"="&A15))) -> 0 | D15: =IF(ISBLANK(A15),0,SUMIFS(Registros!G:G,Registros!B:B,">="&fecha_inicial, Registros!B:B, "<="&fecha_final,Registros!C:C,"="&A15)) -> 0 | E15: =IF(ISBLANK(A15),0,SUMIFS(Registros!H:H,Registros!B:B,">="&fecha_inicial, Registros!B:B, "<="&fecha_final,Registros!C:C,"="&A15)) -> 0 | F15: 0
C16: =IF(ISBLANK(A16),0,SUMIFS(Registros!H:H,Registros!B:B,"<"&fecha_inicial,Registros!C:C,"="&A16)-IF(ISBLANK(A16),0,SUMIFS(Registros!G:G,Registros!B:B,"<"&fecha_inicial,Registros!C:C,"="&A16))) -> 0 | D16: =IF(ISBLANK(A16),0,SUMIFS(Registros!G:G,Registros!B:B,">="&fecha_inicial, Registros!B:B, "<="&fecha_final,Registros!C:C,"="&A16)) -> 0 | E16: =IF(ISBLANK(A16),0,SUMIFS(Registros!H:H,Registros!B:B,">="&fecha_inicial, Registros!B:B, "<="&fecha_final,Registros!C:C,"="&A16)) -> 0 | F16: 0
C17: =IF(ISBLANK(A17),0,SUMIFS(Registros!H:H,Registros!B:B,"<"&fecha_inicial,Registros!C:C,"="&A17)-IF(ISBLANK(A17),0,SUMIFS(Registros!G:G,Registros!B:B,"<"&fecha_inicial,Registros!C:C,"="&A17))) -> 0 | D17: =IF(ISBLANK(A17),0,SUMIFS(Registros!G:G,Registros!B:B,">="&fecha_inicial, Registros!B:B, "<="&fecha_final,Registros!C:C,"="&A17)) -> 0 | E17: =IF(ISBLANK(A17),0,SUMIFS(Registros!H:H,Registros!B:B,">="&fecha_inicial, Registros!B:B, "<="&fecha_final,Registros!C:C,"="&A17)) -> 0 | F17: 0
C18: =SUM(C19:C24) -> 0 | D18: =SUM(D19:D24) -> 0 | E18: =SUM(E19:E24) -> 0 | F18: 0
B19: =IF(A19<>"", IF(ISERROR(VLOOKUP(A19, plan_cuentas,2, FALSE)), "Código de Cuenta Incorrecto", UPPER(VLOOKUP(A19, plan_cuentas, 2, FALSE))), "") ->  | C19: =IF(ISBLANK(A19),0,SUMIFS(Registros!H:H,Registros!B:B,"<"&fecha_inicial,Registros!C:C,"="&A19)-IF(ISBLANK(A19),0,SUMIFS(Registros!G:G,Registros!B:B,"<"&fecha_inicial,Registros!C:C,"="&A19))) -> 0 | D19: =IF(ISBLANK(A19),0,SUMIFS(Registros!G:G,Registros!B:B,">="&fecha_inicial, Registros!B:B, "<="&fecha_final,Registros!C:C,"="&A19)) -> 0 | E19: =IF(ISBLANK(A19),0,SUMIFS(Registros!H:H,Registros!B:B,">="&fecha_inicial, Registros!B:B, "<="&fecha_final,Registros!C:C,"="&A19)) -> 0 | F19: 0
C20: =IF(ISBLANK(A20),0,SUMIFS(Registros!H:H,Registros!B:B,"<"&fecha_inicial,Registros!C:C,"="&A20)-IF(ISBLANK(A20),0,SUMIFS(Registros!G:G,Registros!B:B,"<"&fecha_inicial,Registros!C:C,"="&A20))) -> 0 | D20: =IF(ISBLANK(A20),0,SUMIFS(Registros!G:G,Registros!B:B,">="&fecha_inicial, Registros!B:B, "<="&fecha_final,Registros!C:C,"="&A20)) -> 0 | E20: =IF(ISBLANK(A20),0,SUMIFS(Registros!H:H,Registros!B:B,">="&fecha_inicial, Registros!B:B, "<="&fecha_final,Registros!C:C,"="&A20)) -> 0 | F20: 0
C21: =IF(ISBLANK(A21),0,SUMIFS(Registros!H:H,Registros!B:B,"<"&fecha_inicial,Registros!C:C,"="&A21)-IF(ISBLANK(A21),0,SUMIFS(Registros!G:G,Registros!B:B,"<"&fecha_inicial,Registros!C:C,"="&A21))) -> 0 | D21: =IF(ISBLANK(A21),0,SUMIFS(Registros!G:G,Registros!B:B,">="&fecha_inicial, Registros!B:B, "<="&fecha_final,Registros!C:C,"="&A21)) -> 0 | E21: =IF(ISBLANK(A21),0,SUMIFS(Registros!H:H,Registros!B:B,">="&fecha_inicial, Registros!B:B, "<="&fecha_final,Registros!C:C,"="&A21)) -> 0 | F21: 0
C22: =IF(ISBLANK(A22),0,SUMIFS(Registros!H:H,Registros!B:B,"<"&fecha_inicial,Registros!C:C,"="&A22)-IF(ISBLANK(A22),0,SUMIFS(Registros!G:G,Registros!B:B,"<"&fecha_inicial,Registros!C:C,"="&A22))) -> 0 | D22: =IF(ISBLANK(A22),0,SUMIFS(Registros!G:G,Registros!B:B,">="&fecha_inicial, Registros!B:B, "<="&fecha_final,Registros!C:C,"="&A22)) -> 0 | E22: =IF(ISBLANK(A22),0,SUMIFS(Registros!H:H,Registros!B:B,">="&fecha_inicial, Registros!B:B, "<="&fecha_final,Registros!C:C,"="&A22)) -> 0 | F22: 0
C23: =IF(ISBLANK(A23),0,SUMIFS(Registros!H:H,Registros!B:B,"<"&fecha_inicial,Registros!C:C,"="&A23)-IF(ISBLANK(A23),0,SUMIFS(Registros!G:G,Registros!B:B,"<"&fecha_inicial,Registros!C:C,"="&A23))) -> 0 | D23: =IF(ISBLANK(A23),0,SUMIFS(Registros!G:G,Registros!B:B,">="&fecha_inicial, Registros!B:B, "<="&fecha_final,Registros!C:C,"="&A23)) -> 0 | E23: =IF(ISBLANK(A23),0,SUMIFS(Registros!H:H,Registros!B:B,">="&fecha_inicial, Registros!B:B, "<="&fecha_final,Registros!C:C,"="&A23)) -> 0 | F23: 0
C24: =IF(ISBLANK(A24),0,SUMIFS(Registros!H:H,Registros!B:B,"<"&fecha_inicial,Registros!C:C,"="&A24)-IF(ISBLANK(A24),0,SUMIFS(Registros!G:G,Registros!B:B,"<"&fecha_inicial,Registros!C:C,"="&A24))) -> 0 | D24: =IF(ISBLANK(A24),0,SUMIFS(Registros!G:G,Registros!B:B,">="&fecha_inicial, Registros!B:B, "<="&fecha_final,Registros!C:C,"="&A24)) -> 0 | E24: =IF(ISBLANK(A24),0,SUMIFS(Registros!H:H,Registros!B:B,">="&fecha_inicial, Registros!B:B, "<="&fecha_final,Registros!C:C,"="&A24)) -> 0 | F24: 0
C25: =SUM(C26:C31) -> 0 | D25: =SUM(D26:D31) -> 0 | E25: =SUM(E26:E31) -> 0 | F25: 0
B26: =IF(A26<>"", IF(ISERROR(VLOOKUP(A26, plan_cuentas,2, FALSE)), "Código de Cuenta Incorrecto", UPPER(VLOOKUP(A26, plan_cuentas, 2, FALSE))), "") ->  | C26: =IF(ISBLANK(A26),0,SUMIFS(Registros!H:H,Registros!B:B,"<"&fecha_inicial,Registros!C:C,"="&A26)-IF(ISBLANK(A26),0,SUMIFS(Registros!G:G,Registros!B:B,"<"&fecha_inicial,Registros!C:C,"="&A26))) -> 0 | D26: =IF(ISBLANK(A26),0,SUMIFS(Registros!G:G,Registros!B:B,">="&fecha_inicial, Registros!B:B, "<="&fecha_final,Registros!C:C,"="&A26)) -> 0 | E26: =IF(ISBLANK(A26),0,SUMIFS(Registros!H:H,Registros!B:B,">="&fecha_inicial, Registros!B:B, "<="&fecha_final,Registros!C:C,"="&A26)) -> 0 | F26: 0
C27: =IF(ISBLANK(A27),0,SUMIFS(Registros!H:H,Registros!B:B,"<"&fecha_inicial,Registros!C:C,"="&A27)-IF(ISBLANK(A27),0,SUMIFS(Registros!G:G,Registros!B:B,"<"&fecha_inicial,Registros!C:C,"="&A27))) -> 0 | D27: =IF(ISBLANK(A27),0,SUMIFS(Registros!G:G,Registros!B:B,">="&fecha_inicial, Registros!B:B, "<="&fecha_final,Registros!C:C,"="&A27)) -> 0 | E27: =IF(ISBLANK(A27),0,SUMIFS(Registros!H:H,Registros!B:B,">="&fecha_inicial, Registros!B:B, "<="&fecha_final,Registros!C:C,"="&A27)) -> 0 | F27: 0
C28: =IF(ISBLANK(A28),0,SUMIFS(Registros!H:H,Registros!B:B,"<"&fecha_inicial,Registros!C:C,"="&A28)-IF(ISBLANK(A28),0,SUMIFS(Registros!G:G,Registros!B:B,"<"&fecha_inicial,Registros!C:C,"="&A28))) -> 0 | D28: =IF(ISBLANK(A28),0,SUMIFS(Registros!G:G,Registros!B:B,">="&fecha_inicial, Registros!B:B, "<="&fecha_final,Registros!C:C,"="&A28)) -> 0 | E28: =IF(ISBLANK(A28),0,SUMIFS(Registros!H:H,Registros!B:B,">="&fecha_inicial, Registros!B:B, "<="&fecha_final,Registros!C:C,"="&A28)) -> 0 | F28: 0
C29: =IF(ISBLANK(A29),0,SUMIFS(Registros!H:H,Registros!B:B,"<"&fecha_inicial,Registros!C:C,"="&A29)-IF(ISBLANK(A29),0,SUMIFS(Registros!G:G,Registros!B:B,"<"&fecha_inicial,Registros!C:C,"="&A29))) -> 0 | D29: =IF(ISBLANK(A29),0,SUMIFS(Registros!G:G,Registros!B:B,">="&fecha_inicial, Registros!B:B, "<="&fecha_final,Registros!C:C,"="&A29)) -> 0 | E29: =IF(ISBLANK(A29),0,SUMIFS(Registros!H:H,Registros!B:B,">="&fecha_inicial, Registros!B:B, "<="&fecha_final,Registros!C:C,"="&A29)) -> 0 | F29: 0
C30: =IF(ISBLANK(A30),0,SUMIFS(Registros!H:H,Registros!B:B,"<"&fecha_inicial,Registros!C:C,"="&A30)-IF(ISBLANK(A30),0,SUMIFS(Registros!G:G,Registros!B:B,"<"&fecha_inicial,Registros!C:C,"="&A30))) -> 0 | D30: =IF(ISBLANK(A30),0,SUMIFS(Registros!G:G,Registros!B:B,">="&fecha_inicial, Registros!B:B, "<="&fecha_final,Registros!C:C,"="&A30)) -> 0 | E30: =IF(ISBLANK(A30),0,SUMIFS(Registros!H:H,Registros!B:B,">="&fecha_inicial, Registros!B:B, "<="&fecha_final,Registros!C:C,"="&A30)) -> 0 | F30: 0
C31: =IF(ISBLANK(A31),0,SUMIFS(Registros!H:H,Registros!B:B,"<"&fecha_inicial,Registros!C:C,"="&A31)-IF(ISBLANK(A31),0,SUMIFS(Registros!G:G,Registros!B:B,"<"&fecha_inicial,Registros!C:C,"="&A31))) -> 0 | D31: =IF(ISBLANK(A31),0,SUMIFS(Registros!G:G,Registros!B:B,">="&fecha_inicial, Registros!B:B, "<="&fecha_final,Registros!C:C,"="&A31)) -> 0 | E31: =IF(ISBLANK(A31),0,SUMIFS(Registros!H:H,Registros!B:B,">="&fecha_inicial, Registros!B:B, "<="&fecha_final,Registros!C:C,"="&A31)) -> 0 | F31: 0
C32: =SUM(C33:C38) -> 0 | D32: =SUM(D33:D38) -> 0 | E32: =SUM(E33:E38) -> 0 | F32: 0
C33: =IF(ISBLANK(A33),0,SUMIFS(Registros!H:H,Registros!B:B,"<"&fecha_inicial,Registros!C:C,"="&A33)-IF(ISBLANK(A33),0,SUMIFS(Registros!G:G,Registros!B:B,"<"&fecha_inicial,Registros!C:C,"="&A33))) -> 0 | D33: =IF(ISBLANK(A33),0,SUMIFS(Registros!G:G,Registros!B:B,">="&fecha_inicial, Registros!B:B, "<="&fecha_final,Registros!C:C,"="&A33)) -> 0 | E33: =IF(ISBLANK(A33),0,SUMIFS(Registros!H:H,Registros!B:B,">="&fecha_inicial, Registros!B:B, "<="&fecha_final,Registros!C:C,"="&A33)) -> 0 | F33: 0
C34: =IF(ISBLANK(A34),0,SUMIFS(Registros!H:H,Registros!B:B,"<"&fecha_inicial,Registros!C:C,"="&A34)-IF(ISBLANK(A34),0,SUMIFS(Registros!G:G,Registros!B:B,"<"&fecha_inicial,Registros!C:C,"="&A34))) -> 0 | D34: =IF(ISBLANK(A34),0,SUMIFS(Registros!G:G,Registros!B:B,">="&fecha_inicial, Registros!B:B, "<="&fecha_final,Registros!C:C,"="&A34)) -> 0 | E34: =IF(ISBLANK(A34),0,SUMIFS(Registros!H:H,Registros!B:B,">="&fecha_inicial, Registros!B:B, "<="&fecha_final,Registros!C:C,"="&A34)) -> 0 | F34: 0
C35: =IF(ISBLANK(A35),0,SUMIFS(Registros!H:H,Registros!B:B,"<"&fecha_inicial,Registros!C:C,"="&A35)-IF(ISBLANK(A35),0,SUMIFS(Registros!G:G,Registros!B:B,"<"&fecha_inicial,Registros!C:C,"="&A35))) -> 0 | D35: =IF(ISBLANK(A35),0,SUMIFS(Registros!G:G,Registros!B:B,">="&fecha_inicial, Registros!B:B, "<="&fecha_final,Registros!C:C,"="&A35)) -> 0 | E35: =IF(ISBLANK(A35),0,SUMIFS(Registros!H:H,Registros!B:B,">="&fecha_inicial, Registros!B:B, "<="&fecha_final,Registros!C:C,"="&A35)) -> 0 | F35: 0
C36: =IF(ISBLANK(A36),0,SUMIFS(Registros!H:H,Registros!B:B,"<"&fecha_inicial,Registros!C:C,"="&A36)-IF(ISBLANK(A36),0,SUMIFS(Registros!G:G,Registros!B:B,"<"&fecha_inicial,Registros!C:C,"="&A36))) -> 0 | D36: =IF(ISBLANK(A36),0,SUMIFS(Registros!G:G,Registros!B:B,">="&fecha_inicial, Registros!B:B, "<="&fecha_final,Registros!C:C,"="&A36)) -> 0 | E36: =IF(ISBLANK(A36),0,SUMIFS(Registros!H:H,Registros!B:B,">="&fecha_inicial, Registros!B:B, "<="&fecha_final,Registros!C:C,"="&A36)) -> 0 | F36: 0
C37: =IF(ISBLANK(A37),0,SUMIFS(Registros!H:H,Registros!B:B,"<"&fecha_inicial,Registros!C:C,"="&A37)-IF(ISBLANK(A37),0,SUMIFS(Registros!G:G,Registros!B:B,"<"&fecha_inicial,Registros!C:C,"="&A37))) -> 0 | D37: =IF(ISBLANK(A37),0,SUMIFS(Registros!G:G,Registros!B:B,">="&fecha_inicial, Registros!B:B, "<="&fecha_final,Registros!C:C,"="&A37)) -> 0 | E37: =IF(ISBLANK(A37),0,SUMIFS(Registros!H:H,Registros!B:B,">="&fecha_inicial, Registros!B:B, "<="&fecha_final,Registros!C:C,"="&A37)) -> 0 | F37: 0
C38: =IF(ISBLANK(A38),0,SUMIFS(Registros!H:H,Registros!B:B,"<"&fecha_inicial,Registros!C:C,"="&A38)-IF(ISBLANK(A38),0,SUMIFS(Registros!G:G,Registros!B:B,"<"&fecha_inicial,Registros!C:C,"="&A38))) -> 0 | D38: =IF(ISBLANK(A38),0,SUMIFS(Registros!G:G,Registros!B:B,">="&fecha_inicial, Registros!B:B, "<="&fecha_final,Registros!C:C,"="&A38)) -> 0 | E38: =IF(ISBLANK(A38),0,SUMIFS(Registros!H:H,Registros!B:B,">="&fecha_inicial, Registros!B:B, "<="&fecha_final,Registros!C:C,"="&A38)) -> 0 | F38: 0
C39: =SUM(C40:C45) -> 0 | D39: =SUM(D40:D45) -> 0 | E39: =SUM(E40:E45) -> 0 | F39: 0
C40: =IF(ISBLANK(A40),0,SUMIFS(Registros!H:H,Registros!B:B,"<"&fecha_inicial,Registros!C:C,"="&A40)-IF(ISBLANK(A40),0,SUMIFS(Registros!G:G,Registros!B:B,"<"&fecha_inicial,Registros!C:C,"="&A40))) -> 0 | D40: =IF(ISBLANK(A40),0,SUMIFS(Registros!G:G,Registros!B:B,">="&fecha_inicial, Registros!B:B, "<="&fecha_final,Registros!C:C,"="&A40)) -> 0 | E40: =IF(ISBLANK(A40),0,SUMIFS(Registros!H:H,Registros!B:B,">="&fecha_inicial, Registros!B:B, "<="&fecha_final,Registros!C:C,"="&A40)) -> 0 | F40: 0
C41: =IF(ISBLANK(A41),0,SUMIFS(Registros!H:H,Registros!B:B,"<"&fecha_inicial,Registros!C:C,"="&A41)-IF(ISBLANK(A41),0,SUMIFS(Registros!G:G,Registros!B:B,"<"&fecha_inicial,Registros!C:C,"="&A41))) -> 0 | D41: =IF(ISBLANK(A41),0,SUMIFS(Registros!G:G,Registros!B:B,">="&fecha_inicial, Registros!B:B, "<="&fecha_final,Registros!C:C,"="&A41)) -> 0 | E41: =IF(ISBLANK(A41),0,SUMIFS(Registros!H:H,Registros!B:B,">="&fecha_inicial, Registros!B:B, "<="&fecha_final,Registros!C:C,"="&A41)) -> 0 | F41: 0
C42: =IF(ISBLANK(A42),0,SUMIFS(Registros!H:H,Registros!B:B,"<"&fecha_inicial,Registros!C:C,"="&A42)-IF(ISBLANK(A42),0,SUMIFS(Registros!G:G,Registros!B:B,"<"&fecha_inicial,Registros!C:C,"="&A42))) -> 0 | D42: =IF(ISBLANK(A42),0,SUMIFS(Registros!G:G,Registros!B:B,">="&fecha_inicial, Registros!B:B, "<="&fecha_final,Registros!C:C,"="&A42)) -> 0 | E42: =IF(ISBLANK(A42),0,SUMIFS(Registros!H:H,Registros!B:B,">="&fecha_inicial, Registros!B:B, "<="&fecha_final,Registros!C:C,"="&A42)) -> 0 | F42: 0
C43: =IF(ISBLANK(A43),0,SUMIFS(Registros!H:H,Registros!B:B,"<"&fecha_inicial,Registros!C:C,"="&A43)-IF(ISBLANK(A43),0,SUMIFS(Registros!G:G,Registros!B:B,"<"&fecha_inicial,Registros!C:C,"="&A43))) -> 0 | D43: =IF(ISBLANK(A43),0,SUMIFS(Registros!G:G,Registros!B:B,">="&fecha_inicial, Registros!B:B, "<="&fecha_final,Registros!C:C,"="&A43)) -> 0 | E43: =IF(ISBLANK(A43),0,SUMIFS(Registros!H:H,Registros!B:B,">="&fecha_inicial, Registros!B:B, "<="&fecha_final,Registros!C:C,"="&A43)) -> 0 | F43: 0
C44: =IF(ISBLANK(A44),0,SUMIFS(Registros!H:H,Registros!B:B,"<"&fecha_inicial,Registros!C:C,"="&A44)-IF(ISBLANK(A44),0,SUMIFS(Registros!G:G,Registros!B:B,"<"&fecha_inicial,Registros!C:C,"="&A44))) -> 0 | D44: =IF(ISBLANK(A44),0,SUMIFS(Registros!G:G,Registros!B:B,">="&fecha_inicial, Registros!B:B, "<="&fecha_final,Registros!C:C,"="&A44)) -> 0 | E44: =IF(ISBLANK(A44),0,SUMIFS(Registros!H:H,Registros!B:B,">="&fecha_inicial, Registros!B:B, "<="&fecha_final,Registros!C:C,"="&A44)) -> 0 | F44: 0
C45: =IF(ISBLANK(A45),0,SUMIFS(Registros!H:H,Registros!B:B,"<"&fecha_inicial,Registros!C:C,"="&A45)-IF(ISBLANK(A45),0,SUMIFS(Registros!G:G,Registros!B:B,"<"&fecha_inicial,Registros!C:C,"="&A45))) -> 0 | D45: =IF(ISBLANK(A45),0,SUMIFS(Registros!G:G,Registros!B:B,">="&fecha_inicial, Registros!B:B, "<="&fecha_final,Registros!C:C,"="&A45)) -> 0 | E45: =IF(ISBLANK(A45),0,SUMIFS(Registros!H:H,Registros!B:B,">="&fecha_inicial, Registros!B:B, "<="&fecha_final,Registros!C:C,"="&A45)) -> 0 | F45: 0
C46: =SUM(C47:C52) -> 0 | D46: =SUM(D47:D52) -> 0 | E46: =SUM(E47:E52) -> 0 | F46: 0
B47: =IF(A47<>"", IF(ISERROR(VLOOKUP(A47, plan_cuentas,2, FALSE)), "Código de Cuenta Incorrecto", UPPER(VLOOKUP(A47, plan_cuentas, 2, FALSE))), "") ->  | C47: =IF(ISBLANK(A47),0,SUMIFS(Registros!H:H,Registros!B:B,"<"&fecha_inicial,Registros!C:C,"="&A47)-IF(ISBLANK(A47),0,SUMIFS(Registros!G:G,Registros!B:B,"<"&fecha_inicial,Registros!C:C,"="&A47))) -> 0 | D47: =IF(ISBLANK(A47),0,SUMIFS(Registros!G:G,Registros!B:B,">="&fecha_inicial, Registros!B:B, "<="&fecha_final,Registros!C:C,"="&A47)) -> 0 | E47: =IF(ISBLANK(A47),0,SUMIFS(Registros!H:H,Registros!B:B,">="&fecha_inicial, Registros!B:B, "<="&fecha_final,Registros!C:C,"="&A47)) -> 0 | F47: 0
B48: =IF(A48<>0, IF(ISERROR(VLOOKUP(A48, plan_cuentas,2, FALSE)), "Código de Cuenta Incorrecto", UPPER(VLOOKUP(A48, plan_cuentas, 2, FALSE))), "") ->  | C48: =IF(ISBLANK(A48),0,SUMIFS(Registros!H:H,Registros!B:B,"<"&fecha_inicial,Registros!C:C,"="&A48)-IF(ISBLANK(A48),0,SUMIFS(Registros!G:G,Registros!B:B,"<"&fecha_inicial,Registros!C:C,"="&A48))) -> 0 | D48: =IF(ISBLANK(A48),0,SUMIFS(Registros!G:G,Registros!B:B,">="&fecha_inicial, Registros!B:B, "<="&fecha_final,Registros!C:C,"="&A48)) -> 0 | E48: =IF(ISBLANK(A48),0,SUMIFS(Registros!H:H,Registros!B:B,">="&fecha_inicial, Registros!B:B, "<="&fecha_final,Registros!C:C,"="&A48)) -> 0 | F48: 0
B49: =IF(A49<>0, IF(ISERROR(VLOOKUP(A49, plan_cuentas,2, FALSE)), "Código de Cuenta Incorrecto", UPPER(VLOOKUP(A49, plan_cuentas, 2, FALSE))), "") ->  | C49: =IF(ISBLANK(A49),0,SUMIFS(Registros!H:H,Registros!B:B,"<"&fecha_inicial,Registros!C:C,"="&A49)-IF(ISBLANK(A49),0,SUMIFS(Registros!G:G,Registros!B:B,"<"&fecha_inicial,Registros!C:C,"="&A49))) -> 0 | D49: =IF(ISBLANK(A49),0,SUMIFS(Registros!G:G,Registros!B:B,">="&fecha_inicial, Registros!B:B, "<="&fecha_final,Registros!C:C,"="&A49)) -> 0 | E49: =IF(ISBLANK(A49),0,SUMIFS(Registros!H:H,Registros!B:B,">="&fecha_inicial, Registros!B:B, "<="&fecha_final,Registros!C:C,"="&A49)) -> 0 | F49: 0
B50: =IF(A50<>0, IF(ISERROR(VLOOKUP(A50, plan_cuentas,2, FALSE)), "Código de Cuenta Incorrecto", UPPER(VLOOKUP(A50, plan_cuentas, 2, FALSE))), "") ->  | C50: =IF(ISBLANK(A50),0,SUMIFS(Registros!H:H,Registros!B:B,"<"&fecha_inicial,Registros!C:C,"="&A50)-IF(ISBLANK(A50),0,SUMIFS(Registros!G:G,Registros!B:B,"<"&fecha_inicial,Registros!C:C,"="&A50))) -> 0 | D50: =IF(ISBLANK(A50),0,SUMIFS(Registros!G:G,Registros!B:B,">="&fecha_inicial, Registros!B:B, "<="&fecha_final,Registros!C:C,"="&A50)) -> 0 | E50: =IF(ISBLANK(A50),0,SUMIFS(Registros!H:H,Registros!B:B,">="&fecha_inicial, Registros!B:B, "<="&fecha_final,Registros!C:C,"="&A50)) -> 0 | F50: 0
B51: =IF(A51<>0, IF(ISERROR(VLOOKUP(A51, plan_cuentas,2, FALSE)), "Código de Cuenta Incorrecto", UPPER(VLOOKUP(A51, plan_cuentas, 2, FALSE))), "") ->  | C51: =IF(ISBLANK(A51),0,SUMIFS(Registros!H:H,Registros!B:B,"<"&fecha_inicial,Registros!C:C,"="&A51)-IF(ISBLANK(A51),0,SUMIFS(Registros!G:G,Registros!B:B,"<"&fecha_inicial,Registros!C:C,"="&A51))) -> 0 | D51: =IF(ISBLANK(A51),0,SUMIFS(Registros!G:G,Registros!B:B,">="&fecha_inicial, Registros!B:B, "<="&fecha_final,Registros!C:C,"="&A51)) -> 0 | E51: =IF(ISBLANK(A51),0,SUMIFS(Registros!H:H,Registros!B:B,">="&fecha_inicial, Registros!B:B, "<="&fecha_final,Registros!C:C,"="&A51)) -> 0 | F51: 0
B52: =IF(A52<>0, IF(ISERROR(VLOOKUP(A52, plan_cuentas,2, FALSE)), "Código de Cuenta Incorrecto", UPPER(VLOOKUP(A52, plan_cuentas, 2, FALSE))), "") ->  | C52: =IF(ISBLANK(A52),0,SUMIFS(Registros!H:H,Registros!B:B,"<"&fecha_inicial,Registros!C:C,"="&A52)-IF(ISBLANK(A52),0,SUMIFS(Registros!G:G,Registros!B:B,"<"&fecha_inicial,Registros!C:C,"="&A52))) -> 0 | D52: =IF(ISBLANK(A52),0,SUMIFS(Registros!G:G,Registros!B:B,">="&fecha_inicial, Registros!B:B, "<="&fecha_final,Registros!C:C,"="&A52)) -> 0 | E52: =IF(ISBLANK(A52),0,SUMIFS(Registros!H:H,Registros!B:B,">="&fecha_inicial, Registros!B:B, "<="&fecha_final,Registros!C:C,"="&A52)) -> 0 | F52: 0
C53: =SUM(C54:C59) -> 0 | D53: =SUM(D54:D59) -> 0 | E53: =SUM(E54:E59) -> 0 | F53: 0
C54: =IF(ISBLANK(A54),0,SUMIFS(Registros!H:H,Registros!B:B,"<"&fecha_inicial,Registros!C:C,"="&A54)-IF(ISBLANK(A54),0,SUMIFS(Registros!G:G,Registros!B:B,"<"&fecha_inicial,Registros!C:C,"="&A54))) -> 0 | D54: =IF(ISBLANK(A54),0,SUMIFS(Registros!G:G,Registros!B:B,">="&fecha_inicial, Registros!B:B, "<="&fecha_final,Registros!C:C,"="&A54)) -> 0 | E54: =IF(ISBLANK(A54),0,SUMIFS(Registros!H:H,Registros!B:B,">="&fecha_inicial, Registros!B:B, "<="&fecha_final,Registros!C:C,"="&A54)) -> 0 | F54: 0
C55: =IF(ISBLANK(A55),0,SUMIFS(Registros!H:H,Registros!B:B,"<"&fecha_inicial,Registros!C:C,"="&A55)-IF(ISBLANK(A55),0,SUMIFS(Registros!G:G,Registros!B:B,"<"&fecha_inicial,Registros!C:C,"="&A55))) -> 0 | D55: =IF(ISBLANK(A55),0,SUMIFS(Registros!G:G,Registros!B:B,">="&fecha_inicial, Registros!B:B, "<="&fecha_final,Registros!C:C,"="&A55)) -> 0 | E55: =IF(ISBLANK(A55),0,SUMIFS(Registros!H:H,Registros!B:B,">="&fecha_inicial, Registros!B:B, "<="&fecha_final,Registros!C:C,"="&A55)) -> 0 | F55: 0
C56: =IF(ISBLANK(A56),0,SUMIFS(Registros!H:H,Registros!B:B,"<"&fecha_inicial,Registros!C:C,"="&A56)-IF(ISBLANK(A56),0,SUMIFS(Registros!G:G,Registros!B:B,"<"&fecha_inicial,Registros!C:C,"="&A56))) -> 0 | D56: =IF(ISBLANK(A56),0,SUMIFS(Registros!G:G,Registros!B:B,">="&fecha_inicial, Registros!B:B, "<="&fecha_final,Registros!C:C,"="&A56)) -> 0 | E56: =IF(ISBLANK(A56),0,SUMIFS(Registros!H:H,Registros!B:B,">="&fecha_inicial, Registros!B:B, "<="&fecha_final,Registros!C:C,"="&A56)) -> 0 | F56: 0
C57: =IF(ISBLANK(A57),0,SUMIFS(Registros!H:H,Registros!B:B,"<"&fecha_inicial,Registros!C:C,"="&A57)-IF(ISBLANK(A57),0,SUMIFS(Registros!G:G,Registros!B:B,"<"&fecha_inicial,Registros!C:C,"="&A57))) -> 0 | D57: =IF(ISBLANK(A57),0,SUMIFS(Registros!G:G,Registros!B:B,">="&fecha_inicial, Registros!B:B, "<="&fecha_final,Registros!C:C,"="&A57)) -> 0 | E57: =IF(ISBLANK(A57),0,SUMIFS(Registros!H:H,Registros!B:B,">="&fecha_inicial, Registros!B:B, "<="&fecha_final,Registros!C:C,"="&A57)) -> 0 | F57: 0
B58: =IF(A58<>0, IF(ISERROR(VLOOKUP(A58, plan_cuentas,2, FALSE)), "Código de Cuenta Incorrecto", UPPER(VLOOKUP(A58, plan_cuentas, 2, FALSE))), "") ->  | C58: =IF(ISBLANK(A58),0,SUMIFS(Registros!H:H,Registros!B:B,"<"&fecha_inicial,Registros!C:C,"="&A58)-IF(ISBLANK(A58),0,SUMIFS(Registros!G:G,Registros!B:B,"<"&fecha_inicial,Registros!C:C,"="&A58))) -> 0 | D58: =IF(ISBLANK(A58),0,SUMIFS(Registros!G:G,Registros!B:B,">="&fecha_inicial, Registros!B:B, "<="&fecha_final,Registros!C:C,"="&A58)) -> 0 | E58: =IF(ISBLANK(A58),0,SUMIFS(Registros!H:H,Registros!B:B,">="&fecha_inicial, Registros!B:B, "<="&fecha_final,Registros!C:C,"="&A58)) -> 0 | F58: 0
C59: =IF(ISBLANK(A59),0,SUMIFS(Registros!H:H,Registros!B:B,"<"&fecha_inicial,Registros!C:C,"="&A59)-IF(ISBLANK(A59),0,SUMIFS(Registros!G:G,Registros!B:B,"<"&fecha_inicial,Registros!C:C,"="&A59))) -> 0 | D59: =IF(ISBLANK(A59),0,SUMIFS(Registros!G:G,Registros!B:B,">="&fecha_inicial, Registros!B:B, "<="&fecha_final,Registros!C:C,"="&A59)) -> 0 | E59: =IF(ISBLANK(A59),0,SUMIFS(Registros!H:H,Registros!B:B,">="&fecha_inicial, Registros!B:B, "<="&fecha_final,Registros!C:C,"="&A59)) -> 0 | F59: 0
A60: ="SALDO FINAL DE LA CUENTA AL " &TEXT(fecha_final, "dd")&" DE "&UPPER(TEXT(fecha_final, "MMMM"))&" DEL "& TEXT(fecha_final, "YYYY") -> SALDO FINAL DE LA CUENTA AL 31 DE JULIO DEL 2014 | C60: =C11+C18+C25+C46+C32+C39+C53 -> 0 | D60: =D11+D18+D25+D46+D32+D39+D53 -> 0 | E60: =E11+E18+E25+E46+E32+E39+E53 -> 0 | F60: 0
A65: AUTORIZADO POR: | E65: REVISADO POR:
A66: =VLOOKUP(A65, Usuarios!B7:E9, 3, FALSE) -> Rodrigo Castro Potoy | E66: =VLOOKUP(E65, Usuarios!B7:E9, 3, FALSE) -> 0

Sheet 01
E1: Proteger
A2: =bussiness_name -> SOCIEDAD CIVIL COMUNIDAD CONNECT
A3: BALANZA CONSOLIDADA DE SALDOS
A4: ="DEL "&TEXT(fecha_inicial, "DD")&" DE "&UPPER(TEXT(fecha_inicial, "MMMM"))&" DEL " & TEXT(fecha_inicial, "YYYY") & " AL "&TEXT(fecha_final, "DD")&" DE "&UPPER(TEXT(fecha_final, "MMMM"))&" DEL "&TEXT(fecha_final, "YYYY") -> DEL 01 DE JULIO DEL 2014 AL 31 DE JULIO DEL 2014
A5: =address & " *** Tel/Fax: " & tel & " *** " & email -> Esquina sureste del Parque Central, San Juan del sur, Nicaragua. *** Tel/Fax: 25682731 *** info@comunidadconnect.org
A6: CÓDIGO CUENTA | B6: DESCRIPCIÓN DE LA CUENTA | C6: SALDO INICIAL | E6: MOVIMIENTOS DEL PERIÓDO | G6: SALDO FINAL
C7: DEUDOR | D7: ACREEDOR | E7: DEUDOR | F7: ACREEDOR | G7: DEUDOR | H7: ACREEDOR
A8: 100000 | B8: =IFERROR(IF(A8<>"", VLOOKUP(A8, plan_cuentas,2, FALSE), ""), "CÓDIGO INCORRECTO") -> ACTIVOS | C8: =C9+C33+C45 -> 636437.15 | D8: 0 | E8: 3009112.42 | F8: 1669777.22 | G8: 1975772.35 | H8: 0
A9: 110000 | B9: ACTIVOS CORRIENTES | C9: =C10+C12+C19+C21+C24+C26 -> 590416.76 | D9: 0 | E9: 3009112.42 | F9: 1669777.22 | G9: 1929751.96 | H9: 0
A10: 110100 | B10: CAJA | C10: =SUM(C11) -> 18375.8 | D10: 0 | E10: 300 | F10: 0 | G10: 18675.8 | H10: 0
A11: 110101 | B11: CAJA CHICA | C11: =IF(A11<>"",IF(VLOOKUP(A11,plan_cuentas,4,FALSE)="D",SUMIFS(Registros!G:G,Registros!B:B,"<"&fecha_inicial,Registros!C:C,"="&'01'!A11)-SUMIFS(Registros!H:H,Registros!B:B,"<"&fecha_inicial,Registros!C:C,"="&'01'!A11), 0), "") -> 18375.8 | D11: =IF(A11<>"",IF(VLOOKUP(A11,plan_cuentas,4,FALSE)="H",SUMIFS(Registros!H:H,Registros!B:B,"<"&fecha_inicial,Registros!C:C,"="&'01'!A11)-SUMIFS(Registros!G:G,Registros!B:B,"<"&fecha_inicial,Registros!C:C,"="&'01'!A11), 0), "") -> 0 | E11: =IF(A11<>"", SUMIFS(Registros!G:G, Registros!B:B, ">=" & fecha_inicial, Registros!B:B, "<=" & fecha_final, Registros!C:C, "=" &'01'!A11), 0) -> 300 | F11: =IF(A11<>"", SUMIFS(Registros!H:H, Registros!B:B, ">=" & fecha_inicial, Registros!B:B, "<=" & fecha_final, Registros!C:C, "=" &'01'!A11), 0) -> 0 | G11: =IF(A11<>"", IF(VLOOKUP(A11, plan_cuentas, 4, FALSE) = "D", C11+E11-F11, 0), 0) -> 18675.8 | H11: =IF(A11<>"", IF(VLOOKUP(A11, plan_cuentas, 4, FALSE) = "H", D11-E11+F11, 0), 0) -> 0
A12: 110200 | B12: BANCOS | C12: =SUM(C13:C18) -> 463515.62 | D12: 0 | E12: 3007890.64 | F12: 1669777.22 | G12: 1801629.04 | H12: 0
A13: 110201 | B13: CTA. CTE. 356894501 C$ | C13: =IF(A13<>"",IF(VLOOKUP(A13,plan_cuentas,4,FALSE)="D",SUMIFS(Registros!G:G,Registros!B:B,"<"&fecha_inicial,Registros!C:C,"="&'01'!A13)-SUMIFS(Registros!H:H,Registros!B:B,"<"&fecha_inicial,Registros!C:C,"="&'01'!A13), 0), "") -> 29278.91 | D13: =IF(A13<>"",IF(VLOOKUP(A13,plan_cuentas,4,FALSE)="H",SUMIFS(Registros!H:H,Registros!B:B,"<"&fecha_inicial,Registros!C:C,"="&'01'!A13)-SUMIFS(Registros!G:G,Registros!B:B,"<"&fecha_inicial,Registros!C:C,"="&'01'!A13), 0), "") -> 0 | E13: =IF(A13<>"", SUMIFS(Registros!G:G, Registros!B:B, ">=" & fecha_inicial, Registros!B:B, "<=" & fecha_final, Registros!C:C, "=" &'01'!A13), 0) -> 1031446.51 | F13: =IF(A13<>"", SUMIFS(Registros!H:H, Registros!B:B, ">=" & fecha_inicial, Registros!B:B, "<=" & fecha_final, Registros!C:C, "=" &'01'!A13), 0) -> 385317.49 | G13: =IF(A13<>"", IF(VLOOKUP(A13, plan_cuentas, 4, FALSE) = "D", C13+E13-F13, 0), 0) -> 675407.93 | H13: =IF(A13<>"", IF(VLOOKUP(A13, plan_cuentas, 4, FALSE) = "H", D13-E13+F13, 0), 0) -> 0
A14: 110202 | B14: =IFERROR(IF(A14<>"", VLOOKUP(A14, plan_cuentas,2, FALSE), ""), "CÓDIGO INCORRECTO") -> CTA. CTE. 357144914 U$ | C14: =IF(A14<>"",IF(VLOOKUP(A14,plan_cuentas,4,FALSE)="D",SUMIFS(Registros!G:G,Registros!B:B,"<"&fecha_inicial,Registros!C:C,"="&'01'!A14)-SUMIFS(Registros!H:H,Registros!B:B,"<"&fecha_inicial,Registros!C:C,"="&'01'!A14), 0), "") -> 60747.91 | D14: =IF(A14<>"",IF(VLOOKUP(A14,plan_cuentas,4,FALSE)="H",SUMIFS(Registros!H:H,Registros!B:B,"<"&fecha_inicial,Registros!C:C,"="&'01'!A14)-SUMIFS(Registros!G:G,Registros!B:B,"<"&fecha_inicial,Registros!C:C,"="&'01'!A14), 0), "") -> 0 | E14: =IF(A14<>"", SUMIFS(Registros!G:G, Registros!B:B, ">=" & fecha_inicial, Registros!B:B, "<=" & fecha_final, Registros!C:C, "=" &'01'!A14), 0) -> 385595.65 | F14: =IF(A14<>"", SUMIFS(Registros!H:H, Registros!B:B, ">=" & fecha_inicial, Registros!B:B, "<=" & fecha_final, Registros!C:C, "=" &'01'!A14), 0) -> 23808.32 | G14: =IF(A14<>"", IF(VLOOKUP(A14, plan_cuentas, 4, FALSE) = "D", C14+E14-F14, 0), 0) -> 422535.24 | H14: =IF(A14<>"", IF(VLOOKUP(A14, plan_cuentas, 4, FALSE) = "H", D14-E14+F14, 0), 0) -> 0
A15: 110203 | B15: =IFERROR(IF(A15<>"", VLOOKUP(A15, plan_cuentas,2, FALSE), ""), "CÓDIGO INCORRECTO") -> CTA. CTE. 356894576 U$ | C15: =IF(A15<>"",IF(VLOOKUP(A15,plan_cuentas,4,FALSE)="D",SUMIFS(Registros!G:G,Registros!B:B,"<"&fecha_inicial,Registros!C:C,"="&'01'!A15)-SUMIFS(Registros!H:H,Registros!B:B,"<"&fecha_inicial,Registros!C:C,"="&'01'!A15), 0), "") -> 310355 | D15: =IF(A15<>"",IF(VLOOKUP(A15,plan_cuentas,4,FALSE)="H",SUMIFS(Registros!H:H,Registros!B:B,"<"&fecha_inicial,Registros!C:C,"="&'01'!A15)-SUMIFS(Registros!G:G,Registros!B:B,"<"&fecha_inicial,Registros!C:C,"="&'01'!A15), 0), "") -> 0 | E15: =IF(A15<>"", SUMIFS(Registros!G:G, Registros!B:B, ">=" & fecha_inicial, Registros!B:B, "<=" & fecha_final, Registros!C:C, "=" &'01'!A15), 0) -> 0 | F15: =IF(A15<>"", SUMIFS(Registros!H:H, Registros!B:B, ">=" & fecha_inicial, Registros!B:B, "<=" & fecha_final, Registros!C:C, "=" &'01'!A15), 0) -> 218995.76 | G15: =IF(A15<>"", IF(VLOOKUP(A15, plan_cuentas, 4, FALSE) = "D", C15+E15-F15, 0), 0) -> 91359.24 | H15: =IF(A15<>"", IF(VLOOKUP(A15, plan_cuentas, 4, FALSE) = "H", D15-E15+F15, 0), 0) -> 0
A16: 110204 | B16: =IFERROR(IF(A16<>"", VLOOKUP(A16, plan_cuentas,2, FALSE), ""), "CÓDIGO INCORRECTO") -> CTA.CTE. 357605203 EEUU US | C16: =IF(A16<>"",IF(VLOOKUP(A16,plan_cuentas,4,FALSE)="D",SUMIFS(Registros!G:G,Registros!B:B,"<"&fecha_inicial,Registros!C:C,"="&'01'!A16)-SUMIFS(Registros!H:H,Registros!B:B,"<"&fecha_inicial,Registros!C:C,"="&'01'!A16), 0), "") -> 63133.8 | D16: =IF(A16<>"",IF(VLOOKUP(A16,plan_cuentas,4,FALSE)="H",SUMIFS(Registros!H:H,Registros!B:B,"<"&fecha_inicial,Registros!C:C,"="&'01'!A16)-SUMIFS(Registros!G:G,Registros!B:B,"<"&fecha_inicial,Registros!C:C,"="&'01'!A16), 0), "") -> 0 | E16: =IF(A16<>"", SUMIFS(Registros!G:G, Registros!B:B, ">=" & fecha_inicial, Registros!B:B, "<=" & fecha_final, Registros!C:C, "=" &'01'!A16), 0) -> 1590848.48 | F16: =IF(A16<>"", SUMIFS(Registros!H:H, Registros!B:B, ">=" & fecha_inicial, Registros!B:B, "<=" & fecha_final, Registros!C:C, "=" &'01'!A16), 0) -> 1041655.65 | G16: =IF(A16<>"", IF(VLOOKUP(A16, plan_cuentas, 4, FALSE) = "D", C16+E16-F16, 0), 0) -> 612326.63 | H16: =IF(A16<>"", IF(VLOOKUP(A16, plan_cuentas, 4, FALSE) = "H", D16-E16+F16, 0), 0) -> 0
A17: 110205 | B17: =IFERROR(IF(A17<>"", VLOOKUP(A17, plan_cuentas,2, FALSE), ""), "CÓDIGO INCORRECTO") -> DEPOSITO DE FONDOS NO EJECUTADOS
A18: 110206 | B18: =IFERROR(IF(A18<>"", VLOOKUP(A18, plan_cuentas,2, FALSE), ""), "CÓDIGO INCORRECTO") -> DEPOSITO DE RETENCIONES EFECTUADAS
A19: 110300 | B19: INVERSIONES EN VALORES | C19: =SUM(C20) -> 0 | D19: 0 | E19: 0 | F19: 0 | G19: 0 | H19: 0
A20: 110301 | B20: PAPEL COMERCIAL | C20: =IF(A20<>"",IF(VLOOKUP(A20,plan_cuentas,4,FALSE)="D",SUMIFS(Registros!G:G,Registros!B:B,"<"&fecha_inicial,Registros!C:C,"="&'01'!A20)-SUMIFS(Registros!H:H,Registros!B:B,"<"&fecha_inicial,Registros!C:C,"="&'01'!A20), 0), "") -> 0 | D20: =IF(A20<>"",IF(VLOOKUP(A20,plan_cuentas,4,FALSE)="H",SUMIFS(Registros!H:H,Registros!B:B,"<"&fecha_inicial,Registros!C:C,"="&'01'!A20)-SUMIFS(Registros!G:G,Registros!B:B,"<"&fecha_inicial,Registros!C:C,"="&'01'!A20), 0), "") -> 0 | E20: =IF(A20<>"", SUMIFS(Registros!G:G, Registros!B:B, ">=" & fecha_inicial, Registros!B:B, "<=" & fecha_final, Registros!C:C, "=" &'01'!A20), 0) -> 0 | F20: =IF(A20<>"", SUMIFS(Registros!H:H, Registros!B:B, ">=" & fecha_inicial, Registros!B:B, "<=" & fecha_final, Registros!C:C, "=" &'01'!A20), 0) -> 0 | G20: =IF(A20<>"", IF(VLOOKUP(A20, plan_cuentas, 4, FALSE) = "D", C20+E20-F20, 0), 0) -> 0 | H20: =IF(A20<>"", IF(VLOOKUP(A20, plan_cuentas, 4, FALSE) = "H", D20-E20+F20, 0), 0) -> 0
A21: 110400 | B21: CUENTAS Y DOCUMENTOS POR COBRAR | C21: =SUM(C22:C23) -> 1000 | D21: 0 | E21: 771.78 | F21: 0 | G21: 1771.78 | H21: 0
A22: 110401 | B22: CUENTAS POR COBRAR A CLIENTES | C22: =IF(A22<>"",IF(VLOOKUP(A22,plan_cuentas,4,FALSE)="D",SUMIFS(Registros!G:G,Registros!B:B,"<"&fecha_inicial,Registros!C:C,"="&'01'!A22)-SUMIFS(Registros!H:H,Registros!B:B,"<"&fecha_inicial,Registros!C:C,"="&'01'!A22), 0), "") -> 0 | D22: =IF(A22<>"",IF(VLOOKUP(A22,plan_cuentas,4,FALSE)="H",SUMIFS(Registros!H:H,Registros!B:B,"<"&fecha_inicial,Registros!C:C,"="&'01'!A22)-SUMIFS(Registros!G:G,Registros!B:B,"<"&fecha_inicial,Registros!C:C,"="&'01'!A22), 0), "") -> 0 | E22: =IF(A22<>"", SUMIFS(Registros!G:G, Registros!B:B, ">=" & fecha_inicial, Registros!B:B, "<=" & fecha_final, Registros!C:C, "=" &'01'!A22), 0) -> 0 | F22: =IF(A22<>"", SUMIFS(Registros!H:H, Registros!B:B, ">=" & fecha_inicial, Registros!B:B, "<=" & fecha_final, Registros!C:C, "=" &'01'!A22), 0) -> 0 | G22: =IF(A22<>"", IF(VLOOKUP(A22, plan_cuentas, 4, FALSE) = "D", C22+E22-F22, 0), 0) -> 0 | H22: =IF(A22<>"", IF(VLOOKUP(A22, plan_cuentas, 4, FALSE) = "H", D22-E22+F22, 0), 0) -> 0
A23: 110402 | B23: CUENTAS POR COBRAR A EMPLEADOS | C23: =IF(A23<>"",IF(VLOOKUP(A23,plan_cuentas,4,FALSE)="D",SUMIFS(Registros!G:G,Registros!B:B,"<"&fecha_inicial,Registros!C:C,"="&'01'!A23)-SUMIFS(Registros!H:H,Registros!B:B,"<"&fecha_inicial,Registros!C:C,"="&'01'!A23), 0), "") -> 1000 | D23: =IF(A23<>"",IF(VLOOKUP(A23,plan_cuentas,4,FALSE)="H",SUMIFS(Registros!H:H,Registros!B:B,"<"&fecha_inicial,Registros!C:C,"="&'01'!A23)-SUMIFS(Registros!G:G,Registros!B:B,"<"&fecha_inicial,Registros!C:C,"="&'01'!A23), 0), "") -> 0 | E23: =IF(A23<>"", SUMIFS(Registros!G:G, Registros!B:B, ">=" & fecha_inicial, Registros!B:B, "<=" & fecha_final, Registros!C:C, "=" &'01'!A23), 0) -> 771.78 | F23: =IF(A23<>"", SUMIFS(Registros!H:H, Registros!B:B, ">=" & fecha_inicial, Registros!B:B, "<=" & fecha_final, Registros!C:C, "=" &'01'!A23), 0) -> 0 | G23: =IF(A23<>"", IF(VLOOKUP(A23, plan_cuentas, 4, FALSE) = "D", C23+E23-F23, 0), 0) -> 1771.78 | H23: =IF(A23<>"", IF(VLOOKUP(A23, plan_cuentas, 4, FALSE) = "H", D23-E23+F23, 0), 0) -> 0
A24: 110500 | B24: DEUDORES DIVERSOS | C24: =SUM(C25) -> 0 | D24: 0 | E24: 0 | F24: 0 | G24: 0 | H24: 0
A25: 110501 | B25: FONDOS POR JUSTIFICAR | C25: =IF(A25<>"",IF(VLOOKUP(A25,plan_cuentas,4,FALSE)="D",SUMIFS(Registros!G:G,Registros!B:B,"<"&fecha_inicial,Registros!C:C,"="&'01'!A25)-SUMIFS(Registros!H:H,Registros!B:B,"<"&fecha_inicial,Registros!C:C,"="&'01'!A25), 0), "") -> 0 | D25: =IF(A25<>"",IF(VLOOKUP(A25,plan_cuentas,4,FALSE)="H",SUMIFS(Registros!H:H,Registros!B:B,"<"&fecha_inicial,Registros!C:C,"="&'01'!A25)-SUMIFS(Registros!G:G,Registros!B:B,"<"&fecha_inicial,Registros!C:C,"="&'01'!A25), 0), "") -> 0 | E25: =IF(A25<>"", SUMIFS(Registros!G:G, Registros!B:B, ">=" & fecha_inicial, Registros!B:B, "<=" & fecha_final, Registros!C:C, "=" &'01'!A25), 0) -> 0 | F25: =IF(A25<>"", SUMIFS(Registros!H:H, Registros!B:B, ">=" & fecha_inicial, Registros!B:B, "<=" & fecha_final, Registros!C:C, "=" &'01'!A25), 0) -> 0 | G25: =IF(A25<>"", IF(VLOOKUP(A25, plan_cuentas, 4, FALSE) = "D", C25+E25-F25, 0), 0) -> 0 | H25: =IF(A25<>"", IF(VLOOKUP(A25, plan_cuentas, 4, FALSE) = "H", D25-E25+F25, 0), 0) -> 0
A26: 110600 | B26: INVENTARIOS | C26: =SUM(C27:C32) -> 107525.34 | D26: 0 | E26: 150 | F26: 0 | G26: 107675.34 | H26: 0
A27: 110601 | B27: EQUIPO DEPORTIVO | C27: =IF(A27<>"",IF(VLOOKUP(A27,plan_cuentas,4,FALSE)="D",SUMIFS(Registros!G:G,Registros!B:B,"<"&fecha_inicial,Registros!C:C,"="&'01'!A27)-SUMIFS(Registros!H:H,Registros!B:B,"<"&fecha_inicial,Registros!C:C,"="&'01'!A27), 0), "") -> 0 | D27: =IF(A27<>"",IF(VLOOKUP(A27,plan_cuentas,4,FALSE)="H",SUMIFS(Registros!H:H,Registros!B:B,"<"&fecha_inicial,Registros!C:C,"="&'01'!A27)-SUMIFS(Registros!G:G,Registros!B:B,"<"&fecha_inicial,Registros!C:C,"="&'01'!A27), 0), "") -> 0 | E27: =IF(A27<>"", SUMIFS(Registros!G:G, Registros!B:B, ">=" & fecha_inicial, Registros!B:B, "<=" & fecha_final, Registros!C:C, "=" &'01'!A27), 0) -> 0 | F27: =IF(A27<>"", SUMIFS(Registros!H:H, Registros!B:B, ">=" & fecha_inicial, Registros!B:B, "<=" & fecha_final, Registros!C:C, "=" &'01'!A27), 0) -> 0 | G27: =IF(A27<>"", IF(VLOOKUP(A27, plan_cuentas, 4, FALSE) = "D", C27+E27-F27, 0), 0) -> 0 | H27: =IF(A27<>"", IF(VLOOKUP(A27, plan_cuentas, 4, FALSE) = "H", D27-E27+F27, 0), 0) -> 0
A28: 110602 | B28: MATERIALES DE CONSTRUCCIÓN | C28: =IF(A28<>"",IF(VLOOKUP(A28,plan_cuentas,4,FALSE)="D",SUMIFS(Registros!G:G,Registros!B:B,"<"&fecha_inicial,Registros!C:C,"="&'01'!A28)-SUMIFS(Registros!H:H,Registros!B:B,"<"&fecha_inicial,Registros!C:C,"="&'01'!A28), 0), "") -> 0 | D28: =IF(A28<>"",IF(VLOOKUP(A28,plan_cuentas,4,FALSE)="H",SUMIFS(Registros!H:H,Registros!B:B,"<"&fecha_inicial,Registros!C:C,"="&'01'!A28)-SUMIFS(Registros!G:G,Registros!B:B,"<"&fecha_inicial,Registros!C:C,"="&'01'!A28), 0), "") -> 0 | E28: =IF(A28<>"", SUMIFS(Registros!G:G, Registros!B:B, ">=" & fecha_inicial, Registros!B:B, "<=" & fecha_final, Registros!C:C, "=" &'01'!A28), 0) -> 0 | F28: =IF(A28<>"", SUMIFS(Registros!H:H, Registros!B:B, ">=" & fecha_inicial, Registros!B:B, "<=" & fecha_final, Registros!C:C, "=" &'01'!A28), 0) -> 0 | G28: 0 | H28: 0
A29: 110603 | B29: MATERIALES Y SUMINISTROS | C29: =IF(A29<>"",IF(VLOOKUP(A29,plan_cuentas,4,FALSE)="D",SUMIFS(Registros!G:G,Registros!B:B,"<"&fecha_inicial,Registros!C:C,"="&'01'!A29)-SUMIFS(Registros!H:H,Registros!B:B,"<"&fecha_inicial,Registros!C:C,"="&'01'!A29), 0), "") -> 73058.84 | D29: =IF(A29<>"",IF(VLOOKUP(A29,plan_cuentas,4,FALSE)="H",SUMIFS(Registros!H:H,Registros!B:B,"<"&fecha_inicial,Registros!C:C,"="&'01'!A29)-SUMIFS(Registros!G:G,Registros!B:B,"<"&fecha_inicial,Registros!C:C,"="&'01'!A29), 0), "") -> 0 | E29: =IF(A29<>"", SUMIFS(Registros!G:G, Registros!B:B, ">=" & fecha_inicial, Registros!B:B, "<=" & fecha_final, Registros!C:C, "=" &'01'!A29), 0) -> 0 | F29: =IF(A29<>"", SUMIFS(Registros!H:H, Registros!B:B, ">=" & fecha_inicial, Registros!B:B, "<=" & fecha_final, Registros!C:C, "=" &'01'!A29), 0) -> 0 | G29: 73058.84 | H29: 0
A30: 110604 | B30: EQUIPO E INSUMOS MÉDICOS | C30: =IF(A30<>"",IF(VLOOKUP(A30,plan_cuentas,4,FALSE)="D",SUMIFS(Registros!G:G,Registros!B:B,"<"&fecha_inicial,Registros!C:C,"="&'01'!A30)-SUMIFS(Registros!H:H,Registros!B:B,"<"&fecha_inicial,Registros!C:C,"="&'01'!A30), 0), "") -> 2414.85 | D30: =IF(A30<>"",IF(VLOOKUP(A30,plan_cuentas,4,FALSE)="H",SUMIFS(Registros!H:H,Registros!B:B,"<"&fecha_inicial,Registros!C:C,"="&'01'!A30)-SUMIFS(Registros!G:G,Registros!B:B,"<"&fecha_inicial,Registros!C:C,"="&'01'!A30), 0), "") -> 0 | E30: =IF(A30<>"", SUMIFS(Registros!G:G, Registros!B:B, ">=" & fecha_inicial, Registros!B:B, "<=" & fecha_final, Registros!C:C, "=" &'01'!A30), 0) -> 0 | F30: =IF(A30<>"", SUMIFS(Registros!H:H, Registros!B:B, ">=" & fecha_inicial, Registros!B:B, "<=" & fecha_final, Registros!C:C, "=" &'01'!A30), 0) -> 0 | G30: 2414.85 | H30: 0
A31: 110605 | B31: =IFERROR(IF(A31<>"", VLOOKUP(A31, plan_cuentas,2, FALSE), ""), "CÓDIGO INCORRECTO") -> PAPELERÍA Y ÚTILES DE OFICINA | C31: =IF(A31<>"",IF(VLOOKUP(A31,plan_cuentas,4,FALSE)="D",SUMIFS(Registros!G:G,Registros!B:B,"<"&fecha_inicial,Registros!C:C,"="&'01'!A31)-SUMIFS(Registros!H:H,Registros!B:B,"<"&fecha_inicial,Registros!C:C,"="&'01'!A31), 0), "") -> 24681.83 | D31: =IF(A31<>"",IF(VLOOKUP(A31,plan_cuentas,4,FALSE)="H",SUMIFS(Registros!H:H,Registros!B:B,"<"&fecha_inicial,Registros!C:C,"="&'01'!A31)-SUMIFS(Registros!G:G,Registros!B:B,"<"&fecha_inicial,Registros!C:C,"="&'01'!A31), 0), "") -> 0 | E31: =IF(A31<>"", SUMIFS(Registros!G:G, Registros!B:B, ">=" & fecha_inicial, Registros!B:B, "<=" & fecha_final, Registros!C:C, "=" &'01'!A31), 0) -> 150 | F31: =IF(A31<>"", SUMIFS(Registros!H:H, Registros!B:B, ">=" & fecha_inicial, Registros!B:B, "<=" & fecha_final, Registros!C:C, "=" &'01'!A31), 0) -> 0 | G31: 24831.83 | H31: 0
A32: 110606 | B32: PAPELERIA MEMBRETADA | C32: =IF(A32<>"",IF(VLOOKUP(A32,plan_cuentas,4,FALSE)="D",SUMIFS(Registros!G:G,Registros!B:B,"<"&fecha_inicial,Registros!C:C,"="&'01'!A32)-SUMIFS(Registros!H:H,Registros!B:B,"<"&fecha_inicial,Registros!C:C,"="&'01'!A32), 0), "") -> 7369.82 | D32: =IF(A32<>"",IF(VLOOKUP(A32,plan_cuentas,4,FALSE)="H",SUMIFS(Registros!H:H,Registros!B:B,"<"&fecha_inicial,Registros!C:C,"="&'01'!A32)-SUMIFS(Registros!G:G,Registros!B:B,"<"&fecha_inicial,Registros!C:C,"="&'01'!A32), 0), "") -> 0 | E32: =IF(A32<>"", SUMIFS(Registros!G:G, Registros!B:B, ">=" & fecha_inicial, Registros!B:B, "<=" & fecha_final, Registros!C:C, "=" &'01'!A32), 0) -> 0 | F32: =IF(A32<>"", SUMIFS(Registros!H:H, Registros!B:B, ">=" & fecha_inicial, Registros!B:B, "<=" & fecha_final, Registros!C:C, "=" &'01'!A32), 0) -> 0 | G32: 7369.82 | H32: 0
A33: 120000 | B33: ACTIVOS NO CORRIENTES | C33: =C34+C36 -> 46020.39 | D33: 0 | E33: 0 | F33: 0 | G33: 46020.39 | H33: 0
A34: 120300 | B34: MOBILIARIO | C34: =SUM(C35) -> 3099 | D34: 0 | E34: 0 | F34: 0 | G34: 3099 | H34: 0
A35: 120301 | B35: MUEBLES Y ENSERES | C35: =IF(A35<>"",IF(VLOOKUP(A35,plan_cuentas,4,FALSE)="D",SUMIFS(Registros!G:G,Registros!B:B,"<"&fecha_inicial,Registros!C:C,"="&'01'!A35)-SUMIFS(Registros!H:H,Registros!B:B,"<"&fecha_inicial,Registros!C:C,"="&'01'!A35), 0), "") -> 3099 | D35: =IF(A35<>"",IF(VLOOKUP(A35,plan_cuentas,4,FALSE)="H",SUMIFS(Registros!H:H,Registros!B:B,"<"&fecha_inicial,Registros!C:C,"="&'01'!A35)-SUMIFS(Registros!G:G,Registros!B:B,"<"&fecha_inicial,Registros!C:C,"="&'01'!A35), 0), "") -> 0 | E35: =IF(A35<>"", SUMIFS(Registros!G:G, Registros!B:B, ">=" & fecha_inicial, Registros!B:B, "<=" & fecha_final, Registros!C:C, "=" &'01'!A35), 0) -> 0 | F35: =IF(A35<>"", SUMIFS(Registros!H:H, Registros!B:B, ">=" & fecha_inicial, Registros!B:B, "<=" & fecha_final, Registros!C:C, "=" &'01'!A35), 0) -> 0 | G35: =IF(A35<>"", IF(VLOOKUP(A35, plan_cuentas, 4, FALSE) = "D", C35+E35-F35, 0), 0) -> 3099 | H35: =IF(A35<>"", IF(VLOOKUP(A35, plan_cuentas, 4, FALSE) = "H", D35-E35+F35, 0), 0) -> 0
A36: 120400 | B36: EQUIPO | C36: =SUM(C37:C38) -> 42921.39 | D36: 0 | E36: 0 | F36: 0 | G36: 42921.39 | H36: 0
A37: 120401 | B37: EQUIPO INFORMÁTICO | C37: =IF(A37<>"",IF(VLOOKUP(A37,plan_cuentas,4,FALSE)="D",SUMIFS(Registros!G:G,Registros!B:B,"<"&fecha_inicial,Registros!C:C,"="&'01'!A37)-SUMIFS(Registros!H:H,Registros!B:B,"<"&fecha_inicial,Registros!C:C,"="&'01'!A37), 0), "") -> 42921.39 | D37: =IF(A37<>"",IF(VLOOKUP(A37,plan_cuentas,4,FALSE)="H",SUMIFS(Registros!H:H,Registros!B:B,"<"&fecha_inicial,Registros!C:C,"="&'01'!A37)-SUMIFS(Registros!G:G,Registros!B:B,"<"&fecha_inicial,Registros!C:C,"="&'01'!A37), 0), "") -> 0 | E37: =IF(A37<>"", SUMIFS(Registros!G:G, Registros!B:B, ">=" & fecha_inicial, Registros!B:B, "<=" & fecha_final, Registros!C:C, "=" &'01'!A37), 0) -> 0 | F37: =IF(A37<>"", SUMIFS(Registros!H:H, Registros!B:B, ">=" & fecha_inicial, Registros!B:B, "<=" & fecha_final, Registros!C:C, "=" &'01'!A37), 0) -> 0 | G37: =IF(A37<>"", IF(VLOOKUP(A37, plan_cuentas, 4, FALSE) = "D", C37+E37-F37, 0), 0) -> 42921.39 | H37: =IF(A37<>"", IF(VLOOKUP(A37, plan_cuentas, 4, FALSE) = "H", D37-E37+F37, 0), 0) -> 0
A38: 120402 | B38: EQUIPO MÉDICO | C38: =IF(A38<>"",IF(VLOOKUP(A38,plan_cuentas,4,FALSE)="D",SUMIFS(Registros!G:G,Registros!B:B,"<"&fecha_inicial,Registros!C:C,"="&'01'!A38)-SUMIFS(Registros!H:H,Registros!B:B,"<"&fecha_inicial,Registros!C:C,"="&'01'!A38), 0), "") -> 0 | D38: =IF(A38<>"",IF(VLOOKUP(A38,plan_cuentas,4,FALSE)="H",SUMIFS(Registros!H:H,Registros!B:B,"<"&fecha_inicial,Registros!C:C,"="&'01'!A38)-SUMIFS(Registros!G:G,Registros!B:B,"<"&fecha_inicial,Registros!C:C,"="&'01'!A38), 0), "") -> 0 | E38: =IF(A38<>"", SUMIFS(Registros!G:G, Registros!B:B, ">=" & fecha_inicial, Registros!B:B, "<=" & fecha_final, Registros!C:C, "=" &'01'!A38), 0) -> 0 | F38: =IF(A38<>"", SUMIFS(Registros!H:H, Registros!B:B, ">=" & fecha_inicial, Registros!B:B, "<=" & fecha_final, Registros!C:C, "=" &'01'!A38), 0) -> 0 | G38: =IF(A38<>"", IF(VLOOKUP(A38, plan_cuentas, 4, FALSE) = "D", C38+E38-F38, 0), 0) -> 0 | H38: =IF(A38<>"", IF(VLOOKUP(A38, plan_cuentas, 4, FALSE) = "H", D38-E38+F38, 0), 0) -> 0
A39: 130000 | B39: DEPRECIACIÓN ACUMULADA | C39: =C40+C42 -> 0 | D39: 0 | E39: 0 | F39: 0 | G39: 0 | H39: 0
A40: 130100 | B40: DEPREC. ACUM. MOBILIARIO | C40: =SUM(C41) -> 0 | D40: 0 | E40: 0 | F40: 0 | G40: 0 | H40: 0
A41: 130101 | B41: DEPREC. ACUM. MUEBLES Y ENSERES | C41: =IF(A41<>"",IF(VLOOKUP(A41,plan_cuentas,4,FALSE)="D",SUMIFS(Registros!G:G,Registros!B:B,"<"&fecha_inicial,Registros!C:C,"="&'01'!A41)-SUMIFS(Registros!H:H,Registros!B:B,"<"&fecha_inicial,Registros!C:C,"="&'01'!A41), 0), "") -> 0 | D41: =IF(A41<>"",IF(VLOOKUP(A41,plan_cuentas,4,FALSE)="H",SUMIFS(Registros!H:H,Registros!B:B,"<"&fecha_inicial,Registros!C:C,"="&'01'!A41)-SUMIFS(Registros!G:G,Registros!B:B,"<"&fecha_inicial,Registros!C:C,"="&'01'!A41), 0), "") -> 0 | E41: =IF(A41<>"", SUMIFS(Registros!G:G, Registros!B:B, ">=" & fecha_inicial, Registros!B:B, "<=" & fecha_final, Registros!C:C, "=" &'01'!A41), 0) -> 0 | F41: =IF(A41<>"", SUMIFS(Registros!H:H, Registros!B:B, ">=" & fecha_inicial, Registros!B:B, "<=" & fecha_final, Registros!C:C, "=" &'01'!A41), 0) -> 0 | G41: =IF(A41<>"", IF(VLOOKUP(A41, plan_cuentas, 4, FALSE) = "D", C41+E41-F41, 0), 0) -> 0 | H41: =IF(A41<>"", IF(VLOOKUP(A41, plan_cuentas, 4, FALSE) = "H", D41-E41+F41, 0), 0) -> 0
A42: 130200 | B42: DEPREC. ACUM. EQUIPO | C42: =SUM(C43:C44) -> 0 | D42: 0 | E42: 0 | F42: 0 | G42: 0 | H42: 0
A43: 130201 | B43: DEPREC. ACUM. EQUIP. INFORMÁTICO | C43: =IF(A43<>"",IF(VLOOKUP(A43,plan_cuentas,4,FALSE)="D",SUMIFS(Registros!G:G,Registros!B:B,"<"&fecha_inicial,Registros!C:C,"="&'01'!A43)-SUMIFS(Registros!H:H,Registros!B:B,"<"&fecha_inicial,Registros!C:C,"="&'01'!A43), 0), "") -> 0 | D43: =IF(A43<>"",IF(VLOOKUP(A43,plan_cuentas,4,FALSE)="H",SUMIFS(Registros!H:H,Registros!B:B,"<"&fecha_inicial,Registros!C:C,"="&'01'!A43)-SUMIFS(Registros!G:G,Registros!B:B,"<"&fecha_inicial,Registros!C:C,"="&'01'!A43), 0), "") -> 0 | E43: =IF(A43<>"", SUMIFS(Registros!G:G, Registros!B:B, ">=" & fecha_inicial, Registros!B:B, "<=" & fecha_final, Registros!C:C, "=" &'01'!A43), 0) -> 0 | F43: =IF(A43<>"", SUMIFS(Registros!H:H, Registros!B:B, ">=" & fecha_inicial, Registros!B:B, "<=" & fecha_final, Registros!C:C, "=" &'01'!A43), 0) -> 0 | G43: =IF(A43<>"", IF(VLOOKUP(A43, plan_cuentas, 4, FALSE) = "D", C43+E43-F43, 0), 0) -> 0 | H43: =IF(A43<>"", IF(VLOOKUP(A43, plan_cuentas, 4, FALSE) = "H", D43-E43+F43, 0), 0) -> 0
A44: 130202 | B44: DEPREC. ACUM. EQUIPO MÉDICO | C44: =IF(A44<>"",IF(VLOOKUP(A44,plan_cuentas,4,FALSE)="D",SUMIFS(Registros!G:G,Registros!B:B,"<"&fecha_inicial,Registros!C:C,"="&'01'!A44)-SUMIFS(Registros!H:H,Registros!B:B,"<"&fecha_inicial,Registros!C:C,"="&'01'!A44), 0), "") -> 0 | D44: =IF(A44<>"",IF(VLOOKUP(A44,plan_cuentas,4,FALSE)="H",SUMIFS(Registros!H:H,Registros!B:B,"<"&fecha_inicial,Registros!C:C,"="&'01'!A44)-SUMIFS(Registros!G:G,Registros!B:B,"<"&fecha_inicial,Registros!C:C,"="&'01'!A44), 0), "") -> 0 | E44: =IF(A44<>"", SUMIFS(Registros!G:G, Registros!B:B, ">=" & fecha_inicial, Registros!B:B, "<=" & fecha_final, Registros!C:C, "=" &'01'!A44), 0) -> 0 | F44: =IF(A44<>"", SUMIFS(Registros!H:H, Registros!B:B, ">=" & fecha_inicial, Registros!B:B, "<=" & fecha_final, Registros!C:C, "=" &'01'!A44), 0) -> 0 | G44: =IF(A44<>"", IF(VLOOKUP(A44, plan_cuentas, 4, FALSE) = "D", C44+E44-F44, 0), 0) -> 0 | H44: =IF(A44<>"", IF(VLOOKUP(A44, plan_cuentas, 4, FALSE) = "H", D44-E44+F44, 0), 0) -> 0
A45: 140000 | B45: OTROS ACTIVOS | C45: =C46 -> 0 | D45: 0 | E45: 0 | F45: 0 | G45: 0 | H45: 0
A46: 140100 | B46: =IFERROR(IF(A46<>"", VLOOKUP(A46, plan_cuentas,2, FALSE), ""), "CÓDIGO INCORRECTO") -> DEPÓSITOS EN GARANTÍA | C46: =SUM(C47) -> 0 | D46: 0 | E46: 0 | F46: 0 | G46: 0 | H46: 0
A47: 140101 | B47: DEPÓSITOS EN GARANTÍA | C47: =IF(A47<>"",IF(VLOOKUP(A47,plan_cuentas,4,FALSE)="D",SUMIFS(Registros!G:G,Registros!B:B,"<"&fecha_inicial,Registros!C:C,"="&'01'!A47)-SUMIFS(Registros!H:H,Registros!B:B,"<"&fecha_inicial,Registros!C:C,"="&'01'!A47), 0), "") -> 0 | D47: =IF(A47<>"",IF(VLOOKUP(A47,plan_cuentas,4,FALSE)="H",SUMIFS(Registros!H:H,Registros!B:B,"<"&fecha_inicial,Registros!C:C,"="&'01'!A47)-SUMIFS(Registros!G:G,Registros!B:B,"<"&fecha_inicial,Registros!C:C,"="&'01'!A47), 0), "") -> 0 | E47: =IF(A47<>"", SUMIFS(Registros!G:G, Registros!B:B, ">=" & fecha_inicial, Registros!B:B, "<=" & fecha_final, Registros!C:C, "=" &'01'!A47), 0) -> 0 | F47: =IF(A47<>"", SUMIFS(Registros!H:H, Registros!B:B, ">=" & fecha_inicial, Registros!B:B, "<=" & fecha_final, Registros!C:C, "=" &'01'!A47), 0) -> 0 | G47: =IF(A47<>"", IF(VLOOKUP(A47, plan_cuentas, 4, FALSE) = "D", C47+E47-F47, 0), 0) -> 0 | H47: =IF(A47<>"", IF(VLOOKUP(A47, plan_cuentas, 4, FALSE) = "H", D47-E47+F47, 0), 0) -> 0
A48: 200000 | B48: PASIVOS | C48: =C49 -> 0 | D48: 14758.52 | E48: 0 | F48: 26096.8 | G48: 0 | H48: 40855.32
A49: 210000 | B49: PASIVOS CORRIENTES | C49: =C50+C53+C55+C60 -> 0 | D49: =D50+D53+D55+D60 -> 14758.52 | E49: 0 | F49: 26096.8 | G49: 0 | H49: 40855.32
A50: 210100 | B50: CUENTAS POR PAGAR | C50: =SUM(C51:C52) -> 0 | D50: =SUM(D51:D52) -> 0 | E50: 0 | F50: 0 | G50: 0 | H50: 0
A51: 210101 | B51: PROVEEDORES LOCALES | C51: =IF(A51<>"",IF(VLOOKUP(A51,plan_cuentas,4,FALSE)="D",SUMIFS(Registros!G:G,Registros!B:B,"<"&fecha_inicial,Registros!C:C,"="&'01'!A51)-SUMIFS(Registros!H:H,Registros!B:B,"<"&fecha_inicial,Registros!C:C,"="&'01'!A51), 0), "") -> 0 | D51: =IF(A51<>"",IF(VLOOKUP(A51,plan_cuentas,4,FALSE)="H",SUMIFS(Registros!H:H,Registros!B:B,"<"&fecha_inicial,Registros!C:C,"="&'01'!A51)-SUMIFS(Registros!G:G,Registros!B:B,"<"&fecha_inicial,Registros!C:C,"="&'01'!A51), 0), "") -> 0 | E51: =IF(A51<>"", SUMIFS(Registros!G:G, Registros!B:B, ">=" & fecha_inicial, Registros!B:B, "<=" & fecha_final, Registros!C:C, "=" &'01'!A51), 0) -> 0 | F51: =IF(A51<>"", SUMIFS(Registros!H:H, Registros!B:B, ">=" & fecha_inicial, Registros!B:B, "<=" & fecha_final, Registros!C:C, "=" &'01'!A51), 0) -> 0 | G51: =IF(A51<>"", IF(VLOOKUP(A51, plan_cuentas, 4, FALSE) = "D", C51+E51-F51, 0), 0) -> 0 | H51: =IF(A51<>"", IF(VLOOKUP(A51, plan_cuentas, 4, FALSE) = "H", D51-E51+F51, 0), 0) -> 0
A52: 210102 | B52: PROVEEDORES EXTRANJEROS | C52: =IF(A52<>"",IF(VLOOKUP(A52,plan_cuentas,4,FALSE)="D",SUMIFS(Registros!G:G,Registros!B:B,"<"&fecha_inicial,Registros!C:C,"="&'01'!A52)-SUMIFS(Registros!H:H,Registros!B:B,"<"&fecha_inicial,Registros!C:C,"="&'01'!A52), 0), "") -> 0 | D52: =IF(A52<>"",IF(VLOOKUP(A52,plan_cuentas,4,FALSE)="H",SUMIFS(Registros!H:H,Registros!B:B,"<"&fecha_inicial,Registros!C:C,"="&'01'!A52)-SUMIFS(Registros!G:G,Registros!B:B,"<"&fecha_inicial,Registros!C:C,"="&'01'!A52), 0), "") -> 0 | E52: =IF(A52<>"", SUMIFS(Registros!G:G, Registros!B:B, ">=" & fecha_inicial, Registros!B:B, "<=" & fecha_final, Registros!C:C, "=" &'01'!A52), 0) -> 0 | F52: =IF(A52<>"", SUMIFS(Registros!H:H, Registros!B:B, ">=" & fecha_inicial, Registros!B:B, "<=" & fecha_final, Registros!C:C, "=" &'01'!A52), 0) -> 0 | G52: =IF(A52<>"", IF(VLOOKUP(A52, plan_cuentas, 4, FALSE) = "D", C52+E52-F52, 0), 0) -> 0 | H52: =IF(A52<>"", IF(VLOOKUP(A52, plan_cuentas, 4, FALSE) = "H", D52-E52+F52, 0), 0) -> 0
A53: 210200 | B53: DOCUMENTOS POR PAGAR | C53: =SUM(C54) -> 0 | D53: 0 | E53: 0 | F53: 0 | G53: 0 | H53: 0
A54: 210201 | B54: DOCUMENTOS POR PAGAR | C54: =IF(A54<>"",IF(VLOOKUP(A54,plan_cuentas,4,FALSE)="D",SUMIFS(Registros!G:G,Registros!B:B,"<"&fecha_inicial,Registros!C:C,"="&'01'!A54)-SUMIFS(Registros!H:H,Registros!B:B,"<"&fecha_inicial,Registros!C:C,"="&'01'!A54), 0), "") -> 0 | D54: =IF(A54<>"",IF(VLOOKUP(A54,plan_cuentas,4,FALSE)="H",SUMIFS(Registros!H:H,Registros!B:B,"<"&fecha_inicial,Registros!C:C,"="&'01'!A54)-SUMIFS(Registros!G:G,Registros!B:B,"<"&fecha_inicial,Registros!C:C,"="&'01'!A54), 0), "") -> 0 | E54: =IF(A54<>"", SUMIFS(Registros!G:G, Registros!B:B, ">=" & fecha_inicial, Registros!B:B, "<=" & fecha_final, Registros!C:C, "=" &'01'!A54), 0) -> 0 | F54: =IF(A54<>"", SUMIFS(Registros!H:H, Registros!B:B, ">=" & fecha_inicial, Registros!B:B, "<=" & fecha_final, Registros!C:C, "=" &'01'!A54), 0) -> 0 | G54: =IF(A54<>"", IF(VLOOKUP(A54, plan_cuentas, 4, FALSE) = "D", C54+E54-F54, 0), 0) -> 0 | H54: =IF(A54<>"", IF(VLOOKUP(A54, plan_cuentas, 4, FALSE) = "H", D54-E54+F54, 0), 0) -> 0
A55: 210300 | B55: IMPUESTOS POR PAGAR | C55: =SUM(C56:C59) -> 0 | D55: 26143.34 | E55: 0 | F55: 26096.8 | G55: 0 | H55: 52240.14
A56: 210301 | B56: RETENCIÓN 2% BIENES Y SERVICIOS | C56: =IF(A56<>"",IF(VLOOKUP(A56,plan_cuentas,4,FALSE)="D",SUMIFS(Registros!G:G,Registros!B:B,"<"&fecha_inicial,Registros!C:C,"="&'01'!A56)-SUMIFS(Registros!H:H,Registros!B:B,"<"&fecha_inicial,Registros!C:C,"="&'01'!A56), 0), "") -> 0 | D56: =IF(A56<>"",IF(VLOOKUP(A56,plan_cuentas,4,FALSE)="H",SUMIFS(Registros!H:H,Registros!B:B,"<"&fecha_inicial,Registros!C:C,"="&'01'!A56)-SUMIFS(Registros!G:G,Registros!B:B,"<"&fecha_inicial,Registros!C:C,"="&'01'!A56), 0), "") -> 3550.41 | E56: =IF(A56<>"", SUMIFS(Registros!G:G, Registros!B:B, ">=" & fecha_inicial, Registros!B:B, "<=" & fecha_final, Registros!C:C, "=" &'01'!A56), 0) -> 0 | F56: =IF(A56<>"", SUMIFS(Registros!H:H, Registros!B:B, ">=" & fecha_inicial, Registros!B:B, "<=" & fecha_final, Registros!C:C, "=" &'01'!A56), 0) -> 2752.49 | G56: =IF(A56<>"", IF(VLOOKUP(A56, plan_cuentas, 4, FALSE) = "D", C56+E56-F56, 0), 0) -> 0 | H56: =IF(A56<>"", IF(VLOOKUP(A56, plan_cuentas, 4, FALSE) = "H", D56-E56+F56, 0), 0) -> 6302.9
A57: 210302 | B57: RETENC. 10% SERV. TÉCNICOS Y PROFESIONALES | C57: =IF(A57<>"",IF(VLOOKUP(A57,plan_cuentas,4,FALSE)="D",SUMIFS(Registros!G:G,Registros!B:B,"<"&fecha_inicial,Registros!C:C,"="&'01'!A57)-SUMIFS(Registros!H:H,Registros!B:B,"<"&fecha_inicial,Registros!C:C,"="&'01'!A57), 0), "") -> 0 | D57: =IF(A57<>"",IF(VLOOKUP(A57,plan_cuentas,4,FALSE)="H",SUMIFS(Registros!H:H,Registros!B:B,"<"&fecha_inicial,Registros!C:C,"="&'01'!A57)-SUMIFS(Registros!G:G,Registros!B:B,"<"&fecha_inicial,Registros!C:C,"="&'01'!A57), 0), "") -> 24139.68 | E57: =IF(A57<>"", SUMIFS(Registros!G:G, Registros!B:B, ">=" & fecha_inicial, Registros!B:B, "<=" & fecha_final, Registros!C:C, "=" &'01'!A57), 0) -> 0 | F57: =IF(A57<>"", SUMIFS(Registros!H:H, Registros!B:B, ">=" & fecha_inicial, Registros!B:B, "<=" & fecha_final, Registros!C:C, "=" &'01'!A57), 0) -> 23344.31 | G57: =IF(A57<>"", IF(VLOOKUP(A57, plan_cuentas, 4, FALSE) = "D", C57+E57-F57, 0), 0) -> 0 | H57: =IF(A57<>"", IF(VLOOKUP(A57, plan_cuentas, 4, FALSE) = "H", D57-E57+F57, 0), 0) -> 47483.99
A58: 210303 | B58: RETENCIONES EN LA FUENTE | C58: =IF(A58<>"",IF(VLOOKUP(A58,plan_cuentas,4,FALSE)="D",SUMIFS(Registros!G:G,Registros!B:B,"<"&fecha_inicial,Registros!C:C,"="&'01'!A58)-SUMIFS(Registros!H:H,Registros!B:B,"<"&fecha_inicial,Registros!C:C,"="&'01'!A58), 0), "") -> 0 | D58: =IF(A58<>"",IF(VLOOKUP(A58,plan_cuentas,4,FALSE)="H",SUMIFS(Registros!H:H,Registros!B:B,"<"&fecha_inicial,Registros!C:C,"="&'01'!A58)-SUMIFS(Registros!G:G,Registros!B:B,"<"&fecha_inicial,Registros!C:C,"="&'01'!A58), 0), "") -> -1546.75 | E58: =IF(A58<>"", SUMIFS(Registros!G:G, Registros!B:B, ">=" & fecha_inicial, Registros!B:B, "<=" & fecha_final, Registros!C:C, "=" &'01'!A58), 0) -> 0 | F58: =IF(A58<>"", SUMIFS(Registros!H:H, Registros!B:B, ">=" & fecha_inicial, Registros!B:B, "<=" & fecha_final, Registros!C:C, "=" &'01'!A58), 0) -> 0 | G58: =IF(A58<>"", IF(VLOOKUP(A58, plan_cuentas, 4, FALSE) = "D", C58+E58-F58, 0), 0) -> 0 | H58: =IF(A58<>"", IF(VLOOKUP(A58, plan_cuentas, 4, FALSE) = "H", D58-E58+F58, 0), 0) -> -1546.75
A59: 210304 | B59: OTRAS RETENCIONES | C59: =IF(A59<>"",IF(VLOOKUP(A59,plan_cuentas,4,FALSE)="D",SUMIFS(Registros!G:G,Registros!B:B,"<"&fecha_inicial,Registros!C:C,"="&'01'!A59)-SUMIFS(Registros!H:H,Registros!B:B,"<"&fecha_inicial,Registros!C:C,"="&'01'!A59), 0), "") -> 0 | D59: =IF(A59<>"",IF(VLOOKUP(A59,plan_cuentas,4,FALSE)="H",SUMIFS(Registros!H:H,Registros!B:B,"<"&fecha_inicial,Registros!C:C,"="&'01'!A59)-SUMIFS(Registros!G:G,Registros!B:B,"<"&fecha_inicial,Registros!C:C,"="&'01'!A59), 0), "") -> 0 | E59: =IF(A59<>"", SUMIFS(Registros!G:G, Registros!B:B, ">=" & fecha_inicial, Registros!B:B, "<=" & fecha_final, Registros!C:C, "=" &'01'!A59), 0) -> 0 | F59: =IF(A59<>"", SUMIFS(Registros!H:H, Registros!B:B, ">=" & fecha_inicial, Registros!B:B, "<=" & fecha_final, Registros!C:C, "=" &'01'!A59), 0) -> 0 | G59: =IF(A59<>"", IF(VLOOKUP(A59, plan_cuentas, 4, FALSE) = "D", C59+E59-F59, 0), 0) -> 0 | H59: =IF(A59<>"", IF(VLOOKUP(A59, plan_cuentas, 4, FALSE) = "H", D59-E59+F59, 0), 0) -> 0
A60: 210400 | B60: GASTOS ACUMULADOS POR PAGAR | C60: =SUM(C61:C66) -> 0 | D60: -11384.82 | E60: 0 | F60: 0 | G60: 0 | H60: -11384.82
A61: 210401 | B61: VACACIONES ACUM. POR PAGAR | C61: =IF(A61<>"",IF(VLOOKUP(A61,plan_cuentas,4,FALSE)="D",SUMIFS(Registros!G:G,Registros!B:B,"<"&fecha_inicial,Registros!C:C,"="&'01'!A61)-SUMIFS(Registros!H:H,Registros!B:B,"<"&fecha_inicial,Registros!C:C,"="&'01'!A61), 0), "") -> 0 | D61: =IF(A61<>"",IF(VLOOKUP(A61,plan_cuentas,4,FALSE)="H",SUMIFS(Registros!H:H,Registros!B:B,"<"&fecha_inicial,Registros!C:C,"="&'01'!A61)-SUMIFS(Registros!G:G,Registros!B:B,"<"&fecha_inicial,Registros!C:C,"="&'01'!A61), 0), "") -> 0 | E61: =IF(A61<>"", SUMIFS(Registros!G:G, Registros!B:B, ">=" & fecha_inicial, Registros!B:B, "<=" & fecha_final, Registros!C:C, "=" &'01'!A61), 0) -> 0 | F61: =IF(A61<>"", SUMIFS(Registros!H:H, Registros!B:B, ">=" & fecha_inicial, Registros!B:B, "<=" & fecha_final, Registros!C:C, "=" &'01'!A61), 0) -> 0 | G61: =IF(A61<>"", IF(VLOOKUP(A61, plan_cuentas, 4, FALSE) = "D", C61+E61-F61, 0), 0) -> 0 | H61: =IF(A61<>"", IF(VLOOKUP(A61, plan_cuentas, 4, FALSE) = "H", D61-E61+F61, 0), 0) -> 0
A62: 210402 | B62: AGUINALDOS POR PAGAR | C62: =IF(A62<>"",IF(VLOOKUP(A62,plan_cuentas,4,FALSE)="D",SUMIFS(Registros!G:G,Registros!B:B,"<"&fecha_inicial,Registros!C:C,"="&'01'!A62)-SUMIFS(Registros!H:H,Registros!B:B,"<"&fecha_inicial,Registros!C:C,"="&'01'!A62), 0), "") -> 0 | D62: =IF(A62<>"",IF(VLOOKUP(A62,plan_cuentas,4,FALSE)="H",SUMIFS(Registros!H:H,Registros!B:B,"<"&fecha_inicial,Registros!C:C,"="&'01'!A62)-SUMIFS(Registros!G:G,Registros!B:B,"<"&fecha_inicial,Registros!C:C,"="&'01'!A62), 0), "") -> 0 | E62: =IF(A62<>"", SUMIFS(Registros!G:G, Registros!B:B, ">=" & fecha_inicial, Registros!B:B, "<=" & fecha_final, Registros!C:C, "=" &'01'!A62), 0) -> 0 | F62: =IF(A62<>"", SUMIFS(Registros!H:H, Registros!B:B, ">=" & fecha_inicial, Registros!B:B, "<=" & fecha_final, Registros!C:C, "=" &'01'!A62), 0) -> 0 | G62: 0 | H62: 0
A63: 210403 | B63: INDEMNIZACIONES POR PAGAR | C63: =IF(A63<>"",IF(VLOOKUP(A63,plan_cuentas,4,FALSE)="D",SUMIFS(Registros!G:G,Registros!B:B,"<"&fecha_inicial,Registros!C:C,"="&'01'!A63)-SUMIFS(Registros!H:H,Registros!B:B,"<"&fecha_inicial,Registros!C:C,"="&'01'!A63), 0), "") -> 0 | D63: =IF(A63<>"",IF(VLOOKUP(A63,plan_cuentas,4,FALSE)="H",SUMIFS(Registros!H:H,Registros!B:B,"<"&fecha_inicial,Registros!C:C,"="&'01'!A63)-SUMIFS(Registros!G:G,Registros!B:B,"<"&fecha_inicial,Registros!C:C,"="&'01'!A63), 0), "") -> 0 | E63: =IF(A63<>"", SUMIFS(Registros!G:G, Registros!B:B, ">=" & fecha_inicial, Registros!B:B, "<=" & fecha_final, Registros!C:C, "=" &'01'!A63), 0) -> 0 | F63: =IF(A63<>"", SUMIFS(Registros!H:H, Registros!B:B, ">=" & fecha_inicial, Registros!B:B, "<=" & fecha_final, Registros!C:C, "=" &'01'!A63), 0) -> 0 | G63: 0 | H63: 0
A64: 210404 | B64: INSS PATRONAL POR PAGAR | C64: =IF(A64<>"",IF(VLOOKUP(A64,plan_cuentas,4,FALSE)="D",SUMIFS(Registros!G:G,Registros!B:B,"<"&fecha_inicial,Registros!C:C,"="&'01'!A64)-SUMIFS(Registros!H:H,Registros!B:B,"<"&fecha_inicial,Registros!C:C,"="&'01'!A64), 0), "") -> 0 | D64: =IF(A64<>"",IF(VLOOKUP(A64,plan_cuentas,4,FALSE)="H",SUMIFS(Registros!H:H,Registros!B:B,"<"&fecha_inicial,Registros!C:C,"="&'01'!A64)-SUMIFS(Registros!G:G,Registros!B:B,"<"&fecha_inicial,Registros!C:C,"="&'01'!A64), 0), "") -> -7648.19 | E64: =IF(A64<>"", SUMIFS(Registros!G:G, Registros!B:B, ">=" & fecha_inicial, Registros!B:B, "<=" & fecha_final, Registros!C:C, "=" &'01'!A64), 0) -> 0 | F64: =IF(A64<>"", SUMIFS(Registros!H:H, Registros!B:B, ">=" & fecha_inicial, Registros!B:B, "<=" & fecha_final, Registros!C:C, "=" &'01'!A64), 0) -> 0 | G64: 0 | H64: -7648.19
A65: 210405 | B65: APORTE INATEC POR PAGAR | C65: =IF(A65<>"",IF(VLOOKUP(A65,plan_cuentas,4,FALSE)="D",SUMIFS(Registros!G:G,Registros!B:B,"<"&fecha_inicial,Registros!C:C,"="&'01'!A65)-SUMIFS(Registros!H:H,Registros!B:B,"<"&fecha_inicial,Registros!C:C,"="&'01'!A65), 0), "") -> 0 | D65: =IF(A65<>"",IF(VLOOKUP(A65,plan_cuentas,4,FALSE)="H",SUMIFS(Registros!H:H,Registros!B:B,"<"&fecha_inicial,Registros!C:C,"="&'01'!A65)-SUMIFS(Registros!G:G,Registros!B:B,"<"&fecha_inicial,Registros!C:C,"="&'01'!A65), 0), "") -> -916.55 | E65: =IF(A65<>"", SUMIFS(Registros!G:G, Registros!B:B, ">=" & fecha_inicial, Registros!B:B, "<=" & fecha_final, Registros!C:C, "=" &'01'!A65), 0) -> 0 | F65: =IF(A65<>"", SUMIFS(Registros!H:H, Registros!B:B, ">=" & fecha_inicial, Registros!B:B, "<=" & fecha_final, Registros!C:C, "=" &'01'!A65), 0) -> 0 | G65: 0 | H65: -916.55
A66: 210406 | B66: INSS LABORAL POR PAGAR | C66: =IF(A66<>"",IF(VLOOKUP(A66,plan_cuentas,4,FALSE)="D",SUMIFS(Registros!G:G,Registros!B:B,"<"&fecha_inicial,Registros!C:C,"="&'01'!A66)-SUMIFS(Registros!H:H,Registros!B:B,"<"&fecha_inicial,Registros!C:C,"="&'01'!A66), 0), "") -> 0 | D66: =IF(A66<>"",IF(VLOOKUP(A66,plan_cuentas,4,FALSE)="H",SUMIFS(Registros!H:H,Registros!B:B,"<"&fecha_inicial,Registros!C:C,"="&'01'!A66)-SUMIFS(Registros!G:G,Registros!B:B,"<"&fecha_inicial,Registros!C:C,"="&'01'!A66), 0), "") -> -2820.08 | E66: =IF(A66<>"", SUMIFS(Registros!G:G, Registros!B:B, ">=" & fecha_inicial, Registros!B:B, "<=" & fecha_final, Registros!C:C, "=" &'01'!A66), 0) -> 0 | F66: =IF(A66<>"", SUMIFS(Registros!H:H, Registros!B:B, ">=" & fecha_inicial, Registros!B:B, "<=" & fecha_final, Registros!C:C, "=" &'01'!A66), 0) -> 0 | G66: 0 | H66: -2820.08
A67: 300000 | B67: CAPITAL | C67: =C68 -> 0 | D67: 1137240.94 | E67: 0 | F67: 0 | G67: 0 | H67: 1137240.94
A68: 310000 | B68: CAPITAL SOCIAL | C68: =C69+C72 -> 0 | D68: 1137240.94 | E68: 0 | F68: 0 | G68: 0 | H68: 1137240.94
A69: 310100 | B69: APORTE INICIAL | C69: =SUM(C70:C71) -> 0 | D69: 1137240.94 | E69: 0 | F69: 0 | G69: 0 | H69: 1137240.94
A70: 310101 | B70: FONDO EN RESERVA | C70: =IF(A70<>"",IF(VLOOKUP(A70,plan_cuentas,4,FALSE)="D",SUMIFS(Registros!G:G,Registros!B:B,"<"&fecha_inicial,Registros!C:C,"="&'01'!A70)-SUMIFS(Registros!H:H,Registros!B:B,"<"&fecha_inicial,Registros!C:C,"="&'01'!A70), 0), "") -> 0 | D70: =IF(A70<>"",IF(VLOOKUP(A70,plan_cuentas,4,FALSE)="H",SUMIFS(Registros!H:H,Registros!B:B,"<"&fecha_inicial,Registros!C:C,"="&'01'!A70)-SUMIFS(Registros!G:G,Registros!B:B,"<"&fecha_inicial,Registros!C:C,"="&'01'!A70), 0), "") -> 0 | E70: =IF(A70<>"", SUMIFS(Registros!G:G, Registros!B:B, ">=" & fecha_inicial, Registros!B:B, "<=" & fecha_final, Registros!C:C, "=" &'01'!A70), 0) -> 0 | F70: =IF(A70<>"", SUMIFS(Registros!H:H, Registros!B:B, ">=" & fecha_inicial, Registros!B:B, "<=" & fecha_final, Registros!C:C, "=" &'01'!A70), 0) -> 0 | G70: =IF(A70<>"", IF(VLOOKUP(A70, plan_cuentas, 4, FALSE) = "D", C70+E70-F70, 0), 0) -> 0 | H70: =IF(A70<>"", IF(VLOOKUP(A70, plan_cuentas, 4, FALSE) = "H", D70-E70+F70, 0), 0) -> 0
A71: 310102 | B71: FONDO PATRIMONIAL | C71: =IF(A71<>"",IF(VLOOKUP(A71,plan_cuentas,4,FALSE)="D",SUMIFS(Registros!G:G,Registros!B:B,"<"&fecha_inicial,Registros!C:C,"="&'01'!A71)-SUMIFS(Registros!H:H,Registros!B:B,"<"&fecha_inicial,Registros!C:C,"="&'01'!A71), 0), "") -> 0 | D71: =IF(A71<>"",IF(VLOOKUP(A71,plan_cuentas,4,FALSE)="H",SUMIFS(Registros!H:H,Registros!B:B,"<"&fecha_inicial,Registros!C:C,"="&'01'!A71)-SUMIFS(Registros!G:G,Registros!B:B,"<"&fecha_inicial,Registros!C:C,"="&'01'!A71), 0), "") -> 1137240.94 | E71: =IF(A71<>"", SUMIFS(Registros!G:G, Registros!B:B, ">=" & fecha_inicial, Registros!B:B, "<=" & fecha_final, Registros!C:C, "=" &'01'!A71), 0) -> 0 | F71: =IF(A71<>"", SUMIFS(Registros!H:H, Registros!B:B, ">=" & fecha_inicial, Registros!B:B, "<=" & fecha_final, Registros!C:C, "=" &'01'!A71), 0) -> 0 | G71: =IF(A71<>"", IF(VLOOKUP(A71, plan_cuentas, 4, FALSE) = "D", C71+E71-F71, 0), 0) -> 0 | H71: =IF(A71<>"", IF(VLOOKUP(A71, plan_cuentas, 4, FALSE) = "H", D71-E71+F71, 0), 0) -> 1137240.94
A72: 310200 | B72: RESULTADOS | C72: =SUM(C73:C74) -> 0 | D72: 0 | E72: 0 | F72: 0 | G72: 0 | H72: 0
A73: 310201 | B73: RESULTADOS ACUMULADOS | C73: =IF(A73<>"",IF(VLOOKUP(A73,plan_cuentas,4,FALSE)="D",SUMIFS(Registros!G:G,Registros!B:B,"<"&fecha_inicial,Registros!C:C,"="&'01'!A73)-SUMIFS(Registros!H:H,Registros!B:B,"<"&fecha_inicial,Registros!C:C,"="&'01'!A73), 0), "") -> 0 | D73: =IF(A73<>"",IF(VLOOKUP(A73,plan_cuentas,4,FALSE)="H",SUMIFS(Registros!H:H,Registros!B:B,"<"&fecha_inicial,Registros!C:C,"="&'01'!A73)-SUMIFS(Registros!G:G,Registros!B:B,"<"&fecha_inicial,Registros!C:C,"="&'01'!A73), 0), "") -> 0 | E73: =IF(A73<>"", SUMIFS(Registros!G:G, Registros!B:B, ">=" & fecha_inicial, Registros!B:B, "<=" & fecha_final, Registros!C:C, "=" &'01'!A73), 0) -> 0 | F73: =IF(A73<>"", SUMIFS(Registros!H:H, Registros!B:B, ">=" & fecha_inicial, Registros!B:B, "<=" & fecha_final, Registros!C:C, "=" &'01'!A73), 0) -> 0 | G73: =IF(A73<>"", IF(VLOOKUP(A73, plan_cuentas, 4, FALSE) = "D", C73+E73-F73, 0), 0) -> 0 | H73: =IF(A73<>"", IF(VLOOKUP(A73, plan_cuentas, 4, FALSE) = "H", D73-E73+F73, 0), 0) -> 0
A74: 310202 | B74: RESULTADOS DEL EJERCICIO | C74: =IF(A74<>"",IF(VLOOKUP(A74,plan_cuentas,4,FALSE)="D",SUMIFS(Registros!G:G,Registros!B:B,"<"&fecha_inicial,Registros!C:C,"="&'01'!A74)-SUMIFS(Registros!H:H,Registros!B:B,"<"&fecha_inicial,Registros!C:C,"="&'01'!A74), 0), "") -> 0 | D74: =IF(A74<>"",IF(VLOOKUP(A74,plan_cuentas,4,FALSE)="H",SUMIFS(Registros!H:H,Registros!B:B,"<"&fecha_inicial,Registros!C:C,"="&'01'!A74)-SUMIFS(Registros!G:G,Registros!B:B,"<"&fecha_inicial,Registros!C:C,"="&'01'!A74), 0), "") -> 0 | E74: =IF(A74<>"", SUMIFS(Registros!G:G, Registros!B:B, ">=" & fecha_inicial, Registros!B:B, "<=" & fecha_final, Registros!C:C, "=" &'01'!A74), 0) -> 0 | F74: =IF(A74<>"", SUMIFS(Registros!H:H, Registros!B:B, ">=" & fecha_inicial, Registros!B:B, "<=" & fecha_final, Registros!C:C, "=" &'01'!A74), 0) -> 0 | G74: =IF(A74<>"", IF(VLOOKUP(A74, plan_cuentas, 4, FALSE) = "D", C74+E74-F74, 0), 0) -> 0 | H74: =IF(A74<>"", IF(VLOOKUP(A74, plan_cuentas, 4, FALSE) = "H", D74-E74+F74, 0), 0) -> 0
A75: 500000 | B75: INGRESOS | C75: =C76+C84 -> 0 | D75: 10935 | E75: 0 | F75: 1746354.23 | G75: 0 | H75: 1757289.23
A76: 510000 | B76: INGRESOS POR DONACIONES | C76: =C77+C79+C82 -> 0 | D76: 0 | E76: 0 | F76: 1746354.23 | G76: 0 | H76: 1746354.23
A77: 510100 | B77: DONACIONES INTERNACIONALES | C77: =SUM(C78) -> 0 | D77: 0 | E77: 0 | F77: 1590848.48 | G77: 0 | H77: 1590848.48
A78: 510101 | B78: =IFERROR(IF(A78<>"", VLOOKUP(A78, plan_cuentas,2, FALSE), ""), "CÓDIGO INCORRECTO") -> DONACIONES E.U.A. | C78: =IF(A78<>"",IF(VLOOKUP(A78,plan_cuentas,4,FALSE)="D",SUMIFS(Registros!G:G,Registros!B:B,"<"&fecha_inicial,Registros!C:C,"="&'01'!A78)-SUMIFS(Registros!H:H,Registros!B:B,"<"&fecha_inicial,Registros!C:C,"="&'01'!A78), 0), "") -> 0 | D78: =IF(A78<>"",IF(VLOOKUP(A78,plan_cuentas,4,FALSE)="H",SUMIFS(Registros!H:H,Registros!B:B,"<"&fecha_inicial,Registros!C:C,"="&'01'!A78)-SUMIFS(Registros!G:G,Registros!B:B,"<"&fecha_inicial,Registros!C:C,"="&'01'!A78), 0), "") -> 0 | E78: =IF(A78<>"", SUMIFS(Registros!G:G, Registros!B:B, ">=" & fecha_inicial, Registros!B:B, "<=" & fecha_final, Registros!C:C, "=" &'01'!A78), 0) -> 0 | F78: =IF(A78<>"", SUMIFS(Registros!H:H, Registros!B:B, ">=" & fecha_inicial, Registros!B:B, "<=" & fecha_final, Registros!C:C, "=" &'01'!A78), 0) -> 1590848.48 | G78: =IF(A78<>"", IF(VLOOKUP(A78, plan_cuentas, 4, FALSE) = "D", C78+E78-F78, 0), 0) -> 0 | H78: =IF(A78<>"", IF(VLOOKUP(A78, plan_cuentas, 4, FALSE) = "H", D78-E78+F78, 0), 0) -> 1590848.48
A79: 510200 | B79: DONACIONES NACIONALES | C79: =SUM(C80:C81) -> 0 | D79: 0 | E79: 0 | F79: 126959 | G79: 0 | H79: 126959
A80: 510201 | B80: DONACIONES GUBERNAMENTALES | C80: =IF(A80<>"",IF(VLOOKUP(A80,plan_cuentas,4,FALSE)="D",SUMIFS(Registros!G:G,Registros!B:B,"<"&fecha_inicial,Registros!C:C,"="&'01'!A80)-SUMIFS(Registros!H:H,Registros!B:B,"<"&fecha_inicial,Registros!C:C,"="&'01'!A80), 0), "") -> 0 | D80: =IF(A80<>"",IF(VLOOKUP(A80,plan_cuentas,4,FALSE)="H",SUMIFS(Registros!H:H,Registros!B:B,"<"&fecha_inicial,Registros!C:C,"="&'01'!A80)-SUMIFS(Registros!G:G,Registros!B:B,"<"&fecha_inicial,Registros!C:C,"="&'01'!A80), 0), "") -> 0 | E80: =IF(A80<>"", SUMIFS(Registros!G:G, Registros!B:B, ">=" & fecha_inicial, Registros!B:B, "<=" & fecha_final, Registros!C:C, "=" &'01'!A80), 0) -> 0 | F80: =IF(A80<>"", SUMIFS(Registros!H:H, Registros!B:B, ">=" & fecha_inicial, Registros!B:B, "<=" & fecha_final, Registros!C:C, "=" &'01'!A80), 0) -> 0 | G80: =IF(A80<>"", IF(VLOOKUP(A80, plan_cuentas, 4, FALSE) = "D", C80+E80-F80, 0), 0) -> 0 | H80: =IF(A80<>"", IF(VLOOKUP(A80, plan_cuentas, 4, FALSE) = "H", D80-E80+F80, 0), 0) -> 0
A81: 510202 | B81: DONACIONES INST. PRIVADAS | C81: =IF(A81<>"",IF(VLOOKUP(A81,plan_cuentas,4,FALSE)="D",SUMIFS(Registros!G:G,Registros!B:B,"<"&fecha_inicial,Registros!C:C,"="&'01'!A81)-SUMIFS(Registros!H:H,Registros!B:B,"<"&fecha_inicial,Registros!C:C,"="&'01'!A81), 0), "") -> 0 | D81: =IF(A81<>"",IF(VLOOKUP(A81,plan_cuentas,4,FALSE)="H",SUMIFS(Registros!H:H,Registros!B:B,"<"&fecha_inicial,Registros!C:C,"="&'01'!A81)-SUMIFS(Registros!G:G,Registros!B:B,"<"&fecha_inicial,Registros!C:C,"="&'01'!A81), 0), "") -> 0 | E81: =IF(A81<>"", SUMIFS(Registros!G:G, Registros!B:B, ">=" & fecha_inicial, Registros!B:B, "<=" & fecha_final, Registros!C:C, "=" &'01'!A81), 0) -> 0 | F81: =IF(A81<>"", SUMIFS(Registros!H:H, Registros!B:B, ">=" & fecha_inicial, Registros!B:B, "<=" & fecha_final, Registros!C:C, "=" &'01'!A81), 0) -> 126959 | G81: =IF(A81<>"", IF(VLOOKUP(A81, plan_cuentas, 4, FALSE) = "D", C81+E81-F81, 0), 0) -> 0 | H81: =IF(A81<>"", IF(VLOOKUP(A81, plan_cuentas, 4, FALSE) = "H", D81-E81+F81, 0), 0) -> 126959
A82: 510300 | B82: DONACIONES GRUPOS VOLUNTARIOS | C82: =SUM(C83) -> 0 | D82: 0 | E82: 0 | F82: 28546.75 | G82: 0 | H82: 28546.75
A83: 510301 | B83: DONACIONES DE VOLUNTARIOS | C83: =IF(A83<>"",IF(VLOOKUP(A83,plan_cuentas,4,FALSE)="D",SUMIFS(Registros!G:G,Registros!B:B,"<"&fecha_inicial,Registros!C:C,"="&'01'!A83)-SUMIFS(Registros!H:H,Registros!B:B,"<"&fecha_inicial,Registros!C:C,"="&'01'!A83), 0), "") -> 0 | D83: =IF(A83<>"",IF(VLOOKUP(A83,plan_cuentas,4,FALSE)="H",SUMIFS(Registros!H:H,Registros!B:B,"<"&fecha_inicial,Registros!C:C,"="&'01'!A83)-SUMIFS(Registros!G:G,Registros!B:B,"<"&fecha_inicial,Registros!C:C,"="&'01'!A83), 0), "") -> 0 | E83: =IF(A83<>"", SUMIFS(Registros!G:G, Registros!B:B, ">=" & fecha_inicial, Registros!B:B, "<=" & fecha_final, Registros!C:C, "=" &'01'!A83), 0) -> 0 | F83: =IF(A83<>"", SUMIFS(Registros!H:H, Registros!B:B, ">=" & fecha_inicial, Registros!B:B, "<=" & fecha_final, Registros!C:C, "=" &'01'!A83), 0) -> 28546.75 | G83: =IF(A83<>"", IF(VLOOKUP(A83, plan_cuentas, 4, FALSE) = "D", C83+E83-F83, 0), 0) -> 0 | H83: =IF(A83<>"", IF(VLOOKUP(A83, plan_cuentas, 4, FALSE) = "H", D83-E83+F83, 0), 0) -> 28546.75
A84: 520000 | B84: OTROS INGRESOS | C84: =C85 -> 0 | D84: 10935 | E84: 0 | F84: 0 | G84: 0 | H84: 10935
A85: 520100 | B85: OTROS INGRESOS | C85: =SUM(C86) -> 0 | D85: 10935 | E85: 0 | F85: 0 | G85: 0 | H85: 10935
A86: 520101 | B86: OTROS INGRESOS | C86: =IF(A86<>"",IF(VLOOKUP(A86,plan_cuentas,4,FALSE)="D",SUMIFS(Registros!G:G,Registros!B:B,"<"&fecha_inicial,Registros!C:C,"="&'01'!A86)-SUMIFS(Registros!H:H,Registros!B:B,"<"&fecha_inicial,Registros!C:C,"="&'01'!A86), 0), "") -> 0 | D86: =IF(A86<>"",IF(VLOOKUP(A86,plan_cuentas,4,FALSE)="H",SUMIFS(Registros!H:H,Registros!B:B,"<"&fecha_inicial,Registros!C:C,"="&'01'!A86)-SUMIFS(Registros!G:G,Registros!B:B,"<"&fecha_inicial,Registros!C:C,"="&'01'!A86), 0), "") -> 10935 | E86: =IF(A86<>"", SUMIFS(Registros!G:G, Registros!B:B, ">=" & fecha_inicial, Registros!B:B, "<=" & fecha_final, Registros!C:C, "=" &'01'!A86), 0) -> 0 | F86: =IF(A86<>"", SUMIFS(Registros!H:H, Registros!B:B, ">=" & fecha_inicial, Registros!B:B, "<=" & fecha_final, Registros!C:C, "=" &'01'!A86), 0) -> 0 | G86: =IF(A86<>"", IF(VLOOKUP(A86, plan_cuentas, 4, FALSE) = "D", C86+E86-F86, 0), 0) -> 0 | H86: =IF(A86<>"", IF(VLOOKUP(A86, plan_cuentas, 4, FALSE) = "H", D86-E86+F86, 0), 0) -> 10935
A87: 600000 | B87: GASTOS OPERATIVOS | C87: =C88+C116+C121 -> 526497.31 | D87: 0 | E87: 424728.55 | F87: 0 | G87: 951225.86 | H87: 0
A88: 610000 | B88: GASTOS ADMINISTRATIVOS OFICINA | C88: =C89+C98+C100+C105+C109+C112 -> 284067.67 | D88: 0 | E88: 187959.08 | F88: 0 | G88: 472026.75 | H88: 0
A89: 610100 | B89: GASTOS EN REMUNERACIÓN | C89: =SUM(C90:C97) -> 207646 | D89: 0 | E89: 170716 | F89: 0 | G89: 378362 | H89: 0
A90: 610101 | B90: SALARIOS | C90: =IF(A90<>"",IF(VLOOKUP(A90,plan_cuentas,4,FALSE)="D",SUMIFS(Registros!G:G,Registros!B:B,"<"&fecha_inicial,Registros!C:C,"="&'01'!A90)-SUMIFS(Registros!H:H,Registros!B:B,"<"&fecha_inicial,Registros!C:C,"="&'01'!A90), 0), "") -> 35466 | D90: =IF(A90<>"",IF(VLOOKUP(A90,plan_cuentas,4,FALSE)="H",SUMIFS(Registros!H:H,Registros!B:B,"<"&fecha_inicial,Registros!C:C,"="&'01'!A90)-SUMIFS(Registros!G:G,Registros!B:B,"<"&fecha_inicial,Registros!C:C,"="&'01'!A90), 0), "") -> 0 | E90: =IF(A90<>"", SUMIFS(Registros!G:G, Registros!B:B, ">=" & fecha_inicial, Registros!B:B, "<=" & fecha_final, Registros!C:C, "=" &'01'!A90), 0) -> 12916 | F90: =IF(A90<>"", SUMIFS(Registros!H:H, Registros!B:B, ">=" & fecha_inicial, Registros!B:B, "<=" & fecha_final, Registros!C:C, "=" &'01'!A90), 0) -> 0 | G90: =IF(A90<>"", IF(VLOOKUP(A90, plan_cuentas, 4, FALSE) = "D", C90+E90-F90, 0), 0) -> 48382 | H90: =IF(A90<>"", IF(VLOOKUP(A90, plan_cuentas, 4, FALSE) = "H", D90-E90+F90, 0), 0) -> 0
A91: 610102 | B91: VACACIONES | C91: =IF(A91<>"",IF(VLOOKUP(A91,plan_cuentas,4,FALSE)="D",SUMIFS(Registros!G:G,Registros!B:B,"<"&fecha_inicial,Registros!C:C,"="&'01'!A91)-SUMIFS(Registros!H:H,Registros!B:B,"<"&fecha_inicial,Registros!C:C,"="&'01'!A91), 0), "") -> 0 | D91: =IF(A91<>"",IF(VLOOKUP(A91,plan_cuentas,4,FALSE)="H",SUMIFS(Registros!H:H,Registros!B:B,"<"&fecha_inicial,Registros!C:C,"="&'01'!A91)-SUMIFS(Registros!G:G,Registros!B:B,"<"&fecha_inicial,Registros!C:C,"="&'01'!A91), 0), "") -> 0 | E91: =IF(A91<>"", SUMIFS(Registros!G:G, Registros!B:B, ">=" & fecha_inicial, Registros!B:B, "<=" & fecha_final, Registros!C:C, "=" &'01'!A91), 0) -> 0 | F91: =IF(A91<>"", SUMIFS(Registros!H:H, Registros!B:B, ">=" & fecha_inicial, Registros!B:B, "<=" & fecha_final, Registros!C:C, "=" &'01'!A91), 0) -> 0 | G91: 0 | H91: 0
A92: 610103 | B92: DÉCIMO TERCER MES | C92: =IF(A92<>"",IF(VLOOKUP(A92,plan_cuentas,4,FALSE)="D",SUMIFS(Registros!G:G,Registros!B:B,"<"&fecha_inicial,Registros!C:C,"="&'01'!A92)-SUMIFS(Registros!H:H,Registros!B:B,"<"&fecha_inicial,Registros!C:C,"="&'01'!A92), 0), "") -> 0 | D92: =IF(A92<>"",IF(VLOOKUP(A92,plan_cuentas,4,FALSE)="H",SUMIFS(Registros!H:H,Registros!B:B,"<"&fecha_inicial,Registros!C:C,"="&'01'!A92)-SUMIFS(Registros!G:G,Registros!B:B,"<"&fecha_inicial,Registros!C:C,"="&'01'!A92), 0), "") -> 0 | E92: =IF(A92<>"", SUMIFS(Registros!G:G, Registros!B:B, ">=" & fecha_inicial, Registros!B:B, "<=" & fecha_final, Registros!C:C, "=" &'01'!A92), 0) -> 0 | F92: =IF(A92<>"", SUMIFS(Registros!H:H, Registros!B:B, ">=" & fecha_inicial, Registros!B:B, "<=" & fecha_final, Registros!C:C, "=" &'01'!A92), 0) -> 0 | G92: 0 | H92: 0
A93: 610104 | B93: INDEMNIZACIONES | C93: =IF(A93<>"",IF(VLOOKUP(A93,plan_cuentas,4,FALSE)="D",SUMIFS(Registros!G:G,Registros!B:B,"<"&fecha_inicial,Registros!C:C,"="&'01'!A93)-SUMIFS(Registros!H:H,Registros!B:B,"<"&fecha_inicial,Registros!C:C,"="&'01'!A93), 0), "") -> 0 | D93: =IF(A93<>"",IF(VLOOKUP(A93,plan_cuentas,4,FALSE)="H",SUMIFS(Registros!H:H,Registros!B:B,"<"&fecha_inicial,Registros!C:C,"="&'01'!A93)-SUMIFS(Registros!G:G,Registros!B:B,"<"&fecha_inicial,Registros!C:C,"="&'01'!A93), 0), "") -> 0 | E93: =IF(A93<>"", SUMIFS(Registros!G:G, Registros!B:B, ">=" & fecha_inicial, Registros!B:B, "<=" & fecha_final, Registros!C:C, "=" &'01'!A93), 0) -> 0 | F93: =IF(A93<>"", SUMIFS(Registros!H:H, Registros!B:B, ">=" & fecha_inicial, Registros!B:B, "<=" & fecha_final, Registros!C:C, "=" &'01'!A93), 0) -> 0 | G93: 0 | H93: 0
A94: 610105 | B94: INSS PATRONAL | C94: =IF(A94<>"",IF(VLOOKUP(A94,plan_cuentas,4,FALSE)="D",SUMIFS(Registros!G:G,Registros!B:B,"<"&fecha_inicial,Registros!C:C,"="&'01'!A94)-SUMIFS(Registros!H:H,Registros!B:B,"<"&fecha_inicial,Registros!C:C,"="&'01'!A94), 0), "") -> 0 | D94: =IF(A94<>"",IF(VLOOKUP(A94,plan_cuentas,4,FALSE)="H",SUMIFS(Registros!H:H,Registros!B:B,"<"&fecha_inicial,Registros!C:C,"="&'01'!A94)-SUMIFS(Registros!G:G,Registros!B:B,"<"&fecha_inicial,Registros!C:C,"="&'01'!A94), 0), "") -> 0 | E94: =IF(A94<>"", SUMIFS(Registros!G:G, Registros!B:B, ">=" & fecha_inicial, Registros!B:B, "<=" & fecha_final, Registros!C:C, "=" &'01'!A94), 0) -> 0 | F94: =IF(A94<>"", SUMIFS(Registros!H:H, Registros!B:B, ">=" & fecha_inicial, Registros!B:B, "<=" & fecha_final, Registros!C:C, "=" &'01'!A94), 0) -> 0 | G94: 0 | H94: 0
A95: 610106 | B95: APORTE INATEC | C95: =IF(A95<>"",IF(VLOOKUP(A95,plan_cuentas,4,FALSE)="D",SUMIFS(Registros!G:G,Registros!B:B,"<"&fecha_inicial,Registros!C:C,"="&'01'!A95)-SUMIFS(Registros!H:H,Registros!B:B,"<"&fecha_inicial,Registros!C:C,"="&'01'!A95), 0), "") -> 0 | D95: =IF(A95<>"",IF(VLOOKUP(A95,plan_cuentas,4,FALSE)="H",SUMIFS(Registros!H:H,Registros!B:B,"<"&fecha_inicial,Registros!C:C,"="&'01'!A95)-SUMIFS(Registros!G:G,Registros!B:B,"<"&fecha_inicial,Registros!C:C,"="&'01'!A95), 0), "") -> 0 | E95: =IF(A95<>"", SUMIFS(Registros!G:G, Registros!B:B, ">=" & fecha_inicial, Registros!B:B, "<=" & fecha_final, Registros!C:C, "=" &'01'!A95), 0) -> 0 | F95: =IF(A95<>"", SUMIFS(Registros!H:H, Registros!B:B, ">=" & fecha_inicial, Registros!B:B, "<=" & fecha_final, Registros!C:C, "=" &'01'!A95), 0) -> 0 | G95: 0 | H95: 0
A96: 610107 | B96: OTROS BENEFICIOS | C96: =IF(A96<>"",IF(VLOOKUP(A96,plan_cuentas,4,FALSE)="D",SUMIFS(Registros!G:G,Registros!B:B,"<"&fecha_inicial,Registros!C:C,"="&'01'!A96)-SUMIFS(Registros!H:H,Registros!B:B,"<"&fecha_inicial,Registros!C:C,"="&'01'!A96), 0), "") -> 874 | D96: =IF(A96<>"",IF(VLOOKUP(A96,plan_cuentas,4,FALSE)="H",SUMIFS(Registros!H:H,Registros!B:B,"<"&fecha_inicial,Registros!C:C,"="&'01'!A96)-SUMIFS(Registros!G:G,Registros!B:B,"<"&fecha_inicial,Registros!C:C,"="&'01'!A96), 0), "") -> 0 | E96: =IF(A96<>"", SUMIFS(Registros!G:G, Registros!B:B, ">=" & fecha_inicial, Registros!B:B, "<=" & fecha_final, Registros!C:C, "=" &'01'!A96), 0) -> 0 | F96: =IF(A96<>"", SUMIFS(Registros!H:H, Registros!B:B, ">=" & fecha_inicial, Registros!B:B, "<=" & fecha_final, Registros!C:C, "=" &'01'!A96), 0) -> 0 | G96: 874 | H96: 0
A97: 610108 | B97: =IFERROR(IF(A97<>"", VLOOKUP(A97, plan_cuentas,2, FALSE), ""), "CÓDIGO INCORRECTO") -> OTROS PAGOS | C97: =IF(A97<>"",IF(VLOOKUP(A97,plan_cuentas,4,FALSE)="D",SUMIFS(Registros!G:G,Registros!B:B,"<"&fecha_inicial,Registros!C:C,"="&'01'!A97)-SUMIFS(Registros!H:H,Registros!B:B,"<"&fecha_inicial,Registros!C:C,"="&'01'!A97), 0), "") -> 171306 | D97: =IF(A97<>"",IF(VLOOKUP(A97,plan_cuentas,4,FALSE)="H",SUMIFS(Registros!H:H,Registros!B:B,"<"&fecha_inicial,Registros!C:C,"="&'01'!A97)-SUMIFS(Registros!G:G,Registros!B:B,"<"&fecha_inicial,Registros!C:C,"="&'01'!A97), 0), "") -> 0 | E97: =IF(A97<>"", SUMIFS(Registros!G:G, Registros!B:B, ">=" & fecha_inicial, Registros!B:B, "<=" & fecha_final, Registros!C:C, "=" &'01'!A97), 0) -> 157800 | F97: =IF(A97<>"", SUMIFS(Registros!H:H, Registros!B:B, ">=" & fecha_inicial, Registros!B:B, "<=" & fecha_final, Registros!C:C, "=" &'01'!A97), 0) -> 0 | G97: =IF(A97<>"", IF(VLOOKUP(A97, plan_cuentas, 4, FALSE) = "D", C97+E97-F97, 0), 0) -> 329106 | H97: =IF(A97<>"", IF(VLOOKUP(A97, plan_cuentas, 4, FALSE) = "H", D97-E97+F97, 0), 0) -> 0
A98: 610200 | B98: ALQUILERES | C98: =SUM(C99) -> 12926.64 | D98: 0 | E98: 5191.82 | F98: 0 | G98: 18118.46 | H98: 0
A99: 610201 | B99: RENTA DE OFICINA ADMINISTRATIVA | C99: =IF(A99<>"",IF(VLOOKUP(A99,plan_cuentas,4,FALSE)="D",SUMIFS(Registros!G:G,Registros!B:B,"<"&fecha_inicial,Registros!C:C,"="&'01'!A99)-SUMIFS(Registros!H:H,Registros!B:B,"<"&fecha_inicial,Registros!C:C,"="&'01'!A99), 0), "") -> 12926.64 | D99: =IF(A99<>"",IF(VLOOKUP(A99,plan_cuentas,4,FALSE)="H",SUMIFS(Registros!H:H,Registros!B:B,"<"&fecha_inicial,Registros!C:C,"="&'01'!A99)-SUMIFS(Registros!G:G,Registros!B:B,"<"&fecha_inicial,Registros!C:C,"="&'01'!A99), 0), "") -> 0 | E99: =IF(A99<>"", SUMIFS(Registros!G:G, Registros!B:B, ">=" & fecha_inicial, Registros!B:B, "<=" & fecha_final, Registros!C:C, "=" &'01'!A99), 0) -> 5191.82 | F99: =IF(A99<>"", SUMIFS(Registros!H:H, Registros!B:B, ">=" & fecha_inicial, Registros!B:B, "<=" & fecha_final, Registros!C:C, "=" &'01'!A99), 0) -> 0 | G99: =IF(A99<>"", IF(VLOOKUP(A99, plan_cuentas, 4, FALSE) = "D", C99+E99-F99, 0), 0) -> 18118.46 | H99: =IF(A99<>"", IF(VLOOKUP(A99, plan_cuentas, 4, FALSE) = "H", D99-E99+F99, 0), 0) -> 0
A100: 610300 | B100: SERVICIOS BÁSICOS | C100: =SUM(C101:C104) -> 9522.19 | D100: 0 | E100: 1042 | F100: 0 | G100: 10564.19 | H100: 0
A101: 610301 | B101: SERVICIO ENERGÍA ELÉCTRICA | C101: =IF(A101<>"",IF(VLOOKUP(A101,plan_cuentas,4,FALSE)="D",SUMIFS(Registros!G:G,Registros!B:B,"<"&fecha_inicial,Registros!C:C,"="&'01'!A101)-SUMIFS(Registros!H:H,Registros!B:B,"<"&fecha_inicial,Registros!C:C,"="&'01'!A101), 0), "") -> 0 | D101: =IF(A101<>"",IF(VLOOKUP(A101,plan_cuentas,4,FALSE)="H",SUMIFS(Registros!H:H,Registros!B:B,"<"&fecha_inicial,Registros!C:C,"="&'01'!A101)-SUMIFS(Registros!G:G,Registros!B:B,"<"&fecha_inicial,Registros!C:C,"="&'01'!A101), 0), "") -> 0 | E101: =IF(A101<>"", SUMIFS(Registros!G:G, Registros!B:B, ">=" & fecha_inicial, Registros!B:B, "<=" & fecha_final, Registros!C:C, "=" &'01'!A101), 0) -> 700 | F101: =IF(A101<>"", SUMIFS(Registros!H:H, Registros!B:B, ">=" & fecha_inicial, Registros!B:B, "<=" & fecha_final, Registros!C:C, "=" &'01'!A101), 0) -> 0 | G101: =IF(A101<>"", IF(VLOOKUP(A101, plan_cuentas, 4, FALSE) = "D", C101+E101-F101, 0), 0) -> 700 | H101: =IF(A101<>"", IF(VLOOKUP(A101, plan_cuentas, 4, FALSE) = "H", D101-E101+F101, 0), 0) -> 0
A102: 610302 | B102: SERVICIO AGUA POTABLE | C102: =IF(A102<>"",IF(VLOOKUP(A102,plan_cuentas,4,FALSE)="D",SUMIFS(Registros!G:G,Registros!B:B,"<"&fecha_inicial,Registros!C:C,"="&'01'!A102)-SUMIFS(Registros!H:H,Registros!B:B,"<"&fecha_inicial,Registros!C:C,"="&'01'!A102), 0), "") -> 0 | D102: =IF(A102<>"",IF(VLOOKUP(A102,plan_cuentas,4,FALSE)="H",SUMIFS(Registros!H:H,Registros!B:B,"<"&fecha_inicial,Registros!C:C,"="&'01'!A102)-SUMIFS(Registros!G:G,Registros!B:B,"<"&fecha_inicial,Registros!C:C,"="&'01'!A102), 0), "") -> 0 | E102: =IF(A102<>"", SUMIFS(Registros!G:G, Registros!B:B, ">=" & fecha_inicial, Registros!B:B, "<=" & fecha_final, Registros!C:C, "=" &'01'!A102), 0) -> 0 | F102: =IF(A102<>"", SUMIFS(Registros!H:H, Registros!B:B, ">=" & fecha_inicial, Registros!B:B, "<=" & fecha_final, Registros!C:C, "=" &'01'!A102), 0) -> 0 | G102: =IF(A102<>"", IF(VLOOKUP(A102, plan_cuentas, 4, FALSE) = "D", C102+E102-F102, 0), 0) -> 0 | H102: =IF(A102<>"", IF(VLOOKUP(A102, plan_cuentas, 4, FALSE) = "H", D102-E102+F102, 0), 0) -> 0
A103: 610303 | B103: TELEFONÍA FIJA Y CELULAR | C103: =IF(A103<>"",IF(VLOOKUP(A103,plan_cuentas,4,FALSE)="D",SUMIFS(Registros!G:G,Registros!B:B,"<"&fecha_inicial,Registros!C:C,"="&'01'!A103)-SUMIFS(Registros!H:H,Registros!B:B,"<"&fecha_inicial,Registros!C:C,"="&'01'!A103), 0), "") -> 4982.76 | D103: =IF(A103<>"",IF(VLOOKUP(A103,plan_cuentas,4,FALSE)="H",SUMIFS(Registros!H:H,Registros!B:B,"<"&fecha_inicial,Registros!C:C,"="&'01'!A103)-SUMIFS(Registros!G:G,Registros!B:B,"<"&fecha_inicial,Registros!C:C,"="&'01'!A103), 0), "") -> 0 | E103: =IF(A103<>"", SUMIFS(Registros!G:G, Registros!B:B, ">=" & fecha_inicial, Registros!B:B, "<=" & fecha_final, Registros!C:C, "=" &'01'!A103), 0) -> 342 | F103: =IF(A103<>"", SUMIFS(Registros!H:H, Registros!B:B, ">=" & fecha_inicial, Registros!B:B, "<=" & fecha_final, Registros!C:C, "=" &'01'!A103), 0) -> 0 | G103: =IF(A103<>"", IF(VLOOKUP(A103, plan_cuentas, 4, FALSE) = "D", C103+E103-F103, 0), 0) -> 5324.76 | H103: =IF(A103<>"", IF(VLOOKUP(A103, plan_cuentas, 4, FALSE) = "H", D103-E103+F103, 0), 0) -> 0
A104: 610304 | B104: INTERNET FIJO Y MÓVIL | C104: =IF(A104<>"",IF(VLOOKUP(A104,plan_cuentas,4,FALSE)="D",SUMIFS(Registros!G:G,Registros!B:B,"<"&fecha_inicial,Registros!C:C,"="&'01'!A104)-SUMIFS(Registros!H:H,Registros!B:B,"<"&fecha_inicial,Registros!C:C,"="&'01'!A104), 0), "") -> 4539.43 | D104: =IF(A104<>"",IF(VLOOKUP(A104,plan_cuentas,4,FALSE)="H",SUMIFS(Registros!H:H,Registros!B:B,"<"&fecha_inicial,Registros!C:C,"="&'01'!A104)-SUMIFS(Registros!G:G,Registros!B:B,"<"&fecha_inicial,Registros!C:C,"="&'01'!A104), 0), "") -> 0 | E104: =IF(A104<>"", SUMIFS(Registros!G:G, Registros!B:B, ">=" & fecha_inicial, Registros!B:B, "<=" & fecha_final, Registros!C:C, "=" &'01'!A104), 0) -> 0 | F104: =IF(A104<>"", SUMIFS(Registros!H:H, Registros!B:B, ">=" & fecha_inicial, Registros!B:B, "<=" & fecha_final, Registros!C:C, "=" &'01'!A104), 0) -> 0 | G104: =IF(A104<>"", IF(VLOOKUP(A104, plan_cuentas, 4, FALSE) = "D", C104+E104-F104, 0), 0) -> 4539.43 | H104: =IF(A104<>"", IF(VLOOKUP(A104, plan_cuentas, 4, FALSE) = "H", D104-E104+F104, 0), 0) -> 0
A105: 610400 | B105: GASTO EN MATERIALES Y SUMINISTROS | C105: =SUM(C106:C108) -> 3777.2 | D105: 0 | E105: 3323.84 | F105: 0 | G105: 7101.04 | H105: 0
A106: 610401 | B106: PAPELERÍA Y ÚTILES DE OFICINA | C106: =IF(A106<>"",IF(VLOOKUP(A106,plan_cuentas,4,FALSE)="D",SUMIFS(Registros!G:G,Registros!B:B,"<"&fecha_inicial,Registros!C:C,"="&'01'!A106)-SUMIFS(Registros!H:H,Registros!B:B,"<"&fecha_inicial,Registros!C:C,"="&'01'!A106), 0), "") -> 0 | D106: =IF(A106<>"",IF(VLOOKUP(A106,plan_cuentas,4,FALSE)="H",SUMIFS(Registros!H:H,Registros!B:B,"<"&fecha_inicial,Registros!C:C,"="&'01'!A106)-SUMIFS(Registros!G:G,Registros!B:B,"<"&fecha_inicial,Registros!C:C,"="&'01'!A106), 0), "") -> 0 | E106: =IF(A106<>"", SUMIFS(Registros!G:G, Registros!B:B, ">=" & fecha_inicial, Registros!B:B, "<=" & fecha_final, Registros!C:C, "=" &'01'!A106), 0) -> 0 | F106: =IF(A106<>"", SUMIFS(Registros!H:H, Registros!B:B, ">=" & fecha_inicial, Registros!B:B, "<=" & fecha_final, Registros!C:C, "=" &'01'!A106), 0) -> 0 | G106: =IF(A106<>"", IF(VLOOKUP(A106, plan_cuentas, 4, FALSE) = "D", C106+E106-F106, 0), 0) -> 0 | H106: =IF(A106<>"", IF(VLOOKUP(A106, plan_cuentas, 4, FALSE) = "H", D106-E106+F106, 0), 0) -> 0
A107: 610402 | B107: PRODUCTOS DE LIMPIEZA | C107: =IF(A107<>"",IF(VLOOKUP(A107,plan_cuentas,4,FALSE)="D",SUMIFS(Registros!G:G,Registros!B:B,"<"&fecha_inicial,Registros!C:C,"="&'01'!A107)-SUMIFS(Registros!H:H,Registros!B:B,"<"&fecha_inicial,Registros!C:C,"="&'01'!A107), 0), "") -> 1877.2 | D107: =IF(A107<>"",IF(VLOOKUP(A107,plan_cuentas,4,FALSE)="H",SUMIFS(Registros!H:H,Registros!B:B,"<"&fecha_inicial,Registros!C:C,"="&'01'!A107)-SUMIFS(Registros!G:G,Registros!B:B,"<"&fecha_inicial,Registros!C:C,"="&'01'!A107), 0), "") -> 0 | E107: =IF(A107<>"", SUMIFS(Registros!G:G, Registros!B:B, ">=" & fecha_inicial, Registros!B:B, "<=" & fecha_final, Registros!C:C, "=" &'01'!A107), 0) -> 1889.9 | F107: =IF(A107<>"", SUMIFS(Registros!H:H, Registros!B:B, ">=" & fecha_inicial, Registros!B:B, "<=" & fecha_final, Registros!C:C, "=" &'01'!A107), 0) -> 0 | G107: =IF(A107<>"", IF(VLOOKUP(A107, plan_cuentas, 4, FALSE) = "D", C107+E107-F107, 0), 0) -> 3767.1 | H107: =IF(A107<>"", IF(VLOOKUP(A107, plan_cuentas, 4, FALSE) = "H", D107-E107+F107, 0), 0) -> 0
A108: 610403 | B108: COMBUSTIBLE | C108: =IF(A108<>"",IF(VLOOKUP(A108,plan_cuentas,4,FALSE)="D",SUMIFS(Registros!G:G,Registros!B:B,"<"&fecha_inicial,Registros!C:C,"="&'01'!A108)-SUMIFS(Registros!H:H,Registros!B:B,"<"&fecha_inicial,Registros!C:C,"="&'01'!A108), 0), "") -> 1900 | D108: =IF(A108<>"",IF(VLOOKUP(A108,plan_cuentas,4,FALSE)="H",SUMIFS(Registros!H:H,Registros!B:B,"<"&fecha_inicial,Registros!C:C,"="&'01'!A108)-SUMIFS(Registros!G:G,Registros!B:B,"<"&fecha_inicial,Registros!C:C,"="&'01'!A108), 0), "") -> 0 | E108: =IF(A108<>"", SUMIFS(Registros!G:G, Registros!B:B, ">=" & fecha_inicial, Registros!B:B, "<=" & fecha_final, Registros!C:C, "=" &'01'!A108), 0) -> 1433.94 | F108: =IF(A108<>"", SUMIFS(Registros!H:H, Registros!B:B, ">=" & fecha_inicial, Registros!B:B, "<=" & fecha_final, Registros!C:C, "=" &'01'!A108), 0) -> 0 | G108: =IF(A108<>"", IF(VLOOKUP(A108, plan_cuentas, 4, FALSE) = "D", C108+E108-F108, 0), 0) -> 3333.94 | H108: =IF(A108<>"", IF(VLOOKUP(A108, plan_cuentas, 4, FALSE) = "H", D108-E108+F108, 0), 0) -> 0
A109: 610500 | B109: GASTOS DE MANTENIMIENTO | C109: =SUM(C110:C111) -> 21745.03 | D109: 0 | E109: 525.33 | F109: 0 | G109: 22270.36 | H109: 0
A110: 610501 | B110: MANTENIMIENTO DE EDIFICIOS | C110: =IF(A110<>"",IF(VLOOKUP(A110,plan_cuentas,4,FALSE)="D",SUMIFS(Registros!G:G,Registros!B:B,"<"&fecha_inicial,Registros!C:C,"="&'01'!A110)-SUMIFS(Registros!H:H,Registros!B:B,"<"&fecha_inicial,Registros!C:C,"="&'01'!A110), 0), "") -> 2000 | D110: =IF(A110<>"",IF(VLOOKUP(A110,plan_cuentas,4,FALSE)="H",SUMIFS(Registros!H:H,Registros!B:B,"<"&fecha_inicial,Registros!C:C,"="&'01'!A110)-SUMIFS(Registros!G:G,Registros!B:B,"<"&fecha_inicial,Registros!C:C,"="&'01'!A110), 0), "") -> 0 | E110: =IF(A110<>"", SUMIFS(Registros!G:G, Registros!B:B, ">=" & fecha_inicial, Registros!B:B, "<=" & fecha_final, Registros!C:C, "=" &'01'!A110), 0) -> 0 | F110: =IF(A110<>"", SUMIFS(Registros!H:H, Registros!B:B, ">=" & fecha_inicial, Registros!B:B, "<=" & fecha_final, Registros!C:C, "=" &'01'!A110), 0) -> 0 | G110: =IF(A110<>"", IF(VLOOKUP(A110, plan_cuentas, 4, FALSE) = "D", C110+E110-F110, 0), 0) -> 2000 | H110: =IF(A110<>"", IF(VLOOKUP(A110, plan_cuentas, 4, FALSE) = "H", D110-E110+F110, 0), 0) -> 0
A111: 610502 | B111: =IFERROR(IF(A111<>"", VLOOKUP(A111, plan_cuentas,2, FALSE), ""), "CÓDIGO INCORRECTO") -> MANTENIMIENTO DE VEHÍCULOS | C111: =IF(A111<>"",IF(VLOOKUP(A111,plan_cuentas,4,FALSE)="D",SUMIFS(Registros!G:G,Registros!B:B,"<"&fecha_inicial,Registros!C:C,"="&'01'!A111)-SUMIFS(Registros!H:H,Registros!B:B,"<"&fecha_inicial,Registros!C:C,"="&'01'!A111), 0), "") -> 19745.03 | D111: =IF(A111<>"",IF(VLOOKUP(A111,plan_cuentas,4,FALSE)="H",SUMIFS(Registros!H:H,Registros!B:B,"<"&fecha_inicial,Registros!C:C,"="&'01'!A111)-SUMIFS(Registros!G:G,Registros!B:B,"<"&fecha_inicial,Registros!C:C,"="&'01'!A111), 0), "") -> 0 | E111: =IF(A111<>"", SUMIFS(Registros!G:G, Registros!B:B, ">=" & fecha_inicial, Registros!B:B, "<=" & fecha_final, Registros!C:C, "=" &'01'!A111), 0) -> 525.33 | F111: =IF(A111<>"", SUMIFS(Registros!H:H, Registros!B:B, ">=" & fecha_inicial, Registros!B:B, "<=" & fecha_final, Registros!C:C, "=" &'01'!A111), 0) -> 0 | G111: =IF(A111<>"", IF(VLOOKUP(A111, plan_cuentas, 4, FALSE) = "D", C111+E111-F111, 0), 0) -> 20270.36 | H111: =IF(A111<>"", IF(VLOOKUP(A111, plan_cuentas, 4, FALSE) = "H", D111-E111+F111, 0), 0) -> 0
A112: 610600 | B112: GASTOS VARIOS | C112: =SUM(C113:C115) -> 28450.61 | D112: =SUM(D113:D114) -> 0 | E112: =SUM(E113:E115) -> 7160.09 | F112: =SUM(F113:F114) -> 0 | G112: =SUM(G113:G115) -> 35610.7 | H112: =SUM(H113:H115) -> 0
A113: 610601 | B113: =IFERROR(IF(A113<>"", VLOOKUP(A113, plan_cuentas,2, FALSE), ""), "CÓDIGO INCORRECTO") -> VIÁTICOS ALIMENTACIÓN Y TRANSPORTE | C113: =IF(A113<>"",IF(VLOOKUP(A113,plan_cuentas,4,FALSE)="D",SUMIFS(Registros!G:G,Registros!B:B,"<"&fecha_inicial,Registros!C:C,"="&'01'!A113)-SUMIFS(Registros!H:H,Registros!B:B,"<"&fecha_inicial,Registros!C:C,"="&'01'!A113), 0), "") -> 323.4 | D113: =IF(A113<>"",IF(VLOOKUP(A113,plan_cuentas,4,FALSE)="H",SUMIFS(Registros!H:H,Registros!B:B,"<"&fecha_inicial,Registros!C:C,"="&'01'!A113)-SUMIFS(Registros!G:G,Registros!B:B,"<"&fecha_inicial,Registros!C:C,"="&'01'!A113), 0), "") -> 0 | E113: =IF(A113<>"", SUMIFS(Registros!G:G, Registros!B:B, ">=" & fecha_inicial, Registros!B:B, "<=" & fecha_final, Registros!C:C, "=" &'01'!A113), 0) -> 4191.32 | F113: =IF(A113<>"", SUMIFS(Registros!H:H, Registros!B:B, ">=" & fecha_inicial, Registros!B:B, "<=" & fecha_final, Registros!C:C, "=" &'01'!A113), 0) -> 0 | G113: =IF(A113<>"", IF(VLOOKUP(A113, plan_cuentas, 4, FALSE) = "D", C113+E113-F113, 0), 0) -> 4514.72 | H113: =IF(A113<>"", IF(VLOOKUP(A113, plan_cuentas, 4, FALSE) = "H", D113-E113+F113, 0), 0) -> 0
A114: 610602 | B114: GASTOS DE REPRESENTACIÓN | C114: =IF(A114<>"",IF(VLOOKUP(A114,plan_cuentas,4,FALSE)="D",SUMIFS(Registros!G:G,Registros!B:B,"<"&fecha_inicial,Registros!C:C,"="&'01'!A114)-SUMIFS(Registros!H:H,Registros!B:B,"<"&fecha_inicial,Registros!C:C,"="&'01'!A114), 0), "") -> 28127.21 | D114: =IF(A114<>"",IF(VLOOKUP(A114,plan_cuentas,4,FALSE)="H",SUMIFS(Registros!H:H,Registros!B:B,"<"&fecha_inicial,Registros!C:C,"="&'01'!A114)-SUMIFS(Registros!G:G,Registros!B:B,"<"&fecha_inicial,Registros!C:C,"="&'01'!A114), 0), "") -> 0 | E114: =IF(A114<>"", SUMIFS(Registros!G:G, Registros!B:B, ">=" & fecha_inicial, Registros!B:B, "<=" & fecha_final, Registros!C:C, "=" &'01'!A114), 0) -> 2968.77 | F114: =IF(A114<>"", SUMIFS(Registros!H:H, Registros!B:B, ">=" & fecha_inicial, Registros!B:B, "<=" & fecha_final, Registros!C:C, "=" &'01'!A114), 0) -> 0 | G114: =IF(A114<>"", IF(VLOOKUP(A114, plan_cuentas, 4, FALSE) = "D", C114+E114-F114, 0), 0) -> 31095.98 | H114: =IF(A114<>"", IF(VLOOKUP(A114, plan_cuentas, 4, FALSE) = "H", D114-E114+F114, 0), 0) -> 0
A115: 610603 | B115: GASTOS VARIOS ADMINISTRATIVOS
A116: 620000 | B116: DEPRECIACIÓN | C116: =C117+C119 -> 0 | D116: 0 | E116: 0 | F116: 0 | G116: 0 | H116: 0
A117: 620100 | B117: DEPRECIACIÓN DE MOBILIARIO | C117: =SUM(C118) -> 0 | D117: 0 | E117: 0 | F117: 0 | G117: 0 | H117: 0
A118: 620101 | B118: DEPRECIACIÓN DE MUEBLES Y ENSERES | C118: =IF(A118<>"",IF(VLOOKUP(A118,plan_cuentas,4,FALSE)="D",SUMIFS(Registros!G:G,Registros!B:B,"<"&fecha_inicial,Registros!C:C,"="&'01'!A118)-SUMIFS(Registros!H:H,Registros!B:B,"<"&fecha_inicial,Registros!C:C,"="&'01'!A118), 0), "") -> 0 | D118: =IF(A118<>"",IF(VLOOKUP(A118,plan_cuentas,4,FALSE)="H",SUMIFS(Registros!H:H,Registros!B:B,"<"&fecha_inicial,Registros!C:C,"="&'01'!A118)-SUMIFS(Registros!G:G,Registros!B:B,"<"&fecha_inicial,Registros!C:C,"="&'01'!A118), 0), "") -> 0 | E118: =IF(A118<>"", SUMIFS(Registros!G:G, Registros!B:B, ">=" & fecha_inicial, Registros!B:B, "<=" & fecha_final, Registros!C:C, "=" &'01'!A118), 0) -> 0 | F118: =IF(A118<>"", SUMIFS(Registros!H:H, Registros!B:B, ">=" & fecha_inicial, Registros!B:B, "<=" & fecha_final, Registros!C:C, "=" &'01'!A118), 0) -> 0 | G118: =IF(A118<>"", IF(VLOOKUP(A118, plan_cuentas, 4, FALSE) = "D", C118+E118-F118, 0), 0) -> 0 | H118: =IF(A118<>"", IF(VLOOKUP(A118, plan_cuentas, 4, FALSE) = "H", D118-E118+F118, 0), 0) -> 0
A119: 620200 | B119: DEPRECIACIÓN DE EQUIPO | C119: =SUM(C120) -> 0 | D119: 0 | E119: 0 | F119: 0 | G119: 0 | H119: 0
A120: 620201 | B120: DEPRECIACIÓN EQUIPO INFORMÁTICO | C120: =IF(A120<>"",IF(VLOOKUP(A120,plan_cuentas,4,FALSE)="D",SUMIFS(Registros!G:G,Registros!B:B,"<"&fecha_inicial,Registros!C:C,"="&'01'!A120)-SUMIFS(Registros!H:H,Registros!B:B,"<"&fecha_inicial,Registros!C:C,"="&'01'!A120), 0), "") -> 0 | D120: =IF(A120<>"",IF(VLOOKUP(A120,plan_cuentas,4,FALSE)="H",SUMIFS(Registros!H:H,Registros!B:B,"<"&fecha_inicial,Registros!C:C,"="&'01'!A120)-SUMIFS(Registros!G:G,Registros!B:B,"<"&fecha_inicial,Registros!C:C,"="&'01'!A120), 0), "") -> 0 | E120: =IF(A120<>"", SUMIFS(Registros!G:G, Registros!B:B, ">=" & fecha_inicial, Registros!B:B, "<=" & fecha_final, Registros!C:C, "=" &'01'!A120), 0) -> 0 | F120: =IF(A120<>"", SUMIFS(Registros!H:H, Registros!B:B, ">=" & fecha_inicial, Registros!B:B, "<=" & fecha_final, Registros!C:C, "=" &'01'!A120), 0) -> 0 | G120: =IF(A120<>"", IF(VLOOKUP(A120, plan_cuentas, 4, FALSE) = "D", C120+E120-F120, 0), 0) -> 0 | H120: =IF(A120<>"", IF(VLOOKUP(A120, plan_cuentas, 4, FALSE) = "H", D120-E120+F120, 0), 0) -> 0
A121: 630000 | B121: GASTOS DE PROYECTOS | C121: =C122+C128+C138+C147+C153 -> 242429.64 | D121: 0 | E121: 236769.47 | F121: 0 | G121: 479199.11 | H121: 0
A122: 630100 | B122: PROYECTO PARQUE DEPORTIVO | C122: =SUM(C123:C127) -> 7017.62 | D122: 0 | E122: 2269.31 | F122: 0 | G122: 9286.93 | H122: 0
A123: 630101 | B123: ADMINISTRATIVOS Y GENERALES | C123: =IF(A123<>"",IF(VLOOKUP(A123,plan_cuentas,4,FALSE)="D",SUMIFS(Registros!G:G,Registros!B:B,"<"&fecha_inicial,Registros!C:C,"="&'01'!A123)-SUMIFS(Registros!H:H,Registros!B:B,"<"&fecha_inicial,Registros!C:C,"="&'01'!A123), 0), "") -> 0 | D123: =IF(A123<>"",IF(VLOOKUP(A123,plan_cuentas,4,FALSE)="H",SUMIFS(Registros!H:H,Registros!B:B,"<"&fecha_inicial,Registros!C:C,"="&'01'!A123)-SUMIFS(Registros!G:G,Registros!B:B,"<"&fecha_inicial,Registros!C:C,"="&'01'!A123), 0), "") -> 0 | E123: =IF(A123<>"", SUMIFS(Registros!G:G, Registros!B:B, ">=" & fecha_inicial, Registros!B:B, "<=" & fecha_final, Registros!C:C, "=" &'01'!A123), 0) -> 769.31 | F123: =IF(A123<>"", SUMIFS(Registros!H:H, Registros!B:B, ">=" & fecha_inicial, Registros!B:B, "<=" & fecha_final, Registros!C:C, "=" &'01'!A123), 0) -> 0 | G123: =IF(A123<>"", IF(VLOOKUP(A123, plan_cuentas, 4, FALSE) = "D", C123+E123-F123, 0), 0) -> 769.31 | H123: =IF(A123<>"", IF(VLOOKUP(A123, plan_cuentas, 4, FALSE) = "H", D123-E123+F123, 0), 0) -> 0
A124: 630102 | B124: =IFERROR(IF(A124<>"", VLOOKUP(A124, plan_cuentas,2, FALSE), ""), "CÓDIGO INCORRECTO") -> GASTOS VARIOS | C124: =IF(A124<>"",IF(VLOOKUP(A124,plan_cuentas,4,FALSE)="D",SUMIFS(Registros!G:G,Registros!B:B,"<"&fecha_inicial,Registros!C:C,"="&'01'!A124)-SUMIFS(Registros!H:H,Registros!B:B,"<"&fecha_inicial,Registros!C:C,"="&'01'!A124), 0), "") -> 6757.62 | D124: =IF(A124<>"",IF(VLOOKUP(A124,plan_cuentas,4,FALSE)="H",SUMIFS(Registros!H:H,Registros!B:B,"<"&fecha_inicial,Registros!C:C,"="&'01'!A124)-SUMIFS(Registros!G:G,Registros!B:B,"<"&fecha_inicial,Registros!C:C,"="&'01'!A124), 0), "") -> 0 | E124: =IF(A124<>"", SUMIFS(Registros!G:G, Registros!B:B, ">=" & fecha_inicial, Registros!B:B, "<=" & fecha_final, Registros!C:C, "=" &'01'!A124), 0) -> 0 | F124: =IF(A124<>"", SUMIFS(Registros!H:H, Registros!B:B, ">=" & fecha_inicial, Registros!B:B, "<=" & fecha_final, Registros!C:C, "=" &'01'!A124), 0) -> 0 | G124: =IF(A124<>"", IF(VLOOKUP(A124, plan_cuentas, 4, FALSE) = "D", C124+E124-F124, 0), 0) -> 6757.62 | H124: =IF(A124<>"", IF(VLOOKUP(A124, plan_cuentas, 4, FALSE) = "H", D124-E124+F124, 0), 0) -> 0
A125: 630103 | B125: =IFERROR(IF(A125<>"", VLOOKUP(A125, plan_cuentas,2, FALSE), ""), "CÓDIGO INCORRECTO") -> APORTE SOCIAL | C125: =IF(A125<>"",IF(VLOOKUP(A125,plan_cuentas,4,FALSE)="D",SUMIFS(Registros!G:G,Registros!B:B,"<"&fecha_inicial,Registros!C:C,"="&'01'!A125)-SUMIFS(Registros!H:H,Registros!B:B,"<"&fecha_inicial,Registros!C:C,"="&'01'!A125), 0), "") -> 0 | D125: =IF(A125<>"",IF(VLOOKUP(A125,plan_cuentas,4,FALSE)="H",SUMIFS(Registros!H:H,Registros!B:B,"<"&fecha_inicial,Registros!C:C,"="&'01'!A125)-SUMIFS(Registros!G:G,Registros!B:B,"<"&fecha_inicial,Registros!C:C,"="&'01'!A125), 0), "") -> 0 | E125: =IF(A125<>"", SUMIFS(Registros!G:G, Registros!B:B, ">=" & fecha_inicial, Registros!B:B, "<=" & fecha_final, Registros!C:C, "=" &'01'!A125), 0) -> 1200 | F125: =IF(A125<>"", SUMIFS(Registros!H:H, Registros!B:B, ">=" & fecha_inicial, Registros!B:B, "<=" & fecha_final, Registros!C:C, "=" &'01'!A125), 0) -> 0 | G125: =IF(A125<>"", IF(VLOOKUP(A125, plan_cuentas, 4, FALSE) = "D", C125+E125-F125, 0), 0) -> 1200 | H125: =IF(A125<>"", IF(VLOOKUP(A125, plan_cuentas, 4, FALSE) = "H", D125-E125+F125, 0), 0) -> 0
A126: 630104 | B126: =IFERROR(IF(A126<>"", VLOOKUP(A126, plan_cuentas,2, FALSE), ""), "CÓDIGO INCORRECTO") -> GASTO POR MANTO. DE LOCAL | C126: =IF(A126<>"",IF(VLOOKUP(A126,plan_cuentas,4,FALSE)="D",SUMIFS(Registros!G:G,Registros!B:B,"<"&fecha_inicial,Registros!C:C,"="&'01'!A126)-SUMIFS(Registros!H:H,Registros!B:B,"<"&fecha_inicial,Registros!C:C,"="&'01'!A126), 0), "") -> 0 | D126: =IF(A126<>"",IF(VLOOKUP(A126,plan_cuentas,4,FALSE)="H",SUMIFS(Registros!H:H,Registros!B:B,"<"&fecha_inicial,Registros!C:C,"="&'01'!A126)-SUMIFS(Registros!G:G,Registros!B:B,"<"&fecha_inicial,Registros!C:C,"="&'01'!A126), 0), "") -> 0 | E126: =IF(A126<>"", SUMIFS(Registros!G:G, Registros!B:B, ">=" & fecha_inicial, Registros!B:B, "<=" & fecha_final, Registros!C:C, "=" &'01'!A126), 0) -> 0 | F126: =IF(A126<>"", SUMIFS(Registros!H:H, Registros!B:B, ">=" & fecha_inicial, Registros!B:B, "<=" & fecha_final, Registros!C:C, "=" &'01'!A126), 0) -> 0 | G126: =IF(A126<>"", IF(VLOOKUP(A126, plan_cuentas, 4, FALSE) = "D", C126+E126-F126, 0), 0) -> 0 | H126: =IF(A126<>"", IF(VLOOKUP(A126, plan_cuentas, 4, FALSE) = "H", D126-E126+F126, 0), 0) -> 0
A127: 630105 | B127: =IFERROR(IF(A127<>"", VLOOKUP(A127, plan_cuentas,2, FALSE), ""), "CÓDIGO INCORRECTO") -> VIATICOS DE ALIMENTACIÓN Y TRANSPORTE | C127: =IF(A127<>"",IF(VLOOKUP(A127,plan_cuentas,4,FALSE)="D",SUMIFS(Registros!G:G,Registros!B:B,"<"&fecha_inicial,Registros!C:C,"="&'01'!A127)-SUMIFS(Registros!H:H,Registros!B:B,"<"&fecha_inicial,Registros!C:C,"="&'01'!A127), 0), "") -> 260 | D127: =IF(A127<>"",IF(VLOOKUP(A127,plan_cuentas,4,FALSE)="H",SUMIFS(Registros!H:H,Registros!B:B,"<"&fecha_inicial,Registros!C:C,"="&'01'!A127)-SUMIFS(Registros!G:G,Registros!B:B,"<"&fecha_inicial,Registros!C:C,"="&'01'!A127), 0), "") -> 0 | E127: =IF(A127<>"", SUMIFS(Registros!G:G, Registros!B:B, ">=" & fecha_inicial, Registros!B:B, "<=" & fecha_final, Registros!C:C, "=" &'01'!A127), 0) -> 300 | F127: =IF(A127<>"", SUMIFS(Registros!H:H, Registros!B:B, ">=" & fecha_inicial, Registros!B:B, "<=" & fecha_final, Registros!C:C, "=" &'01'!A127), 0) -> 0 | G127: =IF(A127<>"", IF(VLOOKUP(A127, plan_cuentas, 4, FALSE) = "D", C127+E127-F127, 0), 0) -> 560 | H127: =IF(A127<>"", IF(VLOOKUP(A127, plan_cuentas, 4, FALSE) = "H", D127-E127+F127, 0), 0) -> 0
A128: 630200 | B128: =IFERROR(IF(A128<>"", VLOOKUP(A128, plan_cuentas,2, FALSE), ""), "CÓDIGO INCORRECTO") -> PROYECTO CAMPO VERDE | C128: =SUM(C129:C137) -> 41743.1 | D128: 0 | E128: 25274.95 | F128: 0 | G128: 67018.05 | H128: 0
A129: 630201 | B129: ADMINISTRATIVOS Y GENERALES | C129: =IF(A129<>"",IF(VLOOKUP(A129,plan_cuentas,4,FALSE)="D",SUMIFS(Registros!G:G,Registros!B:B,"<"&fecha_inicial,Registros!C:C,"="&'01'!A129)-SUMIFS(Registros!H:H,Registros!B:B,"<"&fecha_inicial,Registros!C:C,"="&'01'!A129), 0), "") -> 0 | D129: =IF(A129<>"",IF(VLOOKUP(A129,plan_cuentas,4,FALSE)="H",SUMIFS(Registros!H:H,Registros!B:B,"<"&fecha_inicial,Registros!C:C,"="&'01'!A129)-SUMIFS(Registros!G:G,Registros!B:B,"<"&fecha_inicial,Registros!C:C,"="&'01'!A129), 0), "") -> 0 | E129: =IF(A129<>"", SUMIFS(Registros!G:G, Registros!B:B, ">=" & fecha_inicial, Registros!B:B, "<=" & fecha_final, Registros!C:C, "=" &'01'!A129), 0) -> 3985 | F129: =IF(A129<>"", SUMIFS(Registros!H:H, Registros!B:B, ">=" & fecha_inicial, Registros!B:B, "<=" & fecha_final, Registros!C:C, "=" &'01'!A129), 0) -> 0 | G129: =IF(A129<>"", IF(VLOOKUP(A129, plan_cuentas, 4, FALSE) = "D", C129+E129-F129, 0), 0) -> 3985 | H129: =IF(A129<>"", IF(VLOOKUP(A129, plan_cuentas, 4, FALSE) = "H", D129-E129+F129, 0), 0) -> 0
A130: 630202 | B130: GASTOS VARIOS | C130: =IF(A130<>"",IF(VLOOKUP(A130,plan_cuentas,4,FALSE)="D",SUMIFS(Registros!G:G,Registros!B:B,"<"&fecha_inicial,Registros!C:C,"="&'01'!A130)-SUMIFS(Registros!H:H,Registros!B:B,"<"&fecha_inicial,Registros!C:C,"="&'01'!A130), 0), "") -> 36 | D130: =IF(A130<>"",IF(VLOOKUP(A130,plan_cuentas,4,FALSE)="H",SUMIFS(Registros!H:H,Registros!B:B,"<"&fecha_inicial,Registros!C:C,"="&'01'!A130)-SUMIFS(Registros!G:G,Registros!B:B,"<"&fecha_inicial,Registros!C:C,"="&'01'!A130), 0), "") -> 0 | E130: =IF(A130<>"", SUMIFS(Registros!G:G, Registros!B:B, ">=" & fecha_inicial, Registros!B:B, "<=" & fecha_final, Registros!C:C, "=" &'01'!A130), 0) -> 427 | F130: =IF(A130<>"", SUMIFS(Registros!H:H, Registros!B:B, ">=" & fecha_inicial, Registros!B:B, "<=" & fecha_final, Registros!C:C, "=" &'01'!A130), 0) -> 0 | G130: 463 | H130: 0
A131: 630203 | B131: APORTE SOCIAL | C131: =IF(A131<>"",IF(VLOOKUP(A131,plan_cuentas,4,FALSE)="D",SUMIFS(Registros!G:G,Registros!B:B,"<"&fecha_inicial,Registros!C:C,"="&'01'!A131)-SUMIFS(Registros!H:H,Registros!B:B,"<"&fecha_inicial,Registros!C:C,"="&'01'!A131), 0), "") -> 6272.3 | D131: =IF(A131<>"",IF(VLOOKUP(A131,plan_cuentas,4,FALSE)="H",SUMIFS(Registros!H:H,Registros!B:B,"<"&fecha_inicial,Registros!C:C,"="&'01'!A131)-SUMIFS(Registros!G:G,Registros!B:B,"<"&fecha_inicial,Registros!C:C,"="&'01'!A131), 0), "") -> 0 | E131: =IF(A131<>"", SUMIFS(Registros!G:G, Registros!B:B, ">=" & fecha_inicial, Registros!B:B, "<=" & fecha_final, Registros!C:C, "=" &'01'!A131), 0) -> 3965 | F131: =IF(A131<>"", SUMIFS(Registros!H:H, Registros!B:B, ">=" & fecha_inicial, Registros!B:B, "<=" & fecha_final, Registros!C:C, "=" &'01'!A131), 0) -> 0 | G131: 10237.3 | H131: 0
A132: 630204 | B132: SERVICIO DE TRANSPORTE | C132: =IF(A132<>"",IF(VLOOKUP(A132,plan_cuentas,4,FALSE)="D",SUMIFS(Registros!G:G,Registros!B:B,"<"&fecha_inicial,Registros!C:C,"="&'01'!A132)-SUMIFS(Registros!H:H,Registros!B:B,"<"&fecha_inicial,Registros!C:C,"="&'01'!A132), 0), "") -> 0 | D132: =IF(A132<>"",IF(VLOOKUP(A132,plan_cuentas,4,FALSE)="H",SUMIFS(Registros!H:H,Registros!B:B,"<"&fecha_inicial,Registros!C:C,"="&'01'!A132)-SUMIFS(Registros!G:G,Registros!B:B,"<"&fecha_inicial,Registros!C:C,"="&'01'!A132), 0), "") -> 0 | E132: =IF(A132<>"", SUMIFS(Registros!G:G, Registros!B:B, ">=" & fecha_inicial, Registros!B:B, "<=" & fecha_final, Registros!C:C, "=" &'01'!A132), 0) -> 4800 | F132: =IF(A132<>"", SUMIFS(Registros!H:H, Registros!B:B, ">=" & fecha_inicial, Registros!B:B, "<=" & fecha_final, Registros!C:C, "=" &'01'!A132), 0) -> 0 | G132: 4800 | H132: 0
A133: 630205 | B133: SERVICIO DE HOSPEDAJE | C133: =IF(A133<>"",IF(VLOOKUP(A133,plan_cuentas,4,FALSE)="D",SUMIFS(Registros!G:G,Registros!B:B,"<"&fecha_inicial,Registros!C:C,"="&'01'!A133)-SUMIFS(Registros!H:H,Registros!B:B,"<"&fecha_inicial,Registros!C:C,"="&'01'!A133), 0), "") -> 0 | D133: =IF(A133<>"",IF(VLOOKUP(A133,plan_cuentas,4,FALSE)="H",SUMIFS(Registros!H:H,Registros!B:B,"<"&fecha_inicial,Registros!C:C,"="&'01'!A133)-SUMIFS(Registros!G:G,Registros!B:B,"<"&fecha_inicial,Registros!C:C,"="&'01'!A133), 0), "") -> 0 | E133: =IF(A133<>"", SUMIFS(Registros!G:G, Registros!B:B, ">=" & fecha_inicial, Registros!B:B, "<=" & fecha_final, Registros!C:C, "=" &'01'!A133), 0) -> 760 | F133: =IF(A133<>"", SUMIFS(Registros!H:H, Registros!B:B, ">=" & fecha_inicial, Registros!B:B, "<=" & fecha_final, Registros!C:C, "=" &'01'!A133), 0) -> 0 | G133: 760 | H133: 0
A134: 630206 | B134: VIATICOS DE ALIMENTANCIÓN Y TRANSPORTE | C134: =IF(A134<>"",IF(VLOOKUP(A134,plan_cuentas,4,FALSE)="D",SUMIFS(Registros!G:G,Registros!B:B,"<"&fecha_inicial,Registros!C:C,"="&'01'!A134)-SUMIFS(Registros!H:H,Registros!B:B,"<"&fecha_inicial,Registros!C:C,"="&'01'!A134), 0), "") -> 1400 | D134: =IF(A134<>"",IF(VLOOKUP(A134,plan_cuentas,4,FALSE)="H",SUMIFS(Registros!H:H,Registros!B:B,"<"&fecha_inicial,Registros!C:C,"="&'01'!A134)-SUMIFS(Registros!G:G,Registros!B:B,"<"&fecha_inicial,Registros!C:C,"="&'01'!A134), 0), "") -> 0 | E134: =IF(A134<>"", SUMIFS(Registros!G:G, Registros!B:B, ">=" & fecha_inicial, Registros!B:B, "<=" & fecha_final, Registros!C:C, "=" &'01'!A134), 0) -> 1081 | F134: =IF(A134<>"", SUMIFS(Registros!H:H, Registros!B:B, ">=" & fecha_inicial, Registros!B:B, "<=" & fecha_final, Registros!C:C, "=" &'01'!A134), 0) -> 0 | G134: 2481 | H134: 0
A135: 630207 | B135: INSUMOS Y SUMINISTRO CAMPO VERDE | C135: =IF(A135<>"",IF(VLOOKUP(A135,plan_cuentas,4,FALSE)="D",SUMIFS(Registros!G:G,Registros!B:B,"<"&fecha_inicial,Registros!C:C,"="&'01'!A135)-SUMIFS(Registros!H:H,Registros!B:B,"<"&fecha_inicial,Registros!C:C,"="&'01'!A135), 0), "") -> 31337 | D135: =IF(A135<>"",IF(VLOOKUP(A135,plan_cuentas,4,FALSE)="H",SUMIFS(Registros!H:H,Registros!B:B,"<"&fecha_inicial,Registros!C:C,"="&'01'!A135)-SUMIFS(Registros!G:G,Registros!B:B,"<"&fecha_inicial,Registros!C:C,"="&'01'!A135), 0), "") -> 0 | E135: =IF(A135<>"", SUMIFS(Registros!G:G, Registros!B:B, ">=" & fecha_inicial, Registros!B:B, "<=" & fecha_final, Registros!C:C, "=" &'01'!A135), 0) -> 1311.35 | F135: =IF(A135<>"", SUMIFS(Registros!H:H, Registros!B:B, ">=" & fecha_inicial, Registros!B:B, "<=" & fecha_final, Registros!C:C, "=" &'01'!A135), 0) -> 0 | G135: 32648.35 | H135: 0
A136: 630208 | B136: =IFERROR(IF(A136<>"", VLOOKUP(A136, plan_cuentas,2, FALSE), ""), "CÓDIGO INCORRECTO") -> COMBUSTIBLE | C136: =IF(A136<>"",IF(VLOOKUP(A136,plan_cuentas,4,FALSE)="D",SUMIFS(Registros!G:G,Registros!B:B,"<"&fecha_inicial,Registros!C:C,"="&'01'!A136)-SUMIFS(Registros!H:H,Registros!B:B,"<"&fecha_inicial,Registros!C:C,"="&'01'!A136), 0), "") -> 1600 | D136: =IF(A136<>"",IF(VLOOKUP(A136,plan_cuentas,4,FALSE)="H",SUMIFS(Registros!H:H,Registros!B:B,"<"&fecha_inicial,Registros!C:C,"="&'01'!A136)-SUMIFS(Registros!G:G,Registros!B:B,"<"&fecha_inicial,Registros!C:C,"="&'01'!A136), 0), "") -> 0 | E136: =IF(A136<>"", SUMIFS(Registros!G:G, Registros!B:B, ">=" & fecha_inicial, Registros!B:B, "<=" & fecha_final, Registros!C:C, "=" &'01'!A136), 0) -> 1300 | F136: =IF(A136<>"", SUMIFS(Registros!H:H, Registros!B:B, ">=" & fecha_inicial, Registros!B:B, "<=" & fecha_final, Registros!C:C, "=" &'01'!A136), 0) -> 0 | G136: =IF(A136<>"", IF(VLOOKUP(A136, plan_cuentas, 4, FALSE) = "D", C136+E136-F136, 0), 0) -> 2900 | H136: =IF(A136<>"", IF(VLOOKUP(A136, plan_cuentas, 4, FALSE) = "H", D136-E136+F136, 0), 0) -> 0
A137: 630209 | B137: =IFERROR(IF(A137<>"", VLOOKUP(A137, plan_cuentas,2, FALSE), ""), "CÓDIGO INCORRECTO") -> OTROS PAGOS | C137: =IF(A137<>"",IF(VLOOKUP(A137,plan_cuentas,4,FALSE)="D",SUMIFS(Registros!G:G,Registros!B:B,"<"&fecha_inicial,Registros!C:C,"="&'01'!A137)-SUMIFS(Registros!H:H,Registros!B:B,"<"&fecha_inicial,Registros!C:C,"="&'01'!A137), 0), "") -> 1097.8 | D137: =IF(A137<>"",IF(VLOOKUP(A137,plan_cuentas,4,FALSE)="H",SUMIFS(Registros!H:H,Registros!B:B,"<"&fecha_inicial,Registros!C:C,"="&'01'!A137)-SUMIFS(Registros!G:G,Registros!B:B,"<"&fecha_inicial,Registros!C:C,"="&'01'!A137), 0), "") -> 0 | E137: =IF(A137<>"", SUMIFS(Registros!G:G, Registros!B:B, ">=" & fecha_inicial, Registros!B:B, "<=" & fecha_final, Registros!C:C, "=" &'01'!A137), 0) -> 7645.6 | F137: =IF(A137<>"", SUMIFS(Registros!H:H, Registros!B:B, ">=" & fecha_inicial, Registros!B:B, "<=" & fecha_final, Registros!C:C, "=" &'01'!A137), 0) -> 0 | G137: =IF(A137<>"", IF(VLOOKUP(A137, plan_cuentas, 4, FALSE) = "D", C137+E137-F137, 0), 0) -> 8743.4 | H137: =IF(A137<>"", IF(VLOOKUP(A137, plan_cuentas, 4, FALSE) = "H", D137-E137+F137, 0), 0) -> 0
A138: 630300 | B138: =IFERROR(IF(A138<>"", VLOOKUP(A138, plan_cuentas,2, FALSE), ""), "CÓDIGO INCORRECTO") -> PROYECTO TURISMO SOSTENIBLE | C138: =SUM(C139:C146) -> 169529.07 | D138: 0 | E138: 203209.05 | F138: 0 | G138: 372738.12 | H138: 0
A139: 630301 | B139: ADMINISTRATIVOS Y GENERALES | C139: =IF(A139<>"",IF(VLOOKUP(A139,plan_cuentas,4,FALSE)="D",SUMIFS(Registros!G:G,Registros!B:B,"<"&fecha_inicial,Registros!C:C,"="&'01'!A139)-SUMIFS(Registros!H:H,Registros!B:B,"<"&fecha_inicial,Registros!C:C,"="&'01'!A139), 0), "") -> 0 | D139: =IF(A139<>"",IF(VLOOKUP(A139,plan_cuentas,4,FALSE)="H",SUMIFS(Registros!H:H,Registros!B:B,"<"&fecha_inicial,Registros!C:C,"="&'01'!A139)-SUMIFS(Registros!G:G,Registros!B:B,"<"&fecha_inicial,Registros!C:C,"="&'01'!A139), 0), "") -> 0 | E139: =IF(A139<>"", SUMIFS(Registros!G:G, Registros!B:B, ">=" & fecha_inicial, Registros!B:B, "<=" & fecha_final, Registros!C:C, "=" &'01'!A139), 0) -> 400 | F139: =IF(A139<>"", SUMIFS(Registros!H:H, Registros!B:B, ">=" & fecha_inicial, Registros!B:B, "<=" & fecha_final, Registros!C:C, "=" &'01'!A139), 0) -> 0 | G139: =IF(A139<>"", IF(VLOOKUP(A139, plan_cuentas, 4, FALSE) = "D", C139+E139-F139, 0), 0) -> 400 | H139: =IF(A139<>"", IF(VLOOKUP(A139, plan_cuentas, 4, FALSE) = "H", D139-E139+F139, 0), 0) -> 0
A140: 630302 | B140: GASTOS VARIOS | C140: =IF(A140<>"",IF(VLOOKUP(A140,plan_cuentas,4,FALSE)="D",SUMIFS(Registros!G:G,Registros!B:B,"<"&fecha_inicial,Registros!C:C,"="&'01'!A140)-SUMIFS(Registros!H:H,Registros!B:B,"<"&fecha_inicial,Registros!C:C,"="&'01'!A140), 0), "") -> 8841 | D140: =IF(A140<>"",IF(VLOOKUP(A140,plan_cuentas,4,FALSE)="H",SUMIFS(Registros!H:H,Registros!B:B,"<"&fecha_inicial,Registros!C:C,"="&'01'!A140)-SUMIFS(Registros!G:G,Registros!B:B,"<"&fecha_inicial,Registros!C:C,"="&'01'!A140), 0), "") -> 0 | E140: =IF(A140<>"", SUMIFS(Registros!G:G, Registros!B:B, ">=" & fecha_inicial, Registros!B:B, "<=" & fecha_final, Registros!C:C, "=" &'01'!A140), 0) -> 3375.83 | F140: =IF(A140<>"", SUMIFS(Registros!H:H, Registros!B:B, ">=" & fecha_inicial, Registros!B:B, "<=" & fecha_final, Registros!C:C, "=" &'01'!A140), 0) -> 0 | G140: 12216.83 | H140: 0
A141: 630303 | B141: SERVICIO DE TRANSPORTE | C141: =IF(A141<>"",IF(VLOOKUP(A141,plan_cuentas,4,FALSE)="D",SUMIFS(Registros!G:G,Registros!B:B,"<"&fecha_inicial,Registros!C:C,"="&'01'!A141)-SUMIFS(Registros!H:H,Registros!B:B,"<"&fecha_inicial,Registros!C:C,"="&'01'!A141), 0), "") -> 33417.31 | D141: =IF(A141<>"",IF(VLOOKUP(A141,plan_cuentas,4,FALSE)="H",SUMIFS(Registros!H:H,Registros!B:B,"<"&fecha_inicial,Registros!C:C,"="&'01'!A141)-SUMIFS(Registros!G:G,Registros!B:B,"<"&fecha_inicial,Registros!C:C,"="&'01'!A141), 0), "") -> 0 | E141: =IF(A141<>"", SUMIFS(Registros!G:G, Registros!B:B, ">=" & fecha_inicial, Registros!B:B, "<=" & fecha_final, Registros!C:C, "=" &'01'!A141), 0) -> 33841.8 | F141: =IF(A141<>"", SUMIFS(Registros!H:H, Registros!B:B, ">=" & fecha_inicial, Registros!B:B, "<=" & fecha_final, Registros!C:C, "=" &'01'!A141), 0) -> 0 | G141: 67259.11 | H141: 0
A142: 630304 | B142: SERVICIOS DE HOSPEDAJE | C142: =IF(A142<>"",IF(VLOOKUP(A142,plan_cuentas,4,FALSE)="D",SUMIFS(Registros!G:G,Registros!B:B,"<"&fecha_inicial,Registros!C:C,"="&'01'!A142)-SUMIFS(Registros!H:H,Registros!B:B,"<"&fecha_inicial,Registros!C:C,"="&'01'!A142), 0), "") -> 104351.51 | D142: =IF(A142<>"",IF(VLOOKUP(A142,plan_cuentas,4,FALSE)="H",SUMIFS(Registros!H:H,Registros!B:B,"<"&fecha_inicial,Registros!C:C,"="&'01'!A142)-SUMIFS(Registros!G:G,Registros!B:B,"<"&fecha_inicial,Registros!C:C,"="&'01'!A142), 0), "") -> 0 | E142: =IF(A142<>"", SUMIFS(Registros!G:G, Registros!B:B, ">=" & fecha_inicial, Registros!B:B, "<=" & fecha_final, Registros!C:C, "=" &'01'!A142), 0) -> 97507.29 | F142: =IF(A142<>"", SUMIFS(Registros!H:H, Registros!B:B, ">=" & fecha_inicial, Registros!B:B, "<=" & fecha_final, Registros!C:C, "=" &'01'!A142), 0) -> 0 | G142: 201858.8 | H142: 0
A143: 630305 | B143: =IFERROR(IF(A143<>"", VLOOKUP(A143, plan_cuentas,2, FALSE), ""), "CÓDIGO INCORRECTO") -> SERVICIO DE ALIMENTACIÓN | C143: =IF(A143<>"",IF(VLOOKUP(A143,plan_cuentas,4,FALSE)="D",SUMIFS(Registros!G:G,Registros!B:B,"<"&fecha_inicial,Registros!C:C,"="&'01'!A143)-SUMIFS(Registros!H:H,Registros!B:B,"<"&fecha_inicial,Registros!C:C,"="&'01'!A143), 0), "") -> 0 | D143: =IF(A143<>"",IF(VLOOKUP(A143,plan_cuentas,4,FALSE)="H",SUMIFS(Registros!H:H,Registros!B:B,"<"&fecha_inicial,Registros!C:C,"="&'01'!A143)-SUMIFS(Registros!G:G,Registros!B:B,"<"&fecha_inicial,Registros!C:C,"="&'01'!A143), 0), "") -> 0 | E143: =IF(A143<>"", SUMIFS(Registros!G:G, Registros!B:B, ">=" & fecha_inicial, Registros!B:B, "<=" & fecha_final, Registros!C:C, "=" &'01'!A143), 0) -> 21113.49 | F143: =IF(A143<>"", SUMIFS(Registros!H:H, Registros!B:B, ">=" & fecha_inicial, Registros!B:B, "<=" & fecha_final, Registros!C:C, "=" &'01'!A143), 0) -> 0 | G143: 21113.49 | H143: 0
A144: 630306 | B144: ACTIVIDADES SOCIALES | C144: =IF(A144<>"",IF(VLOOKUP(A144,plan_cuentas,4,FALSE)="D",SUMIFS(Registros!G:G,Registros!B:B,"<"&fecha_inicial,Registros!C:C,"="&'01'!A144)-SUMIFS(Registros!H:H,Registros!B:B,"<"&fecha_inicial,Registros!C:C,"="&'01'!A144), 0), "") -> 0 | D144: =IF(A144<>"",IF(VLOOKUP(A144,plan_cuentas,4,FALSE)="H",SUMIFS(Registros!H:H,Registros!B:B,"<"&fecha_inicial,Registros!C:C,"="&'01'!A144)-SUMIFS(Registros!G:G,Registros!B:B,"<"&fecha_inicial,Registros!C:C,"="&'01'!A144), 0), "") -> 0 | E144: =IF(A144<>"", SUMIFS(Registros!G:G, Registros!B:B, ">=" & fecha_inicial, Registros!B:B, "<=" & fecha_final, Registros!C:C, "=" &'01'!A144), 0) -> 31190.64 | F144: =IF(A144<>"", SUMIFS(Registros!H:H, Registros!B:B, ">=" & fecha_inicial, Registros!B:B, "<=" & fecha_final, Registros!C:C, "=" &'01'!A144), 0) -> 0 | G144: 31190.64 | H144: 0
A145: 630307 | B145: =IFERROR(IF(A145<>"", VLOOKUP(A145, plan_cuentas,2, FALSE), ""), "CÓDIGO INCORRECTO") -> OTROS PAGOS | C145: =IF(A145<>"",IF(VLOOKUP(A145,plan_cuentas,4,FALSE)="D",SUMIFS(Registros!G:G,Registros!B:B,"<"&fecha_inicial,Registros!C:C,"="&'01'!A145)-SUMIFS(Registros!H:H,Registros!B:B,"<"&fecha_inicial,Registros!C:C,"="&'01'!A145), 0), "") -> 17678.22 | D145: =IF(A145<>"",IF(VLOOKUP(A145,plan_cuentas,4,FALSE)="H",SUMIFS(Registros!H:H,Registros!B:B,"<"&fecha_inicial,Registros!C:C,"="&'01'!A145)-SUMIFS(Registros!G:G,Registros!B:B,"<"&fecha_inicial,Registros!C:C,"="&'01'!A145), 0), "") -> 0 | E145: =IF(A145<>"", SUMIFS(Registros!G:G, Registros!B:B, ">=" & fecha_inicial, Registros!B:B, "<=" & fecha_final, Registros!C:C, "=" &'01'!A145), 0) -> 15780 | F145: =IF(A145<>"", SUMIFS(Registros!H:H, Registros!B:B, ">=" & fecha_inicial, Registros!B:B, "<=" & fecha_final, Registros!C:C, "=" &'01'!A145), 0) -> 0 | G145: =IF(A145<>"", IF(VLOOKUP(A145, plan_cuentas, 4, FALSE) = "D", C145+E145-F145, 0), 0) -> 33458.22 | H145: =IF(A145<>"", IF(VLOOKUP(A145, plan_cuentas, 4, FALSE) = "H", D145-E145+F145, 0), 0) -> 0
A146: 630308 | B146: =IFERROR(IF(A146<>"", VLOOKUP(A146, plan_cuentas,2, FALSE), ""), "CÓDIGO INCORRECTO") -> APORTE SOCIAL | C146: =IF(A146<>"",IF(VLOOKUP(A146,plan_cuentas,4,FALSE)="D",SUMIFS(Registros!G:G,Registros!B:B,"<"&fecha_inicial,Registros!C:C,"="&'01'!A146)-SUMIFS(Registros!H:H,Registros!B:B,"<"&fecha_inicial,Registros!C:C,"="&'01'!A146), 0), "") -> 5241.03 | D146: =IF(A146<>"",IF(VLOOKUP(A146,plan_cuentas,4,FALSE)="H",SUMIFS(Registros!H:H,Registros!B:B,"<"&fecha_inicial,Registros!C:C,"="&'01'!A146)-SUMIFS(Registros!G:G,Registros!B:B,"<"&fecha_inicial,Registros!C:C,"="&'01'!A146), 0), "") -> 0 | E146: =IF(A146<>"", SUMIFS(Registros!G:G, Registros!B:B, ">=" & fecha_inicial, Registros!B:B, "<=" & fecha_final, Registros!C:C, "=" &'01'!A146), 0) -> 0 | F146: =IF(A146<>"", SUMIFS(Registros!H:H, Registros!B:B, ">=" & fecha_inicial, Registros!B:B, "<=" & fecha_final, Registros!C:C, "=" &'01'!A146), 0) -> 0 | G146: =IF(A146<>"", IF(VLOOKUP(A146, plan_cuentas, 4, FALSE) = "D", C146+E146-F146, 0), 0) -> 5241.03 | H146: =IF(A146<>"", IF(VLOOKUP(A146, plan_cuentas, 4, FALSE) = "H", D146-E146+F146, 0), 0) -> 0
A147: 630400 | B147: =IFERROR(IF(A147<>"", VLOOKUP(A147, plan_cuentas,2, FALSE), ""), "CÓDIGO INCORRECTO") -> PROYECTO NICA AGUA | C147: =SUM(C148:C152) -> 11206.1 | D147: 0 | E147: 0 | F147: 0 | G147: 11206.1 | H147: 0
A148: 630401 | B148: ADMINISTRATIVOS Y GENERALES | C148: =IF(A148<>"",IF(VLOOKUP(A148,plan_cuentas,4,FALSE)="D",SUMIFS(Registros!G:G,Registros!B:B,"<"&fecha_inicial,Registros!C:C,"="&'01'!A148)-SUMIFS(Registros!H:H,Registros!B:B,"<"&fecha_inicial,Registros!C:C,"="&'01'!A148), 0), "") -> 1800 | D148: =IF(A148<>"",IF(VLOOKUP(A148,plan_cuentas,4,FALSE)="H",SUMIFS(Registros!H:H,Registros!B:B,"<"&fecha_inicial,Registros!C:C,"="&'01'!A148)-SUMIFS(Registros!G:G,Registros!B:B,"<"&fecha_inicial,Registros!C:C,"="&'01'!A148), 0), "") -> 0 | E148: =IF(A148<>"", SUMIFS(Registros!G:G, Registros!B:B, ">=" & fecha_inicial, Registros!B:B, "<=" & fecha_final, Registros!C:C, "=" &'01'!A148), 0) -> 0 | F148: =IF(A148<>"", SUMIFS(Registros!H:H, Registros!B:B, ">=" & fecha_inicial, Registros!B:B, "<=" & fecha_final, Registros!C:C, "=" &'01'!A148), 0) -> 0 | G148: =IF(A148<>"", IF(VLOOKUP(A148, plan_cuentas, 4, FALSE) = "D", C148+E148-F148, 0), 0) -> 1800 | H148: =IF(A148<>"", IF(VLOOKUP(A148, plan_cuentas, 4, FALSE) = "H", D148-E148+F148, 0), 0) -> 0
A149: 630402 | B149: VIATICOS | C149: =IF(A149<>"",IF(VLOOKUP(A149,plan_cuentas,4,FALSE)="D",SUMIFS(Registros!G:G,Registros!B:B,"<"&fecha_inicial,Registros!C:C,"="&'01'!A149)-SUMIFS(Registros!H:H,Registros!B:B,"<"&fecha_inicial,Registros!C:C,"="&'01'!A149), 0), "") -> 1000 | D149: =IF(A149<>"",IF(VLOOKUP(A149,plan_cuentas,4,FALSE)="H",SUMIFS(Registros!H:H,Registros!B:B,"<"&fecha_inicial,Registros!C:C,"="&'01'!A149)-SUMIFS(Registros!G:G,Registros!B:B,"<"&fecha_inicial,Registros!C:C,"="&'01'!A149), 0), "") -> 0 | E149: =IF(A149<>"", SUMIFS(Registros!G:G, Registros!B:B, ">=" & fecha_inicial, Registros!B:B, "<=" & fecha_final, Registros!C:C, "=" &'01'!A149), 0) -> 0 | F149: =IF(A149<>"", SUMIFS(Registros!H:H, Registros!B:B, ">=" & fecha_inicial, Registros!B:B, "<=" & fecha_final, Registros!C:C, "=" &'01'!A149), 0) -> 0 | G149: =IF(A149<>"", IF(VLOOKUP(A149, plan_cuentas, 4, FALSE) = "D", C149+E149-F149, 0), 0) -> 1000 | H149: =IF(A149<>"", IF(VLOOKUP(A149, plan_cuentas, 4, FALSE) = "H", D149-E149+F149, 0), 0) -> 0
A150: 630403 | B150: GASTO DE TRANSPORTE AEREO | C150: =IF(A150<>"",IF(VLOOKUP(A150,plan_cuentas,4,FALSE)="D",SUMIFS(Registros!G:G,Registros!B:B,"<"&fecha_inicial,Registros!C:C,"="&'01'!A150)-SUMIFS(Registros!H:H,Registros!B:B,"<"&fecha_inicial,Registros!C:C,"="&'01'!A150), 0), "") -> 0 | D150: =IF(A150<>"",IF(VLOOKUP(A150,plan_cuentas,4,FALSE)="H",SUMIFS(Registros!H:H,Registros!B:B,"<"&fecha_inicial,Registros!C:C,"="&'01'!A150)-SUMIFS(Registros!G:G,Registros!B:B,"<"&fecha_inicial,Registros!C:C,"="&'01'!A150), 0), "") -> 0 | E150: =IF(A150<>"", SUMIFS(Registros!G:G, Registros!B:B, ">=" & fecha_inicial, Registros!B:B, "<=" & fecha_final, Registros!C:C, "=" &'01'!A150), 0) -> 0 | F150: =IF(A150<>"", SUMIFS(Registros!H:H, Registros!B:B, ">=" & fecha_inicial, Registros!B:B, "<=" & fecha_final, Registros!C:C, "=" &'01'!A150), 0) -> 0 | G150: =IF(A150<>"", IF(VLOOKUP(A150, plan_cuentas, 4, FALSE) = "D", C150+E150-F150, 0), 0) -> 0 | H150: =IF(A150<>"", IF(VLOOKUP(A150, plan_cuentas, 4, FALSE) = "H", D150-E150+F150, 0), 0) -> 0
A151: 630404 | B151: =IFERROR(IF(A151<>"", VLOOKUP(A151, plan_cuentas,2, FALSE), ""), "CÓDIGO INCORRECTO") -> SERVICIO DE TRANSPORTE | C151: =IF(A151<>"",IF(VLOOKUP(A151,plan_cuentas,4,FALSE)="D",SUMIFS(Registros!G:G,Registros!B:B,"<"&fecha_inicial,Registros!C:C,"="&'01'!A151)-SUMIFS(Registros!H:H,Registros!B:B,"<"&fecha_inicial,Registros!C:C,"="&'01'!A151), 0), "") -> 4906.1 | D151: =IF(A151<>"",IF(VLOOKUP(A151,plan_cuentas,4,FALSE)="H",SUMIFS(Registros!H:H,Registros!B:B,"<"&fecha_inicial,Registros!C:C,"="&'01'!A151)-SUMIFS(Registros!G:G,Registros!B:B,"<"&fecha_inicial,Registros!C:C,"="&'01'!A151), 0), "") -> 0 | E151: =IF(A151<>"", SUMIFS(Registros!G:G, Registros!B:B, ">=" & fecha_inicial, Registros!B:B, "<=" & fecha_final, Registros!C:C, "=" &'01'!A151), 0) -> 0 | F151: =IF(A151<>"", SUMIFS(Registros!H:H, Registros!B:B, ">=" & fecha_inicial, Registros!B:B, "<=" & fecha_final, Registros!C:C, "=" &'01'!A151), 0) -> 0 | G151: =IF(A151<>"", IF(VLOOKUP(A151, plan_cuentas, 4, FALSE) = "D", C151+E151-F151, 0), 0) -> 4906.1 | H151: =IF(A151<>"", IF(VLOOKUP(A151, plan_cuentas, 4, FALSE) = "H", D151-E151+F151, 0), 0) -> 0
A152: 630405 | B152: VIATICOS DE ALIMENTACIÓN Y TRANSPORTE | C152: =IF(A152<>"",IF(VLOOKUP(A152,plan_cuentas,4,FALSE)="D",SUMIFS(Registros!G:G,Registros!B:B,"<"&fecha_inicial,Registros!C:C,"="&'01'!A152)-SUMIFS(Registros!H:H,Registros!B:B,"<"&fecha_inicial,Registros!C:C,"="&'01'!A152), 0), "") -> 3500 | D152: =IF(A152<>"",IF(VLOOKUP(A152,plan_cuentas,4,FALSE)="H",SUMIFS(Registros!H:H,Registros!B:B,"<"&fecha_inicial,Registros!C:C,"="&'01'!A152)-SUMIFS(Registros!G:G,Registros!B:B,"<"&fecha_inicial,Registros!C:C,"="&'01'!A152), 0), "") -> 0 | E152: =IF(A152<>"", SUMIFS(Registros!G:G, Registros!B:B, ">=" & fecha_inicial, Registros!B:B, "<=" & fecha_final, Registros!C:C, "=" &'01'!A152), 0) -> 0 | F152: =IF(A152<>"", SUMIFS(Registros!H:H, Registros!B:B, ">=" & fecha_inicial, Registros!B:B, "<=" & fecha_final, Registros!C:C, "=" &'01'!A152), 0) -> 0 | G152: =IF(A152<>"", IF(VLOOKUP(A152, plan_cuentas, 4, FALSE) = "D", C152+E152-F152, 0), 0) -> 3500 | H152: =IF(A152<>"", IF(VLOOKUP(A152, plan_cuentas, 4, FALSE) = "H", D152-E152+F152, 0), 0) -> 0
A153: 630500 | B153: PROYECTO CLINICA LOS ROBLES | C153: =SUM(C154:C159) -> 12933.75 | D153: 0 | E153: 6016.16 | F153: 0 | G153: 18949.91 | H153: 0
A154: 630501 | B154: COMBUSTIBLE | C154: =IF(A154<>"",IF(VLOOKUP(A154,plan_cuentas,4,FALSE)="D",SUMIFS(Registros!G:G,Registros!B:B,"<"&fecha_inicial,Registros!C:C,"="&'01'!A154)-SUMIFS(Registros!H:H,Registros!B:B,"<"&fecha_inicial,Registros!C:C,"="&'01'!A154), 0), "") -> 6110 | D154: =IF(A154<>"",IF(VLOOKUP(A154,plan_cuentas,4,FALSE)="H",SUMIFS(Registros!H:H,Registros!B:B,"<"&fecha_inicial,Registros!C:C,"="&'01'!A154)-SUMIFS(Registros!G:G,Registros!B:B,"<"&fecha_inicial,Registros!C:C,"="&'01'!A154), 0), "") -> 0 | E154: =IF(A154<>"", SUMIFS(Registros!G:G, Registros!B:B, ">=" & fecha_inicial, Registros!B:B, "<=" & fecha_final, Registros!C:C, "=" &'01'!A154), 0) -> 4080.75 | F154: =IF(A154<>"", SUMIFS(Registros!H:H, Registros!B:B, ">=" & fecha_inicial, Registros!B:B, "<=" & fecha_final, Registros!C:C, "=" &'01'!A154), 0) -> 0 | G154: =IF(A154<>"", IF(VLOOKUP(A154, plan_cuentas, 4, FALSE) = "D", C154+E154-F154, 0), 0) -> 10190.75 | H154: =IF(A154<>"", IF(VLOOKUP(A154, plan_cuentas, 4, FALSE) = "H", D154-E154+F154, 0), 0) -> 0
A155: 630502 | B155: VIATICOS DE ALIMENTACIÓN | C155: =IF(A155<>"",IF(VLOOKUP(A155,plan_cuentas,4,FALSE)="D",SUMIFS(Registros!G:G,Registros!B:B,"<"&fecha_inicial,Registros!C:C,"="&'01'!A155)-SUMIFS(Registros!H:H,Registros!B:B,"<"&fecha_inicial,Registros!C:C,"="&'01'!A155), 0), "") -> 6823.75 | D155: =IF(A155<>"",IF(VLOOKUP(A155,plan_cuentas,4,FALSE)="H",SUMIFS(Registros!H:H,Registros!B:B,"<"&fecha_inicial,Registros!C:C,"="&'01'!A155)-SUMIFS(Registros!G:G,Registros!B:B,"<"&fecha_inicial,Registros!C:C,"="&'01'!A155), 0), "") -> 0 | E155: =IF(A155<>"", SUMIFS(Registros!G:G, Registros!B:B, ">=" & fecha_inicial, Registros!B:B, "<=" & fecha_final, Registros!C:C, "=" &'01'!A155), 0) -> 1935.41 | F155: =IF(A155<>"", SUMIFS(Registros!H:H, Registros!B:B, ">=" & fecha_inicial, Registros!B:B, "<=" & fecha_final, Registros!C:C, "=" &'01'!A155), 0) -> 0 | G155: 8759.16 | H155: 0
A156: 630503 | B156: INSUMOS MÉDICOS | C156: =IF(A156<>"",IF(VLOOKUP(A156,plan_cuentas,4,FALSE)="D",SUMIFS(Registros!G:G,Registros!B:B,"<"&fecha_inicial,Registros!C:C,"="&'01'!A156)-SUMIFS(Registros!H:H,Registros!B:B,"<"&fecha_inicial,Registros!C:C,"="&'01'!A156), 0), "") -> 0 | D156: =IF(A156<>"",IF(VLOOKUP(A156,plan_cuentas,4,FALSE)="H",SUMIFS(Registros!H:H,Registros!B:B,"<"&fecha_inicial,Registros!C:C,"="&'01'!A156)-SUMIFS(Registros!G:G,Registros!B:B,"<"&fecha_inicial,Registros!C:C,"="&'01'!A156), 0), "") -> 0 | E156: =IF(A156<>"", SUMIFS(Registros!G:G, Registros!B:B, ">=" & fecha_inicial, Registros!B:B, "<=" & fecha_final, Registros!C:C, "=" &'01'!A156), 0) -> 0 | F156: =IF(A156<>"", SUMIFS(Registros!H:H, Registros!B:B, ">=" & fecha_inicial, Registros!B:B, "<=" & fecha_final, Registros!C:C, "=" &'01'!A156), 0) -> 0 | G156: 0 | H156: 0
A157: 630504 | B157: PAPELERÍA | C157: =IF(A157<>"",IF(VLOOKUP(A157,plan_cuentas,4,FALSE)="D",SUMIFS(Registros!G:G,Registros!B:B,"<"&fecha_inicial,Registros!C:C,"="&'01'!A157)-SUMIFS(Registros!H:H,Registros!B:B,"<"&fecha_inicial,Registros!C:C,"="&'01'!A157), 0), "") -> 0 | D157: =IF(A157<>"",IF(VLOOKUP(A157,plan_cuentas,4,FALSE)="H",SUMIFS(Registros!H:H,Registros!B:B,"<"&fecha_inicial,Registros!C:C,"="&'01'!A157)-SUMIFS(Registros!G:G,Registros!B:B,"<"&fecha_inicial,Registros!C:C,"="&'01'!A157), 0), "") -> 0 | E157: =IF(A157<>"", SUMIFS(Registros!G:G, Registros!B:B, ">=" & fecha_inicial, Registros!B:B, "<=" & fecha_final, Registros!C:C, "=" &'01'!A157), 0) -> 0 | F157: =IF(A157<>"", SUMIFS(Registros!H:H, Registros!B:B, ">=" & fecha_inicial, Registros!B:B, "<=" & fecha_final, Registros!C:C, "=" &'01'!A157), 0) -> 0 | G157: 0 | H157: 0
A158: 630505 | B158: EQUIPOS Y MOBILIARIOS | C158: =IF(A158<>"",IF(VLOOKUP(A158,plan_cuentas,4,FALSE)="D",SUMIFS(Registros!G:G,Registros!B:B,"<"&fecha_inicial,Registros!C:C,"="&'01'!A158)-SUMIFS(Registros!H:H,Registros!B:B,"<"&fecha_inicial,Registros!C:C,"="&'01'!A158), 0), "") -> 0 | D158: =IF(A158<>"",IF(VLOOKUP(A158,plan_cuentas,4,FALSE)="H",SUMIFS(Registros!H:H,Registros!B:B,"<"&fecha_inicial,Registros!C:C,"="&'01'!A158)-SUMIFS(Registros!G:G,Registros!B:B,"<"&fecha_inicial,Registros!C:C,"="&'01'!A158), 0), "") -> 0 | E158: =IF(A158<>"", SUMIFS(Registros!G:G, Registros!B:B, ">=" & fecha_inicial, Registros!B:B, "<=" & fecha_final, Registros!C:C, "=" &'01'!A158), 0) -> 0 | F158: =IF(A158<>"", SUMIFS(Registros!H:H, Registros!B:B, ">=" & fecha_inicial, Registros!B:B, "<=" & fecha_final, Registros!C:C, "=" &'01'!A158), 0) -> 0 | G158: 0 | H158: 0
A159: 630506 | B159: SUMINISTROS DE LIMPIEZA | C159: =IF(A159<>"",IF(VLOOKUP(A159,plan_cuentas,4,FALSE)="D",SUMIFS(Registros!G:G,Registros!B:B,"<"&fecha_inicial,Registros!C:C,"="&'01'!A159)-SUMIFS(Registros!H:H,Registros!B:B,"<"&fecha_inicial,Registros!C:C,"="&'01'!A159), 0), "") -> 0 | D159: =IF(A159<>"",IF(VLOOKUP(A159,plan_cuentas,4,FALSE)="H",SUMIFS(Registros!H:H,Registros!B:B,"<"&fecha_inicial,Registros!C:C,"="&'01'!A159)-SUMIFS(Registros!G:G,Registros!B:B,"<"&fecha_inicial,Registros!C:C,"="&'01'!A159), 0), "") -> 0 | E159: =IF(A159<>"", SUMIFS(Registros!G:G, Registros!B:B, ">=" & fecha_inicial, Registros!B:B, "<=" & fecha_final, Registros!C:C, "=" &'01'!A159), 0) -> 0 | F159: =IF(A159<>"", SUMIFS(Registros!H:H, Registros!B:B, ">=" & fecha_inicial, Registros!B:B, "<=" & fecha_final, Registros!C:C, "=" &'01'!A159), 0) -> 0 | G159: 0 | H159: 0
A160: 700000 | B160: =IFERROR(IF(A160<>"", VLOOKUP(A160, plan_cuentas,2, FALSE), ""), "CÓDIGO INCORRECTO") -> GASTOS FINANCIEROS | C160: =C161 -> 0 | D160: 0 | E160: 0 | F160: 0 | G160: 0 | H160: 0
A161: 710000 | B161: COMISIONES BANCARIAS | C161: 0 | D161: 0 | E161: 0 | F161: 0 | G161: 0 | H161: 0
A162: 710100 | B162: CARGOS CUENTAS CORRIENTES | C162: =SUM(C163:C165) -> 0 | D162: 0 | E162: 0 | F162: 0 | G162: 0 | H162: 0
A163: 710101 | B163: CTA. CTE. 356894501 C$ | C163: =IF(A163<>"",IF(VLOOKUP(A163,plan_cuentas,4,FALSE)="D",SUMIFS(Registros!G:G,Registros!B:B,"<"&fecha_inicial,Registros!C:C,"="&'01'!A163)-SUMIFS(Registros!H:H,Registros!B:B,"<"&fecha_inicial,Registros!C:C,"="&'01'!A163), 0), "") -> 0 | D163: =IF(A163<>"",IF(VLOOKUP(A163,plan_cuentas,4,FALSE)="H",SUMIFS(Registros!H:H,Registros!B:B,"<"&fecha_inicial,Registros!C:C,"="&'01'!A163)-SUMIFS(Registros!G:G,Registros!B:B,"<"&fecha_inicial,Registros!C:C,"="&'01'!A163), 0), "") -> 0 | E163: =IF(A163<>"", SUMIFS(Registros!G:G, Registros!B:B, ">=" & fecha_inicial, Registros!B:B, "<=" & fecha_final, Registros!C:C, "=" &'01'!A163), 0) -> 0 | F163: =IF(A163<>"", SUMIFS(Registros!H:H, Registros!B:B, ">=" & fecha_inicial, Registros!B:B, "<=" & fecha_final, Registros!C:C, "=" &'01'!A163), 0) -> 0 | G163: =IF(A163<>"", IF(VLOOKUP(A163, plan_cuentas, 4, FALSE) = "D", C163+E163-F163, 0), 0) -> 0 | H163: =IF(A163<>"", IF(VLOOKUP(A163, plan_cuentas, 4, FALSE) = "H", D163-E163+F163, 0), 0) -> 0
A164: 710102 | B164: CTA. CTE. 357144914 U$ | C164: =IF(A164<>"",IF(VLOOKUP(A164,plan_cuentas,4,FALSE)="D",SUMIFS(Registros!G:G,Registros!B:B,"<"&fecha_inicial,Registros!C:C,"="&'01'!A164)-SUMIFS(Registros!H:H,Registros!B:B,"<"&fecha_inicial,Registros!C:C,"="&'01'!A164), 0), "") -> 0 | D164: =IF(A164<>"",IF(VLOOKUP(A164,plan_cuentas,4,FALSE)="H",SUMIFS(Registros!H:H,Registros!B:B,"<"&fecha_inicial,Registros!C:C,"="&'01'!A164)-SUMIFS(Registros!G:G,Registros!B:B,"<"&fecha_inicial,Registros!C:C,"="&'01'!A164), 0), "") -> 0 | E164: =IF(A164<>"", SUMIFS(Registros!G:G, Registros!B:B, ">=" & fecha_inicial, Registros!B:B, "<=" & fecha_final, Registros!C:C, "=" &'01'!A164), 0) -> 0 | F164: =IF(A164<>"", SUMIFS(Registros!H:H, Registros!B:B, ">=" & fecha_inicial, Registros!B:B, "<=" & fecha_final, Registros!C:C, "=" &'01'!A164), 0) -> 0 | G164: =IF(A164<>"", IF(VLOOKUP(A164, plan_cuentas, 4, FALSE) = "D", C164+E164-F164, 0), 0) -> 0 | H164: =IF(A164<>"", IF(VLOOKUP(A164, plan_cuentas, 4, FALSE) = "H", D164-E164+F164, 0), 0) -> 0
A165: 710103 | B165: CTA. TRANSFERENCIAS 357144914 U$ | C165: =IF(A165<>"",IF(VLOOKUP(A165,plan_cuentas,4,FALSE)="D",SUMIFS(Registros!G:G,Registros!B:B,"<"&fecha_inicial,Registros!C:C,"="&'01'!A165)-SUMIFS(Registros!H:H,Registros!B:B,"<"&fecha_inicial,Registros!C:C,"="&'01'!A165), 0), "") -> 0 | D165: =IF(A165<>"",IF(VLOOKUP(A165,plan_cuentas,4,FALSE)="H",SUMIFS(Registros!H:H,Registros!B:B,"<"&fecha_inicial,Registros!C:C,"="&'01'!A165)-SUMIFS(Registros!G:G,Registros!B:B,"<"&fecha_inicial,Registros!C:C,"="&'01'!A165), 0), "") -> 0 | E165: =IF(A165<>"", SUMIFS(Registros!G:G, Registros!B:B, ">=" & fecha_inicial, Registros!B:B, "<=" & fecha_final, Registros!C:C, "=" &'01'!A165), 0) -> 0 | F165: =IF(A165<>"", SUMIFS(Registros!H:H, Registros!B:B, ">=" & fecha_inicial, Registros!B:B, "<=" & fecha_final, Registros!C:C, "=" &'01'!A165), 0) -> 0 | G165: =IF(A165<>"", IF(VLOOKUP(A165, plan_cuentas, 4, FALSE) = "D", C165+E165-F165, 0), 0) -> 0 | H165: =IF(A165<>"", IF(VLOOKUP(A165, plan_cuentas, 4, FALSE) = "H", D165-E165+F165, 0), 0) -> 0
A166: TOTALES | C166: =C8+C39+C48+C67+C75+C87+C160 -> 1162934.46 | D166: 1162934.46 | E166: 3433840.97 | F166: 3442228.25 | G166: =G8+G39+G48+G67+G75+G87+G160 -> 2926998.21 | H166: 2935385.49
C167: =ABS(D166-C166) -> 0 | E167: =ABS(F166-E166) -> 8387.28 | G167: =ABS(H166-G166) -> 8387.28
A171: ELABORADO POR: | F171: AUTORIZADO POR:
A172: =IF(A171<>"", VLOOKUP(A171, users, 3, FALSE), "") -> Anielka Galán | F172: =IF(F171<>"", VLOOKUP(F171, users, 3, FALSE), "") -> Rodrigo Castro Potoy

Sheet 02
E1: Desproteger
A2: =bussiness_name -> SOCIEDAD CIVIL COMUNIDAD CONNECT
A3: ESTADO DE RESULTADOS CONSOLIDADO
A4: ="DEL "&TEXT(fecha_inicial, "DD")&" DE "&UPPER(TEXT(fecha_inicial, "MMMM"))&" DEL " & TEXT(fecha_inicial, "YYYY") & " AL "&TEXT(fecha_final, "DD")&" DE "&UPPER(TEXT(fecha_final, "MMMM"))&" DEL "&TEXT(fecha_final, "YYYY") -> DEL 01 DE JULIO DEL 2014 AL 31 DE JULIO DEL 2014
A5: =address & " *** Tel/Fax: " & tel & " *** " & email -> Esquina sureste del Parque Central, San Juan del sur, Nicaragua. *** Tel/Fax: 25682731 *** info@comunidadconnect.org
A6: CÓDIGO CUENTA | B6: DESCRIPCIÓN DE LA CUENTA | C6: DETALLE DE RESULTADOS | F6: DATOS PARA ANÁLISIS FINANCIERO
B7: DESCRIPCIÓN DE LA CUENTA | C7: RESULTADO MES ANTERIOR | D7: RESULTADO MES ACTUAL | E7: RESULTADOS ACUMULADOS | F7: VARIACIÓN ABSOLUTA | G7: VARIACIÓN RELATIVA | H7: % ACTUAL
A8: 500000 | B8: =IF(A8<>"", IFERROR(VLOOKUP(A8, plan_cuentas, 2, FALSE), "CÓDIGO INCORRECTO"), "") -> INGRESOS | C8: =C9+C13 -> 10935 | D8: =D9+D13 -> 1746354.23 | E8: =E9+E13 -> 1757289.23 | F8: =F9+F13 -> 1735419.23 | G8: =IFERROR(F8/C8, 0) -> 158.703176 | H8: =IFERROR(D8/$D$8, 0) -> 1
A9: 510000 | B9: INGRESOS POR DONACIONES | C9: =SUM(C10:C12) -> 0 | D9: =SUM(D10:D12) -> 1746354.23 | E9: =SUM(E10:E12) -> 1746354.23 | F9: =SUM(F10:F12) -> 1746354.23 | G9: =IFERROR(F9/C9, 0) -> 0 | H9: =IFERROR(D9/$D$8, 0) -> 1
A10: 510100 | B10: DONACIONES INTERNACIONALES | C10: =IF(A10<>"", IF(VLOOKUP(A10, plan_cuentas, 4, FALSE)="H", SUMIFS(Registros!H:H, Registros!B:B, ">="&init_before, Registros!B:B, "<=" & final_before, Registros!I:I, "="& '02'!A10)-SUMIFS(Registros!G:G, Registros!B:B, ">="&init_before, Registros!B:B, "<=" & final_before, Registros!I:I, "="& '02'!A10), SUMIFS(Registros!G:G, Registros!B:B, ">="&init_before, Registros!B:B, "<=" & final_before, Registros!I:I, "="& '02'!A10)-SUMIFS(Registros!H:H, Registros!B:B, ">="&init_before, Registros!B:B, "<=" & final_before, Registros!I:I, "="& '02'!A10)), 0) -> 0 | D10: =IF(A10<>"", IF(VLOOKUP(A10, plan_cuentas, 4, FALSE)="H", SUMIFS(Registros!H:H, Registros!B:B, ">="&fecha_inicial, Registros!B:B, "<=" & fecha_final, Registros!I:I, "="& '02'!A10)-SUMIFS(Registros!G:G, Registros!B:B, ">="& fecha_inicial, Registros!B:B, "<=" & fecha_final, Registros!I:I, "="& '02'!A10), SUMIFS(Registros!G:G, Registros!B:B, ">="&fecha_inicial, Registros!B:B, "<=" & fecha_final, Registros!I:I, "="& '02'!A10)-SUMIFS(Registros!H:H, Registros!B:B, ">="&fecha_inicial, Registros!B:B, "<=" & fecha_final, Registros!I:I, "="& '02'!A10)), 0) -> 1590848.48 | E10: =IF(A10<>"", IF(VLOOKUP(A10, plan_cuentas, 4, FALSE)="H", SUMIFS(Registros!H:H, Registros!B:B, "<=" & fecha_final, Registros!I:I, "=" & A10)-SUMIFS(Registros!G:G, Registros!B:B, "<=" & fecha_final, Registros!I:I, "=" & A10), SUMIFS(Registros!G:G, Registros!B:B, "<=" & fecha_final, Registros!I:I, "=" & A10)-SUMIFS(Registros!H:H, Registros!B:B, "<=" & fecha_final, Registros!I:I, "=" & A10)), 0) -> 1590848.48 | F10: =D10-C10 -> 1590848.48 | G10: 0 | H10: 0.9109540623
A11: 510200 | B11: DONACIONES NACIONALES | C11: =IF(A11<>"", IF(VLOOKUP(A11, plan_cuentas, 4, FALSE)="H", SUMIFS(Registros!H:H, Registros!B:B, ">="&init_before, Registros!B:B, "<=" & final_before, Registros!I:I, "="& '02'!A11)-SUMIFS(Registros!G:G, Registros!B:B, ">="&init_before, Registros!B:B, "<=" & final_before, Registros!I:I, "="& '02'!A11), SUMIFS(Registros!G:G, Registros!B:B, ">="&init_before, Registros!B:B, "<=" & final_before, Registros!I:I, "="& '02'!A11)-SUMIFS(Registros!H:H, Registros!B:B, ">="&init_before, Registros!B:B, "<=" & final_before, Registros!I:I, "="& '02'!A11)), 0) -> 0 | D11: =IF(A11<>"", IF(VLOOKUP(A11, plan_cuentas, 4, FALSE)="H", SUMIFS(Registros!H:H, Registros!B:B, ">="&fecha_inicial, Registros!B:B, "<=" & fecha_final, Registros!I:I, "="& '02'!A11)-SUMIFS(Registros!G:G, Registros!B:B, ">="& fecha_inicial, Registros!B:B, "<=" & fecha_final, Registros!I:I, "="& '02'!A11), SUMIFS(Registros!G:G, Registros!B:B, ">="&fecha_inicial, Registros!B:B, "<=" & fecha_final, Registros!I:I, "="& '02'!A11)-SUMIFS(Registros!H:H, Registros!B:B, ">="&fecha_inicial, Registros!B:B, "<=" & fecha_final, Registros!I:I, "="& '02'!A11)), 0) -> 126959 | E11: =IF(A11<>"", IF(VLOOKUP(A11, plan_cuentas, 4, FALSE)="H", SUMIFS(Registros!H:H, Registros!B:B, "<=" & fecha_final, Registros!I:I, "=" & A11)-SUMIFS(Registros!G:G, Registros!B:B, "<=" & fecha_final, Registros!I:I, "=" & A11), SUMIFS(Registros!G:G, Registros!B:B, "<=" & fecha_final, Registros!I:I, "=" & A11)-SUMIFS(Registros!H:H, Registros!B:B, "<=" & fecha_final, Registros!I:I, "=" & A11)), 0) -> 126959 | F11: =D11-C11 -> 126959 | G11: 0 | H11: 0.07269945457
A12: 510300 | B12: DONACIONES GRUPOS VOLUNTARIOS | C12: =IF(A12<>"", IF(VLOOKUP(A12, plan_cuentas, 4, FALSE)="H", SUMIFS(Registros!H:H, Registros!B:B, ">="&init_before, Registros!B:B, "<=" & final_before, Registros!I:I, "="& '02'!A12)-SUMIFS(Registros!G:G, Registros!B:B, ">="&init_before, Registros!B:B, "<=" & final_before, Registros!I:I, "="& '02'!A12), SUMIFS(Registros!G:G, Registros!B:B, ">="&init_before, Registros!B:B, "<=" & final_before, Registros!I:I, "="& '02'!A12)-SUMIFS(Registros!H:H, Registros!B:B, ">="&init_before, Registros!B:B, "<=" & final_before, Registros!I:I, "="& '02'!A12)), 0) -> 0 | D12: =IF(A12<>"", IF(VLOOKUP(A12, plan_cuentas, 4, FALSE)="H", SUMIFS(Registros!H:H, Registros!B:B, ">="&fecha_inicial, Registros!B:B, "<=" & fecha_final, Registros!I:I, "="& '02'!A12)-SUMIFS(Registros!G:G, Registros!B:B, ">="& fecha_inicial, Registros!B:B, "<=" & fecha_final, Registros!I:I, "="& '02'!A12), SUMIFS(Registros!G:G, Registros!B:B, ">="&fecha_inicial, Registros!B:B, "<=" & fecha_final, Registros!I:I, "="& '02'!A12)-SUMIFS(Registros!H:H, Registros!B:B, ">="&fecha_inicial, Registros!B:B, "<=" & fecha_final, Registros!I:I, "="& '02'!A12)), 0) -> 28546.75 | E12: =IF(A12<>"", IF(VLOOKUP(A12, plan_cuentas, 4, FALSE)="H", SUMIFS(Registros!H:H, Registros!B:B, "<=" & fecha_final, Registros!I:I, "=" & A12)-SUMIFS(Registros!G:G, Registros!B:B, "<=" & fecha_final, Registros!I:I, "=" & A12), SUMIFS(Registros!G:G, Registros!B:B, "<=" & fecha_final, Registros!I:I, "=" & A12)-SUMIFS(Registros!H:H, Registros!B:B, "<=" & fecha_final, Registros!I:I, "=" & A12)), 0) -> 28546.75 | F12: =D12-C12 -> 28546.75 | G12: 0 | H12: 0.01634648315
A13: 520000 | B13: OTROS INGRESOS | C13: =SUM(C14) -> 10935 | D13: =SUM(D14) -> 0 | E13: =SUM(E14) -> 10935 | F13: =D13-C13 -> -10935 | G13: -1 | H13: 0
A14: 520100 | B14: OTROS INGRESOS | C14: =IF(A14<>"", IF(VLOOKUP(A14, plan_cuentas, 4, FALSE)="H", SUMIFS(Registros!H:H, Registros!B:B, ">="&init_before, Registros!B:B, "<=" & final_before, Registros!I:I, "="& '02'!A14)-SUMIFS(Registros!G:G, Registros!B:B, ">="&init_before, Registros!B:B, "<=" & final_before, Registros!I:I, "="& '02'!A14), SUMIFS(Registros!G:G, Registros!B:B, ">="&init_before, Registros!B:B, "<=" & final_before, Registros!I:I, "="& '02'!A14)-SUMIFS(Registros!H:H, Registros!B:B, ">="&init_before, Registros!B:B, "<=" & final_before, Registros!I:I, "="& '02'!A14)), 0) -> 10935 | D14: =IF(A14<>"", IF(VLOOKUP(A14, plan_cuentas, 4, FALSE)="H", SUMIFS(Registros!H:H, Registros!B:B, ">="&fecha_inicial, Registros!B:B, "<=" & fecha_final, Registros!I:I, "="& '02'!A14)-SUMIFS(Registros!G:G, Registros!B:B, ">="& fecha_inicial, Registros!B:B, "<=" & fecha_final, Registros!I:I, "="& '02'!A14), SUMIFS(Registros!G:G, Registros!B:B, ">="&fecha_inicial, Registros!B:B, "<=" & fecha_final, Registros!I:I, "="& '02'!A14)-SUMIFS(Registros!H:H, Registros!B:B, ">="&fecha_inicial, Registros!B:B, "<=" & fecha_final, Registros!I:I, "="& '02'!A14)), 0) -> 0 | E14: =IF(A14<>"", IF(VLOOKUP(A14, plan_cuentas, 4, FALSE)="H", SUMIFS(Registros!H:H, Registros!B:B, "<=" & fecha_final, Registros!I:I, "=" & A14)-SUMIFS(Registros!G:G, Registros!B:B, "<=" & fecha_final, Registros!I:I, "=" & A14), SUMIFS(Registros!G:G, Registros!B:B, "<=" & fecha_final, Registros!I:I, "=" & A14)-SUMIFS(Registros!H:H, Registros!B:B, "<=" & fecha_final, Registros!I:I, "=" & A14)), 0) -> 10935 | F14: =D14-C14 -> -10935 | G14: -1 | H14: 0
A15: 600000 | B15: GASTOS OPERATIVOS | C15: =C16+C23+C26 -> 526497.31 | D15: =D16+D23+D26 -> 433115.83 | E15: =E16+E23+E26 -> 959613.14 | F15: =F16+F23+F26 -> -93381.48 | G15: -0.1773636412 | H15: 0.2480114415
A16: 610000 | B16: GASTOS ADMINISTRATIVOS OFICINA | C16: =SUM(C17:C22) -> 284067.67 | D16: =SUM(D17:D22) -> 196346.36 | E16: =SUM(E17:E22) -> 480414.03 | F16: =SUM(F17:F22) -> -87721.31 | G16: -0.3088042719 | H16: 0.1124321496
A17: 610100 | B17: GASTOS EN REMUNERACIÓN | C17: =IF(A17<>"", IF(VLOOKUP(A17, plan_cuentas, 4, FALSE)="H", SUMIFS(Registros!H:H, Registros!B:B, ">="&init_before, Registros!B:B, "<=" & final_before, Registros!I:I, "="& '02'!A17)-SUMIFS(Registros!G:G, Registros!B:B, ">="&init_before, Registros!B:B, "<=" & final_before, Registros!I:I, "="& '02'!A17), SUMIFS(Registros!G:G, Registros!B:B, ">="&init_before, Registros!B:B, "<=" & final_before, Registros!I:I, "="& '02'!A17)-SUMIFS(Registros!H:H, Registros!B:B, ">="&init_before, Registros!B:B, "<=" & final_before, Registros!I:I, "="& '02'!A17)), 0) -> 207646 | D17: =IF(A17<>"", IF(VLOOKUP(A17, plan_cuentas, 4, FALSE)="H", SUMIFS(Registros!H:H, Registros!B:B, ">="&fecha_inicial, Registros!B:B, "<=" & fecha_final, Registros!I:I, "="& '02'!A17)-SUMIFS(Registros!G:G, Registros!B:B, ">="& fecha_inicial, Registros!B:B, "<=" & fecha_final, Registros!I:I, "="& '02'!A17), SUMIFS(Registros!G:G, Registros!B:B, ">="&fecha_inicial, Registros!B:B, "<=" & fecha_final, Registros!I:I, "="& '02'!A17)-SUMIFS(Registros!H:H, Registros!B:B, ">="&fecha_inicial, Registros!B:B, "<=" & fecha_final, Registros!I:I, "="& '02'!A17)), 0) -> 170716 | E17: =IF(A17<>"", IF(VLOOKUP(A17, plan_cuentas, 4, FALSE)="H", SUMIFS(Registros!H:H, Registros!B:B, "<=" & fecha_final, Registros!I:I, "=" & A17)-SUMIFS(Registros!G:G, Registros!B:B, "<=" & fecha_final, Registros!I:I, "=" & A17), SUMIFS(Registros!G:G, Registros!B:B, "<=" & fecha_final, Registros!I:I, "=" & A17)-SUMIFS(Registros!H:H, Registros!B:B, "<=" & fecha_final, Registros!I:I, "=" & A17)), 0) -> 378362 | F17: =D17-C17 -> -36930 | G17: -0.1778507652 | H17: 0.09775565407
A18: 610200 | B18: ALQUILERES | C18: =IF(A18<>"", IF(VLOOKUP(A18, plan_cuentas, 4, FALSE)="H", SUMIFS(Registros!H:H, Registros!B:B, ">="&init_before, Registros!B:B, "<=" & final_before, Registros!I:I, "="& '02'!A18)-SUMIFS(Registros!G:G, Registros!B:B, ">="&init_before, Registros!B:B, "<=" & final_before, Registros!I:I, "="& '02'!A18), SUMIFS(Registros!G:G, Registros!B:B, ">="&init_before, Registros!B:B, "<=" & final_before, Registros!I:I, "="& '02'!A18)-SUMIFS(Registros!H:H, Registros!B:B, ">="&init_before, Registros!B:B, "<=" & final_before, Registros!I:I, "="& '02'!A18)), 0) -> 12926.64 | D18: =IF(A18<>"", IF(VLOOKUP(A18, plan_cuentas, 4, FALSE)="H", SUMIFS(Registros!H:H, Registros!B:B, ">="&fecha_inicial, Registros!B:B, "<=" & fecha_final, Registros!I:I, "="& '02'!A18)-SUMIFS(Registros!G:G, Registros!B:B, ">="& fecha_inicial, Registros!B:B, "<=" & fecha_final, Registros!I:I, "="& '02'!A18), SUMIFS(Registros!G:G, Registros!B:B, ">="&fecha_inicial, Registros!B:B, "<=" & fecha_final, Registros!I:I, "="& '02'!A18)-SUMIFS(Registros!H:H, Registros!B:B, ">="&fecha_inicial, Registros!B:B, "<=" & fecha_final, Registros!I:I, "="& '02'!A18)), 0) -> 5191.82 | E18: =IF(A18<>"", IF(VLOOKUP(A18, plan_cuentas, 4, FALSE)="H", SUMIFS(Registros!H:H, Registros!B:B, "<=" & fecha_final, Registros!I:I, "=" & A18)-SUMIFS(Registros!G:G, Registros!B:B, "<=" & fecha_final, Registros!I:I, "=" & A18), SUMIFS(Registros!G:G, Registros!B:B, "<=" & fecha_final, Registros!I:I, "=" & A18)-SUMIFS(Registros!H:H, Registros!B:B, "<=" & fecha_final, Registros!I:I, "=" & A18)), 0) -> 18118.46 | F18: -7734.82 | G18: -0.5983627609 | H18: 0.002972947819
A19: 610300 | B19: SERVICIOS BÁSICOS | C19: =IF(A19<>"", IF(VLOOKUP(A19, plan_cuentas, 4, FALSE)="H", SUMIFS(Registros!H:H, Registros!B:B, ">="&init_before, Registros!B:B, "<=" & final_before, Registros!I:I, "="& '02'!A19)-SUMIFS(Registros!G:G, Registros!B:B, ">="&init_before, Registros!B:B, "<=" & final_before, Registros!I:I, "="& '02'!A19), SUMIFS(Registros!G:G, Registros!B:B, ">="&init_before, Registros!B:B, "<=" & final_before, Registros!I:I, "="& '02'!A19)-SUMIFS(Registros!H:H, Registros!B:B, ">="&init_before, Registros!B:B, "<=" & final_before, Registros!I:I, "="& '02'!A19)), 0) -> 9522.19 | D19: =IF(A19<>"", IF(VLOOKUP(A19, plan_cuentas, 4, FALSE)="H", SUMIFS(Registros!H:H, Registros!B:B, ">="&fecha_inicial, Registros!B:B, "<=" & fecha_final, Registros!I:I, "="& '02'!A19)-SUMIFS(Registros!G:G, Registros!B:B, ">="& fecha_inicial, Registros!B:B, "<=" & fecha_final, Registros!I:I, "="& '02'!A19), SUMIFS(Registros!G:G, Registros!B:B, ">="&fecha_inicial, Registros!B:B, "<=" & fecha_final, Registros!I:I, "="& '02'!A19)-SUMIFS(Registros!H:H, Registros!B:B, ">="&fecha_inicial, Registros!B:B, "<=" & fecha_final, Registros!I:I, "="& '02'!A19)), 0) -> 1042 | E19: =IF(A19<>"", IF(VLOOKUP(A19, plan_cuentas, 4, FALSE)="H", SUMIFS(Registros!H:H, Registros!B:B, "<=" & fecha_final, Registros!I:I, "=" & A19)-SUMIFS(Registros!G:G, Registros!B:B, "<=" & fecha_final, Registros!I:I, "=" & A19), SUMIFS(Registros!G:G, Registros!B:B, "<=" & fecha_final, Registros!I:I, "=" & A19)-SUMIFS(Registros!H:H, Registros!B:B, "<=" & fecha_final, Registros!I:I, "=" & A19)), 0) -> 10564.19 | F19: -8480.19 | G19: -0.8905713917 | H19: 0.0005966716157
A20: 610400 | B20: GASTO EN MATERIALES Y SUMINISTROS | C20: =IF(A20<>"", IF(VLOOKUP(A20, plan_cuentas, 4, FALSE)="H", SUMIFS(Registros!H:H, Registros!B:B, ">="&init_before, Registros!B:B, "<=" & final_before, Registros!I:I, "="& '02'!A20)-SUMIFS(Registros!G:G, Registros!B:B, ">="&init_before, Registros!B:B, "<=" & final_before, Registros!I:I, "="& '02'!A20), SUMIFS(Registros!G:G, Registros!B:B, ">="&init_before, Registros!B:B, "<=" & final_before, Registros!I:I, "="& '02'!A20)-SUMIFS(Registros!H:H, Registros!B:B, ">="&init_before, Registros!B:B, "<=" & final_before, Registros!I:I, "="& '02'!A20)), 0) -> 3777.2 | D20: =IF(A20<>"", IF(VLOOKUP(A20, plan_cuentas, 4, FALSE)="H", SUMIFS(Registros!H:H, Registros!B:B, ">="&fecha_inicial, Registros!B:B, "<=" & fecha_final, Registros!I:I, "="& '02'!A20)-SUMIFS(Registros!G:G, Registros!B:B, ">="& fecha_inicial, Registros!B:B, "<=" & fecha_final, Registros!I:I, "="& '02'!A20), SUMIFS(Registros!G:G, Registros!B:B, ">="&fecha_inicial, Registros!B:B, "<=" & fecha_final, Registros!I:I, "="& '02'!A20)-SUMIFS(Registros!H:H, Registros!B:B, ">="&fecha_inicial, Registros!B:B, "<=" & fecha_final, Registros!I:I, "="& '02'!A20)), 0) -> 3323.84 | E20: =IF(A20<>"", IF(VLOOKUP(A20, plan_cuentas, 4, FALSE)="H", SUMIFS(Registros!H:H, Registros!B:B, "<=" & fecha_final, Registros!I:I, "=" & A20)-SUMIFS(Registros!G:G, Registros!B:B, "<=" & fecha_final, Registros!I:I, "=" & A20), SUMIFS(Registros!G:G, Registros!B:B, "<=" & fecha_final, Registros!I:I, "=" & A20)-SUMIFS(Registros!H:H, Registros!B:B, "<=" & fecha_final, Registros!I:I, "=" & A20)), 0) -> 7101.04 | F20: -453.36 | G20: -0.1200254157 | H20: 0.001903302287
A21: 610500 | B21: GASTOS DE MANTENIMIENTO | C21: =IF(A21<>"", IF(VLOOKUP(A21, plan_cuentas, 4, FALSE)="H", SUMIFS(Registros!H:H, Registros!B:B, ">="&init_before, Registros!B:B, "<=" & final_before, Registros!I:I, "="& '02'!A21)-SUMIFS(Registros!G:G, Registros!B:B, ">="&init_before, Registros!B:B, "<=" & final_before, Registros!I:I, "="& '02'!A21), SUMIFS(Registros!G:G, Registros!B:B, ">="&init_before, Registros!B:B, "<=" & final_before, Registros!I:I, "="& '02'!A21)-SUMIFS(Registros!H:H, Registros!B:B, ">="&init_before, Registros!B:B, "<=" & final_before, Registros!I:I, "="& '02'!A21)), 0) -> 21745.03 | D21: =IF(A21<>"", IF(VLOOKUP(A21, plan_cuentas, 4, FALSE)="H", SUMIFS(Registros!H:H, Registros!B:B, ">="&fecha_inicial, Registros!B:B, "<=" & fecha_final, Registros!I:I, "="& '02'!A21)-SUMIFS(Registros!G:G, Registros!B:B, ">="& fecha_inicial, Registros!B:B, "<=" & fecha_final, Registros!I:I, "="& '02'!A21), SUMIFS(Registros!G:G, Registros!B:B, ">="&fecha_inicial, Registros!B:B, "<=" & fecha_final, Registros!I:I, "="& '02'!A21)-SUMIFS(Registros!H:H, Registros!B:B, ">="&fecha_inicial, Registros!B:B, "<=" & fecha_final, Registros!I:I, "="& '02'!A21)), 0) -> 525.33 | E21: =IF(A21<>"", IF(VLOOKUP(A21, plan_cuentas, 4, FALSE)="H", SUMIFS(Registros!H:H, Registros!B:B, "<=" & fecha_final, Registros!I:I, "=" & A21)-SUMIFS(Registros!G:G, Registros!B:B, "<=" & fecha_final, Registros!I:I, "=" & A21), SUMIFS(Registros!G:G, Registros!B:B, "<=" & fecha_final, Registros!I:I, "=" & A21)-SUMIFS(Registros!H:H, Registros!B:B, "<=" & fecha_final, Registros!I:I, "=" & A21)), 0) -> 22270.36 | F21: -21219.7 | G21: -0.9758413762 | H21: 0.000300815259
A22: 610600 | B22: GASTOS VARIOS | C22: =IF(A22<>"", IF(VLOOKUP(A22, plan_cuentas, 4, FALSE)="H", SUMIFS(Registros!H:H, Registros!B:B, ">="&init_before, Registros!B:B, "<=" & final_before, Registros!I:I, "="& '02'!A22)-SUMIFS(Registros!G:G, Registros!B:B, ">="&init_before, Registros!B:B, "<=" & final_before, Registros!I:I, "="& '02'!A22), SUMIFS(Registros!G:G, Registros!B:B, ">="&init_before, Registros!B:B, "<=" & final_before, Registros!I:I, "="& '02'!A22)-SUMIFS(Registros!H:H, Registros!B:B, ">="&init_before, Registros!B:B, "<=" & final_before, Registros!I:I, "="& '02'!A22)), 0) -> 28450.61 | D22: =IF(A22<>"", IF(VLOOKUP(A22, plan_cuentas, 4, FALSE)="H", SUMIFS(Registros!H:H, Registros!B:B, ">="&fecha_inicial, Registros!B:B, "<=" & fecha_final, Registros!I:I, "="& '02'!A22)-SUMIFS(Registros!G:G, Registros!B:B, ">="& fecha_inicial, Registros!B:B, "<=" & fecha_final, Registros!I:I, "="& '02'!A22), SUMIFS(Registros!G:G, Registros!B:B, ">="&fecha_inicial, Registros!B:B, "<=" & fecha_final, Registros!I:I, "="& '02'!A22)-SUMIFS(Registros!H:H, Registros!B:B, ">="&fecha_inicial, Registros!B:B, "<=" & fecha_final, Registros!I:I, "="& '02'!A22)), 0) -> 15547.37 | E22: =IF(A22<>"", IF(VLOOKUP(A22, plan_cuentas, 4, FALSE)="H", SUMIFS(Registros!H:H, Registros!B:B, "<=" & fecha_final, Registros!I:I, "=" & A22)-SUMIFS(Registros!G:G, Registros!B:B, "<=" & fecha_final, Registros!I:I, "=" & A22), SUMIFS(Registros!G:G, Registros!B:B, "<=" & fecha_final, Registros!I:I, "=" & A22)-SUMIFS(Registros!H:H, Registros!B:B, "<=" & fecha_final, Registros!I:I, "=" & A22)), 0) -> 43997.98 | F22: -12903.24 | G22: -0.4535312248 | H22: 0.00890275852
A23: 620000 | B23: DEPRECIACIÓN | C23: =SUM(C24:C25) -> 0 | D23: =SUM(D24:D25) -> 0 | E23: =SUM(E24:E25) -> 0 | F23: =SUM(F24:F25) -> 0 | G23: 0 | H23: 0
A24: 620100 | B24: DEPRECIACIÓN DE MOBILIARIO | C24: =IF(A24<>"", IF(VLOOKUP(A24, plan_cuentas, 4, FALSE)="H", SUMIFS(Registros!H:H, Registros!B:B, ">="&init_before, Registros!B:B, "<=" & final_before, Registros!I:I, "="& '02'!A24)-SUMIFS(Registros!G:G, Registros!B:B, ">="&init_before, Registros!B:B, "<=" & final_before, Registros!I:I, "="& '02'!A24), SUMIFS(Registros!G:G, Registros!B:B, ">="&init_before, Registros!B:B, "<=" & final_before, Registros!I:I, "="& '02'!A24)-SUMIFS(Registros!H:H, Registros!B:B, ">="&init_before, Registros!B:B, "<=" & final_before, Registros!I:I, "="& '02'!A24)), 0) -> 0 | D24: =IF(A24<>"", IF(VLOOKUP(A24, plan_cuentas, 4, FALSE)="H", SUMIFS(Registros!H:H, Registros!B:B, ">="&fecha_inicial, Registros!B:B, "<=" & fecha_final, Registros!I:I, "="& '02'!A24)-SUMIFS(Registros!G:G, Registros!B:B, ">="& fecha_inicial, Registros!B:B, "<=" & fecha_final, Registros!I:I, "="& '02'!A24), SUMIFS(Registros!G:G, Registros!B:B, ">="&fecha_inicial, Registros!B:B, "<=" & fecha_final, Registros!I:I, "="& '02'!A24)-SUMIFS(Registros!H:H, Registros!B:B, ">="&fecha_inicial, Registros!B:B, "<=" & fecha_final, Registros!I:I, "="& '02'!A24)), 0) -> 0 | E24: =IF(A24<>"", IF(VLOOKUP(A24, plan_cuentas, 4, FALSE)="H", SUMIFS(Registros!H:H, Registros!B:B, "<=" & fecha_final, Registros!I:I, "=" & A24)-SUMIFS(Registros!G:G, Registros!B:B, "<=" & fecha_final, Registros!I:I, "=" & A24), SUMIFS(Registros!G:G, Registros!B:B, "<=" & fecha_final, Registros!I:I, "=" & A24)-SUMIFS(Registros!H:H, Registros!B:B, "<=" & fecha_final, Registros!I:I, "=" & A24)), 0) -> 0 | F24: 0 | G24: 0 | H24: 0
A25: 620200 | B25: DEPRECIACIÓN DE EQUIPO | C25: =IF(A25<>"", IF(VLOOKUP(A25, plan_cuentas, 4, FALSE)="H", SUMIFS(Registros!H:H, Registros!B:B, ">="&init_before, Registros!B:B, "<=" & final_before, Registros!I:I, "="& '02'!A25)-SUMIFS(Registros!G:G, Registros!B:B, ">="&init_before, Registros!B:B, "<=" & final_before, Registros!I:I, "="& '02'!A25), SUMIFS(Registros!G:G, Registros!B:B, ">="&init_before, Registros!B:B, "<=" & final_before, Registros!I:I, "="& '02'!A25)-SUMIFS(Registros!H:H, Registros!B:B, ">="&init_before, Registros!B:B, "<=" & final_before, Registros!I:I, "="& '02'!A25)), 0) -> 0 | D25: =IF(A25<>"", IF(VLOOKUP(A25, plan_cuentas, 4, FALSE)="H", SUMIFS(Registros!H:H, Registros!B:B, ">="&fecha_inicial, Registros!B:B, "<=" & fecha_final, Registros!I:I, "="& '02'!A25)-SUMIFS(Registros!G:G, Registros!B:B, ">="& fecha_inicial, Registros!B:B, "<=" & fecha_final, Registros!I:I, "="& '02'!A25), SUMIFS(Registros!G:G, Registros!B:B, ">="&fecha_inicial, Registros!B:B, "<=" & fecha_final, Registros!I:I, "="& '02'!A25)-SUMIFS(Registros!H:H, Registros!B:B, ">="&fecha_inicial, Registros!B:B, "<=" & fecha_final, Registros!I:I, "="& '02'!A25)), 0) -> 0 | E25: =IF(A25<>"", IF(VLOOKUP(A25, plan_cuentas, 4, FALSE)="H", SUMIFS(Registros!H:H, Registros!B:B, "<=" & fecha_final, Registros!I:I, "=" & A25)-SUMIFS(Registros!G:G, Registros!B:B, "<=" & fecha_final, Registros!I:I, "=" & A25), SUMIFS(Registros!G:G, Registros!B:B, "<=" & fecha_final, Registros!I:I, "=" & A25)-SUMIFS(Registros!H:H, Registros!B:B, "<=" & fecha_final, Registros!I:I, "=" & A25)), 0) -> 0 | F25: 0 | G25: 0 | H25: 0
A26: 630000 | B26: GASTOS DE PROYECTOS | C26: =SUM(C27:C31) -> 242429.64 | D26: =SUM(D27:D31) -> 236769.47 | E26: =SUM(E27:E31) -> 479199.11 | F26: =SUM(F27:F31) -> -5660.17 | G26: -0.02334768141 | H26: 0.135579292
A27: 630100 | B27: PROYECTO PARQUE DEPORTIVO | C27: =IF(A27<>"", IF(VLOOKUP(A27, plan_cuentas, 4, FALSE)="H", SUMIFS(Registros!H:H, Registros!B:B, ">="&init_before, Registros!B:B, "<=" & final_before, Registros!I:I, "="& '02'!A27)-SUMIFS(Registros!G:G, Registros!B:B, ">="&init_before, Registros!B:B, "<=" & final_before, Registros!I:I, "="& '02'!A27), SUMIFS(Registros!G:G, Registros!B:B, ">="&init_before, Registros!B:B, "<=" & final_before, Registros!I:I, "="& '02'!A27)-SUMIFS(Registros!H:H, Registros!B:B, ">="&init_before, Registros!B:B, "<=" & final_before, Registros!I:I, "="& '02'!A27)), 0) -> 7017.62 | D27: =IF(A27<>"", IF(VLOOKUP(A27, plan_cuentas, 4, FALSE)="H", SUMIFS(Registros!H:H, Registros!B:B, ">="&fecha_inicial, Registros!B:B, "<=" & fecha_final, Registros!I:I, "="& '02'!A27)-SUMIFS(Registros!G:G, Registros!B:B, ">="& fecha_inicial, Registros!B:B, "<=" & fecha_final, Registros!I:I, "="& '02'!A27), SUMIFS(Registros!G:G, Registros!B:B, ">="&fecha_inicial, Registros!B:B, "<=" & fecha_final, Registros!I:I, "="& '02'!A27)-SUMIFS(Registros!H:H, Registros!B:B, ">="&fecha_inicial, Registros!B:B, "<=" & fecha_final, Registros!I:I, "="& '02'!A27)), 0) -> 2269.31 | E27: =IF(A27<>"", IF(VLOOKUP(A27, plan_cuentas, 4, FALSE)="H", SUMIFS(Registros!H:H, Registros!B:B, "<=" & fecha_final, Registros!I:I, "=" & A27)-SUMIFS(Registros!G:G, Registros!B:B, "<=" & fecha_final, Registros!I:I, "=" & A27), SUMIFS(Registros!G:G, Registros!B:B, "<=" & fecha_final, Registros!I:I, "=" & A27)-SUMIFS(Registros!H:H, Registros!B:B, "<=" & fecha_final, Registros!I:I, "=" & A27)), 0) -> 9286.93 | F27: -4748.31 | G27: -0.6766268336 | H27: 0.001299455724
A28: 630200 | B28: PROYECTO CAMPO VERDE | C28: =IF(A28<>"", IF(VLOOKUP(A28, plan_cuentas, 4, FALSE)="H", SUMIFS(Registros!H:H, Registros!B:B, ">="&init_before, Registros!B:B, "<=" & final_before, Registros!I:I, "="& '02'!A28)-SUMIFS(Registros!G:G, Registros!B:B, ">="&init_before, Registros!B:B, "<=" & final_before, Registros!I:I, "="& '02'!A28), SUMIFS(Registros!G:G, Registros!B:B, ">="&init_before, Registros!B:B, "<=" & final_before, Registros!I:I, "="& '02'!A28)-SUMIFS(Registros!H:H, Registros!B:B, ">="&init_before, Registros!B:B, "<=" & final_before, Registros!I:I, "="& '02'!A28)), 0) -> 41743.1 | D28: =IF(A28<>"", IF(VLOOKUP(A28, plan_cuentas, 4, FALSE)="H", SUMIFS(Registros!H:H, Registros!B:B, ">="&fecha_inicial, Registros!B:B, "<=" & fecha_final, Registros!I:I, "="& '02'!A28)-SUMIFS(Registros!G:G, Registros!B:B, ">="& fecha_inicial, Registros!B:B, "<=" & fecha_final, Registros!I:I, "="& '02'!A28), SUMIFS(Registros!G:G, Registros!B:B, ">="&fecha_inicial, Registros!B:B, "<=" & fecha_final, Registros!I:I, "="& '02'!A28)-SUMIFS(Registros!H:H, Registros!B:B, ">="&fecha_inicial, Registros!B:B, "<=" & fecha_final, Registros!I:I, "="& '02'!A28)), 0) -> 25274.95 | E28: =IF(A28<>"", IF(VLOOKUP(A28, plan_cuentas, 4, FALSE)="H", SUMIFS(Registros!H:H, Registros!B:B, "<=" & fecha_final, Registros!I:I, "=" & A28)-SUMIFS(Registros!G:G, Registros!B:B, "<=" & fecha_final, Registros!I:I, "=" & A28), SUMIFS(Registros!G:G, Registros!B:B, "<=" & fecha_final, Registros!I:I, "=" & A28)-SUMIFS(Registros!H:H, Registros!B:B, "<=" & fecha_final, Registros!I:I, "=" & A28)), 0) -> 67018.05 | F28: -16468.15 | G28: -0.3945119074 | H28: 0.01447298009
A29: 630300 | B29: PROYECTO TURISMO SOSTENIBLE | C29: =IF(A29<>"", IF(VLOOKUP(A29, plan_cuentas, 4, FALSE)="H", SUMIFS(Registros!H:H, Registros!B:B, ">="&init_before, Registros!B:B, "<=" & final_before, Registros!I:I, "="& '02'!A29)-SUMIFS(Registros!G:G, Registros!B:B, ">="&init_before, Registros!B:B, "<=" & final_before, Registros!I:I, "="& '02'!A29), SUMIFS(Registros!G:G, Registros!B:B, ">="&init_before, Registros!B:B, "<=" & final_before, Registros!I:I, "="& '02'!A29)-SUMIFS(Registros!H:H, Registros!B:B, ">="&init_before, Registros!B:B, "<=" & final_before, Registros!I:I, "="& '02'!A29)), 0) -> 169529.07 | D29: =IF(A29<>"", IF(VLOOKUP(A29, plan_cuentas, 4, FALSE)="H", SUMIFS(Registros!H:H, Registros!B:B, ">="&fecha_inicial, Registros!B:B, "<=" & fecha_final, Registros!I:I, "="& '02'!A29)-SUMIFS(Registros!G:G, Registros!B:B, ">="& fecha_inicial, Registros!B:B, "<=" & fecha_final, Registros!I:I, "="& '02'!A29), SUMIFS(Registros!G:G, Registros!B:B, ">="&fecha_inicial, Registros!B:B, "<=" & fecha_final, Registros!I:I, "="& '02'!A29)-SUMIFS(Registros!H:H, Registros!B:B, ">="&fecha_inicial, Registros!B:B, "<=" & fecha_final, Registros!I:I, "="& '02'!A29)), 0) -> 203209.05 | E29: =IF(A29<>"", IF(VLOOKUP(A29, plan_cuentas, 4, FALSE)="H", SUMIFS(Registros!H:H, Registros!B:B, "<=" & fecha_final, Registros!I:I, "=" & A29)-SUMIFS(Registros!G:G, Registros!B:B, "<=" & fecha_final, Registros!I:I, "=" & A29), SUMIFS(Registros!G:G, Registros!B:B, "<=" & fecha_final, Registros!I:I, "=" & A29)-SUMIFS(Registros!H:H, Registros!B:B, "<=" & fecha_final, Registros!I:I, "=" & A29)), 0) -> 372738.12 | F29: 33679.98 | G29: 0.1986678745 | H29: 0.1163618735
A30: 630400 | B30: =IF(A30<>"", IFERROR(VLOOKUP(A30, plan_cuentas, 2, FALSE), "CÓDIGO INCORRECTO"), "") -> PROYECTO NICA AGUA | C30: =IF(A30<>"", IF(VLOOKUP(A30, plan_cuentas, 4, FALSE)="H", SUMIFS(Registros!H:H, Registros!B:B, ">="&init_before, Registros!B:B, "<=" & final_before, Registros!I:I, "="& '02'!A30)-SUMIFS(Registros!G:G, Registros!B:B, ">="&init_before, Registros!B:B, "<=" & final_before, Registros!I:I, "="& '02'!A30), SUMIFS(Registros!G:G, Registros!B:B, ">="&init_before, Registros!B:B, "<=" & final_before, Registros!I:I, "="& '02'!A30)-SUMIFS(Registros!H:H, Registros!B:B, ">="&init_before, Registros!B:B, "<=" & final_before, Registros!I:I, "="& '02'!A30)), 0) -> 11206.1 | D30: =IF(A30<>"", IF(VLOOKUP(A30, plan_cuentas, 4, FALSE)="H", SUMIFS(Registros!H:H, Registros!B:B, ">="&fecha_inicial, Registros!B:B, "<=" & fecha_final, Registros!I:I, "="& '02'!A30)-SUMIFS(Registros!G:G, Registros!B:B, ">="& fecha_inicial, Registros!B:B, "<=" & fecha_final, Registros!I:I, "="& '02'!A30), SUMIFS(Registros!G:G, Registros!B:B, ">="&fecha_inicial, Registros!B:B, "<=" & fecha_final, Registros!I:I, "="& '02'!A30)-SUMIFS(Registros!H:H, Registros!B:B, ">="&fecha_inicial, Registros!B:B, "<=" & fecha_final, Registros!I:I, "="& '02'!A30)), 0) -> 0 | E30: =IF(A30<>"", IF(VLOOKUP(A30, plan_cuentas, 4, FALSE)="H", SUMIFS(Registros!H:H, Registros!B:B, "<=" & fecha_final, Registros!I:I, "=" & A30)-SUMIFS(Registros!G:G, Registros!B:B, "<=" & fecha_final, Registros!I:I, "=" & A30), SUMIFS(Registros!G:G, Registros!B:B, "<=" & fecha_final, Registros!I:I, "=" & A30)-SUMIFS(Registros!H:H, Registros!B:B, "<=" & fecha_final, Registros!I:I, "=" & A30)), 0) -> 11206.1 | F30: =D30-C30 -> -11206.1 | G30: =IFERROR(F30/C30, 0) -> -1 | H30: =IFERROR(D30/$D$8, 0) -> 0
A31: 630500 | B31: =IF(A31<>"", IFERROR(VLOOKUP(A31, plan_cuentas, 2, FALSE), "CÓDIGO INCORRECTO"), "") -> PROYECTO CLINICA LOS ROBLES | C31: =IF(A31<>"", IF(VLOOKUP(A31, plan_cuentas, 4, FALSE)="H", SUMIFS(Registros!H:H, Registros!B:B, ">="&init_before, Registros!B:B, "<=" & final_before, Registros!I:I, "="& '02'!A31)-SUMIFS(Registros!G:G, Registros!B:B, ">="&init_before, Registros!B:B, "<=" & final_before, Registros!I:I, "="& '02'!A31), SUMIFS(Registros!G:G, Registros!B:B, ">="&init_before, Registros!B:B, "<=" & final_before, Registros!I:I, "="& '02'!A31)-SUMIFS(Registros!H:H, Registros!B:B, ">="&init_before, Registros!B:B, "<=" & final_before, Registros!I:I, "="& '02'!A31)), 0) -> 12933.75 | D31: =IF(A31<>"", IF(VLOOKUP(A31, plan_cuentas, 4, FALSE)="H", SUMIFS(Registros!H:H, Registros!B:B, ">="&fecha_inicial, Registros!B:B, "<=" & fecha_final, Registros!I:I, "="& '02'!A31)-SUMIFS(Registros!G:G, Registros!B:B, ">="& fecha_inicial, Registros!B:B, "<=" & fecha_final, Registros!I:I, "="& '02'!A31), SUMIFS(Registros!G:G, Registros!B:B, ">="&fecha_inicial, Registros!B:B, "<=" & fecha_final, Registros!I:I, "="& '02'!A31)-SUMIFS(Registros!H:H, Registros!B:B, ">="&fecha_inicial, Registros!B:B, "<=" & fecha_final, Registros!I:I, "="& '02'!A31)), 0) -> 6016.16 | E31: =IF(A31<>"", IF(VLOOKUP(A31, plan_cuentas, 4, FALSE)="H", SUMIFS(Registros!H:H, Registros!B:B, "<=" & fecha_final, Registros!I:I, "=" & A31)-SUMIFS(Registros!G:G, Registros!B:B, "<=" & fecha_final, Registros!I:I, "=" & A31), SUMIFS(Registros!G:G, Registros!B:B, "<=" & fecha_final, Registros!I:I, "=" & A31)-SUMIFS(Registros!H:H, Registros!B:B, "<=" & fecha_final, Registros!I:I, "=" & A31)), 0) -> 18949.91 | F31: =D31-C31 -> -6917.59 | G31: =IFERROR(F31/C31, 0) -> -0.5348479753 | H31: =IFERROR(D31/$D$8, 0) -> 0.003444982637
A32: 700000 | B32: GASTOS FINANCIEROS | C32: =C33 -> 0 | D32: 0 | E32: 0 | F32: 0 | G32: 0 | H32: 0
A33: 710000 | B33: COMISIONES BANCARIAS | C33: 0 | D33: 0 | E33: 0 | F33: 0 | G33: 0 | H33: 0
A34: 710100 | B34: CARGOS CUENTAS CORRIENTES | C34: =IF(A34<>"", IF(VLOOKUP(A34, plan_cuentas, 4, FALSE)="H", SUMIFS(Registros!H:H, Registros!B:B, ">="&init_before, Registros!B:B, "<=" & final_before, Registros!I:I, "="& '02'!A34)-SUMIFS(Registros!G:G, Registros!B:B, ">="&init_before, Registros!B:B, "<=" & final_before, Registros!I:I, "="& '02'!A34), SUMIFS(Registros!G:G, Registros!B:B, ">="&init_before, Registros!B:B, "<=" & final_before, Registros!I:I, "="& '02'!A34)-SUMIFS(Registros!H:H, Registros!B:B, ">="&init_before, Registros!B:B, "<=" & final_before, Registros!I:I, "="& '02'!A34)), 0) -> 0 | D34: =IF(A34<>"", IF(VLOOKUP(A34, plan_cuentas, 4, FALSE)="H", SUMIFS(Registros!H:H, Registros!B:B, ">="&fecha_inicial, Registros!B:B, "<=" & fecha_final, Registros!I:I, "="& '02'!A34)-SUMIFS(Registros!G:G, Registros!B:B, ">="& fecha_inicial, Registros!B:B, "<=" & fecha_final, Registros!I:I, "="& '02'!A34), SUMIFS(Registros!G:G, Registros!B:B, ">="&fecha_inicial, Registros!B:B, "<=" & fecha_final, Registros!I:I, "="& '02'!A34)-SUMIFS(Registros!H:H, Registros!B:B, ">="&fecha_inicial, Registros!B:B, "<=" & fecha_final, Registros!I:I, "="& '02'!A34)), 0) -> 0 | E34: =IF(A34<>"", IF(VLOOKUP(A34, plan_cuentas, 4, FALSE)="H", SUMIFS(Registros!H:H, Registros!B:B, "<=" & fecha_final, Registros!I:I, "=" & A34)-SUMIFS(Registros!G:G, Registros!B:B, "<=" & fecha_final, Registros!I:I, "=" & A34), SUMIFS(Registros!G:G, Registros!B:B, "<=" & fecha_final, Registros!I:I, "=" & A34)-SUMIFS(Registros!H:H, Registros!B:B, "<=" & fecha_final, Registros!I:I, "=" & A34)), 0) -> 0 | F34: =D34-C34 -> 0 | G34: 0 | H34: 0
A35: GASTOS TOTALES | C35: =C15+C32 -> 526497.31 | D35: =D15+D32 -> 433115.83 | E35: =E15+E32 -> 959613.14 | F35: =D35-C35 -> -93381.48 | G35: -0.1773636412 | H35: 0.2480114415
A36: 310202 | B36: RESULTADOS DEL EJERCICIO | C36: =C8-C35 -> -515562.31 | D36: =D8-D35 -> 1313238.4 | E36: =E8-E35 -> 797676.09 | F36: =D36-C36 -> 1828800.71 | G36: -3.547196284 | H36: 0.7519885585
B41: ELABORADO POR: | F41: AUTORIZADO POR:
B42: =IF(B41<>"", VLOOKUP(B41, users, 3, FALSE), "") -> Anielka Galán | F42: =IF(F41<>"", VLOOKUP(F41, users, 3, FALSE), "") -> Rodrigo Castro Potoy

Sheet 03
E1: Proteger
A2: =bussiness_name -> SOCIEDAD CIVIL COMUNIDAD CONNECT
A3: BALANCE GENERAL CONSOLIDADO
A4: =" AL "&TEXT(fecha_final, "DD")&" DE "&UPPER(TEXT(fecha_final, "MMMM"))&" DEL "&TEXT(fecha_final, "YYYY") -> AL 31 DE JULIO DEL 2014
A5: =address & " *** Tel/Fax: " & tel & " *** " & email -> Esquina sureste del Parque Central, San Juan del sur, Nicaragua. *** Tel/Fax: 25682731 *** info@comunidadconnect.org
A6: CÓDIGO CUENTA | B6: DESCRIPCIÓN DE LA CUENTA | E6: CÓDIGO CUENTA | F6: DESCRIPCIÓN DE LA CUENTA
A7: 100000 | B7: =IF(A7<>"", IFERROR(VLOOKUP(A7, plan_cuentas, 2, FALSE), "CÓDIGO INCORRECTO"), "") -> ACTIVOS | E7: 200000 | F7: =IF(E7<>"", IFERROR(VLOOKUP(E7, plan_cuentas, 2, FALSE), "CÓDIGO INCORRECTO"), "") -> PASIVOS
A8: 110000 | B8: ACTIVOS CORRIENTES | E8: 210000 | F8: PASIVOS CORRIENTES
A9: 110100 | B9: CAJA | C9: =IF(A9<>"", IF(VLOOKUP(A9, plan_cuentas, 4, FALSE)="H", SUMIFS(Registros!H:H, Registros!B:B, "<=" & fecha_final, Registros!I:I, "="& '03'!A9)-SUMIFS(Registros!G:G, Registros!B:B, "<=" & fecha_final, Registros!I:I, "="& '03'!A9), SUMIFS(Registros!G:G, Registros!B:B, "<=" & fecha_final, Registros!I:I, "="& '03'!A9)-SUMIFS(Registros!H:H, Registros!B:B, "<=" & fecha_final, Registros!I:I, "="& '03'!A9)), 0) -> 18675.8 | E9: 210100 | F9: CUENTAS POR PAGAR | G9: =IF(E9<>"", IF(VLOOKUP(E9, plan_cuentas, 4, FALSE)="H", SUMIFS(Registros!H:H, Registros!B:B, "<=" & fecha_final, Registros!I:I, "="& '03'!E9)-SUMIFS(Registros!G:G, Registros!B:B, "<=" & fecha_final, Registros!I:I, "="& '03'!E9), SUMIFS(Registros!G:G, Registros!B:B, "<=" & fecha_final, Registros!I:I, "="& '03'!E9)-SUMIFS(Registros!H:H, Registros!B:B, "<=" & fecha_final, Registros!I:I, "="& '03'!E9)), 0) -> 0
A10: 110200 | B10: =IF(A10<>"", IFERROR(VLOOKUP(A10, plan_cuentas, 2, FALSE), "CÓDIGO INCORRECTO"), "") -> BANCOS | C10: =IF(A10<>"", IF(VLOOKUP(A10, plan_cuentas, 4, FALSE)="H", SUMIFS(Registros!H:H, Registros!B:B, "<=" & fecha_final, Registros!I:I, "="& '03'!A10)-SUMIFS(Registros!G:G, Registros!B:B, "<=" & fecha_final, Registros!I:I, "="& '03'!A10), SUMIFS(Registros!G:G, Registros!B:B, "<=" & fecha_final, Registros!I:I, "="& '03'!A10)-SUMIFS(Registros!H:H, Registros!B:B, "<=" & fecha_final, Registros!I:I, "="& '03'!A10)), 0) -> 1801629.04 | E10: 210200 | F10: DOCUMENTOS POR PAGAR | G10: =IF(E10<>"", IF(VLOOKUP(E10, plan_cuentas, 4, FALSE)="H", SUMIFS(Registros!H:H, Registros!B:B, "<=" & fecha_final, Registros!I:I, "="& '03'!E10)-SUMIFS(Registros!G:G, Registros!B:B, "<=" & fecha_final, Registros!I:I, "="& '03'!E10), SUMIFS(Registros!G:G, Registros!B:B, "<=" & fecha_final, Registros!I:I, "="& '03'!E10)-SUMIFS(Registros!H:H, Registros!B:B, "<=" & fecha_final, Registros!I:I, "="& '03'!E10)), 0) -> 0
A11: 110300 | B11: INVERSIONES EN VALORES | C11: =IF(A11<>"", IF(VLOOKUP(A11, plan_cuentas, 4, FALSE)="H", SUMIFS(Registros!H:H, Registros!B:B, "<=" & fecha_final, Registros!I:I, "="& '03'!A11)-SUMIFS(Registros!G:G, Registros!B:B, "<=" & fecha_final, Registros!I:I, "="& '03'!A11), SUMIFS(Registros!G:G, Registros!B:B, "<=" & fecha_final, Registros!I:I, "="& '03'!A11)-SUMIFS(Registros!H:H, Registros!B:B, "<=" & fecha_final, Registros!I:I, "="& '03'!A11)), 0) -> 0 | E11: 210300 | F11: IMPUESTOS POR PAGAR | G11: =IF(E11<>"", IF(VLOOKUP(E11, plan_cuentas, 4, FALSE)="H", SUMIFS(Registros!H:H, Registros!B:B, "<=" & fecha_final, Registros!I:I, "="& '03'!E11)-SUMIFS(Registros!G:G, Registros!B:B, "<=" & fecha_final, Registros!I:I, "="& '03'!E11), SUMIFS(Registros!G:G, Registros!B:B, "<=" & fecha_final, Registros!I:I, "="& '03'!E11)-SUMIFS(Registros!H:H, Registros!B:B, "<=" & fecha_final, Registros!I:I, "="& '03'!E11)), 0) -> 52240.14
A12: 110400 | B12: CUENTAS Y DOCUMENTOS POR COBRAR | C12: =IF(A12<>"", IF(VLOOKUP(A12, plan_cuentas, 4, FALSE)="H", SUMIFS(Registros!H:H, Registros!B:B, "<=" & fecha_final, Registros!I:I, "="& '03'!A12)-SUMIFS(Registros!G:G, Registros!B:B, "<=" & fecha_final, Registros!I:I, "="& '03'!A12), SUMIFS(Registros!G:G, Registros!B:B, "<=" & fecha_final, Registros!I:I, "="& '03'!A12)-SUMIFS(Registros!H:H, Registros!B:B, "<=" & fecha_final, Registros!I:I, "="& '03'!A12)), 0) -> 1771.78 | E12: 210400 | F12: GASTOS ACUMULADOS POR PAGAR | G12: =IF(E12<>"", IF(VLOOKUP(E12, plan_cuentas, 4, FALSE)="H", SUMIFS(Registros!H:H, Registros!B:B, "<=" & fecha_final, Registros!I:I, "="& '03'!E12)-SUMIFS(Registros!G:G, Registros!B:B, "<=" & fecha_final, Registros!I:I, "="& '03'!E12), SUMIFS(Registros!G:G, Registros!B:B, "<=" & fecha_final, Registros!I:I, "="& '03'!E12)-SUMIFS(Registros!H:H, Registros!B:B, "<=" & fecha_final, Registros!I:I, "="& '03'!E12)), 0) -> -11384.82
A13: 110500 | B13: DEUDORES DIVERSOS | C13: =IF(A13<>"", IF(VLOOKUP(A13, plan_cuentas, 4, FALSE)="H", SUMIFS(Registros!H:H, Registros!B:B, "<=" & fecha_final, Registros!I:I, "="& '03'!A13)-SUMIFS(Registros!G:G, Registros!B:B, "<=" & fecha_final, Registros!I:I, "="& '03'!A13), SUMIFS(Registros!G:G, Registros!B:B, "<=" & fecha_final, Registros!I:I, "="& '03'!A13)-SUMIFS(Registros!H:H, Registros!B:B, "<=" & fecha_final, Registros!I:I, "="& '03'!A13)), 0) -> 0 | F13: SUB TOTAL PASIVOS CORRIENTES | G13: =SUM(G9:G12) -> 40855.32
A14: 110600 | B14: INVENTARIOS | C14: =IF(A14<>"", IF(VLOOKUP(A14, plan_cuentas, 4, FALSE)="H", SUMIFS(Registros!H:H, Registros!B:B, "<=" & fecha_final, Registros!I:I, "="& '03'!A14)-SUMIFS(Registros!G:G, Registros!B:B, "<=" & fecha_final, Registros!I:I, "="& '03'!A14), SUMIFS(Registros!G:G, Registros!B:B, "<=" & fecha_final, Registros!I:I, "="& '03'!A14)-SUMIFS(Registros!H:H, Registros!B:B, "<=" & fecha_final, Registros!I:I, "="& '03'!A14)), 0) -> 107675.34 | E14: 300000 | F14: =IF(E14<>"", IFERROR(VLOOKUP(E14, plan_cuentas, 2, FALSE), "CÓDIGO INCORRECTO"), "") -> CAPITAL
B15: SUB TOTAL ACTIVOS CORRIENTES | C15: =SUM(C9:C14) -> 1929751.96 | E15: 310000 | F15: CAPITAL SOCIAL
A16: 120000 | B16: =IF(A16<>"", IFERROR(VLOOKUP(A16, plan_cuentas, 2, FALSE), "CÓDIGO INCORRECTO"), "") -> ACTIVOS NO CORRIENTES | E16: 310101 | F16: FONDO EN RESERVA | G16: =IF(E16<>"", IF(VLOOKUP(E16, plan_cuentas, 4, FALSE)="H", SUMIFS(Registros!H:H, Registros!B:B, "<=" & fecha_final, Registros!C:C, "="& '03'!E16)-SUMIFS(Registros!G:G, Registros!B:B, "<=" & fecha_final, Registros!C:C, "="& '03'!E16), SUMIFS(Registros!G:G, Registros!B:B, "<=" & fecha_final, Registros!C:C, "="& '03'!E16)-SUMIFS(Registros!H:H, Registros!B:B, "<=" & fecha_final, Registros!C:C, "="& '03'!E16)), 0) -> 0
A17: 120300 | B17: =IF(A17<>"", IFERROR(VLOOKUP(A17, plan_cuentas, 2, FALSE), "CÓDIGO INCORRECTO"), "") -> MOBILIARIO | C17: =IF(A17<>"", IF(VLOOKUP(A17, plan_cuentas, 4, FALSE)="H", SUMIFS(Registros!H:H, Registros!B:B, "<=" & fecha_final, Registros!I:I, "="& '03'!A17)-SUMIFS(Registros!G:G, Registros!B:B, "<=" & fecha_final, Registros!I:I, "="& '03'!A17), SUMIFS(Registros!G:G, Registros!B:B, "<=" & fecha_final, Registros!I:I, "="& '03'!A17)-SUMIFS(Registros!H:H, Registros!B:B, "<=" & fecha_final, Registros!I:I, "="& '03'!A17)), 0) -> 3099 | E17: 310102 | F17: FONDO PATRIMONIAL | G17: =IF(E17<>"", IF(VLOOKUP(E17, plan_cuentas, 4, FALSE)="H", SUMIFS(Registros!H:H, Registros!B:B, "<=" & fecha_final, Registros!C:C, "="& '03'!E17)-SUMIFS(Registros!G:G, Registros!B:B, "<=" & fecha_final, Registros!C:C, "="& '03'!E17), SUMIFS(Registros!G:G, Registros!B:B, "<=" & fecha_final, Registros!C:C, "="& '03'!E17)-SUMIFS(Registros!H:H, Registros!B:B, "<=" & fecha_final, Registros!C:C, "="& '03'!E17)), 0) -> 1137240.94
A18: 120400 | B18: =IF(A18<>"", IFERROR(VLOOKUP(A18, plan_cuentas, 2, FALSE), "CÓDIGO INCORRECTO"), "") -> EQUIPO | C18: =IF(A18<>"", IF(VLOOKUP(A18, plan_cuentas, 4, FALSE)="H", SUMIFS(Registros!H:H, Registros!B:B, "<=" & fecha_final, Registros!I:I, "="& '03'!A18)-SUMIFS(Registros!G:G, Registros!B:B, "<=" & fecha_final, Registros!I:I, "="& '03'!A18), SUMIFS(Registros!G:G, Registros!B:B, "<=" & fecha_final, Registros!I:I, "="& '03'!A18)-SUMIFS(Registros!H:H, Registros!B:B, "<=" & fecha_final, Registros!I:I, "="& '03'!A18)), 0) -> 42921.39 | E18: 310201 | F18: RESULTADOS ACUMULADOS | G18: =IF(E18<>"", IF(VLOOKUP(E18, plan_cuentas, 4, FALSE)="H", SUMIFS(Registros!H:H, Registros!B:B, "<=" & fecha_final, Registros!C:C, "="& '03'!E18)-SUMIFS(Registros!G:G, Registros!B:B, "<=" & fecha_final, Registros!C:C, "="& '03'!E18), SUMIFS(Registros!G:G, Registros!B:B, "<=" & fecha_final, Registros!C:C, "="& '03'!E18)-SUMIFS(Registros!H:H, Registros!B:B, "<=" & fecha_final, Registros!C:C, "="& '03'!E18)), 0) -> 0
A19: 130000 | B19: =IF(A19<>"", IFERROR(VLOOKUP(A19, plan_cuentas, 2, FALSE), "CÓDIGO INCORRECTO"), "") -> DEPRECIACIÓN ACUMULADA | C19: =IF(A19<>"", IF(VLOOKUP(A19, plan_cuentas, 4, FALSE)="H", SUMIFS(Registros!H:H, Registros!B:B, "<=" & fecha_final, Registros!I:I, "="& '03'!A19)-SUMIFS(Registros!G:G, Registros!B:B, "<=" & fecha_final, Registros!I:I, "="& '03'!A19), SUMIFS(Registros!G:G, Registros!B:B, "<=" & fecha_final, Registros!I:I, "="& '03'!A19)-SUMIFS(Registros!H:H, Registros!B:B, "<=" & fecha_final, Registros!I:I, "="& '03'!A19)), 0) -> 0 | E19: 310202 | F19: RESULTADOS DEL EJERCICIO | G19: ='02'!E36 -> 797676.09
B20: SUB TOTAL ACTIVO NO CORRIENTE NETO | C20: =SUM(C17:C19) -> 46020.39 | F20: SUB TOTAL CAPITAL | G20: =SUM(G16:G19) -> 1934917.03
A21: 140000 | B21: =IF(A21<>"", IFERROR(VLOOKUP(A21, plan_cuentas, 2, FALSE), "CÓDIGO INCORRECTO"), "") -> OTROS ACTIVOS
A22: 140100 | B22: =IF(A22<>"", IFERROR(VLOOKUP(A22, plan_cuentas, 2, FALSE), "CÓDIGO INCORRECTO"), "") -> DEPÓSITOS EN GARANTÍA | C22: =IF(A22<>"", IF(VLOOKUP(A22, plan_cuentas, 4, FALSE)="H", SUMIFS(Registros!H:H, Registros!B:B, "<=" & fecha_final, Registros!I:I, "="& '03'!A22)-SUMIFS(Registros!G:G, Registros!B:B, "<=" & fecha_final, Registros!I:I, "="& '03'!A22), SUMIFS(Registros!G:G, Registros!B:B, "<=" & fecha_final, Registros!I:I, "="& '03'!A22)-SUMIFS(Registros!H:H, Registros!B:B, "<=" & fecha_final, Registros!I:I, "="& '03'!A22)), 0) -> 0
B23: SUBTOTAL OTROS ACTIVOS | C23: =SUM(C22) -> 0 | F23: =IF(E23<>"", IFERROR(VLOOKUP(E23, plan_cuentas, 2, FALSE), "CÓDIGO INCORRECTO"), "") -> 
B24: TOTAL ACTIVOS | C24: =C15+C20+C23 -> 1975772.35 | F24: TOTAL PASIVO + CAPITAL | G24: =G13+G20 -> 1975772.35
C25: =ABS(C24-G24) -> 0
B28: ELABORADO POR: | F28: AUTORIZADO POR:
B29: =IF(B28<>"", VLOOKUP(B28, users, 3, FALSE), "") -> Anielka Galán | F29: =IF(F28<>"", VLOOKUP(F28, users, 3, FALSE), "") -> Rodrigo Castro Potoy

Sheet CKS
A2: =bussiness_name -> SOCIEDAD CIVIL COMUNIDAD CONNECT
A3: CONTROL DE CHEQUES
A4: =address & "----TELÉFONO: ----" & tel & "----E-MAIL: ----" & email -> Esquina sureste del Parque Central, San Juan del sur, Nicaragua.----TELÉFONO: ----25682731----E-MAIL: ----info@comunidadconnect.org
A6: Suma de VALOR | B6: Rótulos de columna
A7: Rótulos de fila | B7: 5 | C7: 31 | D7: 32 | E7: 267 | F7: 269 | G7: 270 | H7: 271 | I7: 272 | J7: 273 | K7: 275 | L7: 278 | M7: 279 | N7: 280 | O7: 282 | P7: 284 | Q7: 285 | R7: 287 | S7: 288 | T7: 289 | U7: 290 | V7: 291 | W7: 293 | X7: 294 | Y7: 295 | Z7: 298 | AA7: 301 | AB7: Total general
A8: CTA. CTE. 356894501 C$ | E8: 9331 | F8: 2245.31 | G8: 10365 | H8: 3965 | I8: 12128.4 | J8: 13366.71 | K8: 5847.75 | L8: 41958 | M8: 8299.85 | N8: 14202 | O8: 142020 | P8: 1915 | Q8: 6071.04 | R8: 7903.15 | S8: 14892.01 | T8: 4205.82 | U8: 4616.29 | V8: 9400 | W8: 29775.34 | X8: 1527.63 | Y8: 4278.35 | Z8: 1745.63 | AA8: 2700 | AB8: 352759.28
A9: ACTIVIDADES SOCIALES | E9: 9331 | K9: 5847.75 | M9: 8299.85 | AB9: 23478.6
A10: ADMINISTRATIVOS Y GENERALES | F10: 769.31 | G10: 3935 | AB10: 4704.31
A11: APORTE SOCIAL | F11: 1176 | H11: 3965 | AB11: 5141
A12: COMBUSTIBLE | G12: 800 | AB12: 800
A13: GASTOS VARIOS | G13: 427 | AA13: 98 | AB13: 525
A14: GASTOS VARIOS ADMINISTRATIVOS | T14: 4205.82 | Z14: 1745.63 | AB14: 5951.45
A15: INSUMOS Y SUMINISTRO CAMPO VERDE | Y15: 1311.35 | AB15: 1311.35
A16: OTROS PAGOS | N16: 14202 | Q16: 6071.04 | AB16: 20273.04
A17: OTROS PAGOS | O17: 142020 | AB17: 142020
A18: PAPELERÍA Y ÚTILES DE OFICINA | AA18: 150 | AB18: 150
A19: PRODUCTOS DE LIMPIEZA | AA19: 750 | AB19: 750
A20: SALARIOS | P20: 1915 | V20: 9400 | Y20: 1601 | AB20: 12916
A21: SERVICIO DE ALIMENTACIÓN | I21: 12128.4 | U21: 4616.29 | AB21: 16744.69
A22: SERVICIO DE HOSPEDAJE | G22: 760 | AB22: 760
A23: SERVICIO DE TRANSPORTE | G23: 3552 | Y23: 1176 | AB23: 4728
A24: SERVICIO DE TRANSPORTE | W24: 29775.34 | X24: 1527.63 | AB24: 31302.97
A25: SERVICIOS DE HOSPEDAJE | J25: 13366.71 | L25: 41958 | R25: 7903.15 | S25: 14892.01 | AB25: 78119.87
A26: TELEFONÍA FIJA Y CELULAR | AA26: 342 | AB26: 342
A27: VIÁTICOS ALIMENTACIÓN Y TRANSPORTE | AA27: 1360 | AB27: 1360
A28: VIATICOS DE ALIMENTACIÓN Y TRANSPORTE | F28: 300 | AB28: 300
A29: VIATICOS DE ALIMENTANCIÓN Y TRANSPORTE | G29: 891 | Y29: 190 | AB29: 1081
A30: CTA. CTE. 357144914 U$ | C30: 2000 | D30: 13284.39 | AB30: 15284.39
A31: CAJA CHICA | C31: 300 | AB31: 300
A32: GASTOS VARIOS ADMINISTRATIVOS | C32: 1000 | AB32: 1000
A33: SERVICIO ENERGÍA ELÉCTRICA | C33: 700 | AB33: 700
A34: SERVICIOS DE HOSPEDAJE | D34: 13284.39 | AB34: 13284.39
A35: CTA.CTE. 357605203 EEUU US | B35: 390600 | AB35: 390600
A36: CTA. CTE. 356894501 C$ | B36: 390600 | AB36: 390600
A37: Total general | B37: 390600 | C37: 2000 | D37: 13284.39 | E37: 9331 | F37: 2245.31 | G37: 10365 | H37: 3965 | I37: 12128.4 | J37: 13366.71 | K37: 5847.75 | L37: 41958 | M37: 8299.85 | N37: 14202 | O37: 142020 | P37: 1915 | Q37: 6071.04 | R37: 7903.15 | S37: 14892.01 | T37: 4205.82 | U37: 4616.29 | V37: 9400 | W37: 29775.34 | X37: 1527.63 | Y37: 4278.35 | Z37: 1745.63 | AA37: 2700 | AB37: 758643.67

Sheet CKCTRL
A2: =bussiness_name -> SOCIEDAD CIVIL COMUNIDAD CONNECT
A3: CONTROL DE CHEQUES
A4: =address & "----TELÉFONO: ----" & tel & "----E-MAIL: ----" & email -> Esquina sureste del Parque Central, San Juan del sur, Nicaragua.----TELÉFONO: ----25682731----E-MAIL: ----info@comunidadconnect.org
A6: No. ASIENTO | B6: FECHA | C6: No. CK | D6: CUENTA BANCARIA | E6: BENEFICIARIO | F6: VALOR
A7: 113 | B7: 2014-07-02 | C7: 267 | D7: CTA. CTE. 356894501 C$ | E7: ACTIVIDADES SOCIALES | F7: 9331
A8: 114 | B8: 2014-07-09 | C8: 269 | D8: CTA. CTE. 356894501 C$ | E8: APORTE SOCIAL | F8: 1176
A9: 114 | B9: 2014-07-09 | C9: 269 | D9: CTA. CTE. 356894501 C$ | E9: ADMINISTRATIVOS Y GENERALES | F9: 769.31
A10: 114 | B10: 2014-07-09 | C10: 269 | D10: CTA. CTE. 356894501 C$ | E10: VIATICOS DE ALIMENTACIÓN Y TRANSPORTE | F10: 300
A11: 115 | B11: 2014-07-09 | C11: 270 | D11: CTA. CTE. 356894501 C$ | E11: SERVICIO DE TRANSPORTE | F11: 1176
A12: 115 | B12: 2014-07-09 | C12: 270 | D12: CTA. CTE. 356894501 C$ | E12: VIATICOS DE ALIMENTANCIÓN Y TRANSPORTE | F12: 191
A13: 115 | B13: 2014-07-09 | C13: 270 | D13: CTA. CTE. 356894501 C$ | E13: SERVICIO DE TRANSPORTE | F13: 1176
A14: 115 | B14: 2014-07-09 | C14: 270 | D14: CTA. CTE. 356894501 C$ | E14: ADMINISTRATIVOS Y GENERALES | F14: 2445
A15: 115 | B15: 2014-07-09 | C15: 270 | D15: CTA. CTE. 356894501 C$ | E15: SERVICIO DE HOSPEDAJE | F15: 760
A16: 115 | B16: 2014-07-09 | C16: 270 | D16: CTA. CTE. 356894501 C$ | E16: VIATICOS DE ALIMENTANCIÓN Y TRANSPORTE | F16: 700
A17: 115 | B17: 2014-07-09 | C17: 270 | D17: CTA. CTE. 356894501 C$ | E17: ADMINISTRATIVOS Y GENERALES | F17: 900
A18: 115 | B18: 2014-07-09 | C18: 270 | D18: CTA. CTE. 356894501 C$ | E18: GASTOS VARIOS | F18: 330
A19: 115 | B19: 2014-07-09 | C19: 270 | D19: CTA. CTE. 356894501 C$ | E19: COMBUSTIBLE | F19: 800
A20: 115 | B20: 2014-07-09 | C20: 270 | D20: CTA. CTE. 356894501 C$ | E20: GASTOS VARIOS | F20: 97
A21: 115 | B21: 2014-07-09 | C21: 270 | D21: CTA. CTE. 356894501 C$ | E21: ADMINISTRATIVOS Y GENERALES | F21: 590
A22: 115 | B22: 2014-07-09 | C22: 270 | D22: CTA. CTE. 356894501 C$ | E22: SERVICIO DE TRANSPORTE | F22: 800
A23: 115 | B23: 2014-07-09 | C23: 270 | D23: CTA. CTE. 356894501 C$ | E23: SERVICIO DE TRANSPORTE | F23: 400
A24: 116 | B24: 2014-07-09 | C24: 271 | D24: CTA. CTE. 356894501 C$ | E24: APORTE SOCIAL | F24: 650
A25: 116 | B25: 2014-07-09 | C25: 271 | D25: CTA. CTE. 356894501 C$ | E25: APORTE SOCIAL | F25: 700
A26: 116 | B26: 2014-07-09 | C26: 271 | D26: CTA. CTE. 356894501 C$ | E26: APORTE SOCIAL | F26: 1165
A27: 116 | B27: 2014-07-09 | C27: 271 | D27: CTA. CTE. 356894501 C$ | E27: APORTE SOCIAL | F27: 1450
A28: 124 | B28: 2014-07-18 | C28: 5 | D28: CTA.CTE. 357605203 EEUU US | E28: CTA. CTE. 356894501 C$ | F28: 390600
A29: 128 | B29: 2014-07-04 | C29: 32 | D29: CTA. CTE. 357144914 U$ | E29: SERVICIOS DE HOSPEDAJE | F29: 13284.39
A30: 137 | B30: 2014-07-10 | C30: 272 | D30: CTA. CTE. 356894501 C$ | E30: SERVICIO DE ALIMENTACIÓN | F30: 12128.4
A31: 138 | B31: 2014-07-10 | C31: 273 | D31: CTA. CTE. 356894501 C$ | E31: SERVICIOS DE HOSPEDAJE | F31: 13366.71
A32: 140 | B32: 2014-07-11 | C32: 279 | D32: CTA. CTE. 356894501 C$ | E32: ACTIVIDADES SOCIALES | F32: 8299.85
A33: 141 | B33: 2014-07-11 | C33: 278 | D33: CTA. CTE. 356894501 C$ | E33: SERVICIOS DE HOSPEDAJE | F33: 41958
A34: 142 | B34: 2014-07-11 | C34: 275 | D34: CTA. CTE. 356894501 C$ | E34: ACTIVIDADES SOCIALES | F34: 5847.75
A35: 143 | B35: 2014-07-11 | C35: 282 | D35: CTA. CTE. 356894501 C$ | E35: OTROS PAGOS | F35: 142020
A36: 144 | B36: 2014-07-11 | C36: 280 | D36: CTA. CTE. 356894501 C$ | E36: OTROS PAGOS | F36: 14202
A37: 145 | B37: 2014-07-15 | C37: 285 | D37: CTA. CTE. 356894501 C$ | E37: OTROS PAGOS | F37: 6071.04
A38: 147 | B38: 2014-07-16 | C38: 293 | D38: CTA. CTE. 356894501 C$ | E38: SERVICIO DE TRANSPORTE | F38: 29775.34
A39: 148 | B39: 2014-07-16 | C39: 295 | D39: CTA. CTE. 356894501 C$ | E39: SERVICIO DE TRANSPORTE | F39: 1176
A40: 148 | B40: 2014-07-16 | C40: 295 | D40: CTA. CTE. 356894501 C$ | E40: VIATICOS DE ALIMENTANCIÓN Y TRANSPORTE | F40: 190
A41: 148 | B41: 2014-07-16 | C41: 295 | D41: CTA. CTE. 356894501 C$ | E41: INSUMOS Y SUMINISTRO CAMPO VERDE | F41: 1000
A42: 148 | B42: 2014-07-16 | C42: 295 | D42: CTA. CTE. 356894501 C$ | E42: INSUMOS Y SUMINISTRO CAMPO VERDE | F42: 311.35
A43: 148 | B43: 2014-07-16 | C43: 295 | D43: CTA. CTE. 356894501 C$ | E43: SALARIOS | F43: 1601
A44: 149 | B44: 2014-07-16 | C44: 294 | D44: CTA. CTE. 356894501 C$ | E44: SERVICIO DE TRANSPORTE | F44: 1527.63
A45: 150 | B45: 2014-07-16 | C45: 291 | D45: CTA. CTE. 356894501 C$ | E45: SALARIOS | F45: 9400
A46: 151 | B46: 2014-07-16 | C46: 290 | D46: CTA. CTE. 356894501 C$ | E46: SERVICIO DE ALIMENTACIÓN | F46: 4616.29
A47: 152 | B47: 2014-07-16 | C47: 289 | D47: CTA. CTE. 356894501 C$ | E47: GASTOS VARIOS ADMINISTRATIVOS | F47: 4205.82
A48: 153 | B48: 2014-07-16 | C48: 288 | D48: CTA. CTE. 356894501 C$ | E48: SERVICIOS DE HOSPEDAJE | F48: 14892.01
A49: 154 | B49: 2014-07-16 | C49: 287 | D49: CTA. CTE. 356894501 C$ | E49: SERVICIOS DE HOSPEDAJE | F49: 7903.15
A50: 155 | B50: 2014-07-15 | C50: 284 | D50: CTA. CTE. 356894501 C$ | E50: SALARIOS | F50: 1915
A51: 158 | B51: 2014-07-17 | C51: 298 | D51: CTA. CTE. 356894501 C$ | E51: GASTOS VARIOS ADMINISTRATIVOS | F51: 1745.63
A52: 159 | B52: 2014-07-03 | C52: 31 | D52: CTA. CTE. 357144914 U$ | E52: GASTOS VARIOS ADMINISTRATIVOS | F52: 1000
A53: 159 | B53: 2014-07-03 | C53: 31 | D53: CTA. CTE. 357144914 U$ | E53: CAJA CHICA | F53: 300
A54: 159 | B54: 2014-07-03 | C54: 31 | D54: CTA. CTE. 357144914 U$ | E54: SERVICIO ENERGÍA ELÉCTRICA | F54: 700
A55: 160 | B55: 2014-07-21 | C55: 301 | D55: CTA. CTE. 356894501 C$ | E55: PAPELERÍA Y ÚTILES DE OFICINA | F55: 150
A56: 160 | B56: 2014-07-21 | C56: 301 | D56: CTA. CTE. 356894501 C$ | E56: TELEFONÍA FIJA Y CELULAR | F56: 342
A57: 160 | B57: 2014-07-21 | C57: 301 | D57: CTA. CTE. 356894501 C$ | E57: VIÁTICOS ALIMENTACIÓN Y TRANSPORTE | F57: 1360
A58: 160 | B58: 2014-07-21 | C58: 301 | D58: CTA. CTE. 356894501 C$ | E58: GASTOS VARIOS | F58: 98
A59: 160 | B59: 2014-07-21 | C59: 301 | D59: CTA. CTE. 356894501 C$ | E59: PRODUCTOS DE LIMPIEZA | F59: 750

Sheet LM
A2: =bussiness_name -> SOCIEDAD CIVIL COMUNIDAD CONNECT
A3: ="LIBRO MAYOR DE " & B6 -> LIBRO MAYOR DE CTA. CTE. 356894501 C$
A4: =address & "----TELÉFONO: ----" & tel & "----E-MAIL: ----" & email -> Esquina sureste del Parque Central, San Juan del sur, Nicaragua.----TELÉFONO: ----25682731----E-MAIL: ----info@comunidadconnect.org
A6: 110201 | B6: =UPPER(IF(A6<>"",VLOOKUP(A6,plan_cuentas,2,FALSE), "")) -> CTA. CTE. 356894501 C$
A7: FECHA | B7: DESCRIPCIÓN DE LA TRANSACCIÓN | C7: DÉBITOS | D7: CRÉDITOS | E7: SALDO
A8: 2014-07-01 | B8: Saldo inicial de la cuenta | C8: 0 | D8: 0 | E8: 29278.91
A9: 2014-07-02 | B9: Pago por Compra de Materiales de Construcción. | D9: 9331 | E9: 19947.91
A10: 2014-07-09 | B10: Pago por compras a trofeos de PD | D10: 1176 | E10: 18771.91
A11: 2014-07-09 | B11: Pago de Servicos Basicos PD - Enacal | D11: 769.31 | E11: 18002.6
A12: 2014-07-09 | B12: Pago de viaticos coordinador PD - Viaje a MGA | D12: 300 | E12: 17702.6
A13: 2014-07-09 | B13: Pago de servico de transporte - EG3 | D13: 1176 | E13: 16526.6
A14: 2014-07-09 | B14: Pago de Viaticos EG3 | D14: 191 | E14: 16335.6
A15: 2014-07-09 | B15: Pago de servico de transporte - EG3 | D15: 1176 | E15: 15159.6
A16: 2014-07-09 | B16: Pago de almuerzo donantes y coordinador EG3 | D16: 2445 | E16: 12714.6
A17: 2014-07-09 | B17: Pago de servico de alojamiento - EG3 | D17: 760 | E17: 11954.6
A18: 2014-07-09 | B18: Pago de viaticos EG3 - coordinadora | D18: 700 | E18: 11254.6
A19: 2014-07-09 | B19: Pago de traductor para donantes EG3 | D19: 900 | E19: 10354.6
A20: 2014-07-09 | B20: Pago de compras varias EG3 | D20: 330 | E20: 10024.6
A21: 2014-07-09 | B21: Pago de combustible viaje a Gigante - EG3 | D21: 800 | E21: 9224.6
A22: 2014-07-09 | B22: Pago de compras varias EG3 | D22: 97 | E22: 9127.6
A23: 2014-07-09 | B23: Pago de alimentación para donantes y coordinadora | D23: 590 | E23: 8537.6
A24: 2014-07-09 | B24: Pago de transporte EG3 | D24: 800 | E24: 7737.6
A25: 2014-07-09 | B25: Pago de transporte EG3 - SJDS Rivas Coordinadora | D25: 400 | E25: 7337.6
A26: 2014-07-09 | B26: Pago de Aporte social a estudiante José Eliseo Talavera - Escuela Secundaria | D26: 650 | E26: 6687.6
A27: 2014-07-09 | B27: Pago de Aporte social a estudiante Heysel Bojorge - Universitaria | D27: 700 | E27: 5987.6
A28: 2014-07-09 | B28: Pago de Matrícula del II Semestre de estudiante Heysel Bojorge Romero. | D28: 1165 | E28: 4822.6
A29: 2014-07-09 | B29: Pago de Beca a estudiante Sinia Bustos . | D29: 1450 | E29: 3372.6
A30: 2014-07-09 | B30: Depósito de sobrantes del Programa Becas El Carrizal | C30: 885 | E30: 4257.6
A31: 2014-07-09 | B31: Depósito de sobrantes del Programa Becas El Carrizal | D31: 885 | E31: 3372.6
A32: 2014-07-02 | B32: Ingreso por transferencia G.O - SCCC | C32: 38730 | E32: 42102.6
A33: 2014-07-08 | B33: Ingreso de Transferencia G.O - SCCC | C33: 25840 | E33: 67942.6
A34: 2014-07-10 | B34: Ingreso por transferencia G.O - SCCC | C34: 64600 | E34: 132542.6
A35: 2014-07-11 | B35: Ingreso de transferencia para cubrir G.O - SCCC | C35: 278980 | E35: 411522.6
A36: 2014-07-18 | B36: Ingreso por transferencia G.O - SCCC | C36: 390600 | E36: 802122.6
A37: 2014-07-21 | B37: Ingreso de donación a Proyecto NA. CARRIZAL | C37: 28546.75 | E37: 830669.35
A38: 2014-07-23 | B38: Ingreso de Proyecto N.A - Gigante - Guacalito de la Isla | C38: 126959 | E38: 957628.35
A39: 2014-07-25 | B39: Ingrso por transferencia G.O - SCCC .traslado de fondos de la cuenta # 576 | C39: 76305.76 | E39: 1033934.11
A40: 2014-07-01 | B40: TD - Compra de combustible viaje a Jiniotega - NCHC | D40: 4080.75 | E40: 1029853.36
A41: 2014-07-01 | B41: Retiro de fondos - viaticos NCHC | D41: 983.16 | E41: 1028870.2
A42: 2014-07-01 | B42: Fondos son Justificar DE - Deducción de planilla | D42: 16.84 | E42: 1028853.36
A43: 2014-07-02 | B43: Pago de renta de Local SJDS | D43: 5087.98 | E43: 1023765.38
A44: 2014-07-06 | B44: TD - Pago de Combustible, viaje a Jinotega | D44: 790 | E44: 1022975.38
A45: 2014-07-06 | B45: TD - Viaticos de alimentación Viaje a Jinotega | D45: 858.02 | E45: 1022117.36
A46: 2014-07-09 | B46: Retiro de Fondos - Alimenatción de Guia de Grupo HO.I | D46: 103.5 | E46: 1022013.86
A47: 2014-07-09 | B47: Retiro de Fondos - Transporte de Guia a la comunidad LoS Robles Jinotega | D47: 400 | E47: 1021613.86
A48: 2014-07-09 | B48: Retiro de Fondos Viaticos de alimenatción y transporte Guia de Grupo H.O.I | D48: 470 | E48: 1021143.86
A49: 2014-07-09 | B49: Retiro de Fondos - Compras Varias | D49: 639.26 | E49: 1020504.6
A50: 2014-07-09 | B50: Retiro de Fondos , compra de materiales para construcción de cocinas mejoradas | D50: 6048.34 | E50: 1014456.26
A51: 2014-07-08 | B51: Retiro de Fondos reembolso de gastos varios con H.O.I - Jinotega | D51: 10 | E51: 1014446.26
A52: 2014-07-10 | B52: Pago de alimentación del grupo BR1 | D52: 12128.4 | E52: 1002317.86
A53: 2014-07-10 | B53: Pago de cancelacion de alojamiento BR1 | D53: 13366.71 | E53: 988951.15
A54: 2014-07-11 | B54: Pago de Canopy , actividades libres de BR1 | D54: 8299.85 | E54: 980651.3
A55: 2014-07-11 | B55: Pago por Servicio de Hospedaje BR 1 | D55: 41958 | E55: 938693.3
A56: 2014-07-11 | B56: Pago de actividades libres de BR 1 | D56: 5847.75 | E56: 932845.55
A57: 2014-07-11 | B57: Pago de Asesorias y coordinaciones de proyectos de Marzo a Julio 2015 | D57: 142020 | E57: 790825.55
A58: 2014-07-11 | B58: Pago de guia de grupo BR1 | D58: 14202 | E58: 776623.55
A59: 2014-07-15 | B59: Pago por clases de Ingles | D59: 6071.04 | E59: 770552.51
A60: 2014-07-15 | B60: Retiro de fondos - Pago de servicios de tradución | D60: 900 | E60: 769652.51
A61: 2014-07-16 | B61: Pago de servicio de transporte BR1 | D61: 29775.34 | E61: 739877.17
A62: 2014-07-16 | B62: Pago de Viaje a Gigante EG III | D62: 1176 | E62: 738701.17
A63: 2014-07-16 | B63: Viaticos de alimentación EGIII | D63: 190 | E63: 738511.17
A64: 2014-07-16 | B64: Compra de Pesa para acopio EGIII | D64: 1000 | E64: 737511.17
A65: 2014-07-16 | B65: Compras varias para EGIII | D65: 311.35 | E65: 737199.82
A66: 2014-07-16 | B66: Salario de David R, y Rut M. Embajadores EGII , 6 días de trabajo | D66: 1601 | E66: 735598.82
A67: 2014-07-16 | B67: Pago de Transporte BR 1 | D67: 1527.63 | E67: 734071.19
A68: 2014-07-16 | B68: Pago de Salario a Tecnica RAAS | D68: 9400 | E68: 724671.19
A69: 2014-07-16 | B69: Pago por Servicio de Restaurante H.O.I | D69: 4616.29 | E69: 720054.9
A70: 2014-07-16 | B70: Pago de servicio de transpoorte para JT al aeropuerto | D70: 4205.82 | E70: 715849.08
A71: 2014-07-16 | B71: Pago de alojamiento Alojamiento grupo H.O.I | D71: 14892.01 | E71: 700957.07
A72: 2014-07-16 | B72: Pago de servicio de hospedaje BR1 | D72: 7903.15 | E72: 693053.92
A73: 2014-07-15 | B73: Pago a tecnica RANN, PRIMERA QUINCENA DEL MES | D73: 1915 | E73: 691138.92
A74: 2014-07-17 | B74: Pago de depreciación camioneta MJ | D74: 1745.63 | E74: 689393.29
A75: 2014-07-21 | B75: Compras administrativas oficina | D75: 150 | E75: 689243.29
A76: 2014-07-21 | B76: Reacrgas telefonicas | D76: 342 | E76: 688901.29
A77: 2014-07-21 | B77: Viaticos de alimentación y trasnprote | D77: 1360 | E77: 687541.29
A78: 2014-07-21 | B78: Compras de agua | D78: 98 | E78: 687443.29
A79: 2014-07-21 | B79: Pago de limpieza | D79: 750 | E79: 686693.29
A80: 2014-07-01 | B80: TD - Cena de DE - Visita a Jinotega | D80: 180 | E80: 686513.29
A81: 2014-07-01 | B81: Pago de Servico de Tapiceria de Forro de asiento para camioneta | D81: 1323 | E81: 685190.29

Sheet 110000
E1: Desproteger
A2: =bussiness_name -> SOCIEDAD CIVIL COMUNIDAD CONNECT
A3: ="RESUMEN CONTABLE DE "&B7 -> RESUMEN CONTABLE DE ACTIVOS CORRIENTES
A4: ="DEL "&TEXT(fecha_inicial, "DD")&" DE "&UPPER(TEXT(fecha_inicial, "MMMM"))&" DEL " & TEXT(fecha_inicial, "YYYY") & " AL "&TEXT(fecha_final, "DD")&" DE "&UPPER(TEXT(fecha_final, "MMMM"))&" DEL "&TEXT(fecha_final, "YYYY") -> DEL 01 DE JULIO DEL 2014 AL 31 DE JULIO DEL 2014
A5: =address & " *** Tel/Fax: " & tel & " *** " & email -> Esquina sureste del Parque Central, San Juan del sur, Nicaragua. *** Tel/Fax: 25682731 *** info@comunidadconnect.org
A7: 110000 | B7: =UPPER(IF(ISBLANK(A7),"",IFERROR(VLOOKUP(A7,plan_cuentas,2,FALSE),"Código de cuenta incorrecto"))) -> ACTIVOS CORRIENTES | D7: ="MOVIMIENTOS DE "&UPPER(TEXT(fecha_final, "MMMM")) -> MOVIMIENTOS DE JULIO
A8: CODIGO | B8: NOMBRE DE LA CUENTA | C8: SALDO INICIAL | D8: DEBITOS | E8: CREDITOS | F8: SALDO FINAL
A11: 110100 | B11: =IF(A11<>"", IF(ISERROR(VLOOKUP(A11, plan_cuentas,2, FALSE)), "Código de Cuenta Incorrecto", UPPER(VLOOKUP(A11, plan_cuentas, 2, FALSE))), "") -> CAJA | C11: =SUM(C12:C17) -> 18375.8 | D11: =SUM(D12:D17) -> 300 | E11: =SUM(E12:E17) -> 0 | F11: =C11+D11-E11 -> 18675.8
A12: 110101 | B12: =IF(A12<>"", IF(ISERROR(VLOOKUP(A12, plan_cuentas,2, FALSE)), "Código de Cuenta Incorrecto", UPPER(VLOOKUP(A12, plan_cuentas, 2, FALSE))), "") -> CAJA CHICA | C12: =IF(ISBLANK(A12),0,SUMIFS(Registros!G:G,Registros!B:B,"<"&fecha_inicial,Registros!C:C,"="&A12)-IF(ISBLANK(A12),0,SUMIFS(Registros!H:H,Registros!B:B,"<"&fecha_inicial,Registros!C:C,"="&A12))) -> 18375.8 | D12: =IF(ISBLANK(A12),0,SUMIFS(Registros!G:G,Registros!B:B,">="&fecha_inicial, Registros!B:B, "<="&fecha_final,Registros!C:C,"="&A12)) -> 300 | E12: =IF(ISBLANK(A12),0,SUMIFS(Registros!H:H,Registros!B:B,">="&fecha_inicial, Registros!B:B, "<="&fecha_final,Registros!C:C,"="&A12)) -> 0 | F12: =C12+D12-E12 -> 18675.8
B13: =IF(A13<>0, IF(ISERROR(VLOOKUP(A13, plan_cuentas,2, FALSE)), "Código de Cuenta Incorrecto", UPPER(VLOOKUP(A13, plan_cuentas, 2, FALSE))), "") ->  | C13: =IF(ISBLANK(A13),0,SUMIFS(Registros!G:G,Registros!B:B,"<"&fecha_inicial,Registros!C:C,"="&A13)-IF(ISBLANK(A13),0,SUMIFS(Registros!H:H,Registros!B:B,"<"&fecha_inicial,Registros!C:C,"="&A13))) -> 0 | D13: =IF(ISBLANK(A13),0,SUMIFS(Registros!G:G,Registros!B:B,">="&fecha_inicial, Registros!B:B, "<="&fecha_final,Registros!C:C,"="&A13)) -> 0 | E13: =IF(ISBLANK(A13),0,SUMIFS(Registros!H:H,Registros!B:B,">="&fecha_inicial, Registros!B:B, "<="&fecha_final,Registros!C:C,"="&A13)) -> 0 | F13: =C13+D13-E13 -> 0
C14: =IF(ISBLANK(A14),0,SUMIFS(Registros!G:G,Registros!B:B,"<"&fecha_inicial,Registros!C:C,"="&A14)-IF(ISBLANK(A14),0,SUMIFS(Registros!H:H,Registros!B:B,"<"&fecha_inicial,Registros!C:C,"="&A14))) -> 0 | D14: =IF(ISBLANK(A14),0,SUMIFS(Registros!G:G,Registros!B:B,">="&fecha_inicial, Registros!B:B, "<="&fecha_final,Registros!C:C,"="&A14)) -> 0 | E14: =IF(ISBLANK(A14),0,SUMIFS(Registros!H:H,Registros!B:B,">="&fecha_inicial, Registros!B:B, "<="&fecha_final,Registros!C:C,"="&A14)) -> 0 | F14: 0
C15: =IF(ISBLANK(A15),0,SUMIFS(Registros!G:G,Registros!B:B,"<"&fecha_inicial,Registros!C:C,"="&A15)-IF(ISBLANK(A15),0,SUMIFS(Registros!H:H,Registros!B:B,"<"&fecha_inicial,Registros!C:C,"="&A15))) -> 0 | D15: =IF(ISBLANK(A15),0,SUMIFS(Registros!G:G,Registros!B:B,">="&fecha_inicial, Registros!B:B, "<="&fecha_final,Registros!C:C,"="&A15)) -> 0 | E15: =IF(ISBLANK(A15),0,SUMIFS(Registros!H:H,Registros!B:B,">="&fecha_inicial, Registros!B:B, "<="&fecha_final,Registros!C:C,"="&A15)) -> 0 | F15: 0
C16: =IF(ISBLANK(A16),0,SUMIFS(Registros!G:G,Registros!B:B,"<"&fecha_inicial,Registros!C:C,"="&A16)-IF(ISBLANK(A16),0,SUMIFS(Registros!H:H,Registros!B:B,"<"&fecha_inicial,Registros!C:C,"="&A16))) -> 0 | D16: =IF(ISBLANK(A16),0,SUMIFS(Registros!G:G,Registros!B:B,">="&fecha_inicial, Registros!B:B, "<="&fecha_final,Registros!C:C,"="&A16)) -> 0 | E16: =IF(ISBLANK(A16),0,SUMIFS(Registros!H:H,Registros!B:B,">="&fecha_inicial, Registros!B:B, "<="&fecha_final,Registros!C:C,"="&A16)) -> 0 | F16: 0
C17: =IF(ISBLANK(A17),0,SUMIFS(Registros!G:G,Registros!B:B,"<"&fecha_inicial,Registros!C:C,"="&A17)-IF(ISBLANK(A17),0,SUMIFS(Registros!H:H,Registros!B:B,"<"&fecha_inicial,Registros!C:C,"="&A17))) -> 0 | D17: =IF(ISBLANK(A17),0,SUMIFS(Registros!G:G,Registros!B:B,">="&fecha_inicial, Registros!B:B, "<="&fecha_final,Registros!C:C,"="&A17)) -> 0 | E17: =IF(ISBLANK(A17),0,SUMIFS(Registros!H:H,Registros!B:B,">="&fecha_inicial, Registros!B:B, "<="&fecha_final,Registros!C:C,"="&A17)) -> 0 | F17: 0
A18: 110200 | B18: =IF(A18<>0, IF(ISERROR(VLOOKUP(A18, plan_cuentas,2, FALSE)), "Código de Cuenta Incorrecto", UPPER(VLOOKUP(A18, plan_cuentas, 2, FALSE))), "") -> BANCOS | C18: =SUM(C19:C24) -> 463515.62 | D18: =SUM(D19:D24) -> 3007890.64 | E18: =SUM(E19:E24) -> 1669777.22 | F18: =SUM(F19:F24) -> 1801629.04
A19: 110201 | B19: =IF(A19<>"", IF(ISERROR(VLOOKUP(A19, plan_cuentas,2, FALSE)), "Código de Cuenta Incorrecto", UPPER(VLOOKUP(A19, plan_cuentas, 2, FALSE))), "") -> CTA. CTE. 356894501 C$ | C19: =IF(ISBLANK(A19),0,SUMIFS(Registros!G:G,Registros!B:B,"<"&fecha_inicial,Registros!C:C,"="&A19)-IF(ISBLANK(A19),0,SUMIFS(Registros!H:H,Registros!B:B,"<"&fecha_inicial,Registros!C:C,"="&A19))) -> 29278.91 | D19: =IF(ISBLANK(A19),0,SUMIFS(Registros!G:G,Registros!B:B,">="&fecha_inicial, Registros!B:B, "<="&fecha_final,Registros!C:C,"="&A19)) -> 1031446.51 | E19: =IF(ISBLANK(A19),0,SUMIFS(Registros!H:H,Registros!B:B,">="&fecha_inicial, Registros!B:B, "<="&fecha_final,Registros!C:C,"="&A19)) -> 385317.49 | F19: 675407.93
A20: 110202 | B20: CTA. CTE. 357144914 U$ | C20: =IF(ISBLANK(A20),0,SUMIFS(Registros!G:G,Registros!B:B,"<"&fecha_inicial,Registros!C:C,"="&A20)-IF(ISBLANK(A20),0,SUMIFS(Registros!H:H,Registros!B:B,"<"&fecha_inicial,Registros!C:C,"="&A20))) -> 60747.91 | D20: =IF(ISBLANK(A20),0,SUMIFS(Registros!G:G,Registros!B:B,">="&fecha_inicial, Registros!B:B, "<="&fecha_final,Registros!C:C,"="&A20)) -> 385595.65 | E20: =IF(ISBLANK(A20),0,SUMIFS(Registros!H:H,Registros!B:B,">="&fecha_inicial, Registros!B:B, "<="&fecha_final,Registros!C:C,"="&A20)) -> 23808.32 | F20: 422535.24
A21: 110203 | B21: CTA. CTE. 356894576 U$ | C21: =IF(ISBLANK(A21),0,SUMIFS(Registros!G:G,Registros!B:B,"<"&fecha_inicial,Registros!C:C,"="&A21)-IF(ISBLANK(A21),0,SUMIFS(Registros!H:H,Registros!B:B,"<"&fecha_inicial,Registros!C:C,"="&A21))) -> 310355 | D21: =IF(ISBLANK(A21),0,SUMIFS(Registros!G:G,Registros!B:B,">="&fecha_inicial, Registros!B:B, "<="&fecha_final,Registros!C:C,"="&A21)) -> 0 | E21: =IF(ISBLANK(A21),0,SUMIFS(Registros!H:H,Registros!B:B,">="&fecha_inicial, Registros!B:B, "<="&fecha_final,Registros!C:C,"="&A21)) -> 218995.76 | F21: 91359.24
A22: 110204 | B22: CTA.CTE. 357605203 EEUU US | C22: =IF(ISBLANK(A22),0,SUMIFS(Registros!G:G,Registros!B:B,"<"&fecha_inicial,Registros!C:C,"="&A22)-IF(ISBLANK(A22),0,SUMIFS(Registros!H:H,Registros!B:B,"<"&fecha_inicial,Registros!C:C,"="&A22))) -> 63133.8 | D22: =IF(ISBLANK(A22),0,SUMIFS(Registros!G:G,Registros!B:B,">="&fecha_inicial, Registros!B:B, "<="&fecha_final,Registros!C:C,"="&A22)) -> 1590848.48 | E22: =IF(ISBLANK(A22),0,SUMIFS(Registros!H:H,Registros!B:B,">="&fecha_inicial, Registros!B:B, "<="&fecha_final,Registros!C:C,"="&A22)) -> 1041655.65 | F22: 612326.63
A23: 110205 | B23: DEPOSITO DE FONDOS NO EJECUTADOS | C23: =IF(ISBLANK(A23),0,SUMIFS(Registros!G:G,Registros!B:B,"<"&fecha_inicial,Registros!C:C,"="&A23)-IF(ISBLANK(A23),0,SUMIFS(Registros!H:H,Registros!B:B,"<"&fecha_inicial,Registros!C:C,"="&A23))) -> 0 | D23: =IF(ISBLANK(A23),0,SUMIFS(Registros!G:G,Registros!B:B,">="&fecha_inicial, Registros!B:B, "<="&fecha_final,Registros!C:C,"="&A23)) -> 0 | E23: =IF(ISBLANK(A23),0,SUMIFS(Registros!H:H,Registros!B:B,">="&fecha_inicial, Registros!B:B, "<="&fecha_final,Registros!C:C,"="&A23)) -> 0 | F23: 0
A24: 110206 | B24: DEPOSITO DE RETENCIONES EFECTUADAS | C24: =IF(ISBLANK(A24),0,SUMIFS(Registros!G:G,Registros!B:B,"<"&fecha_inicial,Registros!C:C,"="&A24)-IF(ISBLANK(A24),0,SUMIFS(Registros!H:H,Registros!B:B,"<"&fecha_inicial,Registros!C:C,"="&A24))) -> 0 | D24: =IF(ISBLANK(A24),0,SUMIFS(Registros!G:G,Registros!B:B,">="&fecha_inicial, Registros!B:B, "<="&fecha_final,Registros!C:C,"="&A24)) -> 0 | E24: =IF(ISBLANK(A24),0,SUMIFS(Registros!H:H,Registros!B:B,">="&fecha_inicial, Registros!B:B, "<="&fecha_final,Registros!C:C,"="&A24)) -> 0 | F24: 0
A25: 110300 | B25: =IF(A25<>0, IF(ISERROR(VLOOKUP(A25, plan_cuentas,2, FALSE)), "Código de Cuenta Incorrecto", UPPER(VLOOKUP(A25, plan_cuentas, 2, FALSE))), "") -> INVERSIONES EN VALORES | C25: =SUM(C26:C31) -> 0 | D25: =SUM(D26:D31) -> 0 | E25: =SUM(E26:E31) -> 0 | F25: 0
A26: 110301 | B26: =IF(A26<>"", IF(ISERROR(VLOOKUP(A26, plan_cuentas,2, FALSE)), "Código de Cuenta Incorrecto", UPPER(VLOOKUP(A26, plan_cuentas, 2, FALSE))), "") -> PAPEL COMERCIAL | C26: =IF(ISBLANK(A26),0,SUMIFS(Registros!G:G,Registros!B:B,"<"&fecha_inicial,Registros!C:C,"="&A26)-IF(ISBLANK(A26),0,SUMIFS(Registros!H:H,Registros!B:B,"<"&fecha_inicial,Registros!C:C,"="&A26))) -> 0 | D26: =IF(ISBLANK(A26),0,SUMIFS(Registros!G:G,Registros!B:B,">="&fecha_inicial, Registros!B:B, "<="&fecha_final,Registros!C:C,"="&A26)) -> 0 | E26: =IF(ISBLANK(A26),0,SUMIFS(Registros!H:H,Registros!B:B,">="&fecha_inicial, Registros!B:B, "<="&fecha_final,Registros!C:C,"="&A26)) -> 0 | F26: 0
C27: =IF(ISBLANK(A27),0,SUMIFS(Registros!G:G,Registros!B:B,"<"&fecha_inicial,Registros!C:C,"="&A27)-IF(ISBLANK(A27),0,SUMIFS(Registros!H:H,Registros!B:B,"<"&fecha_inicial,Registros!C:C,"="&A27))) -> 0 | D27: =IF(ISBLANK(A27),0,SUMIFS(Registros!G:G,Registros!B:B,">="&fecha_inicial, Registros!B:B, "<="&fecha_final,Registros!C:C,"="&A27)) -> 0 | E27: =IF(ISBLANK(A27),0,SUMIFS(Registros!H:H,Registros!B:B,">="&fecha_inicial, Registros!B:B, "<="&fecha_final,Registros!C:C,"="&A27)) -> 0 | F27: 0
C28: =IF(ISBLANK(A28),0,SUMIFS(Registros!G:G,Registros!B:B,"<"&fecha_inicial,Registros!C:C,"="&A28)-IF(ISBLANK(A28),0,SUMIFS(Registros!H:H,Registros!B:B,"<"&fecha_inicial,Registros!C:C,"="&A28))) -> 0 | D28: =IF(ISBLANK(A28),0,SUMIFS(Registros!G:G,Registros!B:B,">="&fecha_inicial, Registros!B:B, "<="&fecha_final,Registros!C:C,"="&A28)) -> 0 | E28: =IF(ISBLANK(A28),0,SUMIFS(Registros!H:H,Registros!B:B,">="&fecha_inicial, Registros!B:B, "<="&fecha_final,Registros!C:C,"="&A28)) -> 0 | F28: 0
C29: =IF(ISBLANK(A29),0,SUMIFS(Registros!G:G,Registros!B:B,"<"&fecha_inicial,Registros!C:C,"="&A29)-IF(ISBLANK(A29),0,SUMIFS(Registros!H:H,Registros!B:B,"<"&fecha_inicial,Registros!C:C,"="&A29))) -> 0 | D29: =IF(ISBLANK(A29),0,SUMIFS(Registros!G:G,Registros!B:B,">="&fecha_inicial, Registros!B:B, "<="&fecha_final,Registros!C:C,"="&A29)) -> 0 | E29: =IF(ISBLANK(A29),0,SUMIFS(Registros!H:H,Registros!B:B,">="&fecha_inicial, Registros!B:B, "<="&fecha_final,Registros!C:C,"="&A29)) -> 0 | F29: 0
C30: =IF(ISBLANK(A30),0,SUMIFS(Registros!G:G,Registros!B:B,"<"&fecha_inicial,Registros!C:C,"="&A30)-IF(ISBLANK(A30),0,SUMIFS(Registros!H:H,Registros!B:B,"<"&fecha_inicial,Registros!C:C,"="&A30))) -> 0 | D30: =IF(ISBLANK(A30),0,SUMIFS(Registros!G:G,Registros!B:B,">="&fecha_inicial, Registros!B:B, "<="&fecha_final,Registros!C:C,"="&A30)) -> 0 | E30: =IF(ISBLANK(A30),0,SUMIFS(Registros!H:H,Registros!B:B,">="&fecha_inicial, Registros!B:B, "<="&fecha_final,Registros!C:C,"="&A30)) -> 0 | F30: 0
C31: =IF(ISBLANK(A31),0,SUMIFS(Registros!G:G,Registros!B:B,"<"&fecha_inicial,Registros!C:C,"="&A31)-IF(ISBLANK(A31),0,SUMIFS(Registros!H:H,Registros!B:B,"<"&fecha_inicial,Registros!C:C,"="&A31))) -> 0 | D31: =IF(ISBLANK(A31),0,SUMIFS(Registros!G:G,Registros!B:B,">="&fecha_inicial, Registros!B:B, "<="&fecha_final,Registros!C:C,"="&A31)) -> 0 | E31: =IF(ISBLANK(A31),0,SUMIFS(Registros!H:H,Registros!B:B,">="&fecha_inicial, Registros!B:B, "<="&fecha_final,Registros!C:C,"="&A31)) -> 0 | F31: 0
A32: 110400 | B32: CUENTAS Y DOCUMENTOS POR COBRAR | C32: =SUM(C33:C38) -> 1000 | D32: =SUM(D33:D38) -> 771.78 | E32: =SUM(E33:E38) -> 0 | F32: 1771.78
A33: 110401 | B33: CUENTAS POR COBRAR A CLIENTES | C33: =IF(ISBLANK(A33),0,SUMIFS(Registros!G:G,Registros!B:B,"<"&fecha_inicial,Registros!C:C,"="&A33)-IF(ISBLANK(A33),0,SUMIFS(Registros!H:H,Registros!B:B,"<"&fecha_inicial,Registros!C:C,"="&A33))) -> 0 | D33: =IF(ISBLANK(A33),0,SUMIFS(Registros!G:G,Registros!B:B,">="&fecha_inicial, Registros!B:B, "<="&fecha_final,Registros!C:C,"="&A33)) -> 0 | E33: =IF(ISBLANK(A33),0,SUMIFS(Registros!H:H,Registros!B:B,">="&fecha_inicial, Registros!B:B, "<="&fecha_final,Registros!C:C,"="&A33)) -> 0 | F33: 0
A34: 110402 | B34: CUENTAS POR COBRAR A EMPLEADOS | C34: =IF(ISBLANK(A34),0,SUMIFS(Registros!G:G,Registros!B:B,"<"&fecha_inicial,Registros!C:C,"="&A34)-IF(ISBLANK(A34),0,SUMIFS(Registros!H:H,Registros!B:B,"<"&fecha_inicial,Registros!C:C,"="&A34))) -> 1000 | D34: =IF(ISBLANK(A34),0,SUMIFS(Registros!G:G,Registros!B:B,">="&fecha_inicial, Registros!B:B, "<="&fecha_final,Registros!C:C,"="&A34)) -> 771.78 | E34: =IF(ISBLANK(A34),0,SUMIFS(Registros!H:H,Registros!B:B,">="&fecha_inicial, Registros!B:B, "<="&fecha_final,Registros!C:C,"="&A34)) -> 0 | F34: 1771.78
C35: =IF(ISBLANK(A35),0,SUMIFS(Registros!G:G,Registros!B:B,"<"&fecha_inicial,Registros!C:C,"="&A35)-IF(ISBLANK(A35),0,SUMIFS(Registros!H:H,Registros!B:B,"<"&fecha_inicial,Registros!C:C,"="&A35))) -> 0 | D35: =IF(ISBLANK(A35),0,SUMIFS(Registros!G:G,Registros!B:B,">="&fecha_inicial, Registros!B:B, "<="&fecha_final,Registros!C:C,"="&A35)) -> 0 | E35: =IF(ISBLANK(A35),0,SUMIFS(Registros!H:H,Registros!B:B,">="&fecha_inicial, Registros!B:B, "<="&fecha_final,Registros!C:C,"="&A35)) -> 0 | F35: 0
C36: =IF(ISBLANK(A36),0,SUMIFS(Registros!G:G,Registros!B:B,"<"&fecha_inicial,Registros!C:C,"="&A36)-IF(ISBLANK(A36),0,SUMIFS(Registros!H:H,Registros!B:B,"<"&fecha_inicial,Registros!C:C,"="&A36))) -> 0 | D36: =IF(ISBLANK(A36),0,SUMIFS(Registros!G:G,Registros!B:B,">="&fecha_inicial, Registros!B:B, "<="&fecha_final,Registros!C:C,"="&A36)) -> 0 | E36: =IF(ISBLANK(A36),0,SUMIFS(Registros!H:H,Registros!B:B,">="&fecha_inicial, Registros!B:B, "<="&fecha_final,Registros!C:C,"="&A36)) -> 0 | F36: 0
C37: =IF(ISBLANK(A37),0,SUMIFS(Registros!G:G,Registros!B:B,"<"&fecha_inicial,Registros!C:C,"="&A37)-IF(ISBLANK(A37),0,SUMIFS(Registros!H:H,Registros!B:B,"<"&fecha_inicial,Registros!C:C,"="&A37))) -> 0 | D37: =IF(ISBLANK(A37),0,SUMIFS(Registros!G:G,Registros!B:B,">="&fecha_inicial, Registros!B:B, "<="&fecha_final,Registros!C:C,"="&A37)) -> 0 | E37: =IF(ISBLANK(A37),0,SUMIFS(Registros!H:H,Registros!B:B,">="&fecha_inicial, Registros!B:B, "<="&fecha_final,Registros!C:C,"="&A37)) -> 0 | F37: 0
C38: =IF(ISBLANK(A38),0,SUMIFS(Registros!G:G,Registros!B:B,"<"&fecha_inicial,Registros!C:C,"="&A38)-IF(ISBLANK(A38),0,SUMIFS(Registros!H:H,Registros!B:B,"<"&fecha_inicial,Registros!C:C,"="&A38))) -> 0 | D38: =IF(ISBLANK(A38),0,SUMIFS(Registros!G:G,Registros!B:B,">="&fecha_inicial, Registros!B:B, "<="&fecha_final,Registros!C:C,"="&A38)) -> 0 | E38: =IF(ISBLANK(A38),0,SUMIFS(Registros!H:H,Registros!B:B,">="&fecha_inicial, Registros!B:B, "<="&fecha_final,Registros!C:C,"="&A38)) -> 0 | F38: 0
A39: 110500 | B39: DEUDORES DIVERSOS | C39: =SUM(C40:C45) -> 0 | D39: =SUM(D40:D45) -> 0 | E39: =SUM(E40:E45) -> 0 | F39: 0
A40: 110501 | B40: FONDOS POR JUSTIFICAR | C40: =IF(ISBLANK(A40),0,SUMIFS(Registros!G:G,Registros!B:B,"<"&fecha_inicial,Registros!C:C,"="&A40)-IF(ISBLANK(A40),0,SUMIFS(Registros!H:H,Registros!B:B,"<"&fecha_inicial,Registros!C:C,"="&A40))) -> 0 | D40: =IF(ISBLANK(A40),0,SUMIFS(Registros!G:G,Registros!B:B,">="&fecha_inicial, Registros!B:B, "<="&fecha_final,Registros!C:C,"="&A40)) -> 0 | E40: =IF(ISBLANK(A40),0,SUMIFS(Registros!H:H,Registros!B:B,">="&fecha_inicial, Registros!B:B, "<="&fecha_final,Registros!C:C,"="&A40)) -> 0 | F40: 0
C41: =IF(ISBLANK(A41),0,SUMIFS(Registros!G:G,Registros!B:B,"<"&fecha_inicial,Registros!C:C,"="&A41)-IF(ISBLANK(A41),0,SUMIFS(Registros!H:H,Registros!B:B,"<"&fecha_inicial,Registros!C:C,"="&A41))) -> 0 | D41: =IF(ISBLANK(A41),0,SUMIFS(Registros!G:G,Registros!B:B,">="&fecha_inicial, Registros!B:B, "<="&fecha_final,Registros!C:C,"="&A41)) -> 0 | E41: =IF(ISBLANK(A41),0,SUMIFS(Registros!H:H,Registros!B:B,">="&fecha_inicial, Registros!B:B, "<="&fecha_final,Registros!C:C,"="&A41)) -> 0 | F41: 0
C42: =IF(ISBLANK(A42),0,SUMIFS(Registros!G:G,Registros!B:B,"<"&fecha_inicial,Registros!C:C,"="&A42)-IF(ISBLANK(A42),0,SUMIFS(Registros!H:H,Registros!B:B,"<"&fecha_inicial,Registros!C:C,"="&A42))) -> 0 | D42: =IF(ISBLANK(A42),0,SUMIFS(Registros!G:G,Registros!B:B,">="&fecha_inicial, Registros!B:B, "<="&fecha_final,Registros!C:C,"="&A42)) -> 0 | E42: =IF(ISBLANK(A42),0,SUMIFS(Registros!H:H,Registros!B:B,">="&fecha_inicial, Registros!B:B, "<="&fecha_final,Registros!C:C,"="&A42)) -> 0 | F42: 0
C43: =IF(ISBLANK(A43),0,SUMIFS(Registros!G:G,Registros!B:B,"<"&fecha_inicial,Registros!C:C,"="&A43)-IF(ISBLANK(A43),0,SUMIFS(Registros!H:H,Registros!B:B,"<"&fecha_inicial,Registros!C:C,"="&A43))) -> 0 | D43: =IF(ISBLANK(A43),0,SUMIFS(Registros!G:G,Registros!B:B,">="&fecha_inicial, Registros!B:B, "<="&fecha_final,Registros!C:C,"="&A43)) -> 0 | E43: =IF(ISBLANK(A43),0,SUMIFS(Registros!H:H,Registros!B:B,">="&fecha_inicial, Registros!B:B, "<="&fecha_final,Registros!C:C,"="&A43)) -> 0 | F43: 0
C44: =IF(ISBLANK(A44),0,SUMIFS(Registros!G:G,Registros!B:B,"<"&fecha_inicial,Registros!C:C,"="&A44)-IF(ISBLANK(A44),0,SUMIFS(Registros!H:H,Registros!B:B,"<"&fecha_inicial,Registros!C:C,"="&A44))) -> 0 | D44: =IF(ISBLANK(A44),0,SUMIFS(Registros!G:G,Registros!B:B,">="&fecha_inicial, Registros!B:B, "<="&fecha_final,Registros!C:C,"="&A44)) -> 0 | E44: =IF(ISBLANK(A44),0,SUMIFS(Registros!H:H,Registros!B:B,">="&fecha_inicial, Registros!B:B, "<="&fecha_final,Registros!C:C,"="&A44)) -> 0 | F44: 0
C45: =IF(ISBLANK(A45),0,SUMIFS(Registros!G:G,Registros!B:B,"<"&fecha_inicial,Registros!C:C,"="&A45)-IF(ISBLANK(A45),0,SUMIFS(Registros!H:H,Registros!B:B,"<"&fecha_inicial,Registros!C:C,"="&A45))) -> 0 | D45: =IF(ISBLANK(A45),0,SUMIFS(Registros!G:G,Registros!B:B,">="&fecha_inicial, Registros!B:B, "<="&fecha_final,Registros!C:C,"="&A45)) -> 0 | E45: =IF(ISBLANK(A45),0,SUMIFS(Registros!H:H,Registros!B:B,">="&fecha_inicial, Registros!B:B, "<="&fecha_final,Registros!C:C,"="&A45)) -> 0 | F45: 0
A46: 110600 | B46: =IF(A46<>0, IF(ISERROR(VLOOKUP(A46, plan_cuentas,2, FALSE)), "Código de Cuenta Incorrecto", UPPER(VLOOKUP(A46, plan_cuentas, 2, FALSE))), "") -> INVENTARIOS | C46: =SUM(C47:C52) -> 107525.34 | D46: =SUM(D47:D52) -> 150 | E46: =SUM(E47:E52) -> 0 | F46: =C46+D46-E46 -> 107675.34
A47: 110601 | B47: =IF(A47<>"", IF(ISERROR(VLOOKUP(A47, plan_cuentas,2, FALSE)), "Código de Cuenta Incorrecto", UPPER(VLOOKUP(A47, plan_cuentas, 2, FALSE))), "") -> EQUIPO DEPORTIVO | C47: =IF(ISBLANK(A47),0,SUMIFS(Registros!G:G,Registros!B:B,"<"&fecha_inicial,Registros!C:C,"="&A47)-IF(ISBLANK(A47),0,SUMIFS(Registros!H:H,Registros!B:B,"<"&fecha_inicial,Registros!C:C,"="&A47))) -> 0 | D47: =IF(ISBLANK(A47),0,SUMIFS(Registros!G:G,Registros!B:B,">="&fecha_inicial, Registros!B:B, "<="&fecha_final,Registros!C:C,"="&A47)) -> 0 | E47: =IF(ISBLANK(A47),0,SUMIFS(Registros!H:H,Registros!B:B,">="&fecha_inicial, Registros!B:B, "<="&fecha_final,Registros!C:C,"="&A47)) -> 0 | F47: 0
A48: 110602 | B48: =IF(A48<>0, IF(ISERROR(VLOOKUP(A48, plan_cuentas,2, FALSE)), "Código de Cuenta Incorrecto", UPPER(VLOOKUP(A48, plan_cuentas, 2, FALSE))), "") -> MATERIALES DE CONSTRUCCIÓN | C48: =IF(ISBLANK(A48),0,SUMIFS(Registros!G:G,Registros!B:B,"<"&fecha_inicial,Registros!C:C,"="&A48)-IF(ISBLANK(A48),0,SUMIFS(Registros!H:H,Registros!B:B,"<"&fecha_inicial,Registros!C:C,"="&A48))) -> 0 | D48: =IF(ISBLANK(A48),0,SUMIFS(Registros!G:G,Registros!B:B,">="&fecha_inicial, Registros!B:B, "<="&fecha_final,Registros!C:C,"="&A48)) -> 0 | E48: =IF(ISBLANK(A48),0,SUMIFS(Registros!H:H,Registros!B:B,">="&fecha_inicial, Registros!B:B, "<="&fecha_final,Registros!C:C,"="&A48)) -> 0 | F48: 0
A49: 110603 | B49: =IF(A49<>0, IF(ISERROR(VLOOKUP(A49, plan_cuentas,2, FALSE)), "Código de Cuenta Incorrecto", UPPER(VLOOKUP(A49, plan_cuentas, 2, FALSE))), "") -> MATERIALES Y SUMINISTROS | C49: =IF(ISBLANK(A49),0,SUMIFS(Registros!G:G,Registros!B:B,"<"&fecha_inicial,Registros!C:C,"="&A49)-IF(ISBLANK(A49),0,SUMIFS(Registros!H:H,Registros!B:B,"<"&fecha_inicial,Registros!C:C,"="&A49))) -> 73058.84 | D49: =IF(ISBLANK(A49),0,SUMIFS(Registros!G:G,Registros!B:B,">="&fecha_inicial, Registros!B:B, "<="&fecha_final,Registros!C:C,"="&A49)) -> 0 | E49: =IF(ISBLANK(A49),0,SUMIFS(Registros!H:H,Registros!B:B,">="&fecha_inicial, Registros!B:B, "<="&fecha_final,Registros!C:C,"="&A49)) -> 0 | F49: 73058.84
A50: 110604 | B50: =IF(A50<>0, IF(ISERROR(VLOOKUP(A50, plan_cuentas,2, FALSE)), "Código de Cuenta Incorrecto", UPPER(VLOOKUP(A50, plan_cuentas, 2, FALSE))), "") -> EQUIPO E INSUMOS MÉDICOS | C50: =IF(ISBLANK(A50),0,SUMIFS(Registros!G:G,Registros!B:B,"<"&fecha_inicial,Registros!C:C,"="&A50)-IF(ISBLANK(A50),0,SUMIFS(Registros!H:H,Registros!B:B,"<"&fecha_inicial,Registros!C:C,"="&A50))) -> 2414.85 | D50: =IF(ISBLANK(A50),0,SUMIFS(Registros!G:G,Registros!B:B,">="&fecha_inicial, Registros!B:B, "<="&fecha_final,Registros!C:C,"="&A50)) -> 0 | E50: =IF(ISBLANK(A50),0,SUMIFS(Registros!H:H,Registros!B:B,">="&fecha_inicial, Registros!B:B, "<="&fecha_final,Registros!C:C,"="&A50)) -> 0 | F50: 2414.85
A51: 110605 | B51: =IF(A51<>0, IF(ISERROR(VLOOKUP(A51, plan_cuentas,2, FALSE)), "Código de Cuenta Incorrecto", UPPER(VLOOKUP(A51, plan_cuentas, 2, FALSE))), "") -> PAPELERÍA Y ÚTILES DE OFICINA | C51: =IF(ISBLANK(A51),0,SUMIFS(Registros!G:G,Registros!B:B,"<"&fecha_inicial,Registros!C:C,"="&A51)-IF(ISBLANK(A51),0,SUMIFS(Registros!H:H,Registros!B:B,"<"&fecha_inicial,Registros!C:C,"="&A51))) -> 24681.83 | D51: =IF(ISBLANK(A51),0,SUMIFS(Registros!G:G,Registros!B:B,">="&fecha_inicial, Registros!B:B, "<="&fecha_final,Registros!C:C,"="&A51)) -> 150 | E51: =IF(ISBLANK(A51),0,SUMIFS(Registros!H:H,Registros!B:B,">="&fecha_inicial, Registros!B:B, "<="&fecha_final,Registros!C:C,"="&A51)) -> 0 | F51: 24831.83
A52: 110606 | B52: =IF(A52<>0, IF(ISERROR(VLOOKUP(A52, plan_cuentas,2, FALSE)), "Código de Cuenta Incorrecto", UPPER(VLOOKUP(A52, plan_cuentas, 2, FALSE))), "") -> PAPELERIA MEMBRETADA | C52: =IF(ISBLANK(A52),0,SUMIFS(Registros!G:G,Registros!B:B,"<"&fecha_inicial,Registros!C:C,"="&A52)-IF(ISBLANK(A52),0,SUMIFS(Registros!H:H,Registros!B:B,"<"&fecha_inicial,Registros!C:C,"="&A52))) -> 7369.82 | D52: =IF(ISBLANK(A52),0,SUMIFS(Registros!G:G,Registros!B:B,">="&fecha_inicial, Registros!B:B, "<="&fecha_final,Registros!C:C,"="&A52)) -> 0 | E52: =IF(ISBLANK(A52),0,SUMIFS(Registros!H:H,Registros!B:B,">="&fecha_inicial, Registros!B:B, "<="&fecha_final,Registros!C:C,"="&A52)) -> 0 | F52: 7369.82
C53: =SUM(C54:C59) -> 0 | D53: =SUM(D54:D59) -> 0 | E53: =SUM(E54:E59) -> 0 | F53: 0
C54: =IF(ISBLANK(A54),0,SUMIFS(Registros!G:G,Registros!B:B,"<"&fecha_inicial,Registros!C:C,"="&A54)-IF(ISBLANK(A54),0,SUMIFS(Registros!H:H,Registros!B:B,"<"&fecha_inicial,Registros!C:C,"="&A54))) -> 0 | D54: =IF(ISBLANK(A54),0,SUMIFS(Registros!G:G,Registros!B:B,">="&fecha_inicial, Registros!B:B, "<="&fecha_final,Registros!C:C,"="&A54)) -> 0 | E54: =IF(ISBLANK(A54),0,SUMIFS(Registros!H:H,Registros!B:B,">="&fecha_inicial, Registros!B:B, "<="&fecha_final,Registros!C:C,"="&A54)) -> 0 | F54: 0
C55: =IF(ISBLANK(A55),0,SUMIFS(Registros!G:G,Registros!B:B,"<"&fecha_inicial,Registros!C:C,"="&A55)-IF(ISBLANK(A55),0,SUMIFS(Registros!H:H,Registros!B:B,"<"&fecha_inicial,Registros!C:C,"="&A55))) -> 0 | D55: =IF(ISBLANK(A55),0,SUMIFS(Registros!G:G,Registros!B:B,">="&fecha_inicial, Registros!B:B, "<="&fecha_final,Registros!C:C,"="&A55)) -> 0 | E55: =IF(ISBLANK(A55),0,SUMIFS(Registros!H:H,Registros!B:B,">="&fecha_inicial, Registros!B:B, "<="&fecha_final,Registros!C:C,"="&A55)) -> 0 | F55: 0
C56: =IF(ISBLANK(A56),0,SUMIFS(Registros!G:G,Registros!B:B,"<"&fecha_inicial,Registros!C:C,"="&A56)-IF(ISBLANK(A56),0,SUMIFS(Registros!H:H,Registros!B:B,"<"&fecha_inicial,Registros!C:C,"="&A56))) -> 0 | D56: =IF(ISBLANK(A56),0,SUMIFS(Registros!G:G,Registros!B:B,">="&fecha_inicial, Registros!B:B, "<="&fecha_final,Registros!C:C,"="&A56)) -> 0 | E56: =IF(ISBLANK(A56),0,SUMIFS(Registros!H:H,Registros!B:B,">="&fecha_inicial, Registros!B:B, "<="&fecha_final,Registros!C:C,"="&A56)) -> 0 | F56: 0
C57: =IF(ISBLANK(A57),0,SUMIFS(Registros!G:G,Registros!B:B,"<"&fecha_inicial,Registros!C:C,"="&A57)-IF(ISBLANK(A57),0,SUMIFS(Registros!H:H,Registros!B:B,"<"&fecha_inicial,Registros!C:C,"="&A57))) -> 0 | D57: =IF(ISBLANK(A57),0,SUMIFS(Registros!G:G,Registros!B:B,">="&fecha_inicial, Registros!B:B, "<="&fecha_final,Registros!C:C,"="&A57)) -> 0 | E57: =IF(ISBLANK(A57),0,SUMIFS(Registros!H:H,Registros!B:B,">="&fecha_inicial, Registros!B:B, "<="&fecha_final,Registros!C:C,"="&A57)) -> 0 | F57: 0
B58: =IF(A58<>0, IF(ISERROR(VLOOKUP(A58, plan_cuentas,2, FALSE)), "Código de Cuenta Incorrecto", UPPER(VLOOKUP(A58, plan_cuentas, 2, FALSE))), "") ->  | C58: =IF(ISBLANK(A58),0,SUMIFS(Registros!G:G,Registros!B:B,"<"&fecha_inicial,Registros!C:C,"="&A58)-IF(ISBLANK(A58),0,SUMIFS(Registros!H:H,Registros!B:B,"<"&fecha_inicial,Registros!C:C,"="&A58))) -> 0 | D58: =IF(ISBLANK(A58),0,SUMIFS(Registros!G:G,Registros!B:B,">="&fecha_inicial, Registros!B:B, "<="&fecha_final,Registros!C:C,"="&A58)) -> 0 | E58: =IF(ISBLANK(A58),0,SUMIFS(Registros!H:H,Registros!B:B,">="&fecha_inicial, Registros!B:B, "<="&fecha_final,Registros!C:C,"="&A58)) -> 0 | F58: 0
C59: =IF(ISBLANK(A59),0,SUMIFS(Registros!G:G,Registros!B:B,"<"&fecha_inicial,Registros!C:C,"="&A59)-IF(ISBLANK(A59),0,SUMIFS(Registros!H:H,Registros!B:B,"<"&fecha_inicial,Registros!C:C,"="&A59))) -> 0 | D59: =IF(ISBLANK(A59),0,SUMIFS(Registros!G:G,Registros!B:B,">="&fecha_inicial, Registros!B:B, "<="&fecha_final,Registros!C:C,"="&A59)) -> 0 | E59: =IF(ISBLANK(A59),0,SUMIFS(Registros!H:H,Registros!B:B,">="&fecha_inicial, Registros!B:B, "<="&fecha_final,Registros!C:C,"="&A59)) -> 0 | F59: 0
